Workbook

Sheet СОДЕРЖАНИЕ
A1: ФИНАНСОВАЯ МОДЕЛЬ МАЛОГО БИЗНЕСА ДЛЯ СИСТЕМЫ НАЛОГООБЛАЖЕНИЯ УСН
A3: № п/п | B3: Наименование | C3: Примечание
A4: 1 | B4: ВВОД ИСХОДНЫХ ДАННЫХ
A5: 1.1 | B5: ='Исходные данные'!B3 -> ИНФОРМАЦИЯ О КОМПАНИИ
A6: 1.2 | B6: ='Исходные данные'!B11 -> ПРОДУКТОВАЯ ЛИНЕЙКА
A7: 1.3 | B7: ='Исходные данные'!B36 -> ВОРОНКА ПРОДАЖ, РАСЧЕТ РЕКЛАМНОГО БЮДЖЕТА
A8: 1.4 | B8: ='Исходные данные'!B52 -> ПЛАН ПРОДАЖ В ЕДИНИЦАХ ИЗМЕРЕНИЯ
A9: 1.5 | B9: ='Исходные данные'!B81 -> ГРАФИК ВЫХОДА НА ЦЕЛЕВЫЕ ПРОДАЖИ
A10: 1.6 | B10: ='Исходные данные'!B87 -> ШТАТНОЕ РАСПИСАНИЕ
A11: 1.7 | B11: ='Исходные данные'!B130 -> УСЛОВНО-ПОСТОЯННЫЕ РАСХОДЫ
A12: 1.8 | B12: ='Исходные данные'!B148 -> РАСХОДЫ ПО ФРАНШИЗЕ
A13: 1.9 | B13: ='Исходные данные'!B154 -> ЭКВАЙРИНГ
A14: 1.10 | B14: ='Исходные данные'!B163 -> ИНВЕСТИЦИОННЫЕ ИЗДЕРЖКИ В НУЛЕВОЙ ПЕРИОД (до старта продаж)
A15: 1.11 | B15: ='Исходные данные'!B204 -> ИСТОЧНИКИ ФИНАНСИРОВАНИЯ ИНВЕСТИЦИОННОГО ПРОЕКТА
A16: 1.12 | B16: ='Исходные данные'!B218 -> ОСТАТОК СВОБОДНЫХ ДЕНЕЖНЫХ СРЕДСТВ
A17: 1.13 | B17: ='Исходные данные'!B242 -> ГРАФИК ПОГАШЕНИЯ КРЕДИТА И ЗАЙМА
A18: 1.14 | B18: ='Исходные данные'!B249 -> ГРАФИК ИНВЕСТИРОВАНИЯ
A19: 1.15 | B19: ='Исходные данные'!B275 -> СТАВКИ ДИСКОНТИРОВАНИЯ, СТАВКА РЕИНВЕСТИРОВАНИЯ
A20: 1.16 | B20: ='Исходные данные'!B284 -> НАЛОГОВОЕ ОКРУЖЕНИЕ
A21: 2 | B21: ='План продаж'!A1 -> ПЛАН ПРОДАЖ
A22: 2.1 | B22: ='План продаж'!B3 -> ВЫРУЧКА ПО МЕСЯЦАМ ЗА 60 МЕСЯЦЕВ
A23: 2.2 | B23: ='План продаж'!B54 -> ВЫРУЧКА ПО КВАРТАЛАМ ЗА 6 ЛЕТ
A24: 2.3 | B24: ='План продаж'!B104 -> ВЫРУЧКА ПО ГОДАМ ЗА 6 ЛЕТ
A25: 2.4 | B25: ='План продаж'!$B$152 -> ПЛАН ПРОДАЖ В ГРАФИКАХ
A26: 3 | B26: =БДДС!A1 -> БЮДЖЕТ ДВИЖЕНИЯ ДЕНЕЖНЫХ СРЕДСТВ (БДДС)
A27: 3.1 | B27: =БДДС!A12 -> Остаток ДС на начало периода
A28: 3.2 | B28: =БДДС!A14 -> Поступление от операционной деятельности
A29: 3.3 | B29: =БДДС!A15 -> Операционные расходы
A30: 3.4 | B30: =БДДС!A42 -> Чистый операционный поток
A31: 3.5 | B31: =БДДС!A44 -> Финансовые поступления
A32: 3.6 | B32: =БДДС!A49 -> Финансовые расходы
A33: 3.7 | B33: =БДДС!A54 -> Чистый финансовый поток
A34: 3.8 | B34: =БДДС!A56 -> Инвестиционные поступления
A35: 3.9 | B35: =БДДС!A58 -> Инвестиционные и разовые платежи
A36: 3.10 | B36: =БДДС!A71 -> Остаток ДС на конец периода
A37: 3.11 | B37: =БДДС!A73 -> БДДС ПО КВАРТАЛАМ
A38: 3.12 | B38: =БДДС!A94 -> БДДС ПО ГОДАМ
A39: 3.13 | B39: ОСТАТОК ДС ПО КВАРТАЛАМ (график)
A40: 4 | B40: =БДР!A1 -> БЮДЖЕТ ДОХОДОВ И РАСХОДОВ (БДР)
A41: 4.1 | B41: =БДР!A3 -> БДР ПО МЕСЯЦАМ
A42: 4.2 | B42: =БДР!A148 -> БДР ПО ГОДАМ И КВАРТАЛАМ
A43: 4.3 | B43: =БДР!A167 -> СТРУКТУРА РАСХОДОВ
A44: 4.4 | B44: =БДР!A191 -> ДИНАМИКА ДОХОДОВ И РАСХОДОВ (график)
A45: 5 | B45: =Баланс!A1 -> УПРАВЛЕНЧЕСКИЙ БАЛАНС
A46: 5.1 | B46: =Баланс!A3 -> БАЛАНС ПО МЕСЯЦАМ
A47: 5.2 | B47: =Баланс!A28 -> БАЛАНС ПО КВАРТАЛАМ
A48: 6 | B48: =Налоги!A1 -> ОТЧИСЛЕНИЯ В БЮДЖЕТ
A49: 6.1 | B49: =Налоги!A13 -> К НАЧИСЛЕНИЮ ЗА ПЕРИОД
A50: 6.2 | B50: =Налоги!A23 -> К УПЛАТЕ ЗА ПЕРИОД
A51: 7 | B51: ='Анализ эффективности'!A1 -> АНАЛИЗ ЭФФЕКТИВНОСТИ
A52: 7.1 | B52: ='Анализ эффективности'!A3 -> ПОКАЗАТЕЛИ ЭКОНОМИЧЕСКОЙ ЭФФЕКТИВНОСТИ
A53: 7.2 | B53: ='Анализ эффективности'!A31 -> РАСЧЁТ СРОКОВ ОКУПАЕМОСТИ
A54: 7.3 | B54: ='Анализ эффективности'!A51 -> ВНУТРЕННЯЯ НОРМА РЕНТАБЕЛЬНОСТИ, ДОХОДНОСТИ (IRR)
A55: 7.4 | B55: ='Анализ эффективности'!A57 -> МОДИФИЦИРОВАННАЯ ВНУТРЕННЯЯ НОРМА ДОХОДНОСТИ (MIRR)
A56: 7.5 | B56: ='Анализ эффективности'!A67 -> СРОК ВОЗВРАТА КРЕДИТА
A57: 7.6 | B57: ='Анализ эффективности'!A79 -> РЕНТАБЕЛЬНОСТЬ ПРОДАЖ
A58: 8 | B58: АНАЛИЗ ЧУВСТВИТЕЛЬНОСТИ NPV
A59: 8.1 | B59: ='Анализ чувствительности NPV'!A5 -> АНАЛИЗ ЧУВСТВИТЕЛЬНОСТИ ЧИСТОГО ПРИВЕДЕННОГО ДОХОДА (NPV) К ЦЕНЕ
A60: 8.2 | B60: ='Анализ чувствительности NPV'!A33 -> АНАЛИЗ ЧУВСТВИТЕЛЬНОСТИ ЧИСТОГО ПРИВЕДЕННОГО ДОХОДА (NPV) К ОБЪЕМУ ВЫРУЧКИ
A61: 9 | B61: ='расчет прямых ТЗР'!A1 -> РАСЧЕТ СУММЫ ЗАКУПКИ ТОВАРА И ТЗР
A62: 10 | B62: =Спровочник!A1 -> ТАБЛИЦЫ СПИСКОВ

Sheet Исходные данные
A1: ВВОД ИСХОДНЫХ ДАННЫХ
B3: ИНФОРМАЦИЯ О КОМПАНИИ
A5: Организационно-правовая форма | C5: ИП
A6: Наименование организации | C6: Шаверма (уличный формат)
A7: Сфера деятельности | C7: Общественное питание
A8: Система нологооблажения | C8: УСН доходы
A9: Старт продаж | C9: Май | D9: 2021 | Y9: =CONCATENATE(C9," ",D9) -> Май 2021
B11: ПРОДУКТОВАЯ ЛИНЕЙКА
A13: № п/п | B13: Категория тлвара | C13: Единица измерения | D13: Отпускная цена, руб/ед | E13: Прямые расходы, руб/ед | F13: Закупочная стоимость товаров | G13: Транспортно-заготовительные расходы (ТЗР), % | H13: Сдельная зарплата gross, % | I13: Страховые отчисления, % | J13: Маржа, % | K13: Торговая наценка, %
B14: Укажите категории товаров которые планируете продавать | D14: Укажите среднюю цену по категориям | E14: формула | F14: Укажите среднюю закупочную цену по категории | G14: Укажите средний процент транспортно-заготовительных расходов | H14: формула | I14: формула | J14: формула | K14: формула
A15: 1 | B15: Шаурма | C15: шт | D15: 140 | E15: =F15*(1+G15)+D15*(H15+I15) -> 81.214 | F15: 70 | G15: 0.03 | H15: =IFERROR($G$108,0) -> 0.05 | I15: =H15*$C$288 -> 0.0151 | J15: =(IF(AND(E15<>0,D15<E15),"проверте отпускную цену",IFERROR(1-E15/D15,0))) -> 0.4199 | K15: =IFERROR(D15/F15-1,0) -> 1 | Y15: =IFERROR((G15*F15)/D15,0) -> 0.015
A16: =A15+1 -> 2 | B16: Кофе | C16: шт | D16: 100 | E16: =F16*(1+G16)+D16*(H16+I16) -> 51.96 | F16: =45 -> 45 | G16: 0.01 | H16: 0.05 | I16: 0.0151 | J16: 0.4804 | K16: =IFERROR(D16/F16-1,0) -> 1.222222222 | Y16: 0.0045
A17: =A16+1 -> 3 | B17: Хот-дог | C17: шт | D17: 100 | E17: 57.01 | F17: =50 -> 50 | G17: 0.01 | H17: 0.05 | I17: 0.0151 | J17: 0.4299 | K17: 1 | Y17: 0.005
A18: 4 | B18: Газированный напиток | C18: шт | D18: 60 | E18: 43.906 | F18: =40 -> 40 | G18: 0 | H18: 0.05 | I18: 0.0151 | J18: 0.2682333333 | K18: 0.5 | Y18: 0
A19: 5 | B19: Чай | C19: шт | D19: 40 | E19: 17.754 | F19: =15 -> 15 | G19: 0.01 | H19: 0.05 | I19: 0.0151 | J19: 0.55615 | K19: 1.666666667 | Y19: 0.00375
A20: 6 | C20: шт | D20: 0 | E20: 0 | H20: 0.05 | I20: 0.0151 | J20: 0 | K20: 0 | Y20: 0
A21: 7 | C21: шт | D21: 0 | E21: 0 | H21: 0.05 | I21: 0.0151 | J21: 0 | K21: 0 | Y21: 0
A22: 8 | C22: шт | D22: 0 | E22: 0 | H22: 0.05 | I22: 0.0151 | J22: 0 | K22: 0 | Y22: 0
A23: 9 | C23: шт | D23: 0 | E23: 0 | H23: 0.05 | I23: 0.0151 | J23: 0 | K23: 0 | Y23: 0
A24: 10 | C24: шт | D24: 0 | E24: 0 | H24: 0.05 | I24: 0.0151 | J24: 0 | K24: 0 | Y24: 0
A25: 11 | C25: шт | D25: 0 | E25: 0 | H25: 0.05 | I25: 0.0151 | J25: 0 | K25: 0 | Y25: 0
A26: 12 | C26: шт | D26: 0 | E26: 0 | H26: 0.05 | I26: 0.0151 | J26: 0 | K26: 0 | Y26: 0
A27: 13 | C27: шт | D27: 0 | E27: 0 | H27: 0.05 | I27: 0.0151 | J27: 0 | K27: 0 | Y27: 0
A28: 14 | C28: шт | D28: 0 | E28: 0 | H28: 0.05 | I28: 0.0151 | J28: 0 | K28: 0 | Y28: 0
A29: 15 | C29: шт | D29: 0 | E29: 0 | H29: 0.05 | I29: 0.0151 | J29: 0 | K29: 0 | Y29: 0
A30: 16 | C30: шт | D30: 0 | E30: 0 | H30: 0.05 | I30: 0.0151 | J30: 0 | K30: 0 | Y30: 0
A31: 17 | C31: шт | D31: 0 | E31: 0 | H31: 0.05 | I31: 0.0151 | J31: 0 | K31: 0 | Y31: 0
A32: 18 | C32: шт | D32: 0 | E32: 0 | H32: 0.05 | I32: 0.0151 | J32: 0 | K32: 0 | Y32: 0
A33: 19 | C33: шт | D33: 0 | E33: 0 | H33: 0.05 | I33: 0.0151 | J33: 0 | K33: 0 | Y33: 0
A34: 20 | C34: шт | D34: 0 | E34: 0 | H34: 0.05 | I34: 0.0151 | J34: 0 | K34: 0 | Y34: 0
B36: ВОРОНКА ПРОДАЖ, РАСЧЕТ РЕКЛАМНОГО БЮДЖЕТА
A38: № п/п | B38: Наименование | E38: Значение, в месяц | F38: Значение, в день
A39: 1 | B39: Показов потенциальным клиентам (количество показов рекламы в соц.сетях, показов объявлений в интернет сервисах, на баннерах и т.д.) | E39: 50000 | F39: =E39/30 -> 1666.666667 | Y39: =E39 -> 50000 | Z39: 1 | AA39: =Y39*E46 -> 20000000
A40: =A39+1 -> 2 | B40: Средняя стоимость одного показа, руб. | E40: 1 | F40: =E40 -> 1 | Y40: =E42 -> 2500 | Z40: =Y40/Y39 -> 0.05 | AA40: =Y40*E46 -> 1000000
A41: =A40+1 -> 3 | B41: Прогнозный процент потенциальных клиентов, которые посетят сайт и (или) в шоурум после просмотра показа (указать долю от показов) | E41: 0.05 | F41: =E41 -> 0.05 | Y41: =E44 -> 2250 | Z41: =Y41/Y39 -> 0.045 | AA41: =Y41*E46 -> 900000
A42: 4 | B42: Количество потенциальных клиентов, которые посетят сайт и (или) шоурум после просмотра показа | E42: =E41*E39 -> 2500 | F42: =E42/30 -> 83.33333333
A43: 5 | B43: Процент продаж посетителям в месяц (доля от посещений) | E43: 0.9 | F43: =E43 -> 0.9
A44: 6 | B44: Прогнозное количество продаж на сайте и (или) в шоуруме в месяц | E44: =E42*E43 -> 2250 | F44: =E44/30 -> 75
A45: 7 | B45: Конверсия показов | E45: =IFERROR(E44/E39,"") -> 0.045 | F45: =E45 -> 0.045
A46: 8 | B46: Прогнозная сумма среднего чека | E46: 400 | F46: =E46 -> 400
A47: 9 | B47: Прогнозный среднемесячный объем продаж | E47: =E44*E46 -> 900000 | F47: =E47/30 -> 30000
A48: 10 | B48: Рекламный бюджет руб/мес | E48: =E40*E39 -> 50000 | F48: =E48/30 -> 1666.666667
A49: 11 | B49: Рекламный бюджет - доля от выручки | E49: =IFERROR(E48/E47,"") -> 0.05555555556 | F49: =IFERROR(F48/F47,"") -> 0.05555555556
A50: 12 | B50: Стоимость привлечения, руб/заказ | E50: =E48/E44 -> 22.22222222 | F50: =F48/F44 -> 22.22222222
B52: ПЛАН ПРОДАЖ В ЕДИНИЦАХ ИЗМЕРЕНИЯ
A54: № п/п | B54: Наименование продукции (тлвара) | C54: Ед.изм. | D54: Прогнозная доля в продажах за год | E54: Сезонность | G54: Продажи в количестве | Y54: Код сезонности | Z54: Проверка
G55: Год | H55: Январь | I55: Февраль | J55: Март | K55: Апрель | L55: Май | M55: Июнь | N55: Июль | O55: Август | P55: Сентябрь | Q55: Октябрь | R55: Ноябрь | S55: Декабрь
D56: Укажите доли. Сумма всех долей должна равняться 100% | E56: Выбрать из списка | G56: формула | H56: формула | I56: формула | J56: формула | K56: формула | L56: формула | M56: формула | N56: формула | O56: формула | P56: формула | Q56: формула | R56: формула | S56: формула | Y56: формулы | Z56: формула
A57: 1 | B57: =B15 -> Шаурма | C57: =IF(OR(C15=0,C15=""),"",C15) -> шт | D57: 0.5 | E57: Равномерно с акцентом на новагодние праздники | G57: =SUM(H57:S57) -> 38573 | H57: =IFERROR(ROUND($E$47*$D57/$D15*VLOOKUP($Y57,Спровочник!$A$4:$N$18,3),0),0) -> 3536 | I57: =IFERROR(ROUND($E$47*$D57/$D15*VLOOKUP($Y57,Спровочник!$A$4:$N$18,4),0),0) -> 2143 | J57: =IFERROR(ROUND($E$47*$D57/$D15*VLOOKUP($Y57,Спровочник!$A$4:$N$18,5),0),0) -> 2143 | K57: =IFERROR(ROUND($E$47*$D57/$D15*VLOOKUP($Y57,Спровочник!$A$4:$N$18,6),0),0) -> 2143 | L57: =IFERROR(ROUND($E$47*$D57/$D15*VLOOKUP($Y57,Спровочник!$A$4:$N$18,7),0),0) -> 2143 | M57: =IFERROR(ROUND($E$47*$D57/$D15*VLOOKUP($Y57,Спровочник!$A$4:$N$18,8),0),0) -> 2143 | N57: =IFERROR(ROUND($E$47*$D57/$D15*VLOOKUP($Y57,Спровочник!$A$4:$N$18,9),0),0) -> 2143 | O57: =IFERROR(ROUND($E$47*$D57/$D15*VLOOKUP($Y57,Спровочник!$A$4:$N$18,10),0),0) -> 2143 | P57: =IFERROR(ROUND($E$47*$D57/$D15*VLOOKUP($Y57,Спровочник!$A$4:$N$18,11),0),0) -> 2143 | Q57: =IFERROR(ROUND($E$47*$D57/$D15*VLOOKUP($Y57,Спровочник!$A$4:$N$18,12),0),0) -> 2143 | R57: =IFERROR(ROUND($E$47*$D57/$D15*VLOOKUP($Y57,Спровочник!$A$4:$N$18,13),0),0) -> 4821 | S57: =IFERROR(ROUND($E$47*$D57/$D15*VLOOKUP($Y57,Спровочник!$A$4:$N$18,14),0),0) -> 10929 | Y57: =IFERROR(INDEX(Спровочник!$A$4:$A$18,MATCH('Исходные данные'!E57,сезоны,0)),"") -> 2 | Z57: =G57-SUM(H57:S57) -> 0
A58: =A57+1 -> 2 | B58: Кофе | C58: шт | D58: 0.25 | E58: Больше зимой чем летом | G58: =SUM(H58:S58) -> 27000 | H58: =IFERROR(ROUND($E$47*$D58/$D16*VLOOKUP($Y58,Спровочник!$A$4:$N$18,3),0),0) -> 2700 | I58: =IFERROR(ROUND($E$47*$D58/$D16*VLOOKUP($Y58,Спровочник!$A$4:$N$18,4),0),0) -> 2700 | J58: =IFERROR(ROUND($E$47*$D58/$D16*VLOOKUP($Y58,Спровочник!$A$4:$N$18,5),0),0) -> 2250 | K58: =IFERROR(ROUND($E$47*$D58/$D16*VLOOKUP($Y58,Спровочник!$A$4:$N$18,6),0),0) -> 2250 | L58: =IFERROR(ROUND($E$47*$D58/$D16*VLOOKUP($Y58,Спровочник!$A$4:$N$18,7),0),0) -> 1980 | M58: =IFERROR(ROUND($E$47*$D58/$D16*VLOOKUP($Y58,Спровочник!$A$4:$N$18,8),0),0) -> 1980 | N58: =IFERROR(ROUND($E$47*$D58/$D16*VLOOKUP($Y58,Спровочник!$A$4:$N$18,9),0),0) -> 1980 | O58: =IFERROR(ROUND($E$47*$D58/$D16*VLOOKUP($Y58,Спровочник!$A$4:$N$18,10),0),0) -> 1980 | P58: =IFERROR(ROUND($E$47*$D58/$D16*VLOOKUP($Y58,Спровочник!$A$4:$N$18,11),0),0) -> 1980 | Q58: =IFERROR(ROUND($E$47*$D58/$D16*VLOOKUP($Y58,Спровочник!$A$4:$N$18,12),0),0) -> 2250 | R58: =IFERROR(ROUND($E$47*$D58/$D16*VLOOKUP($Y58,Спровочник!$A$4:$N$18,13),0),0) -> 2250 | S58: =IFERROR(ROUND($E$47*$D58/$D16*VLOOKUP($Y58,Спровочник!$A$4:$N$18,14),0),0) -> 2700 | Y58: =IFERROR(INDEX(Спровочник!$A$4:$A$18,MATCH('Исходные данные'!E58,сезоны,0)),"") -> 4 | Z58: 0
A59: =A58+1 -> 3 | B59: Хот-дог | C59: шт | D59: 0.1 | E59: Равномерно в течении года | G59: 10800 | H59: =IFERROR(ROUND($E$47*$D59/$D17*VLOOKUP($Y59,Спровочник!$A$4:$N$18,3),0),0) -> 900 | I59: =IFERROR(ROUND($E$47*$D59/$D17*VLOOKUP($Y59,Спровочник!$A$4:$N$18,4),0),0) -> 900 | J59: =IFERROR(ROUND($E$47*$D59/$D17*VLOOKUP($Y59,Спровочник!$A$4:$N$18,5),0),0) -> 900 | K59: =IFERROR(ROUND($E$47*$D59/$D17*VLOOKUP($Y59,Спровочник!$A$4:$N$18,6),0),0) -> 900 | L59: =IFERROR(ROUND($E$47*$D59/$D17*VLOOKUP($Y59,Спровочник!$A$4:$N$18,7),0),0) -> 900 | M59: =IFERROR(ROUND($E$47*$D59/$D17*VLOOKUP($Y59,Спровочник!$A$4:$N$18,8),0),0) -> 900 | N59: =IFERROR(ROUND($E$47*$D59/$D17*VLOOKUP($Y59,Спровочник!$A$4:$N$18,9),0),0) -> 900 | O59: =IFERROR(ROUND($E$47*$D59/$D17*VLOOKUP($Y59,Спровочник!$A$4:$N$18,10),0),0) -> 900 | P59: =IFERROR(ROUND($E$47*$D59/$D17*VLOOKUP($Y59,Спровочник!$A$4:$N$18,11),0),0) -> 900 | Q59: =IFERROR(ROUND($E$47*$D59/$D17*VLOOKUP($Y59,Спровочник!$A$4:$N$18,12),0),0) -> 900 | R59: =IFERROR(ROUND($E$47*$D59/$D17*VLOOKUP($Y59,Спровочник!$A$4:$N$18,13),0),0) -> 900 | S59: =IFERROR(ROUND($E$47*$D59/$D17*VLOOKUP($Y59,Спровочник!$A$4:$N$18,14),0),0) -> 900 | Y59: =IFERROR(INDEX(Спровочник!$A$4:$A$18,MATCH('Исходные данные'!E59,сезоны,0)),"") -> 1 | Z59: 0
A60: 4 | B60: Газированный напиток | C60: шт | D60: 0.1 | E60: Больше летом чем зимой | G60: 18000 | H60: =IFERROR(ROUND($E$47*$D60/$D18*VLOOKUP($Y60,Спровочник!$A$4:$N$18,3),0),0) -> 1320 | I60: =IFERROR(ROUND($E$47*$D60/$D18*VLOOKUP($Y60,Спровочник!$A$4:$N$18,4),0),0) -> 1320 | J60: =IFERROR(ROUND($E$47*$D60/$D18*VLOOKUP($Y60,Спровочник!$A$4:$N$18,5),0),0) -> 1320 | K60: =IFERROR(ROUND($E$47*$D60/$D18*VLOOKUP($Y60,Спровочник!$A$4:$N$18,6),0),0) -> 1500 | L60: =IFERROR(ROUND($E$47*$D60/$D18*VLOOKUP($Y60,Спровочник!$A$4:$N$18,7),0),0) -> 1500 | M60: =IFERROR(ROUND($E$47*$D60/$D18*VLOOKUP($Y60,Спровочник!$A$4:$N$18,8),0),0) -> 1800 | N60: =IFERROR(ROUND($E$47*$D60/$D18*VLOOKUP($Y60,Спровочник!$A$4:$N$18,9),0),0) -> 1800 | O60: =IFERROR(ROUND($E$47*$D60/$D18*VLOOKUP($Y60,Спровочник!$A$4:$N$18,10),0),0) -> 1800 | P60: =IFERROR(ROUND($E$47*$D60/$D18*VLOOKUP($Y60,Спровочник!$A$4:$N$18,11),0),0) -> 1500 | Q60: =IFERROR(ROUND($E$47*$D60/$D18*VLOOKUP($Y60,Спровочник!$A$4:$N$18,12),0),0) -> 1500 | R60: =IFERROR(ROUND($E$47*$D60/$D18*VLOOKUP($Y60,Спровочник!$A$4:$N$18,13),0),0) -> 1320 | S60: =IFERROR(ROUND($E$47*$D60/$D18*VLOOKUP($Y60,Спровочник!$A$4:$N$18,14),0),0) -> 1320 | Y60: =IFERROR(INDEX(Спровочник!$A$4:$A$18,MATCH('Исходные данные'!E60,сезоны,0)),"") -> 5 | Z60: 0
A61: 5 | B61: Чай | C61: шт | D61: 0.05 | E61: Равномерно в течении года | G61: 13500 | H61: =IFERROR(ROUND($E$47*$D61/$D19*VLOOKUP($Y61,Спровочник!$A$4:$N$18,3),0),0) -> 1125 | I61: =IFERROR(ROUND($E$47*$D61/$D19*VLOOKUP($Y61,Спровочник!$A$4:$N$18,4),0),0) -> 1125 | J61: =IFERROR(ROUND($E$47*$D61/$D19*VLOOKUP($Y61,Спровочник!$A$4:$N$18,5),0),0) -> 1125 | K61: =IFERROR(ROUND($E$47*$D61/$D19*VLOOKUP($Y61,Спровочник!$A$4:$N$18,6),0),0) -> 1125 | L61: =IFERROR(ROUND($E$47*$D61/$D19*VLOOKUP($Y61,Спровочник!$A$4:$N$18,7),0),0) -> 1125 | M61: =IFERROR(ROUND($E$47*$D61/$D19*VLOOKUP($Y61,Спровочник!$A$4:$N$18,8),0),0) -> 1125 | N61: =IFERROR(ROUND($E$47*$D61/$D19*VLOOKUP($Y61,Спровочник!$A$4:$N$18,9),0),0) -> 1125 | O61: =IFERROR(ROUND($E$47*$D61/$D19*VLOOKUP($Y61,Спровочник!$A$4:$N$18,10),0),0) -> 1125 | P61: =IFERROR(ROUND($E$47*$D61/$D19*VLOOKUP($Y61,Спровочник!$A$4:$N$18,11),0),0) -> 1125 | Q61: =IFERROR(ROUND($E$47*$D61/$D19*VLOOKUP($Y61,Спровочник!$A$4:$N$18,12),0),0) -> 1125 | R61: =IFERROR(ROUND($E$47*$D61/$D19*VLOOKUP($Y61,Спровочник!$A$4:$N$18,13),0),0) -> 1125 | S61: =IFERROR(ROUND($E$47*$D61/$D19*VLOOKUP($Y61,Спровочник!$A$4:$N$18,14),0),0) -> 1125 | Y61: =IFERROR(INDEX(Спровочник!$A$4:$A$18,MATCH('Исходные данные'!E61,сезоны,0)),"") -> 1 | Z61: 0
A62: 6 | B62: 0 | C62: шт | G62: 0 | H62: =IFERROR(ROUND($E$47*$D62/$D20*VLOOKUP($Y62,Спровочник!$A$4:$N$18,3),0),0) -> 0 | I62: =IFERROR(ROUND($E$47*$D62/$D20*VLOOKUP($Y62,Спровочник!$A$4:$N$18,4),0),0) -> 0 | J62: =IFERROR(ROUND($E$47*$D62/$D20*VLOOKUP($Y62,Спровочник!$A$4:$N$18,5),0),0) -> 0 | K62: =IFERROR(ROUND($E$47*$D62/$D20*VLOOKUP($Y62,Спровочник!$A$4:$N$18,6),0),0) -> 0 | L62: =IFERROR(ROUND($E$47*$D62/$D20*VLOOKUP($Y62,Спровочник!$A$4:$N$18,7),0),0) -> 0 | M62: =IFERROR(ROUND($E$47*$D62/$D20*VLOOKUP($Y62,Спровочник!$A$4:$N$18,8),0),0) -> 0 | N62: =IFERROR(ROUND($E$47*$D62/$D20*VLOOKUP($Y62,Спровочник!$A$4:$N$18,9),0),0) -> 0 | O62: =IFERROR(ROUND($E$47*$D62/$D20*VLOOKUP($Y62,Спровочник!$A$4:$N$18,10),0),0) -> 0 | P62: =IFERROR(ROUND($E$47*$D62/$D20*VLOOKUP($Y62,Спровочник!$A$4:$N$18,11),0),0) -> 0 | Q62: =IFERROR(ROUND($E$47*$D62/$D20*VLOOKUP($Y62,Спровочник!$A$4:$N$18,12),0),0) -> 0 | R62: =IFERROR(ROUND($E$47*$D62/$D20*VLOOKUP($Y62,Спровочник!$A$4:$N$18,13),0),0) -> 0 | S62: =IFERROR(ROUND($E$47*$D62/$D20*VLOOKUP($Y62,Спровочник!$A$4:$N$18,14),0),0) -> 0 | Y62: =IFERROR(INDEX(Спровочник!$A$4:$A$18,MATCH('Исходные данные'!E62,сезоны,0)),"") ->  | Z62: 0
A63: 7 | B63: 0 | C63: шт | G63: 0 | H63: =IFERROR(ROUND($E$47*$D63/$D21*VLOOKUP($Y63,Спровочник!$A$4:$N$18,3),0),0) -> 0 | I63: =IFERROR(ROUND($E$47*$D63/$D21*VLOOKUP($Y63,Спровочник!$A$4:$N$18,4),0),0) -> 0 | J63: =IFERROR(ROUND($E$47*$D63/$D21*VLOOKUP($Y63,Спровочник!$A$4:$N$18,5),0),0) -> 0 | K63: =IFERROR(ROUND($E$47*$D63/$D21*VLOOKUP($Y63,Спровочник!$A$4:$N$18,6),0),0) -> 0 | L63: =IFERROR(ROUND($E$47*$D63/$D21*VLOOKUP($Y63,Спровочник!$A$4:$N$18,7),0),0) -> 0 | M63: =IFERROR(ROUND($E$47*$D63/$D21*VLOOKUP($Y63,Спровочник!$A$4:$N$18,8),0),0) -> 0 | N63: =IFERROR(ROUND($E$47*$D63/$D21*VLOOKUP($Y63,Спровочник!$A$4:$N$18,9),0),0) -> 0 | O63: =IFERROR(ROUND($E$47*$D63/$D21*VLOOKUP($Y63,Спровочник!$A$4:$N$18,10),0),0) -> 0 | P63: =IFERROR(ROUND($E$47*$D63/$D21*VLOOKUP($Y63,Спровочник!$A$4:$N$18,11),0),0) -> 0 | Q63: =IFERROR(ROUND($E$47*$D63/$D21*VLOOKUP($Y63,Спровочник!$A$4:$N$18,12),0),0) -> 0 | R63: =IFERROR(ROUND($E$47*$D63/$D21*VLOOKUP($Y63,Спровочник!$A$4:$N$18,13),0),0) -> 0 | S63: =IFERROR(ROUND($E$47*$D63/$D21*VLOOKUP($Y63,Спровочник!$A$4:$N$18,14),0),0) -> 0 | Y63: =IFERROR(INDEX(Спровочник!$A$4:$A$18,MATCH('Исходные данные'!E63,сезоны,0)),"") ->  | Z63: 0
A64: 8 | B64: 0 | C64: шт | G64: 0 | H64: =IFERROR(ROUND($E$47*$D64/$D22*VLOOKUP($Y64,Спровочник!$A$4:$N$18,3),0),0) -> 0 | I64: =IFERROR(ROUND($E$47*$D64/$D22*VLOOKUP($Y64,Спровочник!$A$4:$N$18,4),0),0) -> 0 | J64: =IFERROR(ROUND($E$47*$D64/$D22*VLOOKUP($Y64,Спровочник!$A$4:$N$18,5),0),0) -> 0 | K64: =IFERROR(ROUND($E$47*$D64/$D22*VLOOKUP($Y64,Спровочник!$A$4:$N$18,6),0),0) -> 0 | L64: =IFERROR(ROUND($E$47*$D64/$D22*VLOOKUP($Y64,Спровочник!$A$4:$N$18,7),0),0) -> 0 | M64: =IFERROR(ROUND($E$47*$D64/$D22*VLOOKUP($Y64,Спровочник!$A$4:$N$18,8),0),0) -> 0 | N64: =IFERROR(ROUND($E$47*$D64/$D22*VLOOKUP($Y64,Спровочник!$A$4:$N$18,9),0),0) -> 0 | O64: =IFERROR(ROUND($E$47*$D64/$D22*VLOOKUP($Y64,Спровочник!$A$4:$N$18,10),0),0) -> 0 | P64: =IFERROR(ROUND($E$47*$D64/$D22*VLOOKUP($Y64,Спровочник!$A$4:$N$18,11),0),0) -> 0 | Q64: =IFERROR(ROUND($E$47*$D64/$D22*VLOOKUP($Y64,Спровочник!$A$4:$N$18,12),0),0) -> 0 | R64: =IFERROR(ROUND($E$47*$D64/$D22*VLOOKUP($Y64,Спровочник!$A$4:$N$18,13),0),0) -> 0 | S64: =IFERROR(ROUND($E$47*$D64/$D22*VLOOKUP($Y64,Спровочник!$A$4:$N$18,14),0),0) -> 0 | Y64: =IFERROR(INDEX(Спровочник!$A$4:$A$18,MATCH('Исходные данные'!E64,сезоны,0)),"") ->  | Z64: 0
A65: 9 | B65: 0 | C65: шт | G65: 0 | H65: =IFERROR(ROUND($E$47*$D65/$D23*VLOOKUP($Y65,Спровочник!$A$4:$N$18,3),0),0) -> 0 | I65: =IFERROR(ROUND($E$47*$D65/$D23*VLOOKUP($Y65,Спровочник!$A$4:$N$18,4),0),0) -> 0 | J65: =IFERROR(ROUND($E$47*$D65/$D23*VLOOKUP($Y65,Спровочник!$A$4:$N$18,5),0),0) -> 0 | K65: =IFERROR(ROUND($E$47*$D65/$D23*VLOOKUP($Y65,Спровочник!$A$4:$N$18,6),0),0) -> 0 | L65: =IFERROR(ROUND($E$47*$D65/$D23*VLOOKUP($Y65,Спровочник!$A$4:$N$18,7),0),0) -> 0 | M65: =IFERROR(ROUND($E$47*$D65/$D23*VLOOKUP($Y65,Спровочник!$A$4:$N$18,8),0),0) -> 0 | N65: =IFERROR(ROUND($E$47*$D65/$D23*VLOOKUP($Y65,Спровочник!$A$4:$N$18,9),0),0) -> 0 | O65: =IFERROR(ROUND($E$47*$D65/$D23*VLOOKUP($Y65,Спровочник!$A$4:$N$18,10),0),0) -> 0 | P65: =IFERROR(ROUND($E$47*$D65/$D23*VLOOKUP($Y65,Спровочник!$A$4:$N$18,11),0),0) -> 0 | Q65: =IFERROR(ROUND($E$47*$D65/$D23*VLOOKUP($Y65,Спровочник!$A$4:$N$18,12),0),0) -> 0 | R65: =IFERROR(ROUND($E$47*$D65/$D23*VLOOKUP($Y65,Спровочник!$A$4:$N$18,13),0),0) -> 0 | S65: =IFERROR(ROUND($E$47*$D65/$D23*VLOOKUP($Y65,Спровочник!$A$4:$N$18,14),0),0) -> 0 | Y65: =IFERROR(INDEX(Спровочник!$A$4:$A$18,MATCH('Исходные данные'!E65,сезоны,0)),"") ->  | Z65: 0
A66: 10 | B66: 0 | C66: шт | G66: 0 | H66: =IFERROR(ROUND($E$47*$D66/$D24*VLOOKUP($Y66,Спровочник!$A$4:$N$18,3),0),0) -> 0 | I66: =IFERROR(ROUND($E$47*$D66/$D24*VLOOKUP($Y66,Спровочник!$A$4:$N$18,4),0),0) -> 0 | J66: =IFERROR(ROUND($E$47*$D66/$D24*VLOOKUP($Y66,Спровочник!$A$4:$N$18,5),0),0) -> 0 | K66: =IFERROR(ROUND($E$47*$D66/$D24*VLOOKUP($Y66,Спровочник!$A$4:$N$18,6),0),0) -> 0 | L66: =IFERROR(ROUND($E$47*$D66/$D24*VLOOKUP($Y66,Спровочник!$A$4:$N$18,7),0),0) -> 0 | M66: =IFERROR(ROUND($E$47*$D66/$D24*VLOOKUP($Y66,Спровочник!$A$4:$N$18,8),0),0) -> 0 | N66: =IFERROR(ROUND($E$47*$D66/$D24*VLOOKUP($Y66,Спровочник!$A$4:$N$18,9),0),0) -> 0 | O66: =IFERROR(ROUND($E$47*$D66/$D24*VLOOKUP($Y66,Спровочник!$A$4:$N$18,10),0),0) -> 0 | P66: =IFERROR(ROUND($E$47*$D66/$D24*VLOOKUP($Y66,Спровочник!$A$4:$N$18,11),0),0) -> 0 | Q66: =IFERROR(ROUND($E$47*$D66/$D24*VLOOKUP($Y66,Спровочник!$A$4:$N$18,12),0),0) -> 0 | R66: =IFERROR(ROUND($E$47*$D66/$D24*VLOOKUP($Y66,Спровочник!$A$4:$N$18,13),0),0) -> 0 | S66: =IFERROR(ROUND($E$47*$D66/$D24*VLOOKUP($Y66,Спровочник!$A$4:$N$18,14),0),0) -> 0 | Y66: =IFERROR(INDEX(Спровочник!$A$4:$A$18,MATCH('Исходные данные'!E66,сезоны,0)),"") ->  | Z66: 0
A67: 11 | B67: 0 | C67: шт | G67: 0 | H67: =IFERROR(ROUND($E$47*$D67/$D25*VLOOKUP($Y67,Спровочник!$A$4:$N$18,3),0),0) -> 0 | I67: =IFERROR(ROUND($E$47*$D67/$D25*VLOOKUP($Y67,Спровочник!$A$4:$N$18,4),0),0) -> 0 | J67: =IFERROR(ROUND($E$47*$D67/$D25*VLOOKUP($Y67,Спровочник!$A$4:$N$18,5),0),0) -> 0 | K67: =IFERROR(ROUND($E$47*$D67/$D25*VLOOKUP($Y67,Спровочник!$A$4:$N$18,6),0),0) -> 0 | L67: =IFERROR(ROUND($E$47*$D67/$D25*VLOOKUP($Y67,Спровочник!$A$4:$N$18,7),0),0) -> 0 | M67: =IFERROR(ROUND($E$47*$D67/$D25*VLOOKUP($Y67,Спровочник!$A$4:$N$18,8),0),0) -> 0 | N67: =IFERROR(ROUND($E$47*$D67/$D25*VLOOKUP($Y67,Спровочник!$A$4:$N$18,9),0),0) -> 0 | O67: =IFERROR(ROUND($E$47*$D67/$D25*VLOOKUP($Y67,Спровочник!$A$4:$N$18,10),0),0) -> 0 | P67: =IFERROR(ROUND($E$47*$D67/$D25*VLOOKUP($Y67,Спровочник!$A$4:$N$18,11),0),0) -> 0 | Q67: =IFERROR(ROUND($E$47*$D67/$D25*VLOOKUP($Y67,Спровочник!$A$4:$N$18,12),0),0) -> 0 | R67: =IFERROR(ROUND($E$47*$D67/$D25*VLOOKUP($Y67,Спровочник!$A$4:$N$18,13),0),0) -> 0 | S67: =IFERROR(ROUND($E$47*$D67/$D25*VLOOKUP($Y67,Спровочник!$A$4:$N$18,14),0),0) -> 0 | Y67: =IFERROR(INDEX(Спровочник!$A$4:$A$18,MATCH('Исходные данные'!E67,сезоны,0)),"") ->  | Z67: 0
A68: 12 | B68: 0 | C68: шт | G68: 0 | H68: =IFERROR(ROUND($E$47*$D68/$D26*VLOOKUP($Y68,Спровочник!$A$4:$N$18,3),0),0) -> 0 | I68: =IFERROR(ROUND($E$47*$D68/$D26*VLOOKUP($Y68,Спровочник!$A$4:$N$18,4),0),0) -> 0 | J68: =IFERROR(ROUND($E$47*$D68/$D26*VLOOKUP($Y68,Спровочник!$A$4:$N$18,5),0),0) -> 0 | K68: =IFERROR(ROUND($E$47*$D68/$D26*VLOOKUP($Y68,Спровочник!$A$4:$N$18,6),0),0) -> 0 | L68: =IFERROR(ROUND($E$47*$D68/$D26*VLOOKUP($Y68,Спровочник!$A$4:$N$18,7),0),0) -> 0 | M68: =IFERROR(ROUND($E$47*$D68/$D26*VLOOKUP($Y68,Спровочник!$A$4:$N$18,8),0),0) -> 0 | N68: =IFERROR(ROUND($E$47*$D68/$D26*VLOOKUP($Y68,Спровочник!$A$4:$N$18,9),0),0) -> 0 | O68: =IFERROR(ROUND($E$47*$D68/$D26*VLOOKUP($Y68,Спровочник!$A$4:$N$18,10),0),0) -> 0 | P68: =IFERROR(ROUND($E$47*$D68/$D26*VLOOKUP($Y68,Спровочник!$A$4:$N$18,11),0),0) -> 0 | Q68: =IFERROR(ROUND($E$47*$D68/$D26*VLOOKUP($Y68,Спровочник!$A$4:$N$18,12),0),0) -> 0 | R68: =IFERROR(ROUND($E$47*$D68/$D26*VLOOKUP($Y68,Спровочник!$A$4:$N$18,13),0),0) -> 0 | S68: =IFERROR(ROUND($E$47*$D68/$D26*VLOOKUP($Y68,Спровочник!$A$4:$N$18,14),0),0) -> 0 | Y68: =IFERROR(INDEX(Спровочник!$A$4:$A$18,MATCH('Исходные данные'!E68,сезоны,0)),"") ->  | Z68: 0
A69: 13 | B69: 0 | C69: шт | G69: 0 | H69: =IFERROR(ROUND($E$47*$D69/$D27*VLOOKUP($Y69,Спровочник!$A$4:$N$18,3),0),0) -> 0 | I69: =IFERROR(ROUND($E$47*$D69/$D27*VLOOKUP($Y69,Спровочник!$A$4:$N$18,4),0),0) -> 0 | J69: =IFERROR(ROUND($E$47*$D69/$D27*VLOOKUP($Y69,Спровочник!$A$4:$N$18,5),0),0) -> 0 | K69: =IFERROR(ROUND($E$47*$D69/$D27*VLOOKUP($Y69,Спровочник!$A$4:$N$18,6),0),0) -> 0 | L69: =IFERROR(ROUND($E$47*$D69/$D27*VLOOKUP($Y69,Спровочник!$A$4:$N$18,7),0),0) -> 0 | M69: =IFERROR(ROUND($E$47*$D69/$D27*VLOOKUP($Y69,Спровочник!$A$4:$N$18,8),0),0) -> 0 | N69: =IFERROR(ROUND($E$47*$D69/$D27*VLOOKUP($Y69,Спровочник!$A$4:$N$18,9),0),0) -> 0 | O69: =IFERROR(ROUND($E$47*$D69/$D27*VLOOKUP($Y69,Спровочник!$A$4:$N$18,10),0),0) -> 0 | P69: =IFERROR(ROUND($E$47*$D69/$D27*VLOOKUP($Y69,Спровочник!$A$4:$N$18,11),0),0) -> 0 | Q69: =IFERROR(ROUND($E$47*$D69/$D27*VLOOKUP($Y69,Спровочник!$A$4:$N$18,12),0),0) -> 0 | R69: =IFERROR(ROUND($E$47*$D69/$D27*VLOOKUP($Y69,Спровочник!$A$4:$N$18,13),0),0) -> 0 | S69: =IFERROR(ROUND($E$47*$D69/$D27*VLOOKUP($Y69,Спровочник!$A$4:$N$18,14),0),0) -> 0 | Y69: =IFERROR(INDEX(Спровочник!$A$4:$A$18,MATCH('Исходные данные'!E69,сезоны,0)),"") ->  | Z69: 0
A70: 14 | B70: 0 | C70: шт | G70: 0 | H70: =IFERROR(ROUND($E$47*$D70/$D28*VLOOKUP($Y70,Спровочник!$A$4:$N$18,3),0),0) -> 0 | I70: =IFERROR(ROUND($E$47*$D70/$D28*VLOOKUP($Y70,Спровочник!$A$4:$N$18,4),0),0) -> 0 | J70: =IFERROR(ROUND($E$47*$D70/$D28*VLOOKUP($Y70,Спровочник!$A$4:$N$18,5),0),0) -> 0 | K70: =IFERROR(ROUND($E$47*$D70/$D28*VLOOKUP($Y70,Спровочник!$A$4:$N$18,6),0),0) -> 0 | L70: =IFERROR(ROUND($E$47*$D70/$D28*VLOOKUP($Y70,Спровочник!$A$4:$N$18,7),0),0) -> 0 | M70: =IFERROR(ROUND($E$47*$D70/$D28*VLOOKUP($Y70,Спровочник!$A$4:$N$18,8),0),0) -> 0 | N70: =IFERROR(ROUND($E$47*$D70/$D28*VLOOKUP($Y70,Спровочник!$A$4:$N$18,9),0),0) -> 0 | O70: =IFERROR(ROUND($E$47*$D70/$D28*VLOOKUP($Y70,Спровочник!$A$4:$N$18,10),0),0) -> 0 | P70: =IFERROR(ROUND($E$47*$D70/$D28*VLOOKUP($Y70,Спровочник!$A$4:$N$18,11),0),0) -> 0 | Q70: =IFERROR(ROUND($E$47*$D70/$D28*VLOOKUP($Y70,Спровочник!$A$4:$N$18,12),0),0) -> 0 | R70: =IFERROR(ROUND($E$47*$D70/$D28*VLOOKUP($Y70,Спровочник!$A$4:$N$18,13),0),0) -> 0 | S70: =IFERROR(ROUND($E$47*$D70/$D28*VLOOKUP($Y70,Спровочник!$A$4:$N$18,14),0),0) -> 0 | Y70: =IFERROR(INDEX(Спровочник!$A$4:$A$18,MATCH('Исходные данные'!E70,сезоны,0)),"") ->  | Z70: 0
A71: 15 | B71: 0 | C71: шт | G71: 0 | H71: =IFERROR(ROUND($E$47*$D71/$D29*VLOOKUP($Y71,Спровочник!$A$4:$N$18,3),0),0) -> 0 | I71: =IFERROR(ROUND($E$47*$D71/$D29*VLOOKUP($Y71,Спровочник!$A$4:$N$18,4),0),0) -> 0 | J71: =IFERROR(ROUND($E$47*$D71/$D29*VLOOKUP($Y71,Спровочник!$A$4:$N$18,5),0),0) -> 0 | K71: =IFERROR(ROUND($E$47*$D71/$D29*VLOOKUP($Y71,Спровочник!$A$4:$N$18,6),0),0) -> 0 | L71: =IFERROR(ROUND($E$47*$D71/$D29*VLOOKUP($Y71,Спровочник!$A$4:$N$18,7),0),0) -> 0 | M71: =IFERROR(ROUND($E$47*$D71/$D29*VLOOKUP($Y71,Спровочник!$A$4:$N$18,8),0),0) -> 0 | N71: =IFERROR(ROUND($E$47*$D71/$D29*VLOOKUP($Y71,Спровочник!$A$4:$N$18,9),0),0) -> 0 | O71: =IFERROR(ROUND($E$47*$D71/$D29*VLOOKUP($Y71,Спровочник!$A$4:$N$18,10),0),0) -> 0 | P71: =IFERROR(ROUND($E$47*$D71/$D29*VLOOKUP($Y71,Спровочник!$A$4:$N$18,11),0),0) -> 0 | Q71: =IFERROR(ROUND($E$47*$D71/$D29*VLOOKUP($Y71,Спровочник!$A$4:$N$18,12),0),0) -> 0 | R71: =IFERROR(ROUND($E$47*$D71/$D29*VLOOKUP($Y71,Спровочник!$A$4:$N$18,13),0),0) -> 0 | S71: =IFERROR(ROUND($E$47*$D71/$D29*VLOOKUP($Y71,Спровочник!$A$4:$N$18,14),0),0) -> 0 | Y71: =IFERROR(INDEX(Спровочник!$A$4:$A$18,MATCH('Исходные данные'!E71,сезоны,0)),"") ->  | Z71: 0
A72: 16 | B72: 0 | C72: шт | G72: 0 | H72: =IFERROR(ROUND($E$47*$D72/$D30*VLOOKUP($Y72,Спровочник!$A$4:$N$18,3),0),0) -> 0 | I72: =IFERROR(ROUND($E$47*$D72/$D30*VLOOKUP($Y72,Спровочник!$A$4:$N$18,4),0),0) -> 0 | J72: =IFERROR(ROUND($E$47*$D72/$D30*VLOOKUP($Y72,Спровочник!$A$4:$N$18,5),0),0) -> 0 | K72: =IFERROR(ROUND($E$47*$D72/$D30*VLOOKUP($Y72,Спровочник!$A$4:$N$18,6),0),0) -> 0 | L72: =IFERROR(ROUND($E$47*$D72/$D30*VLOOKUP($Y72,Спровочник!$A$4:$N$18,7),0),0) -> 0 | M72: =IFERROR(ROUND($E$47*$D72/$D30*VLOOKUP($Y72,Спровочник!$A$4:$N$18,8),0),0) -> 0 | N72: =IFERROR(ROUND($E$47*$D72/$D30*VLOOKUP($Y72,Спровочник!$A$4:$N$18,9),0),0) -> 0 | O72: =IFERROR(ROUND($E$47*$D72/$D30*VLOOKUP($Y72,Спровочник!$A$4:$N$18,10),0),0) -> 0 | P72: =IFERROR(ROUND($E$47*$D72/$D30*VLOOKUP($Y72,Спровочник!$A$4:$N$18,11),0),0) -> 0 | Q72: =IFERROR(ROUND($E$47*$D72/$D30*VLOOKUP($Y72,Спровочник!$A$4:$N$18,12),0),0) -> 0 | R72: =IFERROR(ROUND($E$47*$D72/$D30*VLOOKUP($Y72,Спровочник!$A$4:$N$18,13),0),0) -> 0 | S72: =IFERROR(ROUND($E$47*$D72/$D30*VLOOKUP($Y72,Спровочник!$A$4:$N$18,14),0),0) -> 0 | Y72: =IFERROR(INDEX(Спровочник!$A$4:$A$18,MATCH('Исходные данные'!E72,сезоны,0)),"") ->  | Z72: 0
A73: 17 | B73: 0 | C73: шт | G73: 0 | H73: =IFERROR(ROUND($E$47*$D73/$D31*VLOOKUP($Y73,Спровочник!$A$4:$N$18,3),0),0) -> 0 | I73: =IFERROR(ROUND($E$47*$D73/$D31*VLOOKUP($Y73,Спровочник!$A$4:$N$18,4),0),0) -> 0 | J73: =IFERROR(ROUND($E$47*$D73/$D31*VLOOKUP($Y73,Спровочник!$A$4:$N$18,5),0),0) -> 0 | K73: =IFERROR(ROUND($E$47*$D73/$D31*VLOOKUP($Y73,Спровочник!$A$4:$N$18,6),0),0) -> 0 | L73: =IFERROR(ROUND($E$47*$D73/$D31*VLOOKUP($Y73,Спровочник!$A$4:$N$18,7),0),0) -> 0 | M73: =IFERROR(ROUND($E$47*$D73/$D31*VLOOKUP($Y73,Спровочник!$A$4:$N$18,8),0),0) -> 0 | N73: =IFERROR(ROUND($E$47*$D73/$D31*VLOOKUP($Y73,Спровочник!$A$4:$N$18,9),0),0) -> 0 | O73: =IFERROR(ROUND($E$47*$D73/$D31*VLOOKUP($Y73,Спровочник!$A$4:$N$18,10),0),0) -> 0 | P73: =IFERROR(ROUND($E$47*$D73/$D31*VLOOKUP($Y73,Спровочник!$A$4:$N$18,11),0),0) -> 0 | Q73: =IFERROR(ROUND($E$47*$D73/$D31*VLOOKUP($Y73,Спровочник!$A$4:$N$18,12),0),0) -> 0 | R73: =IFERROR(ROUND($E$47*$D73/$D31*VLOOKUP($Y73,Спровочник!$A$4:$N$18,13),0),0) -> 0 | S73: =IFERROR(ROUND($E$47*$D73/$D31*VLOOKUP($Y73,Спровочник!$A$4:$N$18,14),0),0) -> 0 | Y73: =IFERROR(INDEX(Спровочник!$A$4:$A$18,MATCH('Исходные данные'!E73,сезоны,0)),"") ->  | Z73: 0
A74: 18 | B74: 0 | C74: шт | G74: 0 | H74: =IFERROR(ROUND($E$47*$D74/$D32*VLOOKUP($Y74,Спровочник!$A$4:$N$18,3),0),0) -> 0 | I74: =IFERROR(ROUND($E$47*$D74/$D32*VLOOKUP($Y74,Спровочник!$A$4:$N$18,4),0),0) -> 0 | J74: =IFERROR(ROUND($E$47*$D74/$D32*VLOOKUP($Y74,Спровочник!$A$4:$N$18,5),0),0) -> 0 | K74: =IFERROR(ROUND($E$47*$D74/$D32*VLOOKUP($Y74,Спровочник!$A$4:$N$18,6),0),0) -> 0 | L74: =IFERROR(ROUND($E$47*$D74/$D32*VLOOKUP($Y74,Спровочник!$A$4:$N$18,7),0),0) -> 0 | M74: =IFERROR(ROUND($E$47*$D74/$D32*VLOOKUP($Y74,Спровочник!$A$4:$N$18,8),0),0) -> 0 | N74: =IFERROR(ROUND($E$47*$D74/$D32*VLOOKUP($Y74,Спровочник!$A$4:$N$18,9),0),0) -> 0 | O74: =IFERROR(ROUND($E$47*$D74/$D32*VLOOKUP($Y74,Спровочник!$A$4:$N$18,10),0),0) -> 0 | P74: =IFERROR(ROUND($E$47*$D74/$D32*VLOOKUP($Y74,Спровочник!$A$4:$N$18,11),0),0) -> 0 | Q74: =IFERROR(ROUND($E$47*$D74/$D32*VLOOKUP($Y74,Спровочник!$A$4:$N$18,12),0),0) -> 0 | R74: =IFERROR(ROUND($E$47*$D74/$D32*VLOOKUP($Y74,Спровочник!$A$4:$N$18,13),0),0) -> 0 | S74: =IFERROR(ROUND($E$47*$D74/$D32*VLOOKUP($Y74,Спровочник!$A$4:$N$18,14),0),0) -> 0 | Y74: =IFERROR(INDEX(Спровочник!$A$4:$A$18,MATCH('Исходные данные'!E74,сезоны,0)),"") ->  | Z74: 0
A75: 19 | B75: 0 | C75: шт | G75: 0 | H75: =IFERROR(ROUND($E$47*$D75/$D33*VLOOKUP($Y75,Спровочник!$A$4:$N$18,3),0),0) -> 0 | I75: =IFERROR(ROUND($E$47*$D75/$D33*VLOOKUP($Y75,Спровочник!$A$4:$N$18,4),0),0) -> 0 | J75: =IFERROR(ROUND($E$47*$D75/$D33*VLOOKUP($Y75,Спровочник!$A$4:$N$18,5),0),0) -> 0 | K75: =IFERROR(ROUND($E$47*$D75/$D33*VLOOKUP($Y75,Спровочник!$A$4:$N$18,6),0),0) -> 0 | L75: =IFERROR(ROUND($E$47*$D75/$D33*VLOOKUP($Y75,Спровочник!$A$4:$N$18,7),0),0) -> 0 | M75: =IFERROR(ROUND($E$47*$D75/$D33*VLOOKUP($Y75,Спровочник!$A$4:$N$18,8),0),0) -> 0 | N75: =IFERROR(ROUND($E$47*$D75/$D33*VLOOKUP($Y75,Спровочник!$A$4:$N$18,9),0),0) -> 0 | O75: =IFERROR(ROUND($E$47*$D75/$D33*VLOOKUP($Y75,Спровочник!$A$4:$N$18,10),0),0) -> 0 | P75: =IFERROR(ROUND($E$47*$D75/$D33*VLOOKUP($Y75,Спровочник!$A$4:$N$18,11),0),0) -> 0 | Q75: =IFERROR(ROUND($E$47*$D75/$D33*VLOOKUP($Y75,Спровочник!$A$4:$N$18,12),0),0) -> 0 | R75: =IFERROR(ROUND($E$47*$D75/$D33*VLOOKUP($Y75,Спровочник!$A$4:$N$18,13),0),0) -> 0 | S75: =IFERROR(ROUND($E$47*$D75/$D33*VLOOKUP($Y75,Спровочник!$A$4:$N$18,14),0),0) -> 0 | Y75: =IFERROR(INDEX(Спровочник!$A$4:$A$18,MATCH('Исходные данные'!E75,сезоны,0)),"") ->  | Z75: 0
A76: 20 | B76: 0 | C76: шт | G76: 0 | H76: =IFERROR(ROUND($E$47*$D76/$D34*VLOOKUP($Y76,Спровочник!$A$4:$N$18,3),0),0) -> 0 | I76: =IFERROR(ROUND($E$47*$D76/$D34*VLOOKUP($Y76,Спровочник!$A$4:$N$18,4),0),0) -> 0 | J76: =IFERROR(ROUND($E$47*$D76/$D34*VLOOKUP($Y76,Спровочник!$A$4:$N$18,5),0),0) -> 0 | K76: =IFERROR(ROUND($E$47*$D76/$D34*VLOOKUP($Y76,Спровочник!$A$4:$N$18,6),0),0) -> 0 | L76: =IFERROR(ROUND($E$47*$D76/$D34*VLOOKUP($Y76,Спровочник!$A$4:$N$18,7),0),0) -> 0 | M76: =IFERROR(ROUND($E$47*$D76/$D34*VLOOKUP($Y76,Спровочник!$A$4:$N$18,8),0),0) -> 0 | N76: =IFERROR(ROUND($E$47*$D76/$D34*VLOOKUP($Y76,Спровочник!$A$4:$N$18,9),0),0) -> 0 | O76: =IFERROR(ROUND($E$47*$D76/$D34*VLOOKUP($Y76,Спровочник!$A$4:$N$18,10),0),0) -> 0 | P76: =IFERROR(ROUND($E$47*$D76/$D34*VLOOKUP($Y76,Спровочник!$A$4:$N$18,11),0),0) -> 0 | Q76: =IFERROR(ROUND($E$47*$D76/$D34*VLOOKUP($Y76,Спровочник!$A$4:$N$18,12),0),0) -> 0 | R76: =IFERROR(ROUND($E$47*$D76/$D34*VLOOKUP($Y76,Спровочник!$A$4:$N$18,13),0),0) -> 0 | S76: =IFERROR(ROUND($E$47*$D76/$D34*VLOOKUP($Y76,Спровочник!$A$4:$N$18,14),0),0) -> 0 | Y76: =IFERROR(INDEX(Спровочник!$A$4:$A$18,MATCH('Исходные данные'!E76,сезоны,0)),"") ->  | Z76: 0
A77: Целевые продажи в количестве | D77: =SUM(D57:D76) -> 1 | G77: =SUM(G57:G76) -> 107873 | H77: 9581 | I77: 8188 | J77: 7738 | K77: 7918 | L77: 7648 | M77: 7948 | N77: 7948 | O77: 7948 | P77: 7648 | Q77: 7918 | R77: 10416 | S77: 16974 | Z77: 0
A78: Целевая сумма выручки | G78: =SUMPRODUCT(G$57:G$76,$D$15:$D$34) -> 10800220 | H78: 979240 | I78: 784220 | J78: 739220 | K78: 750020 | L78: 723020 | M78: 741020 | N78: 741020 | O78: 741020 | P78: 723020 | Q78: 750020 | R78: 1114140 | S78: 2014260 | Z78: 0
A79: Целевая среднемесячная вывручка | G79: ='Исходные данные'!G78/12 -> 900018.3333
B81: ГРАФИК ВЫХОДА НА ЦЕЛЕВЫЕ ПРОДАЖИ
A83: № п/п | B83: Наименование | C83: Месяц от старта продаж
C84: 1-й месяц | D84: 2-й месяц | E84: 3-й месяц | F84: 4-й месяц | G84: 5-й месяц | H84: 6-й месяц | I84: 7-й месяц | J84: 8-й месяц | K84: 9-й месяц | L84: 10-й месяц | M84: 11-й месяц | N84: 12-й месяц
A85: 1 | B85: Прогноз продаж от целевых продаж, % | C85: 0.7 | D85: 0.8 | E85: 0.9 | F85: 0.9 | G85: 1 | H85: 1 | I85: 1 | J85: 1 | K85: 1 | L85: 1 | M85: 1 | N85: 1
B87: ШТАТНОЕ РАСПИСАНИЕ
A89: № п/п | B89: Должность | C89: Количество штатных единиц | D89: Тарифная ставка (оклад) | E89: Премиальная часть | G89: Всего сдельная часть | H89: Всего зарплата gross в месяц
E90: Процент от оклада | F90: Процент от выручки
B91: Укажите должность | C91: Укажите количество штатных единиц | D91: Укажите оклад по должности | E91: Укажите процент премии по должности | G91: Формула | H91: Формула
A92: 1 | B92: Продавей | C92: 2 | D92: 22500 | F92: 0.05 | G92: =IF(C92*D92=0,0,F92*$G$79) -> 45000.91667 | H92: =C92*D92+C92*D92*E92+G92 -> 90000.91667
A93: =A92+1 -> 2 | G93: 0 | H93: 0
A94: 3 | G94: 0 | H94: 0
A95: 4 | G95: 0 | H95: 0
A96: 5 | G96: 0 | H96: 0
A97: 6 | G97: 0 | H97: 0
A98: 7 | G98: 0 | H98: 0
A99: 8 | G99: 0 | H99: 0
A100: 9 | G100: 0 | H100: 0
A101: 10 | G101: 0 | H101: 0
A102: 11 | G102: 0 | H102: 0
A103: 12 | G103: 0 | H103: 0
A104: 13 | G104: 0 | H104: 0
A105: 14 | G105: 0 | H105: 0
A106: 15 | G106: 0 | H106: 0
A107: ИТОГИ | C107: =SUM(C92:C106) -> 2 | G107: =SUM(G92:G106) -> 45000.91667 | H107: =SUM(H92:H106) -> 90000.91667
A108: Доля от выручки | G108: =G107/$G$79 -> 0.05 | H108: =H107/$G$79 -> 0.0999989815
B110: График пополнения штата
A111: № п/п | B111: Должность | C111: Месяц от старта продаж
C112: 1-й месяц | D112: 2-й месяц | E112: 3-й месяц | F112: 4-й месяц | G112: 5-й месяц | H112: 6-й месяц | I112: 7-й месяц | J112: 8-й месяц | K112: 9-й месяц | L112: 10-й месяц | M112: 11-й месяц | N112: 12-й месяц
B113: формула | C113: Укажите количество сотрудников по месяцам | N113: формула
A114: 1 | B114: =IF(OR(B92="",B92=0),"",B92) -> Продавей | C114: 1 | D114: 1 | E114: =F114 -> 2 | F114: 2 | G114: 2 | H114: 2 | I114: 2 | J114: 2 | K114: 2 | L114: 2 | M114: =N114 -> 2 | N114: =C92 -> 2
A115: =A114+1 -> 2 | C115: 0 | D115: 0 | E115: =F115 -> 0 | F115: 0 | G115: 0 | H115: 0 | I115: 0 | J115: 0 | K115: 0 | L115: 0 | M115: =N115 -> 0 | N115: 0
A116: =A115+1 -> 3 | C116: =D116 -> 0 | D116: =E116 -> 0 | E116: =F116 -> 0 | F116: =G116 -> 0 | G116: =H116 -> 0 | H116: =I116 -> 0 | I116: =J116 -> 0 | J116: =K116 -> 0 | K116: =L116 -> 0 | L116: =M116 -> 0 | M116: =N116 -> 0 | N116: 0
A117: 4 | C117: 0 | D117: 0 | E117: 0 | F117: 0 | G117: 0 | H117: 0 | I117: 0 | J117: 0 | K117: 0 | L117: 0 | M117: 0 | N117: 0
A118: 5 | C118: 0 | D118: 0 | E118: 0 | F118: 0 | G118: 0 | H118: 0 | I118: 0 | J118: 0 | K118: 0 | L118: 0 | M118: 0 | N118: 0
A119: 6 | C119: 0 | D119: 0 | E119: 0 | F119: 0 | G119: 0 | H119: 0 | I119: 0 | J119: 0 | K119: 0 | L119: 0 | M119: 0 | N119: 0
A120: 7 | C120: 0 | D120: 0 | E120: 0 | F120: 0 | G120: 0 | H120: 0 | I120: 0 | J120: 0 | K120: 0 | L120: 0 | M120: 0 | N120: 0
A121: 8 | C121: 0 | D121: 0 | E121: 0 | F121: 0 | G121: 0 | H121: 0 | I121: 0 | J121: 0 | K121: 0 | L121: 0 | M121: 0 | N121: 0
A122: 9 | C122: 0 | D122: 0 | E122: 0 | F122: 0 | G122: 0 | H122: 0 | I122: 0 | J122: 0 | K122: 0 | L122: 0 | M122: 0 | N122: 0
A123: 10 | C123: 0 | D123: 0 | E123: 0 | F123: 0 | G123: 0 | H123: 0 | I123: 0 | J123: 0 | K123: 0 | L123: 0 | M123: 0 | N123: 0
A124: 11 | C124: 0 | D124: 0 | E124: 0 | F124: 0 | G124: 0 | H124: 0 | I124: 0 | J124: 0 | K124: 0 | L124: 0 | M124: 0 | N124: 0
A125: 12 | C125: 0 | D125: 0 | E125: 0 | F125: 0 | G125: 0 | H125: 0 | I125: 0 | J125: 0 | K125: 0 | L125: 0 | M125: 0 | N125: 0
A126: 13 | C126: 0 | D126: 0 | E126: 0 | F126: 0 | G126: 0 | H126: 0 | I126: 0 | J126: 0 | K126: 0 | L126: 0 | M126: 0 | N126: 0
A127: 14 | C127: 0 | D127: 0 | E127: 0 | F127: 0 | G127: 0 | H127: 0 | I127: 0 | J127: 0 | K127: 0 | L127: 0 | M127: 0 | N127: 0
A128: 15 | C128: 0 | D128: 0 | E128: 0 | F128: 0 | G128: 0 | H128: 0 | I128: 0 | J128: 0 | K128: 0 | L128: 0 | M128: 0 | N128: 0
B130: УСЛОВНО-ПОСТОЯННЫЕ РАСХОДЫ
A132: № п/п | B132: Статья затрат | C132: Сумма (руб/мес)
B134: Укажите наименование статьи затрат | C134: Укажите сумму расхода
A135: 1 | B135: Услуги банков | C135: 2000
A136: =A135+1 -> 2 | B136: Арендная плата | C136: 25000
A137: =A136+1 -> 3 | B137: Затраты на электроэнергию | C137: 20000
A138: 4 | B138: Канцелярские расходы | C138: 1000
A139: 5 | B139: Коммунальные расходы
A140: 6 | B140: Прочие затраты | C140: 10000
A141: 7 | B141: Вывоз мусора | C141: 1000
A142: 8
A143: 9
A144: 10
A145: ИТОГИ | C145: =SUM(C135:C144) -> 59000
A146: Доля от выручки | C146: =IFERROR(C145/G79,"") -> 0.06555422019
B148: РАСХОДЫ ПО ФРАНШИЗЕ
A150: № п/п | B150: Наименование | C150: Значение | D150: Месяц внесеня взноса
A151: 1 | B151: Паушальный (первоначальный) взнос | C151: 0 | D151: за 1 месяц до старта продаж
A152: 2 | B152: Роялти | C152: 0
B154: ЭКВАЙРИНГ
A156: № п/п | B156: Статья затрат | C156: Значение
C158: Укажите %
A159: 1 | B159: Коммисия эквайеру | C159: 0.025
A160: =A159+1 -> 2 | B160: Прогнозная доля оплат по карте | C160: 0.7
A161: Итого доля от выручки | C161: =C159*C160 -> 0.0175
B163: ИНВЕСТИЦИОННЫЕ ИЗДЕРЖКИ В НУЛЕВОЙ ПЕРИОД (до старта продаж)
A165: № п/п | B165: Наименование (инструмента, приспособления, оборудования) | C165: Сумма | D165: Стоимость за 1 ед. | E165: Количество | F165: Срок полезного использования (СПИ), мес. | G165: Срок амортизации | H165: Месяц приобретения (совершения расхода)
B166: ввести наименование оборудования | C166: формула | D166: ввести данные | E166: ввести данные | F166: ввести данные (если не указано принимается за 36мес) | G166: формула | H166: выбрать из списка
A167: 1 | B167: Павильон | C167: =D167*E167 -> 170000 | D167: 170000 | E167: 1 | F167: 120 | G167: =IF(AND(D167>40000,F167<>0,F167>=12,F167<=36),1,IF(AND(D167>40000,F167<>0,F167>36,F167<=180),36,IF(AND(D167>40000,F167<>0,F167>180),120,0))) -> 36 | H167: за 3 месяца до старта продаж
A168: =A167+1 -> 2 | B168: Кофе машина | C168: 70000 | D168: 70000 | E168: 1 | F168: 36 | G168: =IF(AND(D168>40000,F168<>0,F168>=12,F168<=36),1,IF(AND(D168>40000,F168<>0,F168>36,F168<=180),36,IF(AND(D168>40000,F168<>0,F168>180),120,0))) -> 1 | H168: за 1 месяц до старта продаж
A169: =A168+1 -> 3 | B169: Морозилка | C169: 25000 | D169: 25000 | E169: 1 | F169: 84 | G169: =IF(AND(D169>40000,F169<>0,F169>=12,F169<=36),12,IF(AND(D169>40000,F169<>0,F169>36,F169<=180),36,IF(AND(D169>40000,F169<>0,F169>180),120,0))) -> 0 | H169: за 1 месяц до старта продаж
A170: 4 | B170: Холодильник | C170: 20000 | D170: 20000 | E170: 1 | F170: 84 | G170: 0 | H170: за 1 месяц до старта продаж
A171: 5 | B171: Гриль | C171: 7000 | D171: 3500 | E171: 2 | F171: 12 | G171: 0 | H171: за 1 месяц до старта продаж
A172: 6 | B172: Печь для выпечки | C172: 10000 | D172: 10000 | E172: 1 | F172: 36 | G172: 0 | H172: за 1 месяц до старта продаж
A173: 7 | B173: Стол разделочный | C173: 45000 | D173: 15000 | E173: 3 | F173: 120 | G173: 0 | H173: за 1 месяц до старта продаж
A174: 8 | B174: Вертел для шаурмы электрический | C174: 25000 | D174: 25000 | E174: 1 | F174: 120 | G174: 0 | H174: за 1 месяц до старта продаж
A175: 9 | B175: Рукамойник | C175: 3000 | D175: 3000 | E175: 1 | F175: 60 | G175: 0 | H175: за 1 месяц до старта продаж
A176: 10 | B176: Кассовое оборудование | C176: 30000 | D176: 30000 | E176: 1 | F176: 60 | G176: 0 | H176: за 1 месяц до старта продаж
A177: 11 | B177: Барный стулья для посетителей | C177: 21000 | D177: 7000 | E177: 3 | F177: 60 | G177: 0 | H177: за 1 месяц до старта продаж
A178: 12 | B178: Микроволновая печь для посетителей | C178: 5000 | D178: 5000 | E178: 1 | F178: 60 | G178: 0 | H178: за 1 месяц до старта продаж
A179: 13 | C179: 0 | G179: 0
A180: 14 | C180: 0 | G180: 0
A181: 15 | C181: 0 | G181: 0
A182: 16 | C182: 0 | G182: 0
A183: 17 | C183: 0 | G183: 0
A184: 18 | C184: 0 | G184: 0
A185: 19 | C185: 0 | G185: 0
A186: 20 | C186: 0 | G186: 0
A187: Итого расходы на инструменты, приспособления, оборудование | C187: =SUM(C167:C186) -> 431000 | G187: =SUM(G167:G186) -> 37
A189: № п/п | B189: Инвестиционные издержки | C189: Сумма, (в руб. если не указано иное) | D189: Месяц совершения расхода | Y189: Инструменты, приспособления, оборудование | Z189: =C187 -> 431000
B190: формула | C190: заполнить ячейки синего цвета | Y190: =B191 -> Расходы на земельный участок | Z190: =C191 -> 0
A191: 1 | B191: Расходы на земельный участок | G191: в расходах | Y191: =B192 -> Реконструкция и ремонт помещений | Z191: =C192 -> 100000
A192: =A191+1 -> 2 | B192: Реконструкция и ремонт помещений | C192: 100000 | D192: за 2 месяца до старта продаж | G192: в расходах | Y192: =B194 -> Приобретение запасов товаров, сырья и материалов | Z192: =C194 -> 90001.83333
A193: =A192+1 -> 3 | B193: Приобретение запасов товаров, сырья и материалов, доля от ср.мес. выручки | C193: 0.1 | Y193: =B195 -> Строительно - монтажные работы | Z193: 100000
A194: 4 | B194: Приобретение запасов товаров, сырья и материалов | C194: =C193*G78/12 -> 90001.83333 | D194: за 1 месяц до старта продаж | G194: в запасах | Y194: =B196 -> Проектно-изыскательские работы | Z194: 0
A195: 5 | B195: Строительно - монтажные работы | C195: =50000+50000 -> 100000 | D195: за 2 месяца до старта продаж | G195: в стоимости ОС | Y195: =B197 -> Содержание дирекции строящегося предприятия | Z195: 0
A196: 6 | B196: Проектно-изыскательские работы | C196: 0 | G196: в стоимости ОС | Y196: =B198 -> Паушальный (первоначальный) взнос | Z196: 0
A197: 7 | B197: Содержание дирекции строящегося предприятия | C197: 0 | G197: в расходах | Y197: =B199 -> Другие инвестиционные издержки | Z197: 25000
A198: 8 | B198: Паушальный (первоначальный) взнос | C198: =C151 -> 0 | D198: =D151 -> за 1 месяц до старта продаж | G198: в нематериальных активах (НМА)
A199: 9 | B199: Другие инвестиционные издержки | C199: 25000 | D199: за 1 месяц до старта продаж | G199: в расходах
A200: Итого прочие инвест.расходы | C200: =SUM(C191:C192)+SUM(C194:C199) -> 315001.8333
B202: ВСЕГО ИНВЕСТИЦИОННЫЕ ЗАТРАТЫ | C202: =C200+C187 -> 746001.8333
B204: ИСТОЧНИКИ ФИНАНСИРОВАНИЯ ИНВЕСТИЦИОННОГО ПРОЕКТА
A206: № п/п | B206: Наименование | C206: Сумма | D206: % годовых | E206: Месяц поступления финансирования
A207: 1 | B207: Собственные средства | C207: 500000 | E207: за 3 месяца до старта продаж
A208: =A207+1 -> 2 | B208: Заемные средства | C208: 100000 | D208: 0.1 | E208: за 1 месяц до старта продаж
A209: =A208+1 -> 3 | B209: Кредитные средства | C209: 160000 | D209: 0.12 | E209: за 1 месяц до старта продаж
A210: =A209+1 -> 4 | B210: Не подлежащие возврату гранты и субсидии | E210: за 1 месяц до старта продаж
B212: Дивидендная политика, % от возможной выплаты | C212: 1
B214: ВСЕГО СУММА ИНВЕСТИРОВАНИЯ | C214: =SUM(C207:C210) -> 760000
B215: Количество кассовых разрывов | C215: =COUNTIF(D221:O227,"<0") -> 0
B216: Сумма дифицита | C216: =IF(C215=0,0,MIN($D$221:$O$227)) -> 0
B218: ОСТАТОК СВОБОДНЫХ ДЕНЕЖНЫХ СРЕДСТВ
A220: № п/п | B220: Наименование | C220: Год | D220: Январь | E220: Февраль | F220: Март | G220: Апрель | H220: Май | I220: Июнь | J220: Июль | K220: Август | L220: Сентябрь | M220: Октябрь | N220: Ноябрь | O220: Декабрь
A221: 1 | B221: Сумма денежных средств на расчетных счетах и кассе | C221: =INDEX(D252:O252,1,MATCH(1,D258:O258,0)) -> 2021 | D221: =IF(SUMIF(БДДС!$D$9:$BK$9,D$220&$C221,БДДС!$D$71:$BK$71)+SUMIF($D$256:$O$256,D$220&$C221,$D$273:$O$273)=0,"",SUMIF(БДДС!$D$9:$BK$9,D$220&$C221,БДДС!$D$71:$BK$71)+SUMIF($D$256:$O$256,D$220&$C221,$D$273:$O$273)) ->  | E221: =IF(SUMIF(БДДС!$D$9:$BK$9,E$220&$C221,БДДС!$D$71:$BK$71)+SUMIF($D$256:$O$256,E$220&$C221,$D$273:$O$273)=0,"",SUMIF(БДДС!$D$9:$BK$9,E$220&$C221,БДДС!$D$71:$BK$71)+SUMIF($D$256:$O$256,E$220&$C221,$D$273:$O$273)) -> 330000 | F221: =IF(SUMIF(БДДС!$D$9:$BK$9,F$220&$C221,БДДС!$D$71:$BK$71)+SUMIF($D$256:$O$256,F$220&$C221,$D$273:$O$273)=0,"",SUMIF(БДДС!$D$9:$BK$9,F$220&$C221,БДДС!$D$71:$BK$71)+SUMIF($D$256:$O$256,F$220&$C221,$D$273:$O$273)) -> 130000 | G221: =IF(SUMIF(БДДС!$D$9:$BK$9,G$220&$C221,БДДС!$D$71:$BK$71)+SUMIF($D$256:$O$256,G$220&$C221,$D$273:$O$273)=0,"",SUMIF(БДДС!$D$9:$BK$9,G$220&$C221,БДДС!$D$71:$BK$71)+SUMIF($D$256:$O$256,G$220&$C221,$D$273:$O$273)) -> 2941.514167 | H221: =IF(SUMIF(БДДС!$D$9:$BK$9,H$220&$C221,БДДС!$D$71:$BK$71)+SUMIF($D$256:$O$256,H$220&$C221,$D$273:$O$273)=0,"",SUMIF(БДДС!$D$9:$BK$9,H$220&$C221,БДДС!$D$71:$BK$71)+SUMIF($D$256:$O$256,H$220&$C221,$D$273:$O$273)) -> 65428.03852 | I221: =IF(SUMIF(БДДС!$D$9:$BK$9,I$220&$C221,БДДС!$D$71:$BK$71)+SUMIF($D$256:$O$256,I$220&$C221,$D$273:$O$273)=0,"",SUMIF(БДДС!$D$9:$BK$9,I$220&$C221,БДДС!$D$71:$BK$71)+SUMIF($D$256:$O$256,I$220&$C221,$D$273:$O$273)) -> 158517.9971 | J221: =IF(SUMIF(БДДС!$D$9:$BK$9,J$220&$C221,БДДС!$D$71:$BK$71)+SUMIF($D$256:$O$256,J$220&$C221,$D$273:$O$273)=0,"",SUMIF(БДДС!$D$9:$BK$9,J$220&$C221,БДДС!$D$71:$BK$71)+SUMIF($D$256:$O$256,J$220&$C221,$D$273:$O$273)) -> 244071.2608 | K221: =IF(SUMIF(БДДС!$D$9:$BK$9,K$220&$C221,БДДС!$D$71:$BK$71)+SUMIF($D$256:$O$256,K$220&$C221,$D$273:$O$273)=0,"",SUMIF(БДДС!$D$9:$BK$9,K$220&$C221,БДДС!$D$71:$BK$71)+SUMIF($D$256:$O$256,K$220&$C221,$D$273:$O$273)) -> 350208.6266 | L221: =IF(SUMIF(БДДС!$D$9:$BK$9,L$220&$C221,БДДС!$D$71:$BK$71)+SUMIF($D$256:$O$256,L$220&$C221,$D$273:$O$273)=0,"",SUMIF(БДДС!$D$9:$BK$9,L$220&$C221,БДДС!$D$71:$BK$71)+SUMIF($D$256:$O$256,L$220&$C221,$D$273:$O$273)) -> 460134.5412 | M221: =IF(SUMIF(БДДС!$D$9:$BK$9,M$220&$C221,БДДС!$D$71:$BK$71)+SUMIF($D$256:$O$256,M$220&$C221,$D$273:$O$273)=0,"",SUMIF(БДДС!$D$9:$BK$9,M$220&$C221,БДДС!$D$71:$BK$71)+SUMIF($D$256:$O$256,M$220&$C221,$D$273:$O$273)) -> 447512.2392 | N221: =IF(SUMIF(БДДС!$D$9:$BK$9,N$220&$C221,БДДС!$D$71:$BK$71)+SUMIF($D$256:$O$256,N$220&$C221,$D$273:$O$273)=0,"",SUMIF(БДДС!$D$9:$BK$9,N$220&$C221,БДДС!$D$71:$BK$71)+SUMIF($D$256:$O$256,N$220&$C221,$D$273:$O$273)) -> 504030.9418 | O221: =IF(SUMIF(БДДС!$D$9:$BK$9,O$220&$C221,БДДС!$D$71:$BK$71)+SUMIF($D$256:$O$256,O$220&$C221,$D$273:$O$273)=0,"",SUMIF(БДДС!$D$9:$BK$9,O$220&$C221,БДДС!$D$71:$BK$71)+SUMIF($D$256:$O$256,O$220&$C221,$D$273:$O$273)) -> 1316916.457
A222: =A221+1 -> 2 | C222: =C221+1 -> 2022 | D222: =IF(SUMIF(БДДС!$D$9:$BK$9,D$220&$C222,БДДС!$D$71:$BK$71)+SUMIF($D$256:$O$256,D$220&$C222,$D$273:$O$273)=0,"",SUMIF(БДДС!$D$9:$BK$9,D$220&$C222,БДДС!$D$71:$BK$71)+SUMIF($D$256:$O$256,D$220&$C222,$D$273:$O$273)) -> 1536065.135 | E222: =IF(SUMIF(БДДС!$D$9:$BK$9,E$220&$C222,БДДС!$D$71:$BK$71)+SUMIF($D$256:$O$256,E$220&$C222,$D$273:$O$273)=0,"",SUMIF(БДДС!$D$9:$BK$9,E$220&$C222,БДДС!$D$71:$BK$71)+SUMIF($D$256:$O$256,E$220&$C222,$D$273:$O$273)) -> 1703192.429 | F222: =IF(SUMIF(БДДС!$D$9:$BK$9,F$220&$C222,БДДС!$D$71:$BK$71)+SUMIF($D$256:$O$256,F$220&$C222,$D$273:$O$273)=0,"",SUMIF(БДДС!$D$9:$BK$9,F$220&$C222,БДДС!$D$71:$BK$71)+SUMIF($D$256:$O$256,F$220&$C222,$D$273:$O$273)) -> 464165.9613 | G222: =IF(SUMIF(БДДС!$D$9:$BK$9,G$220&$C222,БДДС!$D$71:$BK$71)+SUMIF($D$256:$O$256,G$220&$C222,$D$273:$O$273)=0,"",SUMIF(БДДС!$D$9:$BK$9,G$220&$C222,БДДС!$D$71:$BK$71)+SUMIF($D$256:$O$256,G$220&$C222,$D$273:$O$273)) -> 435127.3214 | H222: =IF(SUMIF(БДДС!$D$9:$BK$9,H$220&$C222,БДДС!$D$71:$BK$71)+SUMIF($D$256:$O$256,H$220&$C222,$D$273:$O$273)=0,"",SUMIF(БДДС!$D$9:$BK$9,H$220&$C222,БДДС!$D$71:$BK$71)+SUMIF($D$256:$O$256,H$220&$C222,$D$273:$O$273)) -> 556240.8194 | I222: =IF(SUMIF(БДДС!$D$9:$BK$9,I$220&$C222,БДДС!$D$71:$BK$71)+SUMIF($D$256:$O$256,I$220&$C222,$D$273:$O$273)=0,"",SUMIF(БДДС!$D$9:$BK$9,I$220&$C222,БДДС!$D$71:$BK$71)+SUMIF($D$256:$O$256,I$220&$C222,$D$273:$O$273)) -> 425229.3147 | J222: =IF(SUMIF(БДДС!$D$9:$BK$9,J$220&$C222,БДДС!$D$71:$BK$71)+SUMIF($D$256:$O$256,J$220&$C222,$D$273:$O$273)=0,"",SUMIF(БДДС!$D$9:$BK$9,J$220&$C222,БДДС!$D$71:$BK$71)+SUMIF($D$256:$O$256,J$220&$C222,$D$273:$O$273)) -> 490488.2127 | K222: =IF(SUMIF(БДДС!$D$9:$BK$9,K$220&$C222,БДДС!$D$71:$BK$71)+SUMIF($D$256:$O$256,K$220&$C222,$D$273:$O$273)=0,"",SUMIF(БДДС!$D$9:$BK$9,K$220&$C222,БДДС!$D$71:$BK$71)+SUMIF($D$256:$O$256,K$220&$C222,$D$273:$O$273)) -> 628114.9107 | L222: =IF(SUMIF(БДДС!$D$9:$BK$9,L$220&$C222,БДДС!$D$71:$BK$71)+SUMIF($D$256:$O$256,L$220&$C222,$D$273:$O$273)=0,"",SUMIF(БДДС!$D$9:$BK$9,L$220&$C222,БДДС!$D$71:$BK$71)+SUMIF($D$256:$O$256,L$220&$C222,$D$273:$O$273)) -> 502173.1647 | M222: =IF(SUMIF(БДДС!$D$9:$BK$9,M$220&$C222,БДДС!$D$71:$BK$71)+SUMIF($D$256:$O$256,M$220&$C222,$D$273:$O$273)=0,"",SUMIF(БДДС!$D$9:$BK$9,M$220&$C222,БДДС!$D$71:$BK$71)+SUMIF($D$256:$O$256,M$220&$C222,$D$273:$O$273)) -> 548843.0627 | N222: =IF(SUMIF(БДДС!$D$9:$BK$9,N$220&$C222,БДДС!$D$71:$BK$71)+SUMIF($D$256:$O$256,N$220&$C222,$D$273:$O$273)=0,"",SUMIF(БДДС!$D$9:$BK$9,N$220&$C222,БДДС!$D$71:$BK$71)+SUMIF($D$256:$O$256,N$220&$C222,$D$273:$O$273)) -> 606195.0987 | O222: =IF(SUMIF(БДДС!$D$9:$BK$9,O$220&$C222,БДДС!$D$71:$BK$71)+SUMIF($D$256:$O$256,O$220&$C222,$D$273:$O$273)=0,"",SUMIF(БДДС!$D$9:$BK$9,O$220&$C222,БДДС!$D$71:$BK$71)+SUMIF($D$256:$O$256,O$220&$C222,$D$273:$O$273)) -> 1320665.541
A223: =A222+1 -> 3 | C223: =C222+1 -> 2023 | D223: =IF(SUMIF(БДДС!$D$9:$BK$9,D$220&$C223,БДДС!$D$71:$BK$71)+SUMIF($D$256:$O$256,D$220&$C223,$D$273:$O$273)=0,"",SUMIF(БДДС!$D$9:$BK$9,D$220&$C223,БДДС!$D$71:$BK$71)+SUMIF($D$256:$O$256,D$220&$C223,$D$273:$O$273)) -> 1542053.511 | E223: =IF(SUMIF(БДДС!$D$9:$BK$9,E$220&$C223,БДДС!$D$71:$BK$71)+SUMIF($D$256:$O$256,E$220&$C223,$D$273:$O$273)=0,"",SUMIF(БДДС!$D$9:$BK$9,E$220&$C223,БДДС!$D$71:$BK$71)+SUMIF($D$256:$O$256,E$220&$C223,$D$273:$O$273)) -> 1710014.139 | F223: =IF(SUMIF(БДДС!$D$9:$BK$9,F$220&$C223,БДДС!$D$71:$BK$71)+SUMIF($D$256:$O$256,F$220&$C223,$D$273:$O$273)=0,"",SUMIF(БДДС!$D$9:$BK$9,F$220&$C223,БДДС!$D$71:$BK$71)+SUMIF($D$256:$O$256,F$220&$C223,$D$273:$O$273)) -> 554341.5447 | G223: =IF(SUMIF(БДДС!$D$9:$BK$9,G$220&$C223,БДДС!$D$71:$BK$71)+SUMIF($D$256:$O$256,G$220&$C223,$D$273:$O$273)=0,"",SUMIF(БДДС!$D$9:$BK$9,G$220&$C223,БДДС!$D$71:$BK$71)+SUMIF($D$256:$O$256,G$220&$C223,$D$273:$O$273)) -> 530043.6972 | H223: =IF(SUMIF(БДДС!$D$9:$BK$9,H$220&$C223,БДДС!$D$71:$BK$71)+SUMIF($D$256:$O$256,H$220&$C223,$D$273:$O$273)=0,"",SUMIF(БДДС!$D$9:$BK$9,H$220&$C223,БДДС!$D$71:$BK$71)+SUMIF($D$256:$O$256,H$220&$C223,$D$273:$O$273)) -> 651157.1952 | I223: =IF(SUMIF(БДДС!$D$9:$BK$9,I$220&$C223,БДДС!$D$71:$BK$71)+SUMIF($D$256:$O$256,I$220&$C223,$D$273:$O$273)=0,"",SUMIF(БДДС!$D$9:$BK$9,I$220&$C223,БДДС!$D$71:$BK$71)+SUMIF($D$256:$O$256,I$220&$C223,$D$273:$O$273)) -> 465662.1647 | J223: =IF(SUMIF(БДДС!$D$9:$BK$9,J$220&$C223,БДДС!$D$71:$BK$71)+SUMIF($D$256:$O$256,J$220&$C223,$D$273:$O$273)=0,"",SUMIF(БДДС!$D$9:$BK$9,J$220&$C223,БДДС!$D$71:$BK$71)+SUMIF($D$256:$O$256,J$220&$C223,$D$273:$O$273)) -> 530921.0627 | K223: =IF(SUMIF(БДДС!$D$9:$BK$9,K$220&$C223,БДДС!$D$71:$BK$71)+SUMIF($D$256:$O$256,K$220&$C223,$D$273:$O$273)=0,"",SUMIF(БДДС!$D$9:$BK$9,K$220&$C223,БДДС!$D$71:$BK$71)+SUMIF($D$256:$O$256,K$220&$C223,$D$273:$O$273)) -> 668547.7607 | L223: =IF(SUMIF(БДДС!$D$9:$BK$9,L$220&$C223,БДДС!$D$71:$BK$71)+SUMIF($D$256:$O$256,L$220&$C223,$D$273:$O$273)=0,"",SUMIF(БДДС!$D$9:$BK$9,L$220&$C223,БДДС!$D$71:$BK$71)+SUMIF($D$256:$O$256,L$220&$C223,$D$273:$O$273)) -> 573515.4147 | M223: =IF(SUMIF(БДДС!$D$9:$BK$9,M$220&$C223,БДДС!$D$71:$BK$71)+SUMIF($D$256:$O$256,M$220&$C223,$D$273:$O$273)=0,"",SUMIF(БДДС!$D$9:$BK$9,M$220&$C223,БДДС!$D$71:$BK$71)+SUMIF($D$256:$O$256,M$220&$C223,$D$273:$O$273)) -> 620185.3127 | N223: =IF(SUMIF(БДДС!$D$9:$BK$9,N$220&$C223,БДДС!$D$71:$BK$71)+SUMIF($D$256:$O$256,N$220&$C223,$D$273:$O$273)=0,"",SUMIF(БДДС!$D$9:$BK$9,N$220&$C223,БДДС!$D$71:$BK$71)+SUMIF($D$256:$O$256,N$220&$C223,$D$273:$O$273)) -> 677537.3487 | O223: =IF(SUMIF(БДДС!$D$9:$BK$9,O$220&$C223,БДДС!$D$71:$BK$71)+SUMIF($D$256:$O$256,O$220&$C223,$D$273:$O$273)=0,"",SUMIF(БДДС!$D$9:$BK$9,O$220&$C223,БДДС!$D$71:$BK$71)+SUMIF($D$256:$O$256,O$220&$C223,$D$273:$O$273)) -> 1225257.791
A224: 4 | C224: 2024 | D224: =IF(SUMIF(БДДС!$D$9:$BK$9,D$220&$C224,БДДС!$D$71:$BK$71)+SUMIF($D$256:$O$256,D$220&$C224,$D$273:$O$273)=0,"",SUMIF(БДДС!$D$9:$BK$9,D$220&$C224,БДДС!$D$71:$BK$71)+SUMIF($D$256:$O$256,D$220&$C224,$D$273:$O$273)) -> 1448395.07 | E224: =IF(SUMIF(БДДС!$D$9:$BK$9,E$220&$C224,БДДС!$D$71:$BK$71)+SUMIF($D$256:$O$256,E$220&$C224,$D$273:$O$273)=0,"",SUMIF(БДДС!$D$9:$BK$9,E$220&$C224,БДДС!$D$71:$BK$71)+SUMIF($D$256:$O$256,E$220&$C224,$D$273:$O$273)) -> 1617955.698 | F224: =IF(SUMIF(БДДС!$D$9:$BK$9,F$220&$C224,БДДС!$D$71:$BK$71)+SUMIF($D$256:$O$256,F$220&$C224,$D$273:$O$273)=0,"",SUMIF(БДДС!$D$9:$BK$9,F$220&$C224,БДДС!$D$71:$BK$71)+SUMIF($D$256:$O$256,F$220&$C224,$D$273:$O$273)) -> 454441.5447 | G224: =IF(SUMIF(БДДС!$D$9:$BK$9,G$220&$C224,БДДС!$D$71:$BK$71)+SUMIF($D$256:$O$256,G$220&$C224,$D$273:$O$273)=0,"",SUMIF(БДДС!$D$9:$BK$9,G$220&$C224,БДДС!$D$71:$BK$71)+SUMIF($D$256:$O$256,G$220&$C224,$D$273:$O$273)) -> 351743.6972 | H224: =IF(SUMIF(БДДС!$D$9:$BK$9,H$220&$C224,БДДС!$D$71:$BK$71)+SUMIF($D$256:$O$256,H$220&$C224,$D$273:$O$273)=0,"",SUMIF(БДДС!$D$9:$BK$9,H$220&$C224,БДДС!$D$71:$BK$71)+SUMIF($D$256:$O$256,H$220&$C224,$D$273:$O$273)) -> 495457.1952 | I224: =IF(SUMIF(БДДС!$D$9:$BK$9,I$220&$C224,БДДС!$D$71:$BK$71)+SUMIF($D$256:$O$256,I$220&$C224,$D$273:$O$273)=0,"",SUMIF(БДДС!$D$9:$BK$9,I$220&$C224,БДДС!$D$71:$BK$71)+SUMIF($D$256:$O$256,I$220&$C224,$D$273:$O$273)) -> 286762.1647 | J224: =IF(SUMIF(БДДС!$D$9:$BK$9,J$220&$C224,БДДС!$D$71:$BK$71)+SUMIF($D$256:$O$256,J$220&$C224,$D$273:$O$273)=0,"",SUMIF(БДДС!$D$9:$BK$9,J$220&$C224,БДДС!$D$71:$BK$71)+SUMIF($D$256:$O$256,J$220&$C224,$D$273:$O$273)) -> 353621.0627 | K224: =IF(SUMIF(БДДС!$D$9:$BK$9,K$220&$C224,БДДС!$D$71:$BK$71)+SUMIF($D$256:$O$256,K$220&$C224,$D$273:$O$273)=0,"",SUMIF(БДДС!$D$9:$BK$9,K$220&$C224,БДДС!$D$71:$BK$71)+SUMIF($D$256:$O$256,K$220&$C224,$D$273:$O$273)) -> 492847.7607 | L224: =IF(SUMIF(БДДС!$D$9:$BK$9,L$220&$C224,БДДС!$D$71:$BK$71)+SUMIF($D$256:$O$256,L$220&$C224,$D$273:$O$273)=0,"",SUMIF(БДДС!$D$9:$BK$9,L$220&$C224,БДДС!$D$71:$BK$71)+SUMIF($D$256:$O$256,L$220&$C224,$D$273:$O$273)) -> 381115.4147 | M224: =IF(SUMIF(БДДС!$D$9:$BK$9,M$220&$C224,БДДС!$D$71:$BK$71)+SUMIF($D$256:$O$256,M$220&$C224,$D$273:$O$273)=0,"",SUMIF(БДДС!$D$9:$BK$9,M$220&$C224,БДДС!$D$71:$BK$71)+SUMIF($D$256:$O$256,M$220&$C224,$D$273:$O$273)) -> 429385.3127 | N224: =IF(SUMIF(БДДС!$D$9:$BK$9,N$220&$C224,БДДС!$D$71:$BK$71)+SUMIF($D$256:$O$256,N$220&$C224,$D$273:$O$273)=0,"",SUMIF(БДДС!$D$9:$BK$9,N$220&$C224,БДДС!$D$71:$BK$71)+SUMIF($D$256:$O$256,N$220&$C224,$D$273:$O$273)) -> 488337.3487 | O224: =IF(SUMIF(БДДС!$D$9:$BK$9,O$220&$C224,БДДС!$D$71:$BK$71)+SUMIF($D$256:$O$256,O$220&$C224,$D$273:$O$273)=0,"",SUMIF(БДДС!$D$9:$BK$9,O$220&$C224,БДДС!$D$71:$BK$71)+SUMIF($D$256:$O$256,O$220&$C224,$D$273:$O$273)) -> 1179357.791
A225: 5 | C225: 2025 | D225: =IF(SUMIF(БДДС!$D$9:$BK$9,D$220&$C225,БДДС!$D$71:$BK$71)+SUMIF($D$256:$O$256,D$220&$C225,$D$273:$O$273)=0,"",SUMIF(БДДС!$D$9:$BK$9,D$220&$C225,БДДС!$D$71:$BK$71)+SUMIF($D$256:$O$256,D$220&$C225,$D$273:$O$273)) -> 1405114.591 | E225: =IF(SUMIF(БДДС!$D$9:$BK$9,E$220&$C225,БДДС!$D$71:$BK$71)+SUMIF($D$256:$O$256,E$220&$C225,$D$273:$O$273)=0,"",SUMIF(БДДС!$D$9:$BK$9,E$220&$C225,БДДС!$D$71:$BK$71)+SUMIF($D$256:$O$256,E$220&$C225,$D$273:$O$273)) -> 1574675.219 | F225: =IF(SUMIF(БДДС!$D$9:$BK$9,F$220&$C225,БДДС!$D$71:$BK$71)+SUMIF($D$256:$O$256,F$220&$C225,$D$273:$O$273)=0,"",SUMIF(БДДС!$D$9:$BK$9,F$220&$C225,БДДС!$D$71:$BK$71)+SUMIF($D$256:$O$256,F$220&$C225,$D$273:$O$273)) -> 393441.5447 | G225: =IF(SUMIF(БДДС!$D$9:$BK$9,G$220&$C225,БДДС!$D$71:$BK$71)+SUMIF($D$256:$O$256,G$220&$C225,$D$273:$O$273)=0,"",SUMIF(БДДС!$D$9:$BK$9,G$220&$C225,БДДС!$D$71:$BK$71)+SUMIF($D$256:$O$256,G$220&$C225,$D$273:$O$273)) -> 370743.6972 | H225: =IF(SUMIF(БДДС!$D$9:$BK$9,H$220&$C225,БДДС!$D$71:$BK$71)+SUMIF($D$256:$O$256,H$220&$C225,$D$273:$O$273)=0,"",SUMIF(БДДС!$D$9:$BK$9,H$220&$C225,БДДС!$D$71:$BK$71)+SUMIF($D$256:$O$256,H$220&$C225,$D$273:$O$273)) -> 493457.1952 | I225: =IF(SUMIF(БДДС!$D$9:$BK$9,I$220&$C225,БДДС!$D$71:$BK$71)+SUMIF($D$256:$O$256,I$220&$C225,$D$273:$O$273)=0,"",SUMIF(БДДС!$D$9:$BK$9,I$220&$C225,БДДС!$D$71:$BK$71)+SUMIF($D$256:$O$256,I$220&$C225,$D$273:$O$273)) -> 286762.1647 | J225: =IF(SUMIF(БДДС!$D$9:$BK$9,J$220&$C225,БДДС!$D$71:$BK$71)+SUMIF($D$256:$O$256,J$220&$C225,$D$273:$O$273)=0,"",SUMIF(БДДС!$D$9:$BK$9,J$220&$C225,БДДС!$D$71:$BK$71)+SUMIF($D$256:$O$256,J$220&$C225,$D$273:$O$273)) -> 353621.0627 | K225: =IF(SUMIF(БДДС!$D$9:$BK$9,K$220&$C225,БДДС!$D$71:$BK$71)+SUMIF($D$256:$O$256,K$220&$C225,$D$273:$O$273)=0,"",SUMIF(БДДС!$D$9:$BK$9,K$220&$C225,БДДС!$D$71:$BK$71)+SUMIF($D$256:$O$256,K$220&$C225,$D$273:$O$273)) -> 492847.7607 | L225: =IF(SUMIF(БДДС!$D$9:$BK$9,L$220&$C225,БДДС!$D$71:$BK$71)+SUMIF($D$256:$O$256,L$220&$C225,$D$273:$O$273)=0,"",SUMIF(БДДС!$D$9:$BK$9,L$220&$C225,БДДС!$D$71:$BK$71)+SUMIF($D$256:$O$256,L$220&$C225,$D$273:$O$273)) -> 381115.4147 | M225: =IF(SUMIF(БДДС!$D$9:$BK$9,M$220&$C225,БДДС!$D$71:$BK$71)+SUMIF($D$256:$O$256,M$220&$C225,$D$273:$O$273)=0,"",SUMIF(БДДС!$D$9:$BK$9,M$220&$C225,БДДС!$D$71:$BK$71)+SUMIF($D$256:$O$256,M$220&$C225,$D$273:$O$273)) -> 429385.3127 | N225: =IF(SUMIF(БДДС!$D$9:$BK$9,N$220&$C225,БДДС!$D$71:$BK$71)+SUMIF($D$256:$O$256,N$220&$C225,$D$273:$O$273)=0,"",SUMIF(БДДС!$D$9:$BK$9,N$220&$C225,БДДС!$D$71:$BK$71)+SUMIF($D$256:$O$256,N$220&$C225,$D$273:$O$273)) -> 488337.3487 | O225: =IF(SUMIF(БДДС!$D$9:$BK$9,O$220&$C225,БДДС!$D$71:$BK$71)+SUMIF($D$256:$O$256,O$220&$C225,$D$273:$O$273)=0,"",SUMIF(БДДС!$D$9:$BK$9,O$220&$C225,БДДС!$D$71:$BK$71)+SUMIF($D$256:$O$256,O$220&$C225,$D$273:$O$273)) -> 1179357.791
A226: 6 | C226: 2026 | D226: =IF(SUMIF(БДДС!$D$9:$BK$9,D$220&$C226,БДДС!$D$71:$BK$71)+SUMIF($D$256:$O$256,D$220&$C226,$D$273:$O$273)=0,"",SUMIF(БДДС!$D$9:$BK$9,D$220&$C226,БДДС!$D$71:$BK$71)+SUMIF($D$256:$O$256,D$220&$C226,$D$273:$O$273)) -> 1402636.005 | E226: =IF(SUMIF(БДДС!$D$9:$BK$9,E$220&$C226,БДДС!$D$71:$BK$71)+SUMIF($D$256:$O$256,E$220&$C226,$D$273:$O$273)=0,"",SUMIF(БДДС!$D$9:$BK$9,E$220&$C226,БДДС!$D$71:$BK$71)+SUMIF($D$256:$O$256,E$220&$C226,$D$273:$O$273)) -> 1572196.633 | F226: =IF(SUMIF(БДДС!$D$9:$BK$9,F$220&$C226,БДДС!$D$71:$BK$71)+SUMIF($D$256:$O$256,F$220&$C226,$D$273:$O$273)=0,"",SUMIF(БДДС!$D$9:$BK$9,F$220&$C226,БДДС!$D$71:$BK$71)+SUMIF($D$256:$O$256,F$220&$C226,$D$273:$O$273)) -> 393441.5447 | G226: =IF(SUMIF(БДДС!$D$9:$BK$9,G$220&$C226,БДДС!$D$71:$BK$71)+SUMIF($D$256:$O$256,G$220&$C226,$D$273:$O$273)=0,"",SUMIF(БДДС!$D$9:$BK$9,G$220&$C226,БДДС!$D$71:$BK$71)+SUMIF($D$256:$O$256,G$220&$C226,$D$273:$O$273)) -> 311743.6972 | H226: =IF(SUMIF(БДДС!$D$9:$BK$9,H$220&$C226,БДДС!$D$71:$BK$71)+SUMIF($D$256:$O$256,H$220&$C226,$D$273:$O$273)=0,"",SUMIF(БДДС!$D$9:$BK$9,H$220&$C226,БДДС!$D$71:$BK$71)+SUMIF($D$256:$O$256,H$220&$C226,$D$273:$O$273)) ->  | I226: =IF(SUMIF(БДДС!$D$9:$BK$9,I$220&$C226,БДДС!$D$71:$BK$71)+SUMIF($D$256:$O$256,I$220&$C226,$D$273:$O$273)=0,"",SUMIF(БДДС!$D$9:$BK$9,I$220&$C226,БДДС!$D$71:$BK$71)+SUMIF($D$256:$O$256,I$220&$C226,$D$273:$O$273)) ->  | J226: =IF(SUMIF(БДДС!$D$9:$BK$9,J$220&$C226,БДДС!$D$71:$BK$71)+SUMIF($D$256:$O$256,J$220&$C226,$D$273:$O$273)=0,"",SUMIF(БДДС!$D$9:$BK$9,J$220&$C226,БДДС!$D$71:$BK$71)+SUMIF($D$256:$O$256,J$220&$C226,$D$273:$O$273)) ->  | K226: =IF(SUMIF(БДДС!$D$9:$BK$9,K$220&$C226,БДДС!$D$71:$BK$71)+SUMIF($D$256:$O$256,K$220&$C226,$D$273:$O$273)=0,"",SUMIF(БДДС!$D$9:$BK$9,K$220&$C226,БДДС!$D$71:$BK$71)+SUMIF($D$256:$O$256,K$220&$C226,$D$273:$O$273)) ->  | L226: =IF(SUMIF(БДДС!$D$9:$BK$9,L$220&$C226,БДДС!$D$71:$BK$71)+SUMIF($D$256:$O$256,L$220&$C226,$D$273:$O$273)=0,"",SUMIF(БДДС!$D$9:$BK$9,L$220&$C226,БДДС!$D$71:$BK$71)+SUMIF($D$256:$O$256,L$220&$C226,$D$273:$O$273)) ->  | M226: =IF(SUMIF(БДДС!$D$9:$BK$9,M$220&$C226,БДДС!$D$71:$BK$71)+SUMIF($D$256:$O$256,M$220&$C226,$D$273:$O$273)=0,"",SUMIF(БДДС!$D$9:$BK$9,M$220&$C226,БДДС!$D$71:$BK$71)+SUMIF($D$256:$O$256,M$220&$C226,$D$273:$O$273)) ->  | N226: =IF(SUMIF(БДДС!$D$9:$BK$9,N$220&$C226,БДДС!$D$71:$BK$71)+SUMIF($D$256:$O$256,N$220&$C226,$D$273:$O$273)=0,"",SUMIF(БДДС!$D$9:$BK$9,N$220&$C226,БДДС!$D$71:$BK$71)+SUMIF($D$256:$O$256,N$220&$C226,$D$273:$O$273)) ->  | O226: =IF(SUMIF(БДДС!$D$9:$BK$9,O$220&$C226,БДДС!$D$71:$BK$71)+SUMIF($D$256:$O$256,O$220&$C226,$D$273:$O$273)=0,"",SUMIF(БДДС!$D$9:$BK$9,O$220&$C226,БДДС!$D$71:$BK$71)+SUMIF($D$256:$O$256,O$220&$C226,$D$273:$O$273)) -> 
A227: =A226+1 -> 7 | C227: 2027 | D227: =IF(SUMIF(БДДС!$D$9:$BK$9,D$220&$C227,БДДС!$D$71:$BK$71)+SUMIF($D$256:$O$256,D$220&$C227,$D$273:$O$273)=0,"",SUMIF(БДДС!$D$9:$BK$9,D$220&$C227,БДДС!$D$71:$BK$71)+SUMIF($D$256:$O$256,D$220&$C227,$D$273:$O$273)) ->  | E227: =IF(SUMIF(БДДС!$D$9:$BK$9,E$220&$C227,БДДС!$D$71:$BK$71)+SUMIF($D$256:$O$256,E$220&$C227,$D$273:$O$273)=0,"",SUMIF(БДДС!$D$9:$BK$9,E$220&$C227,БДДС!$D$71:$BK$71)+SUMIF($D$256:$O$256,E$220&$C227,$D$273:$O$273)) ->  | F227: =IF(SUMIF(БДДС!$D$9:$BK$9,F$220&$C227,БДДС!$D$71:$BK$71)+SUMIF($D$256:$O$256,F$220&$C227,$D$273:$O$273)=0,"",SUMIF(БДДС!$D$9:$BK$9,F$220&$C227,БДДС!$D$71:$BK$71)+SUMIF($D$256:$O$256,F$220&$C227,$D$273:$O$273)) ->  | G227: =IF(SUMIF(БДДС!$D$9:$BK$9,G$220&$C227,БДДС!$D$71:$BK$71)+SUMIF($D$256:$O$256,G$220&$C227,$D$273:$O$273)=0,"",SUMIF(БДДС!$D$9:$BK$9,G$220&$C227,БДДС!$D$71:$BK$71)+SUMIF($D$256:$O$256,G$220&$C227,$D$273:$O$273)) ->  | H227: =IF(SUMIF(БДДС!$D$9:$BK$9,H$220&$C227,БДДС!$D$71:$BK$71)+SUMIF($D$256:$O$256,H$220&$C227,$D$273:$O$273)=0,"",SUMIF(БДДС!$D$9:$BK$9,H$220&$C227,БДДС!$D$71:$BK$71)+SUMIF($D$256:$O$256,H$220&$C227,$D$273:$O$273)) ->  | I227: =IF(SUMIF(БДДС!$D$9:$BK$9,I$220&$C227,БДДС!$D$71:$BK$71)+SUMIF($D$256:$O$256,I$220&$C227,$D$273:$O$273)=0,"",SUMIF(БДДС!$D$9:$BK$9,I$220&$C227,БДДС!$D$71:$BK$71)+SUMIF($D$256:$O$256,I$220&$C227,$D$273:$O$273)) ->  | J227: =IF(SUMIF(БДДС!$D$9:$BK$9,J$220&$C227,БДДС!$D$71:$BK$71)+SUMIF($D$256:$O$256,J$220&$C227,$D$273:$O$273)=0,"",SUMIF(БДДС!$D$9:$BK$9,J$220&$C227,БДДС!$D$71:$BK$71)+SUMIF($D$256:$O$256,J$220&$C227,$D$273:$O$273)) ->  | K227: =IF(SUMIF(БДДС!$D$9:$BK$9,K$220&$C227,БДДС!$D$71:$BK$71)+SUMIF($D$256:$O$256,K$220&$C227,$D$273:$O$273)=0,"",SUMIF(БДДС!$D$9:$BK$9,K$220&$C227,БДДС!$D$71:$BK$71)+SUMIF($D$256:$O$256,K$220&$C227,$D$273:$O$273)) ->  | L227: =IF(SUMIF(БДДС!$D$9:$BK$9,L$220&$C227,БДДС!$D$71:$BK$71)+SUMIF($D$256:$O$256,L$220&$C227,$D$273:$O$273)=0,"",SUMIF(БДДС!$D$9:$BK$9,L$220&$C227,БДДС!$D$71:$BK$71)+SUMIF($D$256:$O$256,L$220&$C227,$D$273:$O$273)) ->  | M227: =IF(SUMIF(БДДС!$D$9:$BK$9,M$220&$C227,БДДС!$D$71:$BK$71)+SUMIF($D$256:$O$256,M$220&$C227,$D$273:$O$273)=0,"",SUMIF(БДДС!$D$9:$BK$9,M$220&$C227,БДДС!$D$71:$BK$71)+SUMIF($D$256:$O$256,M$220&$C227,$D$273:$O$273)) ->  | N227: =IF(SUMIF(БДДС!$D$9:$BK$9,N$220&$C227,БДДС!$D$71:$BK$71)+SUMIF($D$256:$O$256,N$220&$C227,$D$273:$O$273)=0,"",SUMIF(БДДС!$D$9:$BK$9,N$220&$C227,БДДС!$D$71:$BK$71)+SUMIF($D$256:$O$256,N$220&$C227,$D$273:$O$273)) ->  | O227: =IF(SUMIF(БДДС!$D$9:$BK$9,O$220&$C227,БДДС!$D$71:$BK$71)+SUMIF($D$256:$O$256,O$220&$C227,$D$273:$O$273)=0,"",SUMIF(БДДС!$D$9:$BK$9,O$220&$C227,БДДС!$D$71:$BK$71)+SUMIF($D$256:$O$256,O$220&$C227,$D$273:$O$273)) -> 
B242: ГРАФИК ПОГАШЕНИЯ КРЕДИТА И ЗАЙМА
A244: № п/п | B244: Наименование | C244: Сумма | D244: =TRANSPOSE(Спровочник!B78:B97) -> 2кв2021 | E244: 3кв2021 | F244: 4кв2021 | G244: 1кв2022 | H244: 2кв2022 | I244: 3кв2022 | J244: 4кв2022 | K244: 1кв2023 | L244: 2кв2023 | M244: 3кв2023 | N244: 4кв2023 | O244: 1кв2024 | P244: 2кв2024 | Q244: 3кв2024 | R244: 4кв2024 | S244: 1кв2025 | T244: 2кв2025 | U244: 3кв2025 | V244: 4кв2025 | W244: 1кв2026
A245: 1 | B245: Погашение основной суммы займа | C245: =C208 -> 100000 | G245: 100000 | V245: =C245-SUM(D245:U245) -> 0 | W245: 0
A246: 2 | B246: Погашение основной суммы кредита | C246: =C209 -> 160000 | N246: 160000 | V246: =C246-SUM(D246:U246) -> 0 | W246: 0
... 51 more rows

Sheet План продаж
A1: ПЛАН ПРОДАЖ
B3: ВЫРУЧКА ПО МЕСЯЦАМ ЗА 60 МЕСЯЦЕВ
A4: № п/п | B4: Наименование | C4: Сумма | D4: 1-й месяц | E4: 2-й месяц | F4: 3-й месяц | G4: 4-й месяц | H4: 5-й месяц | I4: 6-й месяц | J4: 7-й месяц | K4: 8-й месяц | L4: 9-й месяц | M4: 10-й месяц | N4: 11-й месяц | O4: 12-й месяц | P4: 13-й месяц | Q4: 14-й месяц | R4: 15-й месяц | S4: 16-й месяц | T4: 17-й месяц | U4: 18-й месяц | V4: 19-й месяц | W4: 20-й месяц | X4: 21-й месяц | Y4: 22-й месяц | Z4: 23-й месяц | AA4: 24-й месяц | AB4: 25-й месяц | AC4: 26-й месяц | AD4: 27-й месяц | AE4: 28-й месяц | AF4: 29-й месяц | AG4: 30-й месяц | AH4: 31-й месяц | AI4: 32-й месяц | AJ4: 33-й месяц | AK4: 34-й месяц | AL4: 35-й месяц | AM4: 36-й месяц | AN4: 37-й месяц | AO4: 38-й месяц | AP4: 39-й месяц | AQ4: 40-й месяц | AR4: 41-й месяц | AS4: 42-й месяц | AT4: 43-й месяц | AU4: 44-й месяц | AV4: 45-й месяц | AW4: 46-й месяц | AX4: 47-й месяц | AY4: 48-й месяц | AZ4: 49-й месяц | BA4: 50-й месяц | BB4: 51-й месяц | BC4: 52-й месяц | BD4: 53-й месяц | BE4: 54-й месяц | BF4: 55-й месяц | BG4: 56-й месяц | BH4: 57-й месяц | BI4: 58-й месяц | BJ4: 59-й месяц | BK4: 60-й месяц
D5: ='Исходные данные'!C9 -> Май | E5: =VLOOKUP(E7,Спровочник!$A$21:$B$32,2,FALSE) -> Июнь | F5: =VLOOKUP(F7,Спровочник!$A$21:$B$32,2,FALSE) -> Июль | G5: =VLOOKUP(G7,Спровочник!$A$21:$B$32,2,FALSE) -> Август | H5: =VLOOKUP(H7,Спровочник!$A$21:$B$32,2,FALSE) -> Сентябрь | I5: =VLOOKUP(I7,Спровочник!$A$21:$B$32,2,FALSE) -> Октябрь | J5: =VLOOKUP(J7,Спровочник!$A$21:$B$32,2,FALSE) -> Ноябрь | K5: =VLOOKUP(K7,Спровочник!$A$21:$B$32,2,FALSE) -> Декабрь | L5: =VLOOKUP(L7,Спровочник!$A$21:$B$32,2,FALSE) -> Январь | M5: =VLOOKUP(M7,Спровочник!$A$21:$B$32,2,FALSE) -> Февраль | N5: =VLOOKUP(N7,Спровочник!$A$21:$B$32,2,FALSE) -> Март | O5: =VLOOKUP(O7,Спровочник!$A$21:$B$32,2,FALSE) -> Апрель | P5: =VLOOKUP(P7,Спровочник!$A$21:$B$32,2,FALSE) -> Май | Q5: =VLOOKUP(Q7,Спровочник!$A$21:$B$32,2,FALSE) -> Июнь | R5: =VLOOKUP(R7,Спровочник!$A$21:$B$32,2,FALSE) -> Июль | S5: =VLOOKUP(S7,Спровочник!$A$21:$B$32,2,FALSE) -> Август | T5: =VLOOKUP(T7,Спровочник!$A$21:$B$32,2,FALSE) -> Сентябрь | U5: =VLOOKUP(U7,Спровочник!$A$21:$B$32,2,FALSE) -> Октябрь | V5: =VLOOKUP(V7,Спровочник!$A$21:$B$32,2,FALSE) -> Ноябрь | W5: =VLOOKUP(W7,Спровочник!$A$21:$B$32,2,FALSE) -> Декабрь | X5: =VLOOKUP(X7,Спровочник!$A$21:$B$32,2,FALSE) -> Январь | Y5: =VLOOKUP(Y7,Спровочник!$A$21:$B$32,2,FALSE) -> Февраль | Z5: =VLOOKUP(Z7,Спровочник!$A$21:$B$32,2,FALSE) -> Март | AA5: =VLOOKUP(AA7,Спровочник!$A$21:$B$32,2,FALSE) -> Апрель | AB5: =VLOOKUP(AB7,Спровочник!$A$21:$B$32,2,FALSE) -> Май | AC5: =VLOOKUP(AC7,Спровочник!$A$21:$B$32,2,FALSE) -> Июнь | AD5: =VLOOKUP(AD7,Спровочник!$A$21:$B$32,2,FALSE) -> Июль | AE5: =VLOOKUP(AE7,Спровочник!$A$21:$B$32,2,FALSE) -> Август | AF5: =VLOOKUP(AF7,Спровочник!$A$21:$B$32,2,FALSE) -> Сентябрь | AG5: =VLOOKUP(AG7,Спровочник!$A$21:$B$32,2,FALSE) -> Октябрь | AH5: =VLOOKUP(AH7,Спровочник!$A$21:$B$32,2,FALSE) -> Ноябрь | AI5: =VLOOKUP(AI7,Спровочник!$A$21:$B$32,2,FALSE) -> Декабрь | AJ5: =VLOOKUP(AJ7,Спровочник!$A$21:$B$32,2,FALSE) -> Январь | AK5: =VLOOKUP(AK7,Спровочник!$A$21:$B$32,2,FALSE) -> Февраль | AL5: =VLOOKUP(AL7,Спровочник!$A$21:$B$32,2,FALSE) -> Март | AM5: =VLOOKUP(AM7,Спровочник!$A$21:$B$32,2,FALSE) -> Апрель | AN5: =VLOOKUP(AN7,Спровочник!$A$21:$B$32,2,FALSE) -> Май | AO5: =VLOOKUP(AO7,Спровочник!$A$21:$B$32,2,FALSE) -> Июнь | AP5: =VLOOKUP(AP7,Спровочник!$A$21:$B$32,2,FALSE) -> Июль | AQ5: =VLOOKUP(AQ7,Спровочник!$A$21:$B$32,2,FALSE) -> Август | AR5: =VLOOKUP(AR7,Спровочник!$A$21:$B$32,2,FALSE) -> Сентябрь | AS5: =VLOOKUP(AS7,Спровочник!$A$21:$B$32,2,FALSE) -> Октябрь | AT5: =VLOOKUP(AT7,Спровочник!$A$21:$B$32,2,FALSE) -> Ноябрь | AU5: =VLOOKUP(AU7,Спровочник!$A$21:$B$32,2,FALSE) -> Декабрь | AV5: =VLOOKUP(AV7,Спровочник!$A$21:$B$32,2,FALSE) -> Январь | AW5: =VLOOKUP(AW7,Спровочник!$A$21:$B$32,2,FALSE) -> Февраль | AX5: =VLOOKUP(AX7,Спровочник!$A$21:$B$32,2,FALSE) -> Март | AY5: =VLOOKUP(AY7,Спровочник!$A$21:$B$32,2,FALSE) -> Апрель | AZ5: =VLOOKUP(AZ7,Спровочник!$A$21:$B$32,2,FALSE) -> Май | BA5: =VLOOKUP(BA7,Спровочник!$A$21:$B$32,2,FALSE) -> Июнь | BB5: =VLOOKUP(BB7,Спровочник!$A$21:$B$32,2,FALSE) -> Июль | BC5: =VLOOKUP(BC7,Спровочник!$A$21:$B$32,2,FALSE) -> Август | BD5: =VLOOKUP(BD7,Спровочник!$A$21:$B$32,2,FALSE) -> Сентябрь | BE5: =VLOOKUP(BE7,Спровочник!$A$21:$B$32,2,FALSE) -> Октябрь | BF5: =VLOOKUP(BF7,Спровочник!$A$21:$B$32,2,FALSE) -> Ноябрь | BG5: =VLOOKUP(BG7,Спровочник!$A$21:$B$32,2,FALSE) -> Декабрь | BH5: =VLOOKUP(BH7,Спровочник!$A$21:$B$32,2,FALSE) -> Январь | BI5: =VLOOKUP(BI7,Спровочник!$A$21:$B$32,2,FALSE) -> Февраль | BJ5: =VLOOKUP(BJ7,Спровочник!$A$21:$B$32,2,FALSE) -> Март | BK5: =VLOOKUP(BK7,Спровочник!$A$21:$B$32,2,FALSE) -> Апрель
D6: ='Исходные данные'!D9 -> 2021 | E6: =IF(D7=12,D6+1,D6) -> 2021 | F6: 2021 | G6: 2021 | H6: 2021 | I6: 2021 | J6: 2021 | K6: 2021 | L6: 2022 | M6: 2022 | N6: 2022 | O6: 2022 | P6: 2022 | Q6: 2022 | R6: 2022 | S6: 2022 | T6: 2022 | U6: 2022 | V6: 2022 | W6: 2022 | X6: 2023 | Y6: 2023 | Z6: 2023 | AA6: 2023 | AB6: 2023 | AC6: 2023 | AD6: 2023 | AE6: 2023 | AF6: 2023 | AG6: 2023 | AH6: 2023 | AI6: 2023 | AJ6: 2024 | AK6: =IF(AJ7=12,AJ6+1,AJ6) -> 2024 | AL6: 2024 | AM6: 2024 | AN6: 2024 | AO6: 2024 | AP6: 2024 | AQ6: 2024 | AR6: 2024 | AS6: 2024 | AT6: 2024 | AU6: 2024 | AV6: 2025 | AW6: 2025 | AX6: 2025 | AY6: 2025 | AZ6: 2025 | BA6: 2025 | BB6: 2025 | BC6: 2025 | BD6: 2025 | BE6: 2025 | BF6: 2025 | BG6: 2025 | BH6: 2026 | BI6: 2026 | BJ6: 2026 | BK6: 2026
A7: номер месяца | D7: =INDEX(Спровочник!A21:A32,MATCH(D5,месяцы,0),1) -> 5 | E7: =IF(D7=12,1,D7+1) -> 6 | F7: =IF(E7=12,1,E7+1) -> 7 | G7: 8 | H7: 9 | I7: 10 | J7: 11 | K7: 12 | L7: 1 | M7: 2 | N7: 3 | O7: 4 | P7: 5 | Q7: 6 | R7: 7 | S7: 8 | T7: 9 | U7: 10 | V7: 11 | W7: 12 | X7: 1 | Y7: 2 | Z7: 3 | AA7: 4 | AB7: 5 | AC7: 6 | AD7: 7 | AE7: 8 | AF7: 9 | AG7: 10 | AH7: 11 | AI7: 12 | AJ7: 1 | AK7: 2 | AL7: 3 | AM7: 4 | AN7: 5 | AO7: 6 | AP7: 7 | AQ7: 8 | AR7: 9 | AS7: 10 | AT7: 11 | AU7: 12 | AV7: 1 | AW7: 2 | AX7: 3 | AY7: 4 | AZ7: 5 | BA7: 6 | BB7: 7 | BC7: 8 | BD7: 9 | BE7: 10 | BF7: 11 | BG7: 12 | BH7: 1 | BI7: 2 | BJ7: 3 | BK7: 4
A8: номер месяца со старта продаж | D8: 1 | E8: =D8+1 -> 2 | F8: =E8+1 -> 3 | G8: 4 | H8: 5 | I8: 6 | J8: 7 | K8: 8 | L8: 9 | M8: 10 | N8: 11 | O8: 12 | P8: 13 | Q8: 14 | R8: 15 | S8: 16 | T8: 17 | U8: 18 | V8: 19 | W8: 20 | X8: 21 | Y8: 22 | Z8: 23 | AA8: 24 | AB8: 25 | AC8: 26 | AD8: 27 | AE8: 28 | AF8: 29 | AG8: 30 | AH8: 31 | AI8: 32 | AJ8: 33 | AK8: 34 | AL8: 35 | AM8: 36 | AN8: 37 | AO8: 38 | AP8: 39 | AQ8: 40 | AR8: 41 | AS8: 42 | AT8: 43 | AU8: 44 | AV8: 45 | AW8: 46 | AX8: 47 | AY8: 48 | AZ8: 49 | BA8: 50 | BB8: 51 | BC8: 52 | BD8: 53 | BE8: 54 | BF8: 55 | BG8: 56 | BH8: 57 | BI8: 58 | BJ8: 59 | BK8: 60
B9: квартал | D9: =VLOOKUP(D5,Спровочник!$B$21:$C$32,2,FALSE)&D6 -> 2кв2021 | E9: =VLOOKUP(E5,Спровочник!$B$21:$C$32,2,FALSE)&E6 -> 2кв2021 | F9: =VLOOKUP(F5,Спровочник!$B$21:$C$32,2,FALSE)&F6 -> 3кв2021 | G9: =VLOOKUP(G5,Спровочник!$B$21:$C$32,2,FALSE)&G6 -> 3кв2021 | H9: =VLOOKUP(H5,Спровочник!$B$21:$C$32,2,FALSE)&H6 -> 3кв2021 | I9: =VLOOKUP(I5,Спровочник!$B$21:$C$32,2,FALSE)&I6 -> 4кв2021 | J9: =VLOOKUP(J5,Спровочник!$B$21:$C$32,2,FALSE)&J6 -> 4кв2021 | K9: =VLOOKUP(K5,Спровочник!$B$21:$C$32,2,FALSE)&K6 -> 4кв2021 | L9: =VLOOKUP(L5,Спровочник!$B$21:$C$32,2,FALSE)&L6 -> 1кв2022 | M9: =VLOOKUP(M5,Спровочник!$B$21:$C$32,2,FALSE)&M6 -> 1кв2022 | N9: =VLOOKUP(N5,Спровочник!$B$21:$C$32,2,FALSE)&N6 -> 1кв2022 | O9: =VLOOKUP(O5,Спровочник!$B$21:$C$32,2,FALSE)&O6 -> 2кв2022 | P9: =VLOOKUP(P5,Спровочник!$B$21:$C$32,2,FALSE)&P6 -> 2кв2022 | Q9: =VLOOKUP(Q5,Спровочник!$B$21:$C$32,2,FALSE)&Q6 -> 2кв2022 | R9: =VLOOKUP(R5,Спровочник!$B$21:$C$32,2,FALSE)&R6 -> 3кв2022 | S9: =VLOOKUP(S5,Спровочник!$B$21:$C$32,2,FALSE)&S6 -> 3кв2022 | T9: =VLOOKUP(T5,Спровочник!$B$21:$C$32,2,FALSE)&T6 -> 3кв2022 | U9: =VLOOKUP(U5,Спровочник!$B$21:$C$32,2,FALSE)&U6 -> 4кв2022 | V9: =VLOOKUP(V5,Спровочник!$B$21:$C$32,2,FALSE)&V6 -> 4кв2022 | W9: =VLOOKUP(W5,Спровочник!$B$21:$C$32,2,FALSE)&W6 -> 4кв2022 | X9: =VLOOKUP(X5,Спровочник!$B$21:$C$32,2,FALSE)&X6 -> 1кв2023 | Y9: =VLOOKUP(Y5,Спровочник!$B$21:$C$32,2,FALSE)&Y6 -> 1кв2023 | Z9: =VLOOKUP(Z5,Спровочник!$B$21:$C$32,2,FALSE)&Z6 -> 1кв2023 | AA9: =VLOOKUP(AA5,Спровочник!$B$21:$C$32,2,FALSE)&AA6 -> 2кв2023 | AB9: =VLOOKUP(AB5,Спровочник!$B$21:$C$32,2,FALSE)&AB6 -> 2кв2023 | AC9: =VLOOKUP(AC5,Спровочник!$B$21:$C$32,2,FALSE)&AC6 -> 2кв2023 | AD9: =VLOOKUP(AD5,Спровочник!$B$21:$C$32,2,FALSE)&AD6 -> 3кв2023 | AE9: =VLOOKUP(AE5,Спровочник!$B$21:$C$32,2,FALSE)&AE6 -> 3кв2023 | AF9: =VLOOKUP(AF5,Спровочник!$B$21:$C$32,2,FALSE)&AF6 -> 3кв2023 | AG9: =VLOOKUP(AG5,Спровочник!$B$21:$C$32,2,FALSE)&AG6 -> 4кв2023 | AH9: =VLOOKUP(AH5,Спровочник!$B$21:$C$32,2,FALSE)&AH6 -> 4кв2023 | AI9: =VLOOKUP(AI5,Спровочник!$B$21:$C$32,2,FALSE)&AI6 -> 4кв2023 | AJ9: =VLOOKUP(AJ5,Спровочник!$B$21:$C$32,2,FALSE)&AJ6 -> 1кв2024 | AK9: =VLOOKUP(AK5,Спровочник!$B$21:$C$32,2,FALSE)&AK6 -> 1кв2024 | AL9: =VLOOKUP(AL5,Спровочник!$B$21:$C$32,2,FALSE)&AL6 -> 1кв2024 | AM9: =VLOOKUP(AM5,Спровочник!$B$21:$C$32,2,FALSE)&AM6 -> 2кв2024 | AN9: =VLOOKUP(AN5,Спровочник!$B$21:$C$32,2,FALSE)&AN6 -> 2кв2024 | AO9: =VLOOKUP(AO5,Спровочник!$B$21:$C$32,2,FALSE)&AO6 -> 2кв2024 | AP9: =VLOOKUP(AP5,Спровочник!$B$21:$C$32,2,FALSE)&AP6 -> 3кв2024 | AQ9: =VLOOKUP(AQ5,Спровочник!$B$21:$C$32,2,FALSE)&AQ6 -> 3кв2024 | AR9: =VLOOKUP(AR5,Спровочник!$B$21:$C$32,2,FALSE)&AR6 -> 3кв2024 | AS9: =VLOOKUP(AS5,Спровочник!$B$21:$C$32,2,FALSE)&AS6 -> 4кв2024 | AT9: =VLOOKUP(AT5,Спровочник!$B$21:$C$32,2,FALSE)&AT6 -> 4кв2024 | AU9: =VLOOKUP(AU5,Спровочник!$B$21:$C$32,2,FALSE)&AU6 -> 4кв2024 | AV9: =VLOOKUP(AV5,Спровочник!$B$21:$C$32,2,FALSE)&AV6 -> 1кв2025 | AW9: =VLOOKUP(AW5,Спровочник!$B$21:$C$32,2,FALSE)&AW6 -> 1кв2025 | AX9: =VLOOKUP(AX5,Спровочник!$B$21:$C$32,2,FALSE)&AX6 -> 1кв2025 | AY9: =VLOOKUP(AY5,Спровочник!$B$21:$C$32,2,FALSE)&AY6 -> 2кв2025 | AZ9: =VLOOKUP(AZ5,Спровочник!$B$21:$C$32,2,FALSE)&AZ6 -> 2кв2025 | BA9: =VLOOKUP(BA5,Спровочник!$B$21:$C$32,2,FALSE)&BA6 -> 2кв2025 | BB9: =VLOOKUP(BB5,Спровочник!$B$21:$C$32,2,FALSE)&BB6 -> 3кв2025 | BC9: =VLOOKUP(BC5,Спровочник!$B$21:$C$32,2,FALSE)&BC6 -> 3кв2025 | BD9: =VLOOKUP(BD5,Спровочник!$B$21:$C$32,2,FALSE)&BD6 -> 3кв2025 | BE9: =VLOOKUP(BE5,Спровочник!$B$21:$C$32,2,FALSE)&BE6 -> 4кв2025 | BF9: =VLOOKUP(BF5,Спровочник!$B$21:$C$32,2,FALSE)&BF6 -> 4кв2025 | BG9: =VLOOKUP(BG5,Спровочник!$B$21:$C$32,2,FALSE)&BG6 -> 4кв2025 | BH9: =VLOOKUP(BH5,Спровочник!$B$21:$C$32,2,FALSE)&BH6 -> 1кв2026 | BI9: =VLOOKUP(BI5,Спровочник!$B$21:$C$32,2,FALSE)&BI6 -> 1кв2026 | BJ9: =VLOOKUP(BJ5,Спровочник!$B$21:$C$32,2,FALSE)&BJ6 -> 1кв2026 | BK9: =VLOOKUP(BK5,Спровочник!$B$21:$C$32,2,FALSE)&BK6 -> 2кв2026
A10: График выхода на целевые продажи | D10: ='Исходные данные'!C85 -> 0.7 | E10: ='Исходные данные'!D85 -> 0.8 | F10: ='Исходные данные'!E85 -> 0.9 | G10: ='Исходные данные'!F85 -> 0.9 | H10: ='Исходные данные'!G85 -> 1 | I10: ='Исходные данные'!H85 -> 1 | J10: ='Исходные данные'!I85 -> 1 | K10: ='Исходные данные'!J85 -> 1 | L10: ='Исходные данные'!K85 -> 1 | M10: ='Исходные данные'!L85 -> 1 | N10: ='Исходные данные'!M85 -> 1 | O10: ='Исходные данные'!N85 -> 1 | P10: =O10 -> 1 | Q10: =P10 -> 1 | R10: 1 | S10: 1 | T10: 1 | U10: 1 | V10: 1 | W10: 1 | X10: 1 | Y10: 1 | Z10: 1 | AA10: 1 | AB10: 1 | AC10: 1 | AD10: 1 | AE10: 1 | AF10: 1 | AG10: 1 | AH10: 1 | AI10: 1 | AJ10: 1 | AK10: 1 | AL10: 1 | AM10: 1 | AN10: 1 | AO10: 1 | AP10: 1 | AQ10: 1 | AR10: 1 | AS10: 1 | AT10: 1 | AU10: 1 | AV10: 1 | AW10: 1 | AX10: 1 | AY10: 1 | AZ10: 1 | BA10: 1 | BB10: 1 | BC10: 1 | BD10: 1 | BE10: 1 | BF10: 1 | BG10: 1 | BH10: 1 | BI10: 1 | BJ10: 1 | BK10: 1
A11: ОБЪЕМ ПРОДАЖ В КОЛИЧЕСТВЕ | C11: =SUM(C12:C31) -> 533893 | D11: 5354 | E11: 6358 | F11: 7154 | G11: 7154 | H11: 7648 | I11: 7918 | J11: 10416 | K11: 16974 | L11: 9581 | M11: 8188 | N11: 7738 | O11: 7918 | P11: 7648 | Q11: 7948 | R11: 7948 | S11: 7948 | T11: 7648 | U11: 7918 | V11: 10416 | W11: 16974 | X11: 9581 | Y11: 8188 | Z11: 7738 | AA11: 7918 | AB11: 7648 | AC11: 7948 | AD11: 7948 | AE11: 7948 | AF11: 7648 | AG11: 7918 | AH11: 10416 | AI11: =SUM(AI12:AI31) -> 16974 | AJ11: 9581 | AK11: 8188 | AL11: 7738 | AM11: 7918 | AN11: 7648 | AO11: 7948 | AP11: 7948 | AQ11: 7948 | AR11: 7648 | AS11: 7918 | AT11: 10416 | AU11: 16974 | AV11: 9581 | AW11: 8188 | AX11: 7738 | AY11: 7918 | AZ11: 7648 | BA11: 7948 | BB11: 7948 | BC11: 7948 | BD11: 7648 | BE11: 7918 | BF11: 10416 | BG11: 16974 | BH11: 9581 | BI11: 8188 | BJ11: 7738 | BK11: 7918
A12: 1 | B12: =IF(OR('Исходные данные'!B15=0,'Исходные данные'!B15=""),"",'Исходные данные'!B15) -> Шаурма | C12: =SUM(D12:BK12) -> 191365 | D12: =ROUND(HLOOKUP(D$5,'Исходные данные'!$H$55:$S$76,2+$A12,FALSE)*D$10,0) -> 1500 | E12: =ROUND(HLOOKUP(E$5,'Исходные данные'!$H$55:$S$76,2+$A12,FALSE)*E$10,0) -> 1714 | F12: =ROUND(HLOOKUP(F$5,'Исходные данные'!$H$55:$S$76,2+$A12,FALSE)*F$10,0) -> 1929 | G12: =ROUND(HLOOKUP(G$5,'Исходные данные'!$H$55:$S$76,2+$A12,FALSE)*G$10,0) -> 1929 | H12: =ROUND(HLOOKUP(H$5,'Исходные данные'!$H$55:$S$76,2+$A12,FALSE)*H$10,0) -> 2143 | I12: =ROUND(HLOOKUP(I$5,'Исходные данные'!$H$55:$S$76,2+$A12,FALSE)*I$10,0) -> 2143 | J12: =ROUND(HLOOKUP(J$5,'Исходные данные'!$H$55:$S$76,2+$A12,FALSE)*J$10,0) -> 4821 | K12: =ROUND(HLOOKUP(K$5,'Исходные данные'!$H$55:$S$76,2+$A12,FALSE)*K$10,0) -> 10929 | L12: =ROUND(HLOOKUP(L$5,'Исходные данные'!$H$55:$S$76,2+$A12,FALSE)*L$10,0) -> 3536 | M12: =ROUND(HLOOKUP(M$5,'Исходные данные'!$H$55:$S$76,2+$A12,FALSE)*M$10,0) -> 2143 | N12: =ROUND(HLOOKUP(N$5,'Исходные данные'!$H$55:$S$76,2+$A12,FALSE)*N$10,0) -> 2143 | O12: =ROUND(HLOOKUP(O$5,'Исходные данные'!$H$55:$S$76,2+$A12,FALSE)*O$10,0) -> 2143 | P12: =ROUND(HLOOKUP(P$5,'Исходные данные'!$H$55:$S$76,2+$A12,FALSE)*P$10,0) -> 2143 | Q12: =ROUND(HLOOKUP(Q$5,'Исходные данные'!$H$55:$S$76,2+$A12,FALSE)*Q$10,0) -> 2143 | R12: =ROUND(HLOOKUP(R$5,'Исходные данные'!$H$55:$S$76,2+$A12,FALSE)*R$10,0) -> 2143 | S12: =ROUND(HLOOKUP(S$5,'Исходные данные'!$H$55:$S$76,2+$A12,FALSE)*S$10,0) -> 2143 | T12: =ROUND(HLOOKUP(T$5,'Исходные данные'!$H$55:$S$76,2+$A12,FALSE)*T$10,0) -> 2143 | U12: =ROUND(HLOOKUP(U$5,'Исходные данные'!$H$55:$S$76,2+$A12,FALSE)*U$10,0) -> 2143 | V12: =ROUND(HLOOKUP(V$5,'Исходные данные'!$H$55:$S$76,2+$A12,FALSE)*V$10,0) -> 4821 | W12: =ROUND(HLOOKUP(W$5,'Исходные данные'!$H$55:$S$76,2+$A12,FALSE)*W$10,0) -> 10929 | X12: =ROUND(HLOOKUP(X$5,'Исходные данные'!$H$55:$S$76,2+$A12,FALSE)*X$10,0) -> 3536 | Y12: =ROUND(HLOOKUP(Y$5,'Исходные данные'!$H$55:$S$76,2+$A12,FALSE)*Y$10,0) -> 2143 | Z12: =ROUND(HLOOKUP(Z$5,'Исходные данные'!$H$55:$S$76,2+$A12,FALSE)*Z$10,0) -> 2143 | AA12: =ROUND(HLOOKUP(AA$5,'Исходные данные'!$H$55:$S$76,2+$A12,FALSE)*AA$10,0) -> 2143 | AB12: =ROUND(HLOOKUP(AB$5,'Исходные данные'!$H$55:$S$76,2+$A12,FALSE)*AB$10,0) -> 2143 | AC12: =ROUND(HLOOKUP(AC$5,'Исходные данные'!$H$55:$S$76,2+$A12,FALSE)*AC$10,0) -> 2143 | AD12: =ROUND(HLOOKUP(AD$5,'Исходные данные'!$H$55:$S$76,2+$A12,FALSE)*AD$10,0) -> 2143 | AE12: =ROUND(HLOOKUP(AE$5,'Исходные данные'!$H$55:$S$76,2+$A12,FALSE)*AE$10,0) -> 2143 | AF12: =ROUND(HLOOKUP(AF$5,'Исходные данные'!$H$55:$S$76,2+$A12,FALSE)*AF$10,0) -> 2143 | AG12: =ROUND(HLOOKUP(AG$5,'Исходные данные'!$H$55:$S$76,2+$A12,FALSE)*AG$10,0) -> 2143 | AH12: =ROUND(HLOOKUP(AH$5,'Исходные данные'!$H$55:$S$76,2+$A12,FALSE)*AH$10,0) -> 4821 | AI12: =ROUND(HLOOKUP(AI$5,'Исходные данные'!$H$55:$S$76,2+$A12,FALSE)*AI$10,0) -> 10929 | AJ12: =ROUND(HLOOKUP(AJ$5,'Исходные данные'!$H$55:$S$76,2+$A12,FALSE)*AJ$10,0) -> 3536 | AK12: =ROUND(HLOOKUP(AK$5,'Исходные данные'!$H$55:$S$76,2+$A12,FALSE)*AK$10,0) -> 2143 | AL12: =ROUND(HLOOKUP(AL$5,'Исходные данные'!$H$55:$S$76,2+$A12,FALSE)*AL$10,0) -> 2143 | AM12: =ROUND(HLOOKUP(AM$5,'Исходные данные'!$H$55:$S$76,2+$A12,FALSE)*AM$10,0) -> 2143 | AN12: =ROUND(HLOOKUP(AN$5,'Исходные данные'!$H$55:$S$76,2+$A12,FALSE)*AN$10,0) -> 2143 | AO12: =ROUND(HLOOKUP(AO$5,'Исходные данные'!$H$55:$S$76,2+$A12,FALSE)*AO$10,0) -> 2143 | AP12: =ROUND(HLOOKUP(AP$5,'Исходные данные'!$H$55:$S$76,2+$A12,FALSE)*AP$10,0) -> 2143 | AQ12: =ROUND(HLOOKUP(AQ$5,'Исходные данные'!$H$55:$S$76,2+$A12,FALSE)*AQ$10,0) -> 2143 | AR12: =ROUND(HLOOKUP(AR$5,'Исходные данные'!$H$55:$S$76,2+$A12,FALSE)*AR$10,0) -> 2143 | AS12: =ROUND(HLOOKUP(AS$5,'Исходные данные'!$H$55:$S$76,2+$A12,FALSE)*AS$10,0) -> 2143 | AT12: =ROUND(HLOOKUP(AT$5,'Исходные данные'!$H$55:$S$76,2+$A12,FALSE)*AT$10,0) -> 4821 | AU12: =ROUND(HLOOKUP(AU$5,'Исходные данные'!$H$55:$S$76,2+$A12,FALSE)*AU$10,0) -> 10929 | AV12: =ROUND(HLOOKUP(AV$5,'Исходные данные'!$H$55:$S$76,2+$A12,FALSE)*AV$10,0) -> 3536 | AW12: =ROUND(HLOOKUP(AW$5,'Исходные данные'!$H$55:$S$76,2+$A12,FALSE)*AW$10,0) -> 2143 | AX12: =ROUND(HLOOKUP(AX$5,'Исходные данные'!$H$55:$S$76,2+$A12,FALSE)*AX$10,0) -> 2143 | AY12: =ROUND(HLOOKUP(AY$5,'Исходные данные'!$H$55:$S$76,2+$A12,FALSE)*AY$10,0) -> 2143 | AZ12: =ROUND(HLOOKUP(AZ$5,'Исходные данные'!$H$55:$S$76,2+$A12,FALSE)*AZ$10,0) -> 2143 | BA12: =ROUND(HLOOKUP(BA$5,'Исходные данные'!$H$55:$S$76,2+$A12,FALSE)*BA$10,0) -> 2143 | BB12: =ROUND(HLOOKUP(BB$5,'Исходные данные'!$H$55:$S$76,2+$A12,FALSE)*BB$10,0) -> 2143 | BC12: =ROUND(HLOOKUP(BC$5,'Исходные данные'!$H$55:$S$76,2+$A12,FALSE)*BC$10,0) -> 2143 | BD12: =ROUND(HLOOKUP(BD$5,'Исходные данные'!$H$55:$S$76,2+$A12,FALSE)*BD$10,0) -> 2143 | BE12: =ROUND(HLOOKUP(BE$5,'Исходные данные'!$H$55:$S$76,2+$A12,FALSE)*BE$10,0) -> 2143 | BF12: =ROUND(HLOOKUP(BF$5,'Исходные данные'!$H$55:$S$76,2+$A12,FALSE)*BF$10,0) -> 4821 | BG12: =ROUND(HLOOKUP(BG$5,'Исходные данные'!$H$55:$S$76,2+$A12,FALSE)*BG$10,0) -> 10929 | BH12: =ROUND(HLOOKUP(BH$5,'Исходные данные'!$H$55:$S$76,2+$A12,FALSE)*BH$10,0) -> 3536 | BI12: =ROUND(HLOOKUP(BI$5,'Исходные данные'!$H$55:$S$76,2+$A12,FALSE)*BI$10,0) -> 2143 | BJ12: =ROUND(HLOOKUP(BJ$5,'Исходные данные'!$H$55:$S$76,2+$A12,FALSE)*BJ$10,0) -> 2143 | BK12: =ROUND(HLOOKUP(BK$5,'Исходные данные'!$H$55:$S$76,2+$A12,FALSE)*BK$10,0) -> 2143
A13: =A12+1 -> 2 | B13: =IF(OR('Исходные данные'!B16=0,'Исходные данные'!B16=""),"",'Исходные данные'!B16) -> Кофе | C13: =SUM(D13:BK13) -> 133614 | D13: =ROUND(HLOOKUP(D$5,'Исходные данные'!$H$55:$S$76,2+$A13,FALSE)*D$10,0) -> 1386 | E13: =ROUND(HLOOKUP(E$5,'Исходные данные'!$H$55:$S$76,2+$A13,FALSE)*E$10,0) -> 1584 | F13: =ROUND(HLOOKUP(F$5,'Исходные данные'!$H$55:$S$76,2+$A13,FALSE)*F$10,0) -> 1782 | G13: =ROUND(HLOOKUP(G$5,'Исходные данные'!$H$55:$S$76,2+$A13,FALSE)*G$10,0) -> 1782 | H13: =ROUND(HLOOKUP(H$5,'Исходные данные'!$H$55:$S$76,2+$A13,FALSE)*H$10,0) -> 1980 | I13: =ROUND(HLOOKUP(I$5,'Исходные данные'!$H$55:$S$76,2+$A13,FALSE)*I$10,0) -> 2250 | J13: =ROUND(HLOOKUP(J$5,'Исходные данные'!$H$55:$S$76,2+$A13,FALSE)*J$10,0) -> 2250 | K13: =ROUND(HLOOKUP(K$5,'Исходные данные'!$H$55:$S$76,2+$A13,FALSE)*K$10,0) -> 2700 | L13: =ROUND(HLOOKUP(L$5,'Исходные данные'!$H$55:$S$76,2+$A13,FALSE)*L$10,0) -> 2700 | M13: =ROUND(HLOOKUP(M$5,'Исходные данные'!$H$55:$S$76,2+$A13,FALSE)*M$10,0) -> 2700 | N13: =ROUND(HLOOKUP(N$5,'Исходные данные'!$H$55:$S$76,2+$A13,FALSE)*N$10,0) -> 2250 | O13: =ROUND(HLOOKUP(O$5,'Исходные данные'!$H$55:$S$76,2+$A13,FALSE)*O$10,0) -> 2250 | P13: =ROUND(HLOOKUP(P$5,'Исходные данные'!$H$55:$S$76,2+$A13,FALSE)*P$10,0) -> 1980 | Q13: =ROUND(HLOOKUP(Q$5,'Исходные данные'!$H$55:$S$76,2+$A13,FALSE)*Q$10,0) -> 1980 | R13: =ROUND(HLOOKUP(R$5,'Исходные данные'!$H$55:$S$76,2+$A13,FALSE)*R$10,0) -> 1980 | S13: =ROUND(HLOOKUP(S$5,'Исходные данные'!$H$55:$S$76,2+$A13,FALSE)*S$10,0) -> 1980 | T13: =ROUND(HLOOKUP(T$5,'Исходные данные'!$H$55:$S$76,2+$A13,FALSE)*T$10,0) -> 1980 | U13: =ROUND(HLOOKUP(U$5,'Исходные данные'!$H$55:$S$76,2+$A13,FALSE)*U$10,0) -> 2250 | V13: =ROUND(HLOOKUP(V$5,'Исходные данные'!$H$55:$S$76,2+$A13,FALSE)*V$10,0) -> 2250 | W13: =ROUND(HLOOKUP(W$5,'Исходные данные'!$H$55:$S$76,2+$A13,FALSE)*W$10,0) -> 2700 | X13: =ROUND(HLOOKUP(X$5,'Исходные данные'!$H$55:$S$76,2+$A13,FALSE)*X$10,0) -> 2700 | Y13: =ROUND(HLOOKUP(Y$5,'Исходные данные'!$H$55:$S$76,2+$A13,FALSE)*Y$10,0) -> 2700 | Z13: =ROUND(HLOOKUP(Z$5,'Исходные данные'!$H$55:$S$76,2+$A13,FALSE)*Z$10,0) -> 2250 | AA13: =ROUND(HLOOKUP(AA$5,'Исходные данные'!$H$55:$S$76,2+$A13,FALSE)*AA$10,0) -> 2250 | AB13: =ROUND(HLOOKUP(AB$5,'Исходные данные'!$H$55:$S$76,2+$A13,FALSE)*AB$10,0) -> 1980 | AC13: =ROUND(HLOOKUP(AC$5,'Исходные данные'!$H$55:$S$76,2+$A13,FALSE)*AC$10,0) -> 1980 | AD13: =ROUND(HLOOKUP(AD$5,'Исходные данные'!$H$55:$S$76,2+$A13,FALSE)*AD$10,0) -> 1980 | AE13: =ROUND(HLOOKUP(AE$5,'Исходные данные'!$H$55:$S$76,2+$A13,FALSE)*AE$10,0) -> 1980 | AF13: =ROUND(HLOOKUP(AF$5,'Исходные данные'!$H$55:$S$76,2+$A13,FALSE)*AF$10,0) -> 1980 | AG13: =ROUND(HLOOKUP(AG$5,'Исходные данные'!$H$55:$S$76,2+$A13,FALSE)*AG$10,0) -> 2250 | AH13: =ROUND(HLOOKUP(AH$5,'Исходные данные'!$H$55:$S$76,2+$A13,FALSE)*AH$10,0) -> 2250 | AI13: =ROUND(HLOOKUP(AI$5,'Исходные данные'!$H$55:$S$76,2+$A13,FALSE)*AI$10,0) -> 2700 | AJ13: =ROUND(HLOOKUP(AJ$5,'Исходные данные'!$H$55:$S$76,2+$A13,FALSE)*AJ$10,0) -> 2700 | AK13: =ROUND(HLOOKUP(AK$5,'Исходные данные'!$H$55:$S$76,2+$A13,FALSE)*AK$10,0) -> 2700 | AL13: =ROUND(HLOOKUP(AL$5,'Исходные данные'!$H$55:$S$76,2+$A13,FALSE)*AL$10,0) -> 2250 | AM13: =ROUND(HLOOKUP(AM$5,'Исходные данные'!$H$55:$S$76,2+$A13,FALSE)*AM$10,0) -> 2250 | AN13: =ROUND(HLOOKUP(AN$5,'Исходные данные'!$H$55:$S$76,2+$A13,FALSE)*AN$10,0) -> 1980 | AO13: =ROUND(HLOOKUP(AO$5,'Исходные данные'!$H$55:$S$76,2+$A13,FALSE)*AO$10,0) -> 1980 | AP13: =ROUND(HLOOKUP(AP$5,'Исходные данные'!$H$55:$S$76,2+$A13,FALSE)*AP$10,0) -> 1980 | AQ13: =ROUND(HLOOKUP(AQ$5,'Исходные данные'!$H$55:$S$76,2+$A13,FALSE)*AQ$10,0) -> 1980 | AR13: =ROUND(HLOOKUP(AR$5,'Исходные данные'!$H$55:$S$76,2+$A13,FALSE)*AR$10,0) -> 1980 | AS13: =ROUND(HLOOKUP(AS$5,'Исходные данные'!$H$55:$S$76,2+$A13,FALSE)*AS$10,0) -> 2250 | AT13: =ROUND(HLOOKUP(AT$5,'Исходные данные'!$H$55:$S$76,2+$A13,FALSE)*AT$10,0) -> 2250 | AU13: =ROUND(HLOOKUP(AU$5,'Исходные данные'!$H$55:$S$76,2+$A13,FALSE)*AU$10,0) -> 2700 | AV13: =ROUND(HLOOKUP(AV$5,'Исходные данные'!$H$55:$S$76,2+$A13,FALSE)*AV$10,0) -> 2700 | AW13: =ROUND(HLOOKUP(AW$5,'Исходные данные'!$H$55:$S$76,2+$A13,FALSE)*AW$10,0) -> 2700 | AX13: =ROUND(HLOOKUP(AX$5,'Исходные данные'!$H$55:$S$76,2+$A13,FALSE)*AX$10,0) -> 2250 | AY13: =ROUND(HLOOKUP(AY$5,'Исходные данные'!$H$55:$S$76,2+$A13,FALSE)*AY$10,0) -> 2250 | AZ13: =ROUND(HLOOKUP(AZ$5,'Исходные данные'!$H$55:$S$76,2+$A13,FALSE)*AZ$10,0) -> 1980 | BA13: =ROUND(HLOOKUP(BA$5,'Исходные данные'!$H$55:$S$76,2+$A13,FALSE)*BA$10,0) -> 1980 | BB13: =ROUND(HLOOKUP(BB$5,'Исходные данные'!$H$55:$S$76,2+$A13,FALSE)*BB$10,0) -> 1980 | BC13: =ROUND(HLOOKUP(BC$5,'Исходные данные'!$H$55:$S$76,2+$A13,FALSE)*BC$10,0) -> 1980 | BD13: =ROUND(HLOOKUP(BD$5,'Исходные данные'!$H$55:$S$76,2+$A13,FALSE)*BD$10,0) -> 1980 | BE13: =ROUND(HLOOKUP(BE$5,'Исходные данные'!$H$55:$S$76,2+$A13,FALSE)*BE$10,0) -> 2250 | BF13: =ROUND(HLOOKUP(BF$5,'Исходные данные'!$H$55:$S$76,2+$A13,FALSE)*BF$10,0) -> 2250 | BG13: =ROUND(HLOOKUP(BG$5,'Исходные данные'!$H$55:$S$76,2+$A13,FALSE)*BG$10,0) -> 2700 | BH13: =ROUND(HLOOKUP(BH$5,'Исходные данные'!$H$55:$S$76,2+$A13,FALSE)*BH$10,0) -> 2700 | BI13: =ROUND(HLOOKUP(BI$5,'Исходные данные'!$H$55:$S$76,2+$A13,FALSE)*BI$10,0) -> 2700 | BJ13: =ROUND(HLOOKUP(BJ$5,'Исходные данные'!$H$55:$S$76,2+$A13,FALSE)*BJ$10,0) -> 2250 | BK13: =ROUND(HLOOKUP(BK$5,'Исходные данные'!$H$55:$S$76,2+$A13,FALSE)*BK$10,0) -> 2250
A14: =A13+1 -> 3 | B14: =IF(OR('Исходные данные'!B17=0,'Исходные данные'!B17=""),"",'Исходные данные'!B17) -> Хот-дог | C14: 53370 | D14: =ROUND(HLOOKUP(D$5,'Исходные данные'!$H$55:$S$76,2+$A14,FALSE)*D$10,0) -> 630 | E14: =ROUND(HLOOKUP(E$5,'Исходные данные'!$H$55:$S$76,2+$A14,FALSE)*E$10,0) -> 720 | F14: =ROUND(HLOOKUP(F$5,'Исходные данные'!$H$55:$S$76,2+$A14,FALSE)*F$10,0) -> 810 | G14: =ROUND(HLOOKUP(G$5,'Исходные данные'!$H$55:$S$76,2+$A14,FALSE)*G$10,0) -> 810 | H14: =ROUND(HLOOKUP(H$5,'Исходные данные'!$H$55:$S$76,2+$A14,FALSE)*H$10,0) -> 900 | I14: =ROUND(HLOOKUP(I$5,'Исходные данные'!$H$55:$S$76,2+$A14,FALSE)*I$10,0) -> 900 | J14: =ROUND(HLOOKUP(J$5,'Исходные данные'!$H$55:$S$76,2+$A14,FALSE)*J$10,0) -> 900 | K14: =ROUND(HLOOKUP(K$5,'Исходные данные'!$H$55:$S$76,2+$A14,FALSE)*K$10,0) -> 900 | L14: =ROUND(HLOOKUP(L$5,'Исходные данные'!$H$55:$S$76,2+$A14,FALSE)*L$10,0) -> 900 | M14: =ROUND(HLOOKUP(M$5,'Исходные данные'!$H$55:$S$76,2+$A14,FALSE)*M$10,0) -> 900 | N14: =ROUND(HLOOKUP(N$5,'Исходные данные'!$H$55:$S$76,2+$A14,FALSE)*N$10,0) -> 900 | O14: =ROUND(HLOOKUP(O$5,'Исходные данные'!$H$55:$S$76,2+$A14,FALSE)*O$10,0) -> 900 | P14: =ROUND(HLOOKUP(P$5,'Исходные данные'!$H$55:$S$76,2+$A14,FALSE)*P$10,0) -> 900 | Q14: =ROUND(HLOOKUP(Q$5,'Исходные данные'!$H$55:$S$76,2+$A14,FALSE)*Q$10,0) -> 900 | R14: =ROUND(HLOOKUP(R$5,'Исходные данные'!$H$55:$S$76,2+$A14,FALSE)*R$10,0) -> 900 | S14: =ROUND(HLOOKUP(S$5,'Исходные данные'!$H$55:$S$76,2+$A14,FALSE)*S$10,0) -> 900 | T14: =ROUND(HLOOKUP(T$5,'Исходные данные'!$H$55:$S$76,2+$A14,FALSE)*T$10,0) -> 900 | U14: =ROUND(HLOOKUP(U$5,'Исходные данные'!$H$55:$S$76,2+$A14,FALSE)*U$10,0) -> 900 | V14: =ROUND(HLOOKUP(V$5,'Исходные данные'!$H$55:$S$76,2+$A14,FALSE)*V$10,0) -> 900 | W14: =ROUND(HLOOKUP(W$5,'Исходные данные'!$H$55:$S$76,2+$A14,FALSE)*W$10,0) -> 900 | X14: =ROUND(HLOOKUP(X$5,'Исходные данные'!$H$55:$S$76,2+$A14,FALSE)*X$10,0) -> 900 | Y14: =ROUND(HLOOKUP(Y$5,'Исходные данные'!$H$55:$S$76,2+$A14,FALSE)*Y$10,0) -> 900 | Z14: =ROUND(HLOOKUP(Z$5,'Исходные данные'!$H$55:$S$76,2+$A14,FALSE)*Z$10,0) -> 900 | AA14: =ROUND(HLOOKUP(AA$5,'Исходные данные'!$H$55:$S$76,2+$A14,FALSE)*AA$10,0) -> 900 | AB14: =ROUND(HLOOKUP(AB$5,'Исходные данные'!$H$55:$S$76,2+$A14,FALSE)*AB$10,0) -> 900 | AC14: =ROUND(HLOOKUP(AC$5,'Исходные данные'!$H$55:$S$76,2+$A14,FALSE)*AC$10,0) -> 900 | AD14: =ROUND(HLOOKUP(AD$5,'Исходные данные'!$H$55:$S$76,2+$A14,FALSE)*AD$10,0) -> 900 | AE14: =ROUND(HLOOKUP(AE$5,'Исходные данные'!$H$55:$S$76,2+$A14,FALSE)*AE$10,0) -> 900 | AF14: =ROUND(HLOOKUP(AF$5,'Исходные данные'!$H$55:$S$76,2+$A14,FALSE)*AF$10,0) -> 900 | AG14: =ROUND(HLOOKUP(AG$5,'Исходные данные'!$H$55:$S$76,2+$A14,FALSE)*AG$10,0) -> 900 | AH14: =ROUND(HLOOKUP(AH$5,'Исходные данные'!$H$55:$S$76,2+$A14,FALSE)*AH$10,0) -> 900 | AI14: =ROUND(HLOOKUP(AI$5,'Исходные данные'!$H$55:$S$76,2+$A14,FALSE)*AI$10,0) -> 900 | AJ14: =ROUND(HLOOKUP(AJ$5,'Исходные данные'!$H$55:$S$76,2+$A14,FALSE)*AJ$10,0) -> 900 | AK14: =ROUND(HLOOKUP(AK$5,'Исходные данные'!$H$55:$S$76,2+$A14,FALSE)*AK$10,0) -> 900 | AL14: =ROUND(HLOOKUP(AL$5,'Исходные данные'!$H$55:$S$76,2+$A14,FALSE)*AL$10,0) -> 900 | AM14: =ROUND(HLOOKUP(AM$5,'Исходные данные'!$H$55:$S$76,2+$A14,FALSE)*AM$10,0) -> 900 | AN14: =ROUND(HLOOKUP(AN$5,'Исходные данные'!$H$55:$S$76,2+$A14,FALSE)*AN$10,0) -> 900 | AO14: =ROUND(HLOOKUP(AO$5,'Исходные данные'!$H$55:$S$76,2+$A14,FALSE)*AO$10,0) -> 900 | AP14: =ROUND(HLOOKUP(AP$5,'Исходные данные'!$H$55:$S$76,2+$A14,FALSE)*AP$10,0) -> 900 | AQ14: =ROUND(HLOOKUP(AQ$5,'Исходные данные'!$H$55:$S$76,2+$A14,FALSE)*AQ$10,0) -> 900 | AR14: =ROUND(HLOOKUP(AR$5,'Исходные данные'!$H$55:$S$76,2+$A14,FALSE)*AR$10,0) -> 900 | AS14: =ROUND(HLOOKUP(AS$5,'Исходные данные'!$H$55:$S$76,2+$A14,FALSE)*AS$10,0) -> 900 | AT14: =ROUND(HLOOKUP(AT$5,'Исходные данные'!$H$55:$S$76,2+$A14,FALSE)*AT$10,0) -> 900 | AU14: =ROUND(HLOOKUP(AU$5,'Исходные данные'!$H$55:$S$76,2+$A14,FALSE)*AU$10,0) -> 900 | AV14: =ROUND(HLOOKUP(AV$5,'Исходные данные'!$H$55:$S$76,2+$A14,FALSE)*AV$10,0) -> 900 | AW14: =ROUND(HLOOKUP(AW$5,'Исходные данные'!$H$55:$S$76,2+$A14,FALSE)*AW$10,0) -> 900 | AX14: =ROUND(HLOOKUP(AX$5,'Исходные данные'!$H$55:$S$76,2+$A14,FALSE)*AX$10,0) -> 900 | AY14: =ROUND(HLOOKUP(AY$5,'Исходные данные'!$H$55:$S$76,2+$A14,FALSE)*AY$10,0) -> 900 | AZ14: =ROUND(HLOOKUP(AZ$5,'Исходные данные'!$H$55:$S$76,2+$A14,FALSE)*AZ$10,0) -> 900 | BA14: =ROUND(HLOOKUP(BA$5,'Исходные данные'!$H$55:$S$76,2+$A14,FALSE)*BA$10,0) -> 900 | BB14: =ROUND(HLOOKUP(BB$5,'Исходные данные'!$H$55:$S$76,2+$A14,FALSE)*BB$10,0) -> 900 | BC14: =ROUND(HLOOKUP(BC$5,'Исходные данные'!$H$55:$S$76,2+$A14,FALSE)*BC$10,0) -> 900 | BD14: =ROUND(HLOOKUP(BD$5,'Исходные данные'!$H$55:$S$76,2+$A14,FALSE)*BD$10,0) -> 900 | BE14: =ROUND(HLOOKUP(BE$5,'Исходные данные'!$H$55:$S$76,2+$A14,FALSE)*BE$10,0) -> 900 | BF14: =ROUND(HLOOKUP(BF$5,'Исходные данные'!$H$55:$S$76,2+$A14,FALSE)*BF$10,0) -> 900 | BG14: =ROUND(HLOOKUP(BG$5,'Исходные данные'!$H$55:$S$76,2+$A14,FALSE)*BG$10,0) -> 900 | BH14: =ROUND(HLOOKUP(BH$5,'Исходные данные'!$H$55:$S$76,2+$A14,FALSE)*BH$10,0) -> 900 | BI14: =ROUND(HLOOKUP(BI$5,'Исходные данные'!$H$55:$S$76,2+$A14,FALSE)*BI$10,0) -> 900 | BJ14: =ROUND(HLOOKUP(BJ$5,'Исходные данные'!$H$55:$S$76,2+$A14,FALSE)*BJ$10,0) -> 900 | BK14: =ROUND(HLOOKUP(BK$5,'Исходные данные'!$H$55:$S$76,2+$A14,FALSE)*BK$10,0) -> 900
A15: 4 | B15: =IF(OR('Исходные данные'!B18=0,'Исходные данные'!B18=""),"",'Исходные данные'!B18) -> Газированный напиток | C15: 88830 | D15: =ROUND(HLOOKUP(D$5,'Исходные данные'!$H$55:$S$76,2+$A15,FALSE)*D$10,0) -> 1050 | E15: =ROUND(HLOOKUP(E$5,'Исходные данные'!$H$55:$S$76,2+$A15,FALSE)*E$10,0) -> 1440 | F15: =ROUND(HLOOKUP(F$5,'Исходные данные'!$H$55:$S$76,2+$A15,FALSE)*F$10,0) -> 1620 | G15: =ROUND(HLOOKUP(G$5,'Исходные данные'!$H$55:$S$76,2+$A15,FALSE)*G$10,0) -> 1620 | H15: =ROUND(HLOOKUP(H$5,'Исходные данные'!$H$55:$S$76,2+$A15,FALSE)*H$10,0) -> 1500 | I15: =ROUND(HLOOKUP(I$5,'Исходные данные'!$H$55:$S$76,2+$A15,FALSE)*I$10,0) -> 1500 | J15: =ROUND(HLOOKUP(J$5,'Исходные данные'!$H$55:$S$76,2+$A15,FALSE)*J$10,0) -> 1320 | K15: =ROUND(HLOOKUP(K$5,'Исходные данные'!$H$55:$S$76,2+$A15,FALSE)*K$10,0) -> 1320 | L15: =ROUND(HLOOKUP(L$5,'Исходные данные'!$H$55:$S$76,2+$A15,FALSE)*L$10,0) -> 1320 | M15: =ROUND(HLOOKUP(M$5,'Исходные данные'!$H$55:$S$76,2+$A15,FALSE)*M$10,0) -> 1320 | N15: =ROUND(HLOOKUP(N$5,'Исходные данные'!$H$55:$S$76,2+$A15,FALSE)*N$10,0) -> 1320 | O15: =ROUND(HLOOKUP(O$5,'Исходные данные'!$H$55:$S$76,2+$A15,FALSE)*O$10,0) -> 1500 | P15: =ROUND(HLOOKUP(P$5,'Исходные данные'!$H$55:$S$76,2+$A15,FALSE)*P$10,0) -> 1500 | Q15: =ROUND(HLOOKUP(Q$5,'Исходные данные'!$H$55:$S$76,2+$A15,FALSE)*Q$10,0) -> 1800 | R15: =ROUND(HLOOKUP(R$5,'Исходные данные'!$H$55:$S$76,2+$A15,FALSE)*R$10,0) -> 1800 | S15: =ROUND(HLOOKUP(S$5,'Исходные данные'!$H$55:$S$76,2+$A15,FALSE)*S$10,0) -> 1800 | T15: =ROUND(HLOOKUP(T$5,'Исходные данные'!$H$55:$S$76,2+$A15,FALSE)*T$10,0) -> 1500 | U15: =ROUND(HLOOKUP(U$5,'Исходные данные'!$H$55:$S$76,2+$A15,FALSE)*U$10,0) -> 1500 | V15: =ROUND(HLOOKUP(V$5,'Исходные данные'!$H$55:$S$76,2+$A15,FALSE)*V$10,0) -> 1320 | W15: =ROUND(HLOOKUP(W$5,'Исходные данные'!$H$55:$S$76,2+$A15,FALSE)*W$10,0) -> 1320 | X15: =ROUND(HLOOKUP(X$5,'Исходные данные'!$H$55:$S$76,2+$A15,FALSE)*X$10,0) -> 1320 | Y15: =ROUND(HLOOKUP(Y$5,'Исходные данные'!$H$55:$S$76,2+$A15,FALSE)*Y$10,0) -> 1320 | Z15: =ROUND(HLOOKUP(Z$5,'Исходные данные'!$H$55:$S$76,2+$A15,FALSE)*Z$10,0) -> 1320 | AA15: =ROUND(HLOOKUP(AA$5,'Исходные данные'!$H$55:$S$76,2+$A15,FALSE)*AA$10,0) -> 1500 | AB15: =ROUND(HLOOKUP(AB$5,'Исходные данные'!$H$55:$S$76,2+$A15,FALSE)*AB$10,0) -> 1500 | AC15: =ROUND(HLOOKUP(AC$5,'Исходные данные'!$H$55:$S$76,2+$A15,FALSE)*AC$10,0) -> 1800 | AD15: =ROUND(HLOOKUP(AD$5,'Исходные данные'!$H$55:$S$76,2+$A15,FALSE)*AD$10,0) -> 1800 | AE15: =ROUND(HLOOKUP(AE$5,'Исходные данные'!$H$55:$S$76,2+$A15,FALSE)*AE$10,0) -> 1800 | AF15: =ROUND(HLOOKUP(AF$5,'Исходные данные'!$H$55:$S$76,2+$A15,FALSE)*AF$10,0) -> 1500 | AG15: =ROUND(HLOOKUP(AG$5,'Исходные данные'!$H$55:$S$76,2+$A15,FALSE)*AG$10,0) -> 1500 | AH15: =ROUND(HLOOKUP(AH$5,'Исходные данные'!$H$55:$S$76,2+$A15,FALSE)*AH$10,0) -> 1320 | AI15: =ROUND(HLOOKUP(AI$5,'Исходные данные'!$H$55:$S$76,2+$A15,FALSE)*AI$10,0) -> 1320 | AJ15: =ROUND(HLOOKUP(AJ$5,'Исходные данные'!$H$55:$S$76,2+$A15,FALSE)*AJ$10,0) -> 1320 | AK15: =ROUND(HLOOKUP(AK$5,'Исходные данные'!$H$55:$S$76,2+$A15,FALSE)*AK$10,0) -> 1320 | AL15: =ROUND(HLOOKUP(AL$5,'Исходные данные'!$H$55:$S$76,2+$A15,FALSE)*AL$10,0) -> 1320 | AM15: =ROUND(HLOOKUP(AM$5,'Исходные данные'!$H$55:$S$76,2+$A15,FALSE)*AM$10,0) -> 1500 | AN15: =ROUND(HLOOKUP(AN$5,'Исходные данные'!$H$55:$S$76,2+$A15,FALSE)*AN$10,0) -> 1500 | AO15: =ROUND(HLOOKUP(AO$5,'Исходные данные'!$H$55:$S$76,2+$A15,FALSE)*AO$10,0) -> 1800 | AP15: =ROUND(HLOOKUP(AP$5,'Исходные данные'!$H$55:$S$76,2+$A15,FALSE)*AP$10,0) -> 1800 | AQ15: =ROUND(HLOOKUP(AQ$5,'Исходные данные'!$H$55:$S$76,2+$A15,FALSE)*AQ$10,0) -> 1800 | AR15: =ROUND(HLOOKUP(AR$5,'Исходные данные'!$H$55:$S$76,2+$A15,FALSE)*AR$10,0) -> 1500 | AS15: =ROUND(HLOOKUP(AS$5,'Исходные данные'!$H$55:$S$76,2+$A15,FALSE)*AS$10,0) -> 1500 | AT15: =ROUND(HLOOKUP(AT$5,'Исходные данные'!$H$55:$S$76,2+$A15,FALSE)*AT$10,0) -> 1320 | AU15: =ROUND(HLOOKUP(AU$5,'Исходные данные'!$H$55:$S$76,2+$A15,FALSE)*AU$10,0) -> 1320 | AV15: =ROUND(HLOOKUP(AV$5,'Исходные данные'!$H$55:$S$76,2+$A15,FALSE)*AV$10,0) -> 1320 | AW15: =ROUND(HLOOKUP(AW$5,'Исходные данные'!$H$55:$S$76,2+$A15,FALSE)*AW$10,0) -> 1320 | AX15: =ROUND(HLOOKUP(AX$5,'Исходные данные'!$H$55:$S$76,2+$A15,FALSE)*AX$10,0) -> 1320 | AY15: =ROUND(HLOOKUP(AY$5,'Исходные данные'!$H$55:$S$76,2+$A15,FALSE)*AY$10,0) -> 1500 | AZ15: =ROUND(HLOOKUP(AZ$5,'Исходные данные'!$H$55:$S$76,2+$A15,FALSE)*AZ$10,0) -> 1500 | BA15: =ROUND(HLOOKUP(BA$5,'Исходные данные'!$H$55:$S$76,2+$A15,FALSE)*BA$10,0) -> 1800 | BB15: =ROUND(HLOOKUP(BB$5,'Исходные данные'!$H$55:$S$76,2+$A15,FALSE)*BB$10,0) -> 1800 | BC15: =ROUND(HLOOKUP(BC$5,'Исходные данные'!$H$55:$S$76,2+$A15,FALSE)*BC$10,0) -> 1800 | BD15: =ROUND(HLOOKUP(BD$5,'Исходные данные'!$H$55:$S$76,2+$A15,FALSE)*BD$10,0) -> 1500 | BE15: =ROUND(HLOOKUP(BE$5,'Исходные данные'!$H$55:$S$76,2+$A15,FALSE)*BE$10,0) -> 1500 | BF15: =ROUND(HLOOKUP(BF$5,'Исходные данные'!$H$55:$S$76,2+$A15,FALSE)*BF$10,0) -> 1320 | BG15: =ROUND(HLOOKUP(BG$5,'Исходные данные'!$H$55:$S$76,2+$A15,FALSE)*BG$10,0) -> 1320 | BH15: =ROUND(HLOOKUP(BH$5,'Исходные данные'!$H$55:$S$76,2+$A15,FALSE)*BH$10,0) -> 1320 | BI15: =ROUND(HLOOKUP(BI$5,'Исходные данные'!$H$55:$S$76,2+$A15,FALSE)*BI$10,0) -> 1320 | BJ15: =ROUND(HLOOKUP(BJ$5,'Исходные данные'!$H$55:$S$76,2+$A15,FALSE)*BJ$10,0) -> 1320 | BK15: =ROUND(HLOOKUP(BK$5,'Исходные данные'!$H$55:$S$76,2+$A15,FALSE)*BK$10,0) -> 1500
A16: 5 | B16: =IF(OR('Исходные данные'!B19=0,'Исходные данные'!B19=""),"",'Исходные данные'!B19) -> Чай | C16: 66714 | D16: =ROUND(HLOOKUP(D$5,'Исходные данные'!$H$55:$S$76,2+$A16,FALSE)*D$10,0) -> 788 | E16: =ROUND(HLOOKUP(E$5,'Исходные данные'!$H$55:$S$76,2+$A16,FALSE)*E$10,0) -> 900 | F16: =ROUND(HLOOKUP(F$5,'Исходные данные'!$H$55:$S$76,2+$A16,FALSE)*F$10,0) -> 1013 | G16: =ROUND(HLOOKUP(G$5,'Исходные данные'!$H$55:$S$76,2+$A16,FALSE)*G$10,0) -> 1013 | H16: =ROUND(HLOOKUP(H$5,'Исходные данные'!$H$55:$S$76,2+$A16,FALSE)*H$10,0) -> 1125 | I16: =ROUND(HLOOKUP(I$5,'Исходные данные'!$H$55:$S$76,2+$A16,FALSE)*I$10,0) -> 1125 | J16: =ROUND(HLOOKUP(J$5,'Исходные данные'!$H$55:$S$76,2+$A16,FALSE)*J$10,0) -> 1125 | K16: =ROUND(HLOOKUP(K$5,'Исходные данные'!$H$55:$S$76,2+$A16,FALSE)*K$10,0) -> 1125 | L16: =ROUND(HLOOKUP(L$5,'Исходные данные'!$H$55:$S$76,2+$A16,FALSE)*L$10,0) -> 1125 | M16: =ROUND(HLOOKUP(M$5,'Исходные данные'!$H$55:$S$76,2+$A16,FALSE)*M$10,0) -> 1125 | N16: =ROUND(HLOOKUP(N$5,'Исходные данные'!$H$55:$S$76,2+$A16,FALSE)*N$10,0) -> 1125 | O16: =ROUND(HLOOKUP(O$5,'Исходные данные'!$H$55:$S$76,2+$A16,FALSE)*O$10,0) -> 1125 | P16: =ROUND(HLOOKUP(P$5,'Исходные данные'!$H$55:$S$76,2+$A16,FALSE)*P$10,0) -> 1125 | Q16: =ROUND(HLOOKUP(Q$5,'Исходные данные'!$H$55:$S$76,2+$A16,FALSE)*Q$10,0) -> 1125 | R16: =ROUND(HLOOKUP(R$5,'Исходные данные'!$H$55:$S$76,2+$A16,FALSE)*R$10,0) -> 1125 | S16: =ROUND(HLOOKUP(S$5,'Исходные данные'!$H$55:$S$76,2+$A16,FALSE)*S$10,0) -> 1125 | T16: =ROUND(HLOOKUP(T$5,'Исходные данные'!$H$55:$S$76,2+$A16,FALSE)*T$10,0) -> 1125 | U16: =ROUND(HLOOKUP(U$5,'Исходные данные'!$H$55:$S$76,2+$A16,FALSE)*U$10,0) -> 1125 | V16: =ROUND(HLOOKUP(V$5,'Исходные данные'!$H$55:$S$76,2+$A16,FALSE)*V$10,0) -> 1125 | W16: =ROUND(HLOOKUP(W$5,'Исходные данные'!$H$55:$S$76,2+$A16,FALSE)*W$10,0) -> 1125 | X16: =ROUND(HLOOKUP(X$5,'Исходные данные'!$H$55:$S$76,2+$A16,FALSE)*X$10,0) -> 1125 | Y16: =ROUND(HLOOKUP(Y$5,'Исходные данные'!$H$55:$S$76,2+$A16,FALSE)*Y$10,0) -> 1125 | Z16: =ROUND(HLOOKUP(Z$5,'Исходные данные'!$H$55:$S$76,2+$A16,FALSE)*Z$10,0) -> 1125 | AA16: =ROUND(HLOOKUP(AA$5,'Исходные данные'!$H$55:$S$76,2+$A16,FALSE)*AA$10,0) -> 1125 | AB16: =ROUND(HLOOKUP(AB$5,'Исходные данные'!$H$55:$S$76,2+$A16,FALSE)*AB$10,0) -> 1125 | AC16: =ROUND(HLOOKUP(AC$5,'Исходные данные'!$H$55:$S$76,2+$A16,FALSE)*AC$10,0) -> 1125 | AD16: =ROUND(HLOOKUP(AD$5,'Исходные данные'!$H$55:$S$76,2+$A16,FALSE)*AD$10,0) -> 1125 | AE16: =ROUND(HLOOKUP(AE$5,'Исходные данные'!$H$55:$S$76,2+$A16,FALSE)*AE$10,0) -> 1125 | AF16: =ROUND(HLOOKUP(AF$5,'Исходные данные'!$H$55:$S$76,2+$A16,FALSE)*AF$10,0) -> 1125 | AG16: =ROUND(HLOOKUP(AG$5,'Исходные данные'!$H$55:$S$76,2+$A16,FALSE)*AG$10,0) -> 1125 | AH16: =ROUND(HLOOKUP(AH$5,'Исходные данные'!$H$55:$S$76,2+$A16,FALSE)*AH$10,0) -> 1125 | AI16: =ROUND(HLOOKUP(AI$5,'Исходные данные'!$H$55:$S$76,2+$A16,FALSE)*AI$10,0) -> 1125 | AJ16: =ROUND(HLOOKUP(AJ$5,'Исходные данные'!$H$55:$S$76,2+$A16,FALSE)*AJ$10,0) -> 1125 | AK16: =ROUND(HLOOKUP(AK$5,'Исходные данные'!$H$55:$S$76,2+$A16,FALSE)*AK$10,0) -> 1125 | AL16: =ROUND(HLOOKUP(AL$5,'Исходные данные'!$H$55:$S$76,2+$A16,FALSE)*AL$10,0) -> 1125 | AM16: =ROUND(HLOOKUP(AM$5,'Исходные данные'!$H$55:$S$76,2+$A16,FALSE)*AM$10,0) -> 1125 | AN16: =ROUND(HLOOKUP(AN$5,'Исходные данные'!$H$55:$S$76,2+$A16,FALSE)*AN$10,0) -> 1125 | AO16: =ROUND(HLOOKUP(AO$5,'Исходные данные'!$H$55:$S$76,2+$A16,FALSE)*AO$10,0) -> 1125 | AP16: =ROUND(HLOOKUP(AP$5,'Исходные данные'!$H$55:$S$76,2+$A16,FALSE)*AP$10,0) -> 1125 | AQ16: =ROUND(HLOOKUP(AQ$5,'Исходные данные'!$H$55:$S$76,2+$A16,FALSE)*AQ$10,0) -> 1125 | AR16: =ROUND(HLOOKUP(AR$5,'Исходные данные'!$H$55:$S$76,2+$A16,FALSE)*AR$10,0) -> 1125 | AS16: =ROUND(HLOOKUP(AS$5,'Исходные данные'!$H$55:$S$76,2+$A16,FALSE)*AS$10,0) -> 1125 | AT16: =ROUND(HLOOKUP(AT$5,'Исходные данные'!$H$55:$S$76,2+$A16,FALSE)*AT$10,0) -> 1125 | AU16: =ROUND(HLOOKUP(AU$5,'Исходные данные'!$H$55:$S$76,2+$A16,FALSE)*AU$10,0) -> 1125 | AV16: =ROUND(HLOOKUP(AV$5,'Исходные данные'!$H$55:$S$76,2+$A16,FALSE)*AV$10,0) -> 1125 | AW16: =ROUND(HLOOKUP(AW$5,'Исходные данные'!$H$55:$S$76,2+$A16,FALSE)*AW$10,0) -> 1125 | AX16: =ROUND(HLOOKUP(AX$5,'Исходные данные'!$H$55:$S$76,2+$A16,FALSE)*AX$10,0) -> 1125 | AY16: =ROUND(HLOOKUP(AY$5,'Исходные данные'!$H$55:$S$76,2+$A16,FALSE)*AY$10,0) -> 1125 | AZ16: =ROUND(HLOOKUP(AZ$5,'Исходные данные'!$H$55:$S$76,2+$A16,FALSE)*AZ$10,0) -> 1125 | BA16: =ROUND(HLOOKUP(BA$5,'Исходные данные'!$H$55:$S$76,2+$A16,FALSE)*BA$10,0) -> 1125 | BB16: =ROUND(HLOOKUP(BB$5,'Исходные данные'!$H$55:$S$76,2+$A16,FALSE)*BB$10,0) -> 1125 | BC16: =ROUND(HLOOKUP(BC$5,'Исходные данные'!$H$55:$S$76,2+$A16,FALSE)*BC$10,0) -> 1125 | BD16: =ROUND(HLOOKUP(BD$5,'Исходные данные'!$H$55:$S$76,2+$A16,FALSE)*BD$10,0) -> 1125 | BE16: =ROUND(HLOOKUP(BE$5,'Исходные данные'!$H$55:$S$76,2+$A16,FALSE)*BE$10,0) -> 1125 | BF16: =ROUND(HLOOKUP(BF$5,'Исходные данные'!$H$55:$S$76,2+$A16,FALSE)*BF$10,0) -> 1125 | BG16: =ROUND(HLOOKUP(BG$5,'Исходные данные'!$H$55:$S$76,2+$A16,FALSE)*BG$10,0) -> 1125 | BH16: =ROUND(HLOOKUP(BH$5,'Исходные данные'!$H$55:$S$76,2+$A16,FALSE)*BH$10,0) -> 1125 | BI16: =ROUND(HLOOKUP(BI$5,'Исходные данные'!$H$55:$S$76,2+$A16,FALSE)*BI$10,0) -> 1125 | BJ16: =ROUND(HLOOKUP(BJ$5,'Исходные данные'!$H$55:$S$76,2+$A16,FALSE)*BJ$10,0) -> 1125 | BK16: =ROUND(HLOOKUP(BK$5,'Исходные данные'!$H$55:$S$76,2+$A16,FALSE)*BK$10,0) -> 1125
A17: 6 | B17: =IF(OR('Исходные данные'!B20=0,'Исходные данные'!B20=""),"",'Исходные данные'!B20) ->  | C17: 0 | D17: =ROUND(HLOOKUP(D$5,'Исходные данные'!$H$55:$S$76,2+$A17,FALSE)*D$10,0) -> 0 | E17: =ROUND(HLOOKUP(E$5,'Исходные данные'!$H$55:$S$76,2+$A17,FALSE)*E$10,0) -> 0 | F17: =ROUND(HLOOKUP(F$5,'Исходные данные'!$H$55:$S$76,2+$A17,FALSE)*F$10,0) -> 0 | G17: =ROUND(HLOOKUP(G$5,'Исходные данные'!$H$55:$S$76,2+$A17,FALSE)*G$10,0) -> 0 | H17: =ROUND(HLOOKUP(H$5,'Исходные данные'!$H$55:$S$76,2+$A17,FALSE)*H$10,0) -> 0 | I17: =ROUND(HLOOKUP(I$5,'Исходные данные'!$H$55:$S$76,2+$A17,FALSE)*I$10,0) -> 0 | J17: =ROUND(HLOOKUP(J$5,'Исходные данные'!$H$55:$S$76,2+$A17,FALSE)*J$10,0) -> 0 | K17: =ROUND(HLOOKUP(K$5,'Исходные данные'!$H$55:$S$76,2+$A17,FALSE)*K$10,0) -> 0 | L17: =ROUND(HLOOKUP(L$5,'Исходные данные'!$H$55:$S$76,2+$A17,FALSE)*L$10,0) -> 0 | M17: =ROUND(HLOOKUP(M$5,'Исходные данные'!$H$55:$S$76,2+$A17,FALSE)*M$10,0) -> 0 | N17: =ROUND(HLOOKUP(N$5,'Исходные данные'!$H$55:$S$76,2+$A17,FALSE)*N$10,0) -> 0 | O17: =ROUND(HLOOKUP(O$5,'Исходные данные'!$H$55:$S$76,2+$A17,FALSE)*O$10,0) -> 0 | P17: =ROUND(HLOOKUP(P$5,'Исходные данные'!$H$55:$S$76,2+$A17,FALSE)*P$10,0) -> 0 | Q17: =ROUND(HLOOKUP(Q$5,'Исходные данные'!$H$55:$S$76,2+$A17,FALSE)*Q$10,0) -> 0 | R17: =ROUND(HLOOKUP(R$5,'Исходные данные'!$H$55:$S$76,2+$A17,FALSE)*R$10,0) -> 0 | S17: =ROUND(HLOOKUP(S$5,'Исходные данные'!$H$55:$S$76,2+$A17,FALSE)*S$10,0) -> 0 | T17: =ROUND(HLOOKUP(T$5,'Исходные данные'!$H$55:$S$76,2+$A17,FALSE)*T$10,0) -> 0 | U17: =ROUND(HLOOKUP(U$5,'Исходные данные'!$H$55:$S$76,2+$A17,FALSE)*U$10,0) -> 0 | V17: =ROUND(HLOOKUP(V$5,'Исходные данные'!$H$55:$S$76,2+$A17,FALSE)*V$10,0) -> 0 | W17: =ROUND(HLOOKUP(W$5,'Исходные данные'!$H$55:$S$76,2+$A17,FALSE)*W$10,0) -> 0 | X17: =ROUND(HLOOKUP(X$5,'Исходные данные'!$H$55:$S$76,2+$A17,FALSE)*X$10,0) -> 0 | Y17: =ROUND(HLOOKUP(Y$5,'Исходные данные'!$H$55:$S$76,2+$A17,FALSE)*Y$10,0) -> 0 | Z17: =ROUND(HLOOKUP(Z$5,'Исходные данные'!$H$55:$S$76,2+$A17,FALSE)*Z$10,0) -> 0 | AA17: =ROUND(HLOOKUP(AA$5,'Исходные данные'!$H$55:$S$76,2+$A17,FALSE)*AA$10,0) -> 0 | AB17: =ROUND(HLOOKUP(AB$5,'Исходные данные'!$H$55:$S$76,2+$A17,FALSE)*AB$10,0) -> 0 | AC17: =ROUND(HLOOKUP(AC$5,'Исходные данные'!$H$55:$S$76,2+$A17,FALSE)*AC$10,0) -> 0 | AD17: =ROUND(HLOOKUP(AD$5,'Исходные данные'!$H$55:$S$76,2+$A17,FALSE)*AD$10,0) -> 0 | AE17: =ROUND(HLOOKUP(AE$5,'Исходные данные'!$H$55:$S$76,2+$A17,FALSE)*AE$10,0) -> 0 | AF17: =ROUND(HLOOKUP(AF$5,'Исходные данные'!$H$55:$S$76,2+$A17,FALSE)*AF$10,0) -> 0 | AG17: =ROUND(HLOOKUP(AG$5,'Исходные данные'!$H$55:$S$76,2+$A17,FALSE)*AG$10,0) -> 0 | AH17: =ROUND(HLOOKUP(AH$5,'Исходные данные'!$H$55:$S$76,2+$A17,FALSE)*AH$10,0) -> 0 | AI17: =ROUND(HLOOKUP(AI$5,'Исходные данные'!$H$55:$S$76,2+$A17,FALSE)*AI$10,0) -> 0 | AJ17: =ROUND(HLOOKUP(AJ$5,'Исходные данные'!$H$55:$S$76,2+$A17,FALSE)*AJ$10,0) -> 0 | AK17: =ROUND(HLOOKUP(AK$5,'Исходные данные'!$H$55:$S$76,2+$A17,FALSE)*AK$10,0) -> 0 | AL17: =ROUND(HLOOKUP(AL$5,'Исходные данные'!$H$55:$S$76,2+$A17,FALSE)*AL$10,0) -> 0 | AM17: =ROUND(HLOOKUP(AM$5,'Исходные данные'!$H$55:$S$76,2+$A17,FALSE)*AM$10,0) -> 0 | AN17: =ROUND(HLOOKUP(AN$5,'Исходные данные'!$H$55:$S$76,2+$A17,FALSE)*AN$10,0) -> 0 | AO17: =ROUND(HLOOKUP(AO$5,'Исходные данные'!$H$55:$S$76,2+$A17,FALSE)*AO$10,0) -> 0 | AP17: =ROUND(HLOOKUP(AP$5,'Исходные данные'!$H$55:$S$76,2+$A17,FALSE)*AP$10,0) -> 0 | AQ17: =ROUND(HLOOKUP(AQ$5,'Исходные данные'!$H$55:$S$76,2+$A17,FALSE)*AQ$10,0) -> 0 | AR17: =ROUND(HLOOKUP(AR$5,'Исходные данные'!$H$55:$S$76,2+$A17,FALSE)*AR$10,0) -> 0 | AS17: =ROUND(HLOOKUP(AS$5,'Исходные данные'!$H$55:$S$76,2+$A17,FALSE)*AS$10,0) -> 0 | AT17: =ROUND(HLOOKUP(AT$5,'Исходные данные'!$H$55:$S$76,2+$A17,FALSE)*AT$10,0) -> 0 | AU17: =ROUND(HLOOKUP(AU$5,'Исходные данные'!$H$55:$S$76,2+$A17,FALSE)*AU$10,0) -> 0 | AV17: =ROUND(HLOOKUP(AV$5,'Исходные данные'!$H$55:$S$76,2+$A17,FALSE)*AV$10,0) -> 0 | AW17: =ROUND(HLOOKUP(AW$5,'Исходные данные'!$H$55:$S$76,2+$A17,FALSE)*AW$10,0) -> 0 | AX17: =ROUND(HLOOKUP(AX$5,'Исходные данные'!$H$55:$S$76,2+$A17,FALSE)*AX$10,0) -> 0 | AY17: =ROUND(HLOOKUP(AY$5,'Исходные данные'!$H$55:$S$76,2+$A17,FALSE)*AY$10,0) -> 0 | AZ17: =ROUND(HLOOKUP(AZ$5,'Исходные данные'!$H$55:$S$76,2+$A17,FALSE)*AZ$10,0) -> 0 | BA17: =ROUND(HLOOKUP(BA$5,'Исходные данные'!$H$55:$S$76,2+$A17,FALSE)*BA$10,0) -> 0 | BB17: =ROUND(HLOOKUP(BB$5,'Исходные данные'!$H$55:$S$76,2+$A17,FALSE)*BB$10,0) -> 0 | BC17: =ROUND(HLOOKUP(BC$5,'Исходные данные'!$H$55:$S$76,2+$A17,FALSE)*BC$10,0) -> 0 | BD17: =ROUND(HLOOKUP(BD$5,'Исходные данные'!$H$55:$S$76,2+$A17,FALSE)*BD$10,0) -> 0 | BE17: =ROUND(HLOOKUP(BE$5,'Исходные данные'!$H$55:$S$76,2+$A17,FALSE)*BE$10,0) -> 0 | BF17: =ROUND(HLOOKUP(BF$5,'Исходные данные'!$H$55:$S$76,2+$A17,FALSE)*BF$10,0) -> 0 | BG17: =ROUND(HLOOKUP(BG$5,'Исходные данные'!$H$55:$S$76,2+$A17,FALSE)*BG$10,0) -> 0 | BH17: =ROUND(HLOOKUP(BH$5,'Исходные данные'!$H$55:$S$76,2+$A17,FALSE)*BH$10,0) -> 0 | BI17: =ROUND(HLOOKUP(BI$5,'Исходные данные'!$H$55:$S$76,2+$A17,FALSE)*BI$10,0) -> 0 | BJ17: =ROUND(HLOOKUP(BJ$5,'Исходные данные'!$H$55:$S$76,2+$A17,FALSE)*BJ$10,0) -> 0 | BK17: =ROUND(HLOOKUP(BK$5,'Исходные данные'!$H$55:$S$76,2+$A17,FALSE)*BK$10,0) -> 0
A18: 7 | B18: =IF(OR('Исходные данные'!B21=0,'Исходные данные'!B21=""),"",'Исходные данные'!B21) ->  | C18: 0 | D18: =ROUND(HLOOKUP(D$5,'Исходные данные'!$H$55:$S$76,2+$A18,FALSE)*D$10,0) -> 0 | E18: =ROUND(HLOOKUP(E$5,'Исходные данные'!$H$55:$S$76,2+$A18,FALSE)*E$10,0) -> 0 | F18: =ROUND(HLOOKUP(F$5,'Исходные данные'!$H$55:$S$76,2+$A18,FALSE)*F$10,0) -> 0 | G18: =ROUND(HLOOKUP(G$5,'Исходные данные'!$H$55:$S$76,2+$A18,FALSE)*G$10,0) -> 0 | H18: =ROUND(HLOOKUP(H$5,'Исходные данные'!$H$55:$S$76,2+$A18,FALSE)*H$10,0) -> 0 | I18: =ROUND(HLOOKUP(I$5,'Исходные данные'!$H$55:$S$76,2+$A18,FALSE)*I$10,0) -> 0 | J18: =ROUND(HLOOKUP(J$5,'Исходные данные'!$H$55:$S$76,2+$A18,FALSE)*J$10,0) -> 0 | K18: =ROUND(HLOOKUP(K$5,'Исходные данные'!$H$55:$S$76,2+$A18,FALSE)*K$10,0) -> 0 | L18: =ROUND(HLOOKUP(L$5,'Исходные данные'!$H$55:$S$76,2+$A18,FALSE)*L$10,0) -> 0 | M18: =ROUND(HLOOKUP(M$5,'Исходные данные'!$H$55:$S$76,2+$A18,FALSE)*M$10,0) -> 0 | N18: =ROUND(HLOOKUP(N$5,'Исходные данные'!$H$55:$S$76,2+$A18,FALSE)*N$10,0) -> 0 | O18: =ROUND(HLOOKUP(O$5,'Исходные данные'!$H$55:$S$76,2+$A18,FALSE)*O$10,0) -> 0 | P18: =ROUND(HLOOKUP(P$5,'Исходные данные'!$H$55:$S$76,2+$A18,FALSE)*P$10,0) -> 0 | Q18: =ROUND(HLOOKUP(Q$5,'Исходные данные'!$H$55:$S$76,2+$A18,FALSE)*Q$10,0) -> 0 | R18: =ROUND(HLOOKUP(R$5,'Исходные данные'!$H$55:$S$76,2+$A18,FALSE)*R$10,0) -> 0 | S18: =ROUND(HLOOKUP(S$5,'Исходные данные'!$H$55:$S$76,2+$A18,FALSE)*S$10,0) -> 0 | T18: =ROUND(HLOOKUP(T$5,'Исходные данные'!$H$55:$S$76,2+$A18,FALSE)*T$10,0) -> 0 | U18: =ROUND(HLOOKUP(U$5,'Исходные данные'!$H$55:$S$76,2+$A18,FALSE)*U$10,0) -> 0 | V18: =ROUND(HLOOKUP(V$5,'Исходные данные'!$H$55:$S$76,2+$A18,FALSE)*V$10,0) -> 0 | W18: =ROUND(HLOOKUP(W$5,'Исходные данные'!$H$55:$S$76,2+$A18,FALSE)*W$10,0) -> 0 | X18: =ROUND(HLOOKUP(X$5,'Исходные данные'!$H$55:$S$76,2+$A18,FALSE)*X$10,0) -> 0 | Y18: =ROUND(HLOOKUP(Y$5,'Исходные данные'!$H$55:$S$76,2+$A18,FALSE)*Y$10,0) -> 0 | Z18: =ROUND(HLOOKUP(Z$5,'Исходные данные'!$H$55:$S$76,2+$A18,FALSE)*Z$10,0) -> 0 | AA18: =ROUND(HLOOKUP(AA$5,'Исходные данные'!$H$55:$S$76,2+$A18,FALSE)*AA$10,0) -> 0 | AB18: =ROUND(HLOOKUP(AB$5,'Исходные данные'!$H$55:$S$76,2+$A18,FALSE)*AB$10,0) -> 0 | AC18: =ROUND(HLOOKUP(AC$5,'Исходные данные'!$H$55:$S$76,2+$A18,FALSE)*AC$10,0) -> 0 | AD18: =ROUND(HLOOKUP(AD$5,'Исходные данные'!$H$55:$S$76,2+$A18,FALSE)*AD$10,0) -> 0 | AE18: =ROUND(HLOOKUP(AE$5,'Исходные данные'!$H$55:$S$76,2+$A18,FALSE)*AE$10,0) -> 0 | AF18: =ROUND(HLOOKUP(AF$5,'Исходные данные'!$H$55:$S$76,2+$A18,FALSE)*AF$10,0) -> 0 | AG18: =ROUND(HLOOKUP(AG$5,'Исходные данные'!$H$55:$S$76,2+$A18,FALSE)*AG$10,0) -> 0 | AH18: =ROUND(HLOOKUP(AH$5,'Исходные данные'!$H$55:$S$76,2+$A18,FALSE)*AH$10,0) -> 0 | AI18: =ROUND(HLOOKUP(AI$5,'Исходные данные'!$H$55:$S$76,2+$A18,FALSE)*AI$10,0) -> 0 | AJ18: =ROUND(HLOOKUP(AJ$5,'Исходные данные'!$H$55:$S$76,2+$A18,FALSE)*AJ$10,0) -> 0 | AK18: =ROUND(HLOOKUP(AK$5,'Исходные данные'!$H$55:$S$76,2+$A18,FALSE)*AK$10,0) -> 0 | AL18: =ROUND(HLOOKUP(AL$5,'Исходные данные'!$H$55:$S$76,2+$A18,FALSE)*AL$10,0) -> 0 | AM18: =ROUND(HLOOKUP(AM$5,'Исходные данные'!$H$55:$S$76,2+$A18,FALSE)*AM$10,0) -> 0 | AN18: =ROUND(HLOOKUP(AN$5,'Исходные данные'!$H$55:$S$76,2+$A18,FALSE)*AN$10,0) -> 0 | AO18: =ROUND(HLOOKUP(AO$5,'Исходные данные'!$H$55:$S$76,2+$A18,FALSE)*AO$10,0) -> 0 | AP18: =ROUND(HLOOKUP(AP$5,'Исходные данные'!$H$55:$S$76,2+$A18,FALSE)*AP$10,0) -> 0 | AQ18: =ROUND(HLOOKUP(AQ$5,'Исходные данные'!$H$55:$S$76,2+$A18,FALSE)*AQ$10,0) -> 0 | AR18: =ROUND(HLOOKUP(AR$5,'Исходные данные'!$H$55:$S$76,2+$A18,FALSE)*AR$10,0) -> 0 | AS18: =ROUND(HLOOKUP(AS$5,'Исходные данные'!$H$55:$S$76,2+$A18,FALSE)*AS$10,0) -> 0 | AT18: =ROUND(HLOOKUP(AT$5,'Исходные данные'!$H$55:$S$76,2+$A18,FALSE)*AT$10,0) -> 0 | AU18: =ROUND(HLOOKUP(AU$5,'Исходные данные'!$H$55:$S$76,2+$A18,FALSE)*AU$10,0) -> 0 | AV18: =ROUND(HLOOKUP(AV$5,'Исходные данные'!$H$55:$S$76,2+$A18,FALSE)*AV$10,0) -> 0 | AW18: =ROUND(HLOOKUP(AW$5,'Исходные данные'!$H$55:$S$76,2+$A18,FALSE)*AW$10,0) -> 0 | AX18: =ROUND(HLOOKUP(AX$5,'Исходные данные'!$H$55:$S$76,2+$A18,FALSE)*AX$10,0) -> 0 | AY18: =ROUND(HLOOKUP(AY$5,'Исходные данные'!$H$55:$S$76,2+$A18,FALSE)*AY$10,0) -> 0 | AZ18: =ROUND(HLOOKUP(AZ$5,'Исходные данные'!$H$55:$S$76,2+$A18,FALSE)*AZ$10,0) -> 0 | BA18: =ROUND(HLOOKUP(BA$5,'Исходные данные'!$H$55:$S$76,2+$A18,FALSE)*BA$10,0) -> 0 | BB18: =ROUND(HLOOKUP(BB$5,'Исходные данные'!$H$55:$S$76,2+$A18,FALSE)*BB$10,0) -> 0 | BC18: =ROUND(HLOOKUP(BC$5,'Исходные данные'!$H$55:$S$76,2+$A18,FALSE)*BC$10,0) -> 0 | BD18: =ROUND(HLOOKUP(BD$5,'Исходные данные'!$H$55:$S$76,2+$A18,FALSE)*BD$10,0) -> 0 | BE18: =ROUND(HLOOKUP(BE$5,'Исходные данные'!$H$55:$S$76,2+$A18,FALSE)*BE$10,0) -> 0 | BF18: =ROUND(HLOOKUP(BF$5,'Исходные данные'!$H$55:$S$76,2+$A18,FALSE)*BF$10,0) -> 0 | BG18: =ROUND(HLOOKUP(BG$5,'Исходные данные'!$H$55:$S$76,2+$A18,FALSE)*BG$10,0) -> 0 | BH18: =ROUND(HLOOKUP(BH$5,'Исходные данные'!$H$55:$S$76,2+$A18,FALSE)*BH$10,0) -> 0 | BI18: =ROUND(HLOOKUP(BI$5,'Исходные данные'!$H$55:$S$76,2+$A18,FALSE)*BI$10,0) -> 0 | BJ18: =ROUND(HLOOKUP(BJ$5,'Исходные данные'!$H$55:$S$76,2+$A18,FALSE)*BJ$10,0) -> 0 | BK18: =ROUND(HLOOKUP(BK$5,'Исходные данные'!$H$55:$S$76,2+$A18,FALSE)*BK$10,0) -> 0
A19: 8 | B19: =IF(OR('Исходные данные'!B22=0,'Исходные данные'!B22=""),"",'Исходные данные'!B22) ->  | C19: 0 | D19: =ROUND(HLOOKUP(D$5,'Исходные данные'!$H$55:$S$76,2+$A19,FALSE)*D$10,0) -> 0 | E19: =ROUND(HLOOKUP(E$5,'Исходные данные'!$H$55:$S$76,2+$A19,FALSE)*E$10,0) -> 0 | F19: =ROUND(HLOOKUP(F$5,'Исходные данные'!$H$55:$S$76,2+$A19,FALSE)*F$10,0) -> 0 | G19: =ROUND(HLOOKUP(G$5,'Исходные данные'!$H$55:$S$76,2+$A19,FALSE)*G$10,0) -> 0 | H19: =ROUND(HLOOKUP(H$5,'Исходные данные'!$H$55:$S$76,2+$A19,FALSE)*H$10,0) -> 0 | I19: =ROUND(HLOOKUP(I$5,'Исходные данные'!$H$55:$S$76,2+$A19,FALSE)*I$10,0) -> 0 | J19: =ROUND(HLOOKUP(J$5,'Исходные данные'!$H$55:$S$76,2+$A19,FALSE)*J$10,0) -> 0 | K19: =ROUND(HLOOKUP(K$5,'Исходные данные'!$H$55:$S$76,2+$A19,FALSE)*K$10,0) -> 0 | L19: =ROUND(HLOOKUP(L$5,'Исходные данные'!$H$55:$S$76,2+$A19,FALSE)*L$10,0) -> 0 | M19: =ROUND(HLOOKUP(M$5,'Исходные данные'!$H$55:$S$76,2+$A19,FALSE)*M$10,0) -> 0 | N19: =ROUND(HLOOKUP(N$5,'Исходные данные'!$H$55:$S$76,2+$A19,FALSE)*N$10,0) -> 0 | O19: =ROUND(HLOOKUP(O$5,'Исходные данные'!$H$55:$S$76,2+$A19,FALSE)*O$10,0) -> 0 | P19: =ROUND(HLOOKUP(P$5,'Исходные данные'!$H$55:$S$76,2+$A19,FALSE)*P$10,0) -> 0 | Q19: =ROUND(HLOOKUP(Q$5,'Исходные данные'!$H$55:$S$76,2+$A19,FALSE)*Q$10,0) -> 0 | R19: =ROUND(HLOOKUP(R$5,'Исходные данные'!$H$55:$S$76,2+$A19,FALSE)*R$10,0) -> 0 | S19: =ROUND(HLOOKUP(S$5,'Исходные данные'!$H$55:$S$76,2+$A19,FALSE)*S$10,0) -> 0 | T19: =ROUND(HLOOKUP(T$5,'Исходные данные'!$H$55:$S$76,2+$A19,FALSE)*T$10,0) -> 0 | U19: =ROUND(HLOOKUP(U$5,'Исходные данные'!$H$55:$S$76,2+$A19,FALSE)*U$10,0) -> 0 | V19: =ROUND(HLOOKUP(V$5,'Исходные данные'!$H$55:$S$76,2+$A19,FALSE)*V$10,0) -> 0 | W19: =ROUND(HLOOKUP(W$5,'Исходные данные'!$H$55:$S$76,2+$A19,FALSE)*W$10,0) -> 0 | X19: =ROUND(HLOOKUP(X$5,'Исходные данные'!$H$55:$S$76,2+$A19,FALSE)*X$10,0) -> 0 | Y19: =ROUND(HLOOKUP(Y$5,'Исходные данные'!$H$55:$S$76,2+$A19,FALSE)*Y$10,0) -> 0 | Z19: =ROUND(HLOOKUP(Z$5,'Исходные данные'!$H$55:$S$76,2+$A19,FALSE)*Z$10,0) -> 0 | AA19: =ROUND(HLOOKUP(AA$5,'Исходные данные'!$H$55:$S$76,2+$A19,FALSE)*AA$10,0) -> 0 | AB19: =ROUND(HLOOKUP(AB$5,'Исходные данные'!$H$55:$S$76,2+$A19,FALSE)*AB$10,0) -> 0 | AC19: =ROUND(HLOOKUP(AC$5,'Исходные данные'!$H$55:$S$76,2+$A19,FALSE)*AC$10,0) -> 0 | AD19: =ROUND(HLOOKUP(AD$5,'Исходные данные'!$H$55:$S$76,2+$A19,FALSE)*AD$10,0) -> 0 | AE19: =ROUND(HLOOKUP(AE$5,'Исходные данные'!$H$55:$S$76,2+$A19,FALSE)*AE$10,0) -> 0 | AF19: =ROUND(HLOOKUP(AF$5,'Исходные данные'!$H$55:$S$76,2+$A19,FALSE)*AF$10,0) -> 0 | AG19: =ROUND(HLOOKUP(AG$5,'Исходные данные'!$H$55:$S$76,2+$A19,FALSE)*AG$10,0) -> 0 | AH19: =ROUND(HLOOKUP(AH$5,'Исходные данные'!$H$55:$S$76,2+$A19,FALSE)*AH$10,0) -> 0 | AI19: =ROUND(HLOOKUP(AI$5,'Исходные данные'!$H$55:$S$76,2+$A19,FALSE)*AI$10,0) -> 0 | AJ19: =ROUND(HLOOKUP(AJ$5,'Исходные данные'!$H$55:$S$76,2+$A19,FALSE)*AJ$10,0) -> 0 | AK19: =ROUND(HLOOKUP(AK$5,'Исходные данные'!$H$55:$S$76,2+$A19,FALSE)*AK$10,0) -> 0 | AL19: =ROUND(HLOOKUP(AL$5,'Исходные данные'!$H$55:$S$76,2+$A19,FALSE)*AL$10,0) -> 0 | AM19: =ROUND(HLOOKUP(AM$5,'Исходные данные'!$H$55:$S$76,2+$A19,FALSE)*AM$10,0) -> 0 | AN19: =ROUND(HLOOKUP(AN$5,'Исходные данные'!$H$55:$S$76,2+$A19,FALSE)*AN$10,0) -> 0 | AO19: =ROUND(HLOOKUP(AO$5,'Исходные данные'!$H$55:$S$76,2+$A19,FALSE)*AO$10,0) -> 0 | AP19: =ROUND(HLOOKUP(AP$5,'Исходные данные'!$H$55:$S$76,2+$A19,FALSE)*AP$10,0) -> 0 | AQ19: =ROUND(HLOOKUP(AQ$5,'Исходные данные'!$H$55:$S$76,2+$A19,FALSE)*AQ$10,0) -> 0 | AR19: =ROUND(HLOOKUP(AR$5,'Исходные данные'!$H$55:$S$76,2+$A19,FALSE)*AR$10,0) -> 0 | AS19: =ROUND(HLOOKUP(AS$5,'Исходные данные'!$H$55:$S$76,2+$A19,FALSE)*AS$10,0) -> 0 | AT19: =ROUND(HLOOKUP(AT$5,'Исходные данные'!$H$55:$S$76,2+$A19,FALSE)*AT$10,0) -> 0 | AU19: =ROUND(HLOOKUP(AU$5,'Исходные данные'!$H$55:$S$76,2+$A19,FALSE)*AU$10,0) -> 0 | AV19: =ROUND(HLOOKUP(AV$5,'Исходные данные'!$H$55:$S$76,2+$A19,FALSE)*AV$10,0) -> 0 | AW19: =ROUND(HLOOKUP(AW$5,'Исходные данные'!$H$55:$S$76,2+$A19,FALSE)*AW$10,0) -> 0 | AX19: =ROUND(HLOOKUP(AX$5,'Исходные данные'!$H$55:$S$76,2+$A19,FALSE)*AX$10,0) -> 0 | AY19: =ROUND(HLOOKUP(AY$5,'Исходные данные'!$H$55:$S$76,2+$A19,FALSE)*AY$10,0) -> 0 | AZ19: =ROUND(HLOOKUP(AZ$5,'Исходные данные'!$H$55:$S$76,2+$A19,FALSE)*AZ$10,0) -> 0 | BA19: =ROUND(HLOOKUP(BA$5,'Исходные данные'!$H$55:$S$76,2+$A19,FALSE)*BA$10,0) -> 0 | BB19: =ROUND(HLOOKUP(BB$5,'Исходные данные'!$H$55:$S$76,2+$A19,FALSE)*BB$10,0) -> 0 | BC19: =ROUND(HLOOKUP(BC$5,'Исходные данные'!$H$55:$S$76,2+$A19,FALSE)*BC$10,0) -> 0 | BD19: =ROUND(HLOOKUP(BD$5,'Исходные данные'!$H$55:$S$76,2+$A19,FALSE)*BD$10,0) -> 0 | BE19: =ROUND(HLOOKUP(BE$5,'Исходные данные'!$H$55:$S$76,2+$A19,FALSE)*BE$10,0) -> 0 | BF19: =ROUND(HLOOKUP(BF$5,'Исходные данные'!$H$55:$S$76,2+$A19,FALSE)*BF$10,0) -> 0 | BG19: =ROUND(HLOOKUP(BG$5,'Исходные данные'!$H$55:$S$76,2+$A19,FALSE)*BG$10,0) -> 0 | BH19: =ROUND(HLOOKUP(BH$5,'Исходные данные'!$H$55:$S$76,2+$A19,FALSE)*BH$10,0) -> 0 | BI19: =ROUND(HLOOKUP(BI$5,'Исходные данные'!$H$55:$S$76,2+$A19,FALSE)*BI$10,0) -> 0 | BJ19: =ROUND(HLOOKUP(BJ$5,'Исходные данные'!$H$55:$S$76,2+$A19,FALSE)*BJ$10,0) -> 0 | BK19: =ROUND(HLOOKUP(BK$5,'Исходные данные'!$H$55:$S$76,2+$A19,FALSE)*BK$10,0) -> 0
A20: 9 | B20: =IF(OR('Исходные данные'!B23=0,'Исходные данные'!B23=""),"",'Исходные данные'!B23) ->  | C20: 0 | D20: =ROUND(HLOOKUP(D$5,'Исходные данные'!$H$55:$S$76,2+$A20,FALSE)*D$10,0) -> 0 | E20: =ROUND(HLOOKUP(E$5,'Исходные данные'!$H$55:$S$76,2+$A20,FALSE)*E$10,0) -> 0 | F20: =ROUND(HLOOKUP(F$5,'Исходные данные'!$H$55:$S$76,2+$A20,FALSE)*F$10,0) -> 0 | G20: =ROUND(HLOOKUP(G$5,'Исходные данные'!$H$55:$S$76,2+$A20,FALSE)*G$10,0) -> 0 | H20: =ROUND(HLOOKUP(H$5,'Исходные данные'!$H$55:$S$76,2+$A20,FALSE)*H$10,0) -> 0 | I20: =ROUND(HLOOKUP(I$5,'Исходные данные'!$H$55:$S$76,2+$A20,FALSE)*I$10,0) -> 0 | J20: =ROUND(HLOOKUP(J$5,'Исходные данные'!$H$55:$S$76,2+$A20,FALSE)*J$10,0) -> 0 | K20: =ROUND(HLOOKUP(K$5,'Исходные данные'!$H$55:$S$76,2+$A20,FALSE)*K$10,0) -> 0 | L20: =ROUND(HLOOKUP(L$5,'Исходные данные'!$H$55:$S$76,2+$A20,FALSE)*L$10,0) -> 0 | M20: =ROUND(HLOOKUP(M$5,'Исходные данные'!$H$55:$S$76,2+$A20,FALSE)*M$10,0) -> 0 | N20: =ROUND(HLOOKUP(N$5,'Исходные данные'!$H$55:$S$76,2+$A20,FALSE)*N$10,0) -> 0 | O20: =ROUND(HLOOKUP(O$5,'Исходные данные'!$H$55:$S$76,2+$A20,FALSE)*O$10,0) -> 0 | P20: =ROUND(HLOOKUP(P$5,'Исходные данные'!$H$55:$S$76,2+$A20,FALSE)*P$10,0) -> 0 | Q20: =ROUND(HLOOKUP(Q$5,'Исходные данные'!$H$55:$S$76,2+$A20,FALSE)*Q$10,0) -> 0 | R20: =ROUND(HLOOKUP(R$5,'Исходные данные'!$H$55:$S$76,2+$A20,FALSE)*R$10,0) -> 0 | S20: =ROUND(HLOOKUP(S$5,'Исходные данные'!$H$55:$S$76,2+$A20,FALSE)*S$10,0) -> 0 | T20: =ROUND(HLOOKUP(T$5,'Исходные данные'!$H$55:$S$76,2+$A20,FALSE)*T$10,0) -> 0 | U20: =ROUND(HLOOKUP(U$5,'Исходные данные'!$H$55:$S$76,2+$A20,FALSE)*U$10,0) -> 0 | V20: =ROUND(HLOOKUP(V$5,'Исходные данные'!$H$55:$S$76,2+$A20,FALSE)*V$10,0) -> 0 | W20: =ROUND(HLOOKUP(W$5,'Исходные данные'!$H$55:$S$76,2+$A20,FALSE)*W$10,0) -> 0 | X20: =ROUND(HLOOKUP(X$5,'Исходные данные'!$H$55:$S$76,2+$A20,FALSE)*X$10,0) -> 0 | Y20: =ROUND(HLOOKUP(Y$5,'Исходные данные'!$H$55:$S$76,2+$A20,FALSE)*Y$10,0) -> 0 | Z20: =ROUND(HLOOKUP(Z$5,'Исходные данные'!$H$55:$S$76,2+$A20,FALSE)*Z$10,0) -> 0 | AA20: =ROUND(HLOOKUP(AA$5,'Исходные данные'!$H$55:$S$76,2+$A20,FALSE)*AA$10,0) -> 0 | AB20: =ROUND(HLOOKUP(AB$5,'Исходные данные'!$H$55:$S$76,2+$A20,FALSE)*AB$10,0) -> 0 | AC20: =ROUND(HLOOKUP(AC$5,'Исходные данные'!$H$55:$S$76,2+$A20,FALSE)*AC$10,0) -> 0 | AD20: =ROUND(HLOOKUP(AD$5,'Исходные данные'!$H$55:$S$76,2+$A20,FALSE)*AD$10,0) -> 0 | AE20: =ROUND(HLOOKUP(AE$5,'Исходные данные'!$H$55:$S$76,2+$A20,FALSE)*AE$10,0) -> 0 | AF20: =ROUND(HLOOKUP(AF$5,'Исходные данные'!$H$55:$S$76,2+$A20,FALSE)*AF$10,0) -> 0 | AG20: =ROUND(HLOOKUP(AG$5,'Исходные данные'!$H$55:$S$76,2+$A20,FALSE)*AG$10,0) -> 0 | AH20: =ROUND(HLOOKUP(AH$5,'Исходные данные'!$H$55:$S$76,2+$A20,FALSE)*AH$10,0) -> 0 | AI20: =ROUND(HLOOKUP(AI$5,'Исходные данные'!$H$55:$S$76,2+$A20,FALSE)*AI$10,0) -> 0 | AJ20: =ROUND(HLOOKUP(AJ$5,'Исходные данные'!$H$55:$S$76,2+$A20,FALSE)*AJ$10,0) -> 0 | AK20: =ROUND(HLOOKUP(AK$5,'Исходные данные'!$H$55:$S$76,2+$A20,FALSE)*AK$10,0) -> 0 | AL20: =ROUND(HLOOKUP(AL$5,'Исходные данные'!$H$55:$S$76,2+$A20,FALSE)*AL$10,0) -> 0 | AM20: =ROUND(HLOOKUP(AM$5,'Исходные данные'!$H$55:$S$76,2+$A20,FALSE)*AM$10,0) -> 0 | AN20: =ROUND(HLOOKUP(AN$5,'Исходные данные'!$H$55:$S$76,2+$A20,FALSE)*AN$10,0) -> 0 | AO20: =ROUND(HLOOKUP(AO$5,'Исходные данные'!$H$55:$S$76,2+$A20,FALSE)*AO$10,0) -> 0 | AP20: =ROUND(HLOOKUP(AP$5,'Исходные данные'!$H$55:$S$76,2+$A20,FALSE)*AP$10,0) -> 0 | AQ20: =ROUND(HLOOKUP(AQ$5,'Исходные данные'!$H$55:$S$76,2+$A20,FALSE)*AQ$10,0) -> 0 | AR20: =ROUND(HLOOKUP(AR$5,'Исходные данные'!$H$55:$S$76,2+$A20,FALSE)*AR$10,0) -> 0 | AS20: =ROUND(HLOOKUP(AS$5,'Исходные данные'!$H$55:$S$76,2+$A20,FALSE)*AS$10,0) -> 0 | AT20: =ROUND(HLOOKUP(AT$5,'Исходные данные'!$H$55:$S$76,2+$A20,FALSE)*AT$10,0) -> 0 | AU20: =ROUND(HLOOKUP(AU$5,'Исходные данные'!$H$55:$S$76,2+$A20,FALSE)*AU$10,0) -> 0 | AV20: =ROUND(HLOOKUP(AV$5,'Исходные данные'!$H$55:$S$76,2+$A20,FALSE)*AV$10,0) -> 0 | AW20: =ROUND(HLOOKUP(AW$5,'Исходные данные'!$H$55:$S$76,2+$A20,FALSE)*AW$10,0) -> 0 | AX20: =ROUND(HLOOKUP(AX$5,'Исходные данные'!$H$55:$S$76,2+$A20,FALSE)*AX$10,0) -> 0 | AY20: =ROUND(HLOOKUP(AY$5,'Исходные данные'!$H$55:$S$76,2+$A20,FALSE)*AY$10,0) -> 0 | AZ20: =ROUND(HLOOKUP(AZ$5,'Исходные данные'!$H$55:$S$76,2+$A20,FALSE)*AZ$10,0) -> 0 | BA20: =ROUND(HLOOKUP(BA$5,'Исходные данные'!$H$55:$S$76,2+$A20,FALSE)*BA$10,0) -> 0 | BB20: =ROUND(HLOOKUP(BB$5,'Исходные данные'!$H$55:$S$76,2+$A20,FALSE)*BB$10,0) -> 0 | BC20: =ROUND(HLOOKUP(BC$5,'Исходные данные'!$H$55:$S$76,2+$A20,FALSE)*BC$10,0) -> 0 | BD20: =ROUND(HLOOKUP(BD$5,'Исходные данные'!$H$55:$S$76,2+$A20,FALSE)*BD$10,0) -> 0 | BE20: =ROUND(HLOOKUP(BE$5,'Исходные данные'!$H$55:$S$76,2+$A20,FALSE)*BE$10,0) -> 0 | BF20: =ROUND(HLOOKUP(BF$5,'Исходные данные'!$H$55:$S$76,2+$A20,FALSE)*BF$10,0) -> 0 | BG20: =ROUND(HLOOKUP(BG$5,'Исходные данные'!$H$55:$S$76,2+$A20,FALSE)*BG$10,0) -> 0 | BH20: =ROUND(HLOOKUP(BH$5,'Исходные данные'!$H$55:$S$76,2+$A20,FALSE)*BH$10,0) -> 0 | BI20: =ROUND(HLOOKUP(BI$5,'Исходные данные'!$H$55:$S$76,2+$A20,FALSE)*BI$10,0) -> 0 | BJ20: =ROUND(HLOOKUP(BJ$5,'Исходные данные'!$H$55:$S$76,2+$A20,FALSE)*BJ$10,0) -> 0 | BK20: =ROUND(HLOOKUP(BK$5,'Исходные данные'!$H$55:$S$76,2+$A20,FALSE)*BK$10,0) -> 0
A21: 10 | B21: =IF(OR('Исходные данные'!B24=0,'Исходные данные'!B24=""),"",'Исходные данные'!B24) ->  | C21: 0 | D21: =ROUND(HLOOKUP(D$5,'Исходные данные'!$H$55:$S$76,2+$A21,FALSE)*D$10,0) -> 0 | E21: =ROUND(HLOOKUP(E$5,'Исходные данные'!$H$55:$S$76,2+$A21,FALSE)*E$10,0) -> 0 | F21: =ROUND(HLOOKUP(F$5,'Исходные данные'!$H$55:$S$76,2+$A21,FALSE)*F$10,0) -> 0 | G21: =ROUND(HLOOKUP(G$5,'Исходные данные'!$H$55:$S$76,2+$A21,FALSE)*G$10,0) -> 0 | H21: =ROUND(HLOOKUP(H$5,'Исходные данные'!$H$55:$S$76,2+$A21,FALSE)*H$10,0) -> 0 | I21: =ROUND(HLOOKUP(I$5,'Исходные данные'!$H$55:$S$76,2+$A21,FALSE)*I$10,0) -> 0 | J21: =ROUND(HLOOKUP(J$5,'Исходные данные'!$H$55:$S$76,2+$A21,FALSE)*J$10,0) -> 0 | K21: =ROUND(HLOOKUP(K$5,'Исходные данные'!$H$55:$S$76,2+$A21,FALSE)*K$10,0) -> 0 | L21: =ROUND(HLOOKUP(L$5,'Исходные данные'!$H$55:$S$76,2+$A21,FALSE)*L$10,0) -> 0 | M21: =ROUND(HLOOKUP(M$5,'Исходные данные'!$H$55:$S$76,2+$A21,FALSE)*M$10,0) -> 0 | N21: =ROUND(HLOOKUP(N$5,'Исходные данные'!$H$55:$S$76,2+$A21,FALSE)*N$10,0) -> 0 | O21: =ROUND(HLOOKUP(O$5,'Исходные данные'!$H$55:$S$76,2+$A21,FALSE)*O$10,0) -> 0 | P21: =ROUND(HLOOKUP(P$5,'Исходные данные'!$H$55:$S$76,2+$A21,FALSE)*P$10,0) -> 0 | Q21: =ROUND(HLOOKUP(Q$5,'Исходные данные'!$H$55:$S$76,2+$A21,FALSE)*Q$10,0) -> 0 | R21: =ROUND(HLOOKUP(R$5,'Исходные данные'!$H$55:$S$76,2+$A21,FALSE)*R$10,0) -> 0 | S21: =ROUND(HLOOKUP(S$5,'Исходные данные'!$H$55:$S$76,2+$A21,FALSE)*S$10,0) -> 0 | T21: =ROUND(HLOOKUP(T$5,'Исходные данные'!$H$55:$S$76,2+$A21,FALSE)*T$10,0) -> 0 | U21: =ROUND(HLOOKUP(U$5,'Исходные данные'!$H$55:$S$76,2+$A21,FALSE)*U$10,0) -> 0 | V21: =ROUND(HLOOKUP(V$5,'Исходные данные'!$H$55:$S$76,2+$A21,FALSE)*V$10,0) -> 0 | W21: =ROUND(HLOOKUP(W$5,'Исходные данные'!$H$55:$S$76,2+$A21,FALSE)*W$10,0) -> 0 | X21: =ROUND(HLOOKUP(X$5,'Исходные данные'!$H$55:$S$76,2+$A21,FALSE)*X$10,0) -> 0 | Y21: =ROUND(HLOOKUP(Y$5,'Исходные данные'!$H$55:$S$76,2+$A21,FALSE)*Y$10,0) -> 0 | Z21: =ROUND(HLOOKUP(Z$5,'Исходные данные'!$H$55:$S$76,2+$A21,FALSE)*Z$10,0) -> 0 | AA21: =ROUND(HLOOKUP(AA$5,'Исходные данные'!$H$55:$S$76,2+$A21,FALSE)*AA$10,0) -> 0 | AB21: =ROUND(HLOOKUP(AB$5,'Исходные данные'!$H$55:$S$76,2+$A21,FALSE)*AB$10,0) -> 0 | AC21: =ROUND(HLOOKUP(AC$5,'Исходные данные'!$H$55:$S$76,2+$A21,FALSE)*AC$10,0) -> 0 | AD21: =ROUND(HLOOKUP(AD$5,'Исходные данные'!$H$55:$S$76,2+$A21,FALSE)*AD$10,0) -> 0 | AE21: =ROUND(HLOOKUP(AE$5,'Исходные данные'!$H$55:$S$76,2+$A21,FALSE)*AE$10,0) -> 0 | AF21: =ROUND(HLOOKUP(AF$5,'Исходные данные'!$H$55:$S$76,2+$A21,FALSE)*AF$10,0) -> 0 | AG21: =ROUND(HLOOKUP(AG$5,'Исходные данные'!$H$55:$S$76,2+$A21,FALSE)*AG$10,0) -> 0 | AH21: =ROUND(HLOOKUP(AH$5,'Исходные данные'!$H$55:$S$76,2+$A21,FALSE)*AH$10,0) -> 0 | AI21: =ROUND(HLOOKUP(AI$5,'Исходные данные'!$H$55:$S$76,2+$A21,FALSE)*AI$10,0) -> 0 | AJ21: =ROUND(HLOOKUP(AJ$5,'Исходные данные'!$H$55:$S$76,2+$A21,FALSE)*AJ$10,0) -> 0 | AK21: =ROUND(HLOOKUP(AK$5,'Исходные данные'!$H$55:$S$76,2+$A21,FALSE)*AK$10,0) -> 0 | AL21: =ROUND(HLOOKUP(AL$5,'Исходные данные'!$H$55:$S$76,2+$A21,FALSE)*AL$10,0) -> 0 | AM21: =ROUND(HLOOKUP(AM$5,'Исходные данные'!$H$55:$S$76,2+$A21,FALSE)*AM$10,0) -> 0 | AN21: =ROUND(HLOOKUP(AN$5,'Исходные данные'!$H$55:$S$76,2+$A21,FALSE)*AN$10,0) -> 0 | AO21: =ROUND(HLOOKUP(AO$5,'Исходные данные'!$H$55:$S$76,2+$A21,FALSE)*AO$10,0) -> 0 | AP21: =ROUND(HLOOKUP(AP$5,'Исходные данные'!$H$55:$S$76,2+$A21,FALSE)*AP$10,0) -> 0 | AQ21: =ROUND(HLOOKUP(AQ$5,'Исходные данные'!$H$55:$S$76,2+$A21,FALSE)*AQ$10,0) -> 0 | AR21: =ROUND(HLOOKUP(AR$5,'Исходные данные'!$H$55:$S$76,2+$A21,FALSE)*AR$10,0) -> 0 | AS21: =ROUND(HLOOKUP(AS$5,'Исходные данные'!$H$55:$S$76,2+$A21,FALSE)*AS$10,0) -> 0 | AT21: =ROUND(HLOOKUP(AT$5,'Исходные данные'!$H$55:$S$76,2+$A21,FALSE)*AT$10,0) -> 0 | AU21: =ROUND(HLOOKUP(AU$5,'Исходные данные'!$H$55:$S$76,2+$A21,FALSE)*AU$10,0) -> 0 | AV21: =ROUND(HLOOKUP(AV$5,'Исходные данные'!$H$55:$S$76,2+$A21,FALSE)*AV$10,0) -> 0 | AW21: =ROUND(HLOOKUP(AW$5,'Исходные данные'!$H$55:$S$76,2+$A21,FALSE)*AW$10,0) -> 0 | AX21: =ROUND(HLOOKUP(AX$5,'Исходные данные'!$H$55:$S$76,2+$A21,FALSE)*AX$10,0) -> 0 | AY21: =ROUND(HLOOKUP(AY$5,'Исходные данные'!$H$55:$S$76,2+$A21,FALSE)*AY$10,0) -> 0 | AZ21: =ROUND(HLOOKUP(AZ$5,'Исходные данные'!$H$55:$S$76,2+$A21,FALSE)*AZ$10,0) -> 0 | BA21: =ROUND(HLOOKUP(BA$5,'Исходные данные'!$H$55:$S$76,2+$A21,FALSE)*BA$10,0) -> 0 | BB21: =ROUND(HLOOKUP(BB$5,'Исходные данные'!$H$55:$S$76,2+$A21,FALSE)*BB$10,0) -> 0 | BC21: =ROUND(HLOOKUP(BC$5,'Исходные данные'!$H$55:$S$76,2+$A21,FALSE)*BC$10,0) -> 0 | BD21: =ROUND(HLOOKUP(BD$5,'Исходные данные'!$H$55:$S$76,2+$A21,FALSE)*BD$10,0) -> 0 | BE21: =ROUND(HLOOKUP(BE$5,'Исходные данные'!$H$55:$S$76,2+$A21,FALSE)*BE$10,0) -> 0 | BF21: =ROUND(HLOOKUP(BF$5,'Исходные данные'!$H$55:$S$76,2+$A21,FALSE)*BF$10,0) -> 0 | BG21: =ROUND(HLOOKUP(BG$5,'Исходные данные'!$H$55:$S$76,2+$A21,FALSE)*BG$10,0) -> 0 | BH21: =ROUND(HLOOKUP(BH$5,'Исходные данные'!$H$55:$S$76,2+$A21,FALSE)*BH$10,0) -> 0 | BI21: =ROUND(HLOOKUP(BI$5,'Исходные данные'!$H$55:$S$76,2+$A21,FALSE)*BI$10,0) -> 0 | BJ21: =ROUND(HLOOKUP(BJ$5,'Исходные данные'!$H$55:$S$76,2+$A21,FALSE)*BJ$10,0) -> 0 | BK21: =ROUND(HLOOKUP(BK$5,'Исходные данные'!$H$55:$S$76,2+$A21,FALSE)*BK$10,0) -> 0
A22: 11 | B22: =IF(OR('Исходные данные'!B25=0,'Исходные данные'!B25=""),"",'Исходные данные'!B25) ->  | C22: 0 | D22: =ROUND(HLOOKUP(D$5,'Исходные данные'!$H$55:$S$76,2+$A22,FALSE)*D$10,0) -> 0 | E22: =ROUND(HLOOKUP(E$5,'Исходные данные'!$H$55:$S$76,2+$A22,FALSE)*E$10,0) -> 0 | F22: =ROUND(HLOOKUP(F$5,'Исходные данные'!$H$55:$S$76,2+$A22,FALSE)*F$10,0) -> 0 | G22: =ROUND(HLOOKUP(G$5,'Исходные данные'!$H$55:$S$76,2+$A22,FALSE)*G$10,0) -> 0 | H22: =ROUND(HLOOKUP(H$5,'Исходные данные'!$H$55:$S$76,2+$A22,FALSE)*H$10,0) -> 0 | I22: =ROUND(HLOOKUP(I$5,'Исходные данные'!$H$55:$S$76,2+$A22,FALSE)*I$10,0) -> 0 | J22: =ROUND(HLOOKUP(J$5,'Исходные данные'!$H$55:$S$76,2+$A22,FALSE)*J$10,0) -> 0 | K22: =ROUND(HLOOKUP(K$5,'Исходные данные'!$H$55:$S$76,2+$A22,FALSE)*K$10,0) -> 0 | L22: =ROUND(HLOOKUP(L$5,'Исходные данные'!$H$55:$S$76,2+$A22,FALSE)*L$10,0) -> 0 | M22: =ROUND(HLOOKUP(M$5,'Исходные данные'!$H$55:$S$76,2+$A22,FALSE)*M$10,0) -> 0 | N22: =ROUND(HLOOKUP(N$5,'Исходные данные'!$H$55:$S$76,2+$A22,FALSE)*N$10,0) -> 0 | O22: =ROUND(HLOOKUP(O$5,'Исходные данные'!$H$55:$S$76,2+$A22,FALSE)*O$10,0) -> 0 | P22: =ROUND(HLOOKUP(P$5,'Исходные данные'!$H$55:$S$76,2+$A22,FALSE)*P$10,0) -> 0 | Q22: =ROUND(HLOOKUP(Q$5,'Исходные данные'!$H$55:$S$76,2+$A22,FALSE)*Q$10,0) -> 0 | R22: =ROUND(HLOOKUP(R$5,'Исходные данные'!$H$55:$S$76,2+$A22,FALSE)*R$10,0) -> 0 | S22: =ROUND(HLOOKUP(S$5,'Исходные данные'!$H$55:$S$76,2+$A22,FALSE)*S$10,0) -> 0 | T22: =ROUND(HLOOKUP(T$5,'Исходные данные'!$H$55:$S$76,2+$A22,FALSE)*T$10,0) -> 0 | U22: =ROUND(HLOOKUP(U$5,'Исходные данные'!$H$55:$S$76,2+$A22,FALSE)*U$10,0) -> 0 | V22: =ROUND(HLOOKUP(V$5,'Исходные данные'!$H$55:$S$76,2+$A22,FALSE)*V$10,0) -> 0 | W22: =ROUND(HLOOKUP(W$5,'Исходные данные'!$H$55:$S$76,2+$A22,FALSE)*W$10,0) -> 0 | X22: =ROUND(HLOOKUP(X$5,'Исходные данные'!$H$55:$S$76,2+$A22,FALSE)*X$10,0) -> 0 | Y22: =ROUND(HLOOKUP(Y$5,'Исходные данные'!$H$55:$S$76,2+$A22,FALSE)*Y$10,0) -> 0 | Z22: =ROUND(HLOOKUP(Z$5,'Исходные данные'!$H$55:$S$76,2+$A22,FALSE)*Z$10,0) -> 0 | AA22: =ROUND(HLOOKUP(AA$5,'Исходные данные'!$H$55:$S$76,2+$A22,FALSE)*AA$10,0) -> 0 | AB22: =ROUND(HLOOKUP(AB$5,'Исходные данные'!$H$55:$S$76,2+$A22,FALSE)*AB$10,0) -> 0 | AC22: =ROUND(HLOOKUP(AC$5,'Исходные данные'!$H$55:$S$76,2+$A22,FALSE)*AC$10,0) -> 0 | AD22: =ROUND(HLOOKUP(AD$5,'Исходные данные'!$H$55:$S$76,2+$A22,FALSE)*AD$10,0) -> 0 | AE22: =ROUND(HLOOKUP(AE$5,'Исходные данные'!$H$55:$S$76,2+$A22,FALSE)*AE$10,0) -> 0 | AF22: =ROUND(HLOOKUP(AF$5,'Исходные данные'!$H$55:$S$76,2+$A22,FALSE)*AF$10,0) -> 0 | AG22: =ROUND(HLOOKUP(AG$5,'Исходные данные'!$H$55:$S$76,2+$A22,FALSE)*AG$10,0) -> 0 | AH22: =ROUND(HLOOKUP(AH$5,'Исходные данные'!$H$55:$S$76,2+$A22,FALSE)*AH$10,0) -> 0 | AI22: =ROUND(HLOOKUP(AI$5,'Исходные данные'!$H$55:$S$76,2+$A22,FALSE)*AI$10,0) -> 0 | AJ22: =ROUND(HLOOKUP(AJ$5,'Исходные данные'!$H$55:$S$76,2+$A22,FALSE)*AJ$10,0) -> 0 | AK22: =ROUND(HLOOKUP(AK$5,'Исходные данные'!$H$55:$S$76,2+$A22,FALSE)*AK$10,0) -> 0 | AL22: =ROUND(HLOOKUP(AL$5,'Исходные данные'!$H$55:$S$76,2+$A22,FALSE)*AL$10,0) -> 0 | AM22: =ROUND(HLOOKUP(AM$5,'Исходные данные'!$H$55:$S$76,2+$A22,FALSE)*AM$10,0) -> 0 | AN22: =ROUND(HLOOKUP(AN$5,'Исходные данные'!$H$55:$S$76,2+$A22,FALSE)*AN$10,0) -> 0 | AO22: =ROUND(HLOOKUP(AO$5,'Исходные данные'!$H$55:$S$76,2+$A22,FALSE)*AO$10,0) -> 0 | AP22: =ROUND(HLOOKUP(AP$5,'Исходные данные'!$H$55:$S$76,2+$A22,FALSE)*AP$10,0) -> 0 | AQ22: =ROUND(HLOOKUP(AQ$5,'Исходные данные'!$H$55:$S$76,2+$A22,FALSE)*AQ$10,0) -> 0 | AR22: =ROUND(HLOOKUP(AR$5,'Исходные данные'!$H$55:$S$76,2+$A22,FALSE)*AR$10,0) -> 0 | AS22: =ROUND(HLOOKUP(AS$5,'Исходные данные'!$H$55:$S$76,2+$A22,FALSE)*AS$10,0) -> 0 | AT22: =ROUND(HLOOKUP(AT$5,'Исходные данные'!$H$55:$S$76,2+$A22,FALSE)*AT$10,0) -> 0 | AU22: =ROUND(HLOOKUP(AU$5,'Исходные данные'!$H$55:$S$76,2+$A22,FALSE)*AU$10,0) -> 0 | AV22: =ROUND(HLOOKUP(AV$5,'Исходные данные'!$H$55:$S$76,2+$A22,FALSE)*AV$10,0) -> 0 | AW22: =ROUND(HLOOKUP(AW$5,'Исходные данные'!$H$55:$S$76,2+$A22,FALSE)*AW$10,0) -> 0 | AX22: =ROUND(HLOOKUP(AX$5,'Исходные данные'!$H$55:$S$76,2+$A22,FALSE)*AX$10,0) -> 0 | AY22: =ROUND(HLOOKUP(AY$5,'Исходные данные'!$H$55:$S$76,2+$A22,FALSE)*AY$10,0) -> 0 | AZ22: =ROUND(HLOOKUP(AZ$5,'Исходные данные'!$H$55:$S$76,2+$A22,FALSE)*AZ$10,0) -> 0 | BA22: =ROUND(HLOOKUP(BA$5,'Исходные данные'!$H$55:$S$76,2+$A22,FALSE)*BA$10,0) -> 0 | BB22: =ROUND(HLOOKUP(BB$5,'Исходные данные'!$H$55:$S$76,2+$A22,FALSE)*BB$10,0) -> 0 | BC22: =ROUND(HLOOKUP(BC$5,'Исходные данные'!$H$55:$S$76,2+$A22,FALSE)*BC$10,0) -> 0 | BD22: =ROUND(HLOOKUP(BD$5,'Исходные данные'!$H$55:$S$76,2+$A22,FALSE)*BD$10,0) -> 0 | BE22: =ROUND(HLOOKUP(BE$5,'Исходные данные'!$H$55:$S$76,2+$A22,FALSE)*BE$10,0) -> 0 | BF22: =ROUND(HLOOKUP(BF$5,'Исходные данные'!$H$55:$S$76,2+$A22,FALSE)*BF$10,0) -> 0 | BG22: =ROUND(HLOOKUP(BG$5,'Исходные данные'!$H$55:$S$76,2+$A22,FALSE)*BG$10,0) -> 0 | BH22: =ROUND(HLOOKUP(BH$5,'Исходные данные'!$H$55:$S$76,2+$A22,FALSE)*BH$10,0) -> 0 | BI22: =ROUND(HLOOKUP(BI$5,'Исходные данные'!$H$55:$S$76,2+$A22,FALSE)*BI$10,0) -> 0 | BJ22: =ROUND(HLOOKUP(BJ$5,'Исходные данные'!$H$55:$S$76,2+$A22,FALSE)*BJ$10,0) -> 0 | BK22: =ROUND(HLOOKUP(BK$5,'Исходные данные'!$H$55:$S$76,2+$A22,FALSE)*BK$10,0) -> 0
A23: 12 | B23: =IF(OR('Исходные данные'!B26=0,'Исходные данные'!B26=""),"",'Исходные данные'!B26) ->  | C23: 0 | D23: =ROUND(HLOOKUP(D$5,'Исходные данные'!$H$55:$S$76,2+$A23,FALSE)*D$10,0) -> 0 | E23: =ROUND(HLOOKUP(E$5,'Исходные данные'!$H$55:$S$76,2+$A23,FALSE)*E$10,0) -> 0 | F23: =ROUND(HLOOKUP(F$5,'Исходные данные'!$H$55:$S$76,2+$A23,FALSE)*F$10,0) -> 0 | G23: =ROUND(HLOOKUP(G$5,'Исходные данные'!$H$55:$S$76,2+$A23,FALSE)*G$10,0) -> 0 | H23: =ROUND(HLOOKUP(H$5,'Исходные данные'!$H$55:$S$76,2+$A23,FALSE)*H$10,0) -> 0 | I23: =ROUND(HLOOKUP(I$5,'Исходные данные'!$H$55:$S$76,2+$A23,FALSE)*I$10,0) -> 0 | J23: =ROUND(HLOOKUP(J$5,'Исходные данные'!$H$55:$S$76,2+$A23,FALSE)*J$10,0) -> 0 | K23: =ROUND(HLOOKUP(K$5,'Исходные данные'!$H$55:$S$76,2+$A23,FALSE)*K$10,0) -> 0 | L23: =ROUND(HLOOKUP(L$5,'Исходные данные'!$H$55:$S$76,2+$A23,FALSE)*L$10,0) -> 0 | M23: =ROUND(HLOOKUP(M$5,'Исходные данные'!$H$55:$S$76,2+$A23,FALSE)*M$10,0) -> 0 | N23: =ROUND(HLOOKUP(N$5,'Исходные данные'!$H$55:$S$76,2+$A23,FALSE)*N$10,0) -> 0 | O23: =ROUND(HLOOKUP(O$5,'Исходные данные'!$H$55:$S$76,2+$A23,FALSE)*O$10,0) -> 0 | P23: =ROUND(HLOOKUP(P$5,'Исходные данные'!$H$55:$S$76,2+$A23,FALSE)*P$10,0) -> 0 | Q23: =ROUND(HLOOKUP(Q$5,'Исходные данные'!$H$55:$S$76,2+$A23,FALSE)*Q$10,0) -> 0 | R23: =ROUND(HLOOKUP(R$5,'Исходные данные'!$H$55:$S$76,2+$A23,FALSE)*R$10,0) -> 0 | S23: =ROUND(HLOOKUP(S$5,'Исходные данные'!$H$55:$S$76,2+$A23,FALSE)*S$10,0) -> 0 | T23: =ROUND(HLOOKUP(T$5,'Исходные данные'!$H$55:$S$76,2+$A23,FALSE)*T$10,0) -> 0 | U23: =ROUND(HLOOKUP(U$5,'Исходные данные'!$H$55:$S$76,2+$A23,FALSE)*U$10,0) -> 0 | V23: =ROUND(HLOOKUP(V$5,'Исходные данные'!$H$55:$S$76,2+$A23,FALSE)*V$10,0) -> 0 | W23: =ROUND(HLOOKUP(W$5,'Исходные данные'!$H$55:$S$76,2+$A23,FALSE)*W$10,0) -> 0 | X23: =ROUND(HLOOKUP(X$5,'Исходные данные'!$H$55:$S$76,2+$A23,FALSE)*X$10,0) -> 0 | Y23: =ROUND(HLOOKUP(Y$5,'Исходные данные'!$H$55:$S$76,2+$A23,FALSE)*Y$10,0) -> 0 | Z23: =ROUND(HLOOKUP(Z$5,'Исходные данные'!$H$55:$S$76,2+$A23,FALSE)*Z$10,0) -> 0 | AA23: =ROUND(HLOOKUP(AA$5,'Исходные данные'!$H$55:$S$76,2+$A23,FALSE)*AA$10,0) -> 0 | AB23: =ROUND(HLOOKUP(AB$5,'Исходные данные'!$H$55:$S$76,2+$A23,FALSE)*AB$10,0) -> 0 | AC23: =ROUND(HLOOKUP(AC$5,'Исходные данные'!$H$55:$S$76,2+$A23,FALSE)*AC$10,0) -> 0 | AD23: =ROUND(HLOOKUP(AD$5,'Исходные данные'!$H$55:$S$76,2+$A23,FALSE)*AD$10,0) -> 0 | AE23: =ROUND(HLOOKUP(AE$5,'Исходные данные'!$H$55:$S$76,2+$A23,FALSE)*AE$10,0) -> 0 | AF23: =ROUND(HLOOKUP(AF$5,'Исходные данные'!$H$55:$S$76,2+$A23,FALSE)*AF$10,0) -> 0 | AG23: =ROUND(HLOOKUP(AG$5,'Исходные данные'!$H$55:$S$76,2+$A23,FALSE)*AG$10,0) -> 0 | AH23: =ROUND(HLOOKUP(AH$5,'Исходные данные'!$H$55:$S$76,2+$A23,FALSE)*AH$10,0) -> 0 | AI23: =ROUND(HLOOKUP(AI$5,'Исходные данные'!$H$55:$S$76,2+$A23,FALSE)*AI$10,0) -> 0 | AJ23: =ROUND(HLOOKUP(AJ$5,'Исходные данные'!$H$55:$S$76,2+$A23,FALSE)*AJ$10,0) -> 0 | AK23: =ROUND(HLOOKUP(AK$5,'Исходные данные'!$H$55:$S$76,2+$A23,FALSE)*AK$10,0) -> 0 | AL23: =ROUND(HLOOKUP(AL$5,'Исходные данные'!$H$55:$S$76,2+$A23,FALSE)*AL$10,0) -> 0 | AM23: =ROUND(HLOOKUP(AM$5,'Исходные данные'!$H$55:$S$76,2+$A23,FALSE)*AM$10,0) -> 0 | AN23: =ROUND(HLOOKUP(AN$5,'Исходные данные'!$H$55:$S$76,2+$A23,FALSE)*AN$10,0) -> 0 | AO23: =ROUND(HLOOKUP(AO$5,'Исходные данные'!$H$55:$S$76,2+$A23,FALSE)*AO$10,0) -> 0 | AP23: =ROUND(HLOOKUP(AP$5,'Исходные данные'!$H$55:$S$76,2+$A23,FALSE)*AP$10,0) -> 0 | AQ23: =ROUND(HLOOKUP(AQ$5,'Исходные данные'!$H$55:$S$76,2+$A23,FALSE)*AQ$10,0) -> 0 | AR23: =ROUND(HLOOKUP(AR$5,'Исходные данные'!$H$55:$S$76,2+$A23,FALSE)*AR$10,0) -> 0 | AS23: =ROUND(HLOOKUP(AS$5,'Исходные данные'!$H$55:$S$76,2+$A23,FALSE)*AS$10,0) -> 0 | AT23: =ROUND(HLOOKUP(AT$5,'Исходные данные'!$H$55:$S$76,2+$A23,FALSE)*AT$10,0) -> 0 | AU23: =ROUND(HLOOKUP(AU$5,'Исходные данные'!$H$55:$S$76,2+$A23,FALSE)*AU$10,0) -> 0 | AV23: =ROUND(HLOOKUP(AV$5,'Исходные данные'!$H$55:$S$76,2+$A23,FALSE)*AV$10,0) -> 0 | AW23: =ROUND(HLOOKUP(AW$5,'Исходные данные'!$H$55:$S$76,2+$A23,FALSE)*AW$10,0) -> 0 | AX23: =ROUND(HLOOKUP(AX$5,'Исходные данные'!$H$55:$S$76,2+$A23,FALSE)*AX$10,0) -> 0 | AY23: =ROUND(HLOOKUP(AY$5,'Исходные данные'!$H$55:$S$76,2+$A23,FALSE)*AY$10,0) -> 0 | AZ23: =ROUND(HLOOKUP(AZ$5,'Исходные данные'!$H$55:$S$76,2+$A23,FALSE)*AZ$10,0) -> 0 | BA23: =ROUND(HLOOKUP(BA$5,'Исходные данные'!$H$55:$S$76,2+$A23,FALSE)*BA$10,0) -> 0 | BB23: =ROUND(HLOOKUP(BB$5,'Исходные данные'!$H$55:$S$76,2+$A23,FALSE)*BB$10,0) -> 0 | BC23: =ROUND(HLOOKUP(BC$5,'Исходные данные'!$H$55:$S$76,2+$A23,FALSE)*BC$10,0) -> 0 | BD23: =ROUND(HLOOKUP(BD$5,'Исходные данные'!$H$55:$S$76,2+$A23,FALSE)*BD$10,0) -> 0 | BE23: =ROUND(HLOOKUP(BE$5,'Исходные данные'!$H$55:$S$76,2+$A23,FALSE)*BE$10,0) -> 0 | BF23: =ROUND(HLOOKUP(BF$5,'Исходные данные'!$H$55:$S$76,2+$A23,FALSE)*BF$10,0) -> 0 | BG23: =ROUND(HLOOKUP(BG$5,'Исходные данные'!$H$55:$S$76,2+$A23,FALSE)*BG$10,0) -> 0 | BH23: =ROUND(HLOOKUP(BH$5,'Исходные данные'!$H$55:$S$76,2+$A23,FALSE)*BH$10,0) -> 0 | BI23: =ROUND(HLOOKUP(BI$5,'Исходные данные'!$H$55:$S$76,2+$A23,FALSE)*BI$10,0) -> 0 | BJ23: =ROUND(HLOOKUP(BJ$5,'Исходные данные'!$H$55:$S$76,2+$A23,FALSE)*BJ$10,0) -> 0 | BK23: =ROUND(HLOOKUP(BK$5,'Исходные данные'!$H$55:$S$76,2+$A23,FALSE)*BK$10,0) -> 0
A24: 13 | B24: =IF(OR('Исходные данные'!B27=0,'Исходные данные'!B27=""),"",'Исходные данные'!B27) ->  | C24: 0 | D24: =ROUND(HLOOKUP(D$5,'Исходные данные'!$H$55:$S$76,2+$A24,FALSE)*D$10,0) -> 0 | E24: =ROUND(HLOOKUP(E$5,'Исходные данные'!$H$55:$S$76,2+$A24,FALSE)*E$10,0) -> 0 | F24: =ROUND(HLOOKUP(F$5,'Исходные данные'!$H$55:$S$76,2+$A24,FALSE)*F$10,0) -> 0 | G24: =ROUND(HLOOKUP(G$5,'Исходные данные'!$H$55:$S$76,2+$A24,FALSE)*G$10,0) -> 0 | H24: =ROUND(HLOOKUP(H$5,'Исходные данные'!$H$55:$S$76,2+$A24,FALSE)*H$10,0) -> 0 | I24: =ROUND(HLOOKUP(I$5,'Исходные данные'!$H$55:$S$76,2+$A24,FALSE)*I$10,0) -> 0 | J24: =ROUND(HLOOKUP(J$5,'Исходные данные'!$H$55:$S$76,2+$A24,FALSE)*J$10,0) -> 0 | K24: =ROUND(HLOOKUP(K$5,'Исходные данные'!$H$55:$S$76,2+$A24,FALSE)*K$10,0) -> 0 | L24: =ROUND(HLOOKUP(L$5,'Исходные данные'!$H$55:$S$76,2+$A24,FALSE)*L$10,0) -> 0 | M24: =ROUND(HLOOKUP(M$5,'Исходные данные'!$H$55:$S$76,2+$A24,FALSE)*M$10,0) -> 0 | N24: =ROUND(HLOOKUP(N$5,'Исходные данные'!$H$55:$S$76,2+$A24,FALSE)*N$10,0) -> 0 | O24: =ROUND(HLOOKUP(O$5,'Исходные данные'!$H$55:$S$76,2+$A24,FALSE)*O$10,0) -> 0 | P24: =ROUND(HLOOKUP(P$5,'Исходные данные'!$H$55:$S$76,2+$A24,FALSE)*P$10,0) -> 0 | Q24: =ROUND(HLOOKUP(Q$5,'Исходные данные'!$H$55:$S$76,2+$A24,FALSE)*Q$10,0) -> 0 | R24: =ROUND(HLOOKUP(R$5,'Исходные данные'!$H$55:$S$76,2+$A24,FALSE)*R$10,0) -> 0 | S24: =ROUND(HLOOKUP(S$5,'Исходные данные'!$H$55:$S$76,2+$A24,FALSE)*S$10,0) -> 0 | T24: =ROUND(HLOOKUP(T$5,'Исходные данные'!$H$55:$S$76,2+$A24,FALSE)*T$10,0) -> 0 | U24: =ROUND(HLOOKUP(U$5,'Исходные данные'!$H$55:$S$76,2+$A24,FALSE)*U$10,0) -> 0 | V24: =ROUND(HLOOKUP(V$5,'Исходные данные'!$H$55:$S$76,2+$A24,FALSE)*V$10,0) -> 0 | W24: =ROUND(HLOOKUP(W$5,'Исходные данные'!$H$55:$S$76,2+$A24,FALSE)*W$10,0) -> 0 | X24: =ROUND(HLOOKUP(X$5,'Исходные данные'!$H$55:$S$76,2+$A24,FALSE)*X$10,0) -> 0 | Y24: =ROUND(HLOOKUP(Y$5,'Исходные данные'!$H$55:$S$76,2+$A24,FALSE)*Y$10,0) -> 0 | Z24: =ROUND(HLOOKUP(Z$5,'Исходные данные'!$H$55:$S$76,2+$A24,FALSE)*Z$10,0) -> 0 | AA24: =ROUND(HLOOKUP(AA$5,'Исходные данные'!$H$55:$S$76,2+$A24,FALSE)*AA$10,0) -> 0 | AB24: =ROUND(HLOOKUP(AB$5,'Исходные данные'!$H$55:$S$76,2+$A24,FALSE)*AB$10,0) -> 0 | AC24: =ROUND(HLOOKUP(AC$5,'Исходные данные'!$H$55:$S$76,2+$A24,FALSE)*AC$10,0) -> 0 | AD24: =ROUND(HLOOKUP(AD$5,'Исходные данные'!$H$55:$S$76,2+$A24,FALSE)*AD$10,0) -> 0 | AE24: =ROUND(HLOOKUP(AE$5,'Исходные данные'!$H$55:$S$76,2+$A24,FALSE)*AE$10,0) -> 0 | AF24: =ROUND(HLOOKUP(AF$5,'Исходные данные'!$H$55:$S$76,2+$A24,FALSE)*AF$10,0) -> 0 | AG24: =ROUND(HLOOKUP(AG$5,'Исходные данные'!$H$55:$S$76,2+$A24,FALSE)*AG$10,0) -> 0 | AH24: =ROUND(HLOOKUP(AH$5,'Исходные данные'!$H$55:$S$76,2+$A24,FALSE)*AH$10,0) -> 0 | AI24: =ROUND(HLOOKUP(AI$5,'Исходные данные'!$H$55:$S$76,2+$A24,FALSE)*AI$10,0) -> 0 | AJ24: =ROUND(HLOOKUP(AJ$5,'Исходные данные'!$H$55:$S$76,2+$A24,FALSE)*AJ$10,0) -> 0 | AK24: =ROUND(HLOOKUP(AK$5,'Исходные данные'!$H$55:$S$76,2+$A24,FALSE)*AK$10,0) -> 0 | AL24: =ROUND(HLOOKUP(AL$5,'Исходные данные'!$H$55:$S$76,2+$A24,FALSE)*AL$10,0) -> 0 | AM24: =ROUND(HLOOKUP(AM$5,'Исходные данные'!$H$55:$S$76,2+$A24,FALSE)*AM$10,0) -> 0 | AN24: =ROUND(HLOOKUP(AN$5,'Исходные данные'!$H$55:$S$76,2+$A24,FALSE)*AN$10,0) -> 0 | AO24: =ROUND(HLOOKUP(AO$5,'Исходные данные'!$H$55:$S$76,2+$A24,FALSE)*AO$10,0) -> 0 | AP24: =ROUND(HLOOKUP(AP$5,'Исходные данные'!$H$55:$S$76,2+$A24,FALSE)*AP$10,0) -> 0 | AQ24: =ROUND(HLOOKUP(AQ$5,'Исходные данные'!$H$55:$S$76,2+$A24,FALSE)*AQ$10,0) -> 0 | AR24: =ROUND(HLOOKUP(AR$5,'Исходные данные'!$H$55:$S$76,2+$A24,FALSE)*AR$10,0) -> 0 | AS24: =ROUND(HLOOKUP(AS$5,'Исходные данные'!$H$55:$S$76,2+$A24,FALSE)*AS$10,0) -> 0 | AT24: =ROUND(HLOOKUP(AT$5,'Исходные данные'!$H$55:$S$76,2+$A24,FALSE)*AT$10,0) -> 0 | AU24: =ROUND(HLOOKUP(AU$5,'Исходные данные'!$H$55:$S$76,2+$A24,FALSE)*AU$10,0) -> 0 | AV24: =ROUND(HLOOKUP(AV$5,'Исходные данные'!$H$55:$S$76,2+$A24,FALSE)*AV$10,0) -> 0 | AW24: =ROUND(HLOOKUP(AW$5,'Исходные данные'!$H$55:$S$76,2+$A24,FALSE)*AW$10,0) -> 0 | AX24: =ROUND(HLOOKUP(AX$5,'Исходные данные'!$H$55:$S$76,2+$A24,FALSE)*AX$10,0) -> 0 | AY24: =ROUND(HLOOKUP(AY$5,'Исходные данные'!$H$55:$S$76,2+$A24,FALSE)*AY$10,0) -> 0 | AZ24: =ROUND(HLOOKUP(AZ$5,'Исходные данные'!$H$55:$S$76,2+$A24,FALSE)*AZ$10,0) -> 0 | BA24: =ROUND(HLOOKUP(BA$5,'Исходные данные'!$H$55:$S$76,2+$A24,FALSE)*BA$10,0) -> 0 | BB24: =ROUND(HLOOKUP(BB$5,'Исходные данные'!$H$55:$S$76,2+$A24,FALSE)*BB$10,0) -> 0 | BC24: =ROUND(HLOOKUP(BC$5,'Исходные данные'!$H$55:$S$76,2+$A24,FALSE)*BC$10,0) -> 0 | BD24: =ROUND(HLOOKUP(BD$5,'Исходные данные'!$H$55:$S$76,2+$A24,FALSE)*BD$10,0) -> 0 | BE24: =ROUND(HLOOKUP(BE$5,'Исходные данные'!$H$55:$S$76,2+$A24,FALSE)*BE$10,0) -> 0 | BF24: =ROUND(HLOOKUP(BF$5,'Исходные данные'!$H$55:$S$76,2+$A24,FALSE)*BF$10,0) -> 0 | BG24: =ROUND(HLOOKUP(BG$5,'Исходные данные'!$H$55:$S$76,2+$A24,FALSE)*BG$10,0) -> 0 | BH24: =ROUND(HLOOKUP(BH$5,'Исходные данные'!$H$55:$S$76,2+$A24,FALSE)*BH$10,0) -> 0 | BI24: =ROUND(HLOOKUP(BI$5,'Исходные данные'!$H$55:$S$76,2+$A24,FALSE)*BI$10,0) -> 0 | BJ24: =ROUND(HLOOKUP(BJ$5,'Исходные данные'!$H$55:$S$76,2+$A24,FALSE)*BJ$10,0) -> 0 | BK24: =ROUND(HLOOKUP(BK$5,'Исходные данные'!$H$55:$S$76,2+$A24,FALSE)*BK$10,0) -> 0
A25: 14 | B25: =IF(OR('Исходные данные'!B28=0,'Исходные данные'!B28=""),"",'Исходные данные'!B28) ->  | C25: 0 | D25: =ROUND(HLOOKUP(D$5,'Исходные данные'!$H$55:$S$76,2+$A25,FALSE)*D$10,0) -> 0 | E25: =ROUND(HLOOKUP(E$5,'Исходные данные'!$H$55:$S$76,2+$A25,FALSE)*E$10,0) -> 0 | F25: =ROUND(HLOOKUP(F$5,'Исходные данные'!$H$55:$S$76,2+$A25,FALSE)*F$10,0) -> 0 | G25: =ROUND(HLOOKUP(G$5,'Исходные данные'!$H$55:$S$76,2+$A25,FALSE)*G$10,0) -> 0 | H25: =ROUND(HLOOKUP(H$5,'Исходные данные'!$H$55:$S$76,2+$A25,FALSE)*H$10,0) -> 0 | I25: =ROUND(HLOOKUP(I$5,'Исходные данные'!$H$55:$S$76,2+$A25,FALSE)*I$10,0) -> 0 | J25: =ROUND(HLOOKUP(J$5,'Исходные данные'!$H$55:$S$76,2+$A25,FALSE)*J$10,0) -> 0 | K25: =ROUND(HLOOKUP(K$5,'Исходные данные'!$H$55:$S$76,2+$A25,FALSE)*K$10,0) -> 0 | L25: =ROUND(HLOOKUP(L$5,'Исходные данные'!$H$55:$S$76,2+$A25,FALSE)*L$10,0) -> 0 | M25: =ROUND(HLOOKUP(M$5,'Исходные данные'!$H$55:$S$76,2+$A25,FALSE)*M$10,0) -> 0 | N25: =ROUND(HLOOKUP(N$5,'Исходные данные'!$H$55:$S$76,2+$A25,FALSE)*N$10,0) -> 0 | O25: =ROUND(HLOOKUP(O$5,'Исходные данные'!$H$55:$S$76,2+$A25,FALSE)*O$10,0) -> 0 | P25: =ROUND(HLOOKUP(P$5,'Исходные данные'!$H$55:$S$76,2+$A25,FALSE)*P$10,0) -> 0 | Q25: =ROUND(HLOOKUP(Q$5,'Исходные данные'!$H$55:$S$76,2+$A25,FALSE)*Q$10,0) -> 0 | R25: =ROUND(HLOOKUP(R$5,'Исходные данные'!$H$55:$S$76,2+$A25,FALSE)*R$10,0) -> 0 | S25: =ROUND(HLOOKUP(S$5,'Исходные данные'!$H$55:$S$76,2+$A25,FALSE)*S$10,0) -> 0 | T25: =ROUND(HLOOKUP(T$5,'Исходные данные'!$H$55:$S$76,2+$A25,FALSE)*T$10,0) -> 0 | U25: =ROUND(HLOOKUP(U$5,'Исходные данные'!$H$55:$S$76,2+$A25,FALSE)*U$10,0) -> 0 | V25: =ROUND(HLOOKUP(V$5,'Исходные данные'!$H$55:$S$76,2+$A25,FALSE)*V$10,0) -> 0 | W25: =ROUND(HLOOKUP(W$5,'Исходные данные'!$H$55:$S$76,2+$A25,FALSE)*W$10,0) -> 0 | X25: =ROUND(HLOOKUP(X$5,'Исходные данные'!$H$55:$S$76,2+$A25,FALSE)*X$10,0) -> 0 | Y25: =ROUND(HLOOKUP(Y$5,'Исходные данные'!$H$55:$S$76,2+$A25,FALSE)*Y$10,0) -> 0 | Z25: =ROUND(HLOOKUP(Z$5,'Исходные данные'!$H$55:$S$76,2+$A25,FALSE)*Z$10,0) -> 0 | AA25: =ROUND(HLOOKUP(AA$5,'Исходные данные'!$H$55:$S$76,2+$A25,FALSE)*AA$10,0) -> 0 | AB25: =ROUND(HLOOKUP(AB$5,'Исходные данные'!$H$55:$S$76,2+$A25,FALSE)*AB$10,0) -> 0 | AC25: =ROUND(HLOOKUP(AC$5,'Исходные данные'!$H$55:$S$76,2+$A25,FALSE)*AC$10,0) -> 0 | AD25: =ROUND(HLOOKUP(AD$5,'Исходные данные'!$H$55:$S$76,2+$A25,FALSE)*AD$10,0) -> 0 | AE25: =ROUND(HLOOKUP(AE$5,'Исходные данные'!$H$55:$S$76,2+$A25,FALSE)*AE$10,0) -> 0 | AF25: =ROUND(HLOOKUP(AF$5,'Исходные данные'!$H$55:$S$76,2+$A25,FALSE)*AF$10,0) -> 0 | AG25: =ROUND(HLOOKUP(AG$5,'Исходные данные'!$H$55:$S$76,2+$A25,FALSE)*AG$10,0) -> 0 | AH25: =ROUND(HLOOKUP(AH$5,'Исходные данные'!$H$55:$S$76,2+$A25,FALSE)*AH$10,0) -> 0 | AI25: =ROUND(HLOOKUP(AI$5,'Исходные данные'!$H$55:$S$76,2+$A25,FALSE)*AI$10,0) -> 0 | AJ25: =ROUND(HLOOKUP(AJ$5,'Исходные данные'!$H$55:$S$76,2+$A25,FALSE)*AJ$10,0) -> 0 | AK25: =ROUND(HLOOKUP(AK$5,'Исходные данные'!$H$55:$S$76,2+$A25,FALSE)*AK$10,0) -> 0 | AL25: =ROUND(HLOOKUP(AL$5,'Исходные данные'!$H$55:$S$76,2+$A25,FALSE)*AL$10,0) -> 0 | AM25: =ROUND(HLOOKUP(AM$5,'Исходные данные'!$H$55:$S$76,2+$A25,FALSE)*AM$10,0) -> 0 | AN25: =ROUND(HLOOKUP(AN$5,'Исходные данные'!$H$55:$S$76,2+$A25,FALSE)*AN$10,0) -> 0 | AO25: =ROUND(HLOOKUP(AO$5,'Исходные данные'!$H$55:$S$76,2+$A25,FALSE)*AO$10,0) -> 0 | AP25: =ROUND(HLOOKUP(AP$5,'Исходные данные'!$H$55:$S$76,2+$A25,FALSE)*AP$10,0) -> 0 | AQ25: =ROUND(HLOOKUP(AQ$5,'Исходные данные'!$H$55:$S$76,2+$A25,FALSE)*AQ$10,0) -> 0 | AR25: =ROUND(HLOOKUP(AR$5,'Исходные данные'!$H$55:$S$76,2+$A25,FALSE)*AR$10,0) -> 0 | AS25: =ROUND(HLOOKUP(AS$5,'Исходные данные'!$H$55:$S$76,2+$A25,FALSE)*AS$10,0) -> 0 | AT25: =ROUND(HLOOKUP(AT$5,'Исходные данные'!$H$55:$S$76,2+$A25,FALSE)*AT$10,0) -> 0 | AU25: =ROUND(HLOOKUP(AU$5,'Исходные данные'!$H$55:$S$76,2+$A25,FALSE)*AU$10,0) -> 0 | AV25: =ROUND(HLOOKUP(AV$5,'Исходные данные'!$H$55:$S$76,2+$A25,FALSE)*AV$10,0) -> 0 | AW25: =ROUND(HLOOKUP(AW$5,'Исходные данные'!$H$55:$S$76,2+$A25,FALSE)*AW$10,0) -> 0 | AX25: =ROUND(HLOOKUP(AX$5,'Исходные данные'!$H$55:$S$76,2+$A25,FALSE)*AX$10,0) -> 0 | AY25: =ROUND(HLOOKUP(AY$5,'Исходные данные'!$H$55:$S$76,2+$A25,FALSE)*AY$10,0) -> 0 | AZ25: =ROUND(HLOOKUP(AZ$5,'Исходные данные'!$H$55:$S$76,2+$A25,FALSE)*AZ$10,0) -> 0 | BA25: =ROUND(HLOOKUP(BA$5,'Исходные данные'!$H$55:$S$76,2+$A25,FALSE)*BA$10,0) -> 0 | BB25: =ROUND(HLOOKUP(BB$5,'Исходные данные'!$H$55:$S$76,2+$A25,FALSE)*BB$10,0) -> 0 | BC25: =ROUND(HLOOKUP(BC$5,'Исходные данные'!$H$55:$S$76,2+$A25,FALSE)*BC$10,0) -> 0 | BD25: =ROUND(HLOOKUP(BD$5,'Исходные данные'!$H$55:$S$76,2+$A25,FALSE)*BD$10,0) -> 0 | BE25: =ROUND(HLOOKUP(BE$5,'Исходные данные'!$H$55:$S$76,2+$A25,FALSE)*BE$10,0) -> 0 | BF25: =ROUND(HLOOKUP(BF$5,'Исходные данные'!$H$55:$S$76,2+$A25,FALSE)*BF$10,0) -> 0 | BG25: =ROUND(HLOOKUP(BG$5,'Исходные данные'!$H$55:$S$76,2+$A25,FALSE)*BG$10,0) -> 0 | BH25: =ROUND(HLOOKUP(BH$5,'Исходные данные'!$H$55:$S$76,2+$A25,FALSE)*BH$10,0) -> 0 | BI25: =ROUND(HLOOKUP(BI$5,'Исходные данные'!$H$55:$S$76,2+$A25,FALSE)*BI$10,0) -> 0 | BJ25: =ROUND(HLOOKUP(BJ$5,'Исходные данные'!$H$55:$S$76,2+$A25,FALSE)*BJ$10,0) -> 0 | BK25: =ROUND(HLOOKUP(BK$5,'Исходные данные'!$H$55:$S$76,2+$A25,FALSE)*BK$10,0) -> 0
A26: 15 | B26: =IF(OR('Исходные данные'!B29=0,'Исходные данные'!B29=""),"",'Исходные данные'!B29) ->  | C26: 0 | D26: =ROUND(HLOOKUP(D$5,'Исходные данные'!$H$55:$S$76,2+$A26,FALSE)*D$10,0) -> 0 | E26: =ROUND(HLOOKUP(E$5,'Исходные данные'!$H$55:$S$76,2+$A26,FALSE)*E$10,0) -> 0 | F26: =ROUND(HLOOKUP(F$5,'Исходные данные'!$H$55:$S$76,2+$A26,FALSE)*F$10,0) -> 0 | G26: =ROUND(HLOOKUP(G$5,'Исходные данные'!$H$55:$S$76,2+$A26,FALSE)*G$10,0) -> 0 | H26: =ROUND(HLOOKUP(H$5,'Исходные данные'!$H$55:$S$76,2+$A26,FALSE)*H$10,0) -> 0 | I26: =ROUND(HLOOKUP(I$5,'Исходные данные'!$H$55:$S$76,2+$A26,FALSE)*I$10,0) -> 0 | J26: =ROUND(HLOOKUP(J$5,'Исходные данные'!$H$55:$S$76,2+$A26,FALSE)*J$10,0) -> 0 | K26: =ROUND(HLOOKUP(K$5,'Исходные данные'!$H$55:$S$76,2+$A26,FALSE)*K$10,0) -> 0 | L26: =ROUND(HLOOKUP(L$5,'Исходные данные'!$H$55:$S$76,2+$A26,FALSE)*L$10,0) -> 0 | M26: =ROUND(HLOOKUP(M$5,'Исходные данные'!$H$55:$S$76,2+$A26,FALSE)*M$10,0) -> 0 | N26: =ROUND(HLOOKUP(N$5,'Исходные данные'!$H$55:$S$76,2+$A26,FALSE)*N$10,0) -> 0 | O26: =ROUND(HLOOKUP(O$5,'Исходные данные'!$H$55:$S$76,2+$A26,FALSE)*O$10,0) -> 0 | P26: =ROUND(HLOOKUP(P$5,'Исходные данные'!$H$55:$S$76,2+$A26,FALSE)*P$10,0) -> 0 | Q26: =ROUND(HLOOKUP(Q$5,'Исходные данные'!$H$55:$S$76,2+$A26,FALSE)*Q$10,0) -> 0 | R26: =ROUND(HLOOKUP(R$5,'Исходные данные'!$H$55:$S$76,2+$A26,FALSE)*R$10,0) -> 0 | S26: =ROUND(HLOOKUP(S$5,'Исходные данные'!$H$55:$S$76,2+$A26,FALSE)*S$10,0) -> 0 | T26: =ROUND(HLOOKUP(T$5,'Исходные данные'!$H$55:$S$76,2+$A26,FALSE)*T$10,0) -> 0 | U26: =ROUND(HLOOKUP(U$5,'Исходные данные'!$H$55:$S$76,2+$A26,FALSE)*U$10,0) -> 0 | V26: =ROUND(HLOOKUP(V$5,'Исходные данные'!$H$55:$S$76,2+$A26,FALSE)*V$10,0) -> 0 | W26: =ROUND(HLOOKUP(W$5,'Исходные данные'!$H$55:$S$76,2+$A26,FALSE)*W$10,0) -> 0 | X26: =ROUND(HLOOKUP(X$5,'Исходные данные'!$H$55:$S$76,2+$A26,FALSE)*X$10,0) -> 0 | Y26: =ROUND(HLOOKUP(Y$5,'Исходные данные'!$H$55:$S$76,2+$A26,FALSE)*Y$10,0) -> 0 | Z26: =ROUND(HLOOKUP(Z$5,'Исходные данные'!$H$55:$S$76,2+$A26,FALSE)*Z$10,0) -> 0 | AA26: =ROUND(HLOOKUP(AA$5,'Исходные данные'!$H$55:$S$76,2+$A26,FALSE)*AA$10,0) -> 0 | AB26: =ROUND(HLOOKUP(AB$5,'Исходные данные'!$H$55:$S$76,2+$A26,FALSE)*AB$10,0) -> 0 | AC26: =ROUND(HLOOKUP(AC$5,'Исходные данные'!$H$55:$S$76,2+$A26,FALSE)*AC$10,0) -> 0 | AD26: =ROUND(HLOOKUP(AD$5,'Исходные данные'!$H$55:$S$76,2+$A26,FALSE)*AD$10,0) -> 0 | AE26: =ROUND(HLOOKUP(AE$5,'Исходные данные'!$H$55:$S$76,2+$A26,FALSE)*AE$10,0) -> 0 | AF26: =ROUND(HLOOKUP(AF$5,'Исходные данные'!$H$55:$S$76,2+$A26,FALSE)*AF$10,0) -> 0 | AG26: =ROUND(HLOOKUP(AG$5,'Исходные данные'!$H$55:$S$76,2+$A26,FALSE)*AG$10,0) -> 0 | AH26: =ROUND(HLOOKUP(AH$5,'Исходные данные'!$H$55:$S$76,2+$A26,FALSE)*AH$10,0) -> 0 | AI26: =ROUND(HLOOKUP(AI$5,'Исходные данные'!$H$55:$S$76,2+$A26,FALSE)*AI$10,0) -> 0 | AJ26: =ROUND(HLOOKUP(AJ$5,'Исходные данные'!$H$55:$S$76,2+$A26,FALSE)*AJ$10,0) -> 0 | AK26: =ROUND(HLOOKUP(AK$5,'Исходные данные'!$H$55:$S$76,2+$A26,FALSE)*AK$10,0) -> 0 | AL26: =ROUND(HLOOKUP(AL$5,'Исходные данные'!$H$55:$S$76,2+$A26,FALSE)*AL$10,0) -> 0 | AM26: =ROUND(HLOOKUP(AM$5,'Исходные данные'!$H$55:$S$76,2+$A26,FALSE)*AM$10,0) -> 0 | AN26: =ROUND(HLOOKUP(AN$5,'Исходные данные'!$H$55:$S$76,2+$A26,FALSE)*AN$10,0) -> 0 | AO26: =ROUND(HLOOKUP(AO$5,'Исходные данные'!$H$55:$S$76,2+$A26,FALSE)*AO$10,0) -> 0 | AP26: =ROUND(HLOOKUP(AP$5,'Исходные данные'!$H$55:$S$76,2+$A26,FALSE)*AP$10,0) -> 0 | AQ26: =ROUND(HLOOKUP(AQ$5,'Исходные данные'!$H$55:$S$76,2+$A26,FALSE)*AQ$10,0) -> 0 | AR26: =ROUND(HLOOKUP(AR$5,'Исходные данные'!$H$55:$S$76,2+$A26,FALSE)*AR$10,0) -> 0 | AS26: =ROUND(HLOOKUP(AS$5,'Исходные данные'!$H$55:$S$76,2+$A26,FALSE)*AS$10,0) -> 0 | AT26: =ROUND(HLOOKUP(AT$5,'Исходные данные'!$H$55:$S$76,2+$A26,FALSE)*AT$10,0) -> 0 | AU26: =ROUND(HLOOKUP(AU$5,'Исходные данные'!$H$55:$S$76,2+$A26,FALSE)*AU$10,0) -> 0 | AV26: =ROUND(HLOOKUP(AV$5,'Исходные данные'!$H$55:$S$76,2+$A26,FALSE)*AV$10,0) -> 0 | AW26: =ROUND(HLOOKUP(AW$5,'Исходные данные'!$H$55:$S$76,2+$A26,FALSE)*AW$10,0) -> 0 | AX26: =ROUND(HLOOKUP(AX$5,'Исходные данные'!$H$55:$S$76,2+$A26,FALSE)*AX$10,0) -> 0 | AY26: =ROUND(HLOOKUP(AY$5,'Исходные данные'!$H$55:$S$76,2+$A26,FALSE)*AY$10,0) -> 0 | AZ26: =ROUND(HLOOKUP(AZ$5,'Исходные данные'!$H$55:$S$76,2+$A26,FALSE)*AZ$10,0) -> 0 | BA26: =ROUND(HLOOKUP(BA$5,'Исходные данные'!$H$55:$S$76,2+$A26,FALSE)*BA$10,0) -> 0 | BB26: =ROUND(HLOOKUP(BB$5,'Исходные данные'!$H$55:$S$76,2+$A26,FALSE)*BB$10,0) -> 0 | BC26: =ROUND(HLOOKUP(BC$5,'Исходные данные'!$H$55:$S$76,2+$A26,FALSE)*BC$10,0) -> 0 | BD26: =ROUND(HLOOKUP(BD$5,'Исходные данные'!$H$55:$S$76,2+$A26,FALSE)*BD$10,0) -> 0 | BE26: =ROUND(HLOOKUP(BE$5,'Исходные данные'!$H$55:$S$76,2+$A26,FALSE)*BE$10,0) -> 0 | BF26: =ROUND(HLOOKUP(BF$5,'Исходные данные'!$H$55:$S$76,2+$A26,FALSE)*BF$10,0) -> 0 | BG26: =ROUND(HLOOKUP(BG$5,'Исходные данные'!$H$55:$S$76,2+$A26,FALSE)*BG$10,0) -> 0 | BH26: =ROUND(HLOOKUP(BH$5,'Исходные данные'!$H$55:$S$76,2+$A26,FALSE)*BH$10,0) -> 0 | BI26: =ROUND(HLOOKUP(BI$5,'Исходные данные'!$H$55:$S$76,2+$A26,FALSE)*BI$10,0) -> 0 | BJ26: =ROUND(HLOOKUP(BJ$5,'Исходные данные'!$H$55:$S$76,2+$A26,FALSE)*BJ$10,0) -> 0 | BK26: =ROUND(HLOOKUP(BK$5,'Исходные данные'!$H$55:$S$76,2+$A26,FALSE)*BK$10,0) -> 0
A27: 16 | B27: =IF(OR('Исходные данные'!B30=0,'Исходные данные'!B30=""),"",'Исходные данные'!B30) ->  | C27: 0 | D27: =ROUND(HLOOKUP(D$5,'Исходные данные'!$H$55:$S$76,2+$A27,FALSE)*D$10,0) -> 0 | E27: =ROUND(HLOOKUP(E$5,'Исходные данные'!$H$55:$S$76,2+$A27,FALSE)*E$10,0) -> 0 | F27: =ROUND(HLOOKUP(F$5,'Исходные данные'!$H$55:$S$76,2+$A27,FALSE)*F$10,0) -> 0 | G27: =ROUND(HLOOKUP(G$5,'Исходные данные'!$H$55:$S$76,2+$A27,FALSE)*G$10,0) -> 0 | H27: =ROUND(HLOOKUP(H$5,'Исходные данные'!$H$55:$S$76,2+$A27,FALSE)*H$10,0) -> 0 | I27: =ROUND(HLOOKUP(I$5,'Исходные данные'!$H$55:$S$76,2+$A27,FALSE)*I$10,0) -> 0 | J27: =ROUND(HLOOKUP(J$5,'Исходные данные'!$H$55:$S$76,2+$A27,FALSE)*J$10,0) -> 0 | K27: =ROUND(HLOOKUP(K$5,'Исходные данные'!$H$55:$S$76,2+$A27,FALSE)*K$10,0) -> 0 | L27: =ROUND(HLOOKUP(L$5,'Исходные данные'!$H$55:$S$76,2+$A27,FALSE)*L$10,0) -> 0 | M27: =ROUND(HLOOKUP(M$5,'Исходные данные'!$H$55:$S$76,2+$A27,FALSE)*M$10,0) -> 0 | N27: =ROUND(HLOOKUP(N$5,'Исходные данные'!$H$55:$S$76,2+$A27,FALSE)*N$10,0) -> 0 | O27: =ROUND(HLOOKUP(O$5,'Исходные данные'!$H$55:$S$76,2+$A27,FALSE)*O$10,0) -> 0 | P27: =ROUND(HLOOKUP(P$5,'Исходные данные'!$H$55:$S$76,2+$A27,FALSE)*P$10,0) -> 0 | Q27: =ROUND(HLOOKUP(Q$5,'Исходные данные'!$H$55:$S$76,2+$A27,FALSE)*Q$10,0) -> 0 | R27: =ROUND(HLOOKUP(R$5,'Исходные данные'!$H$55:$S$76,2+$A27,FALSE)*R$10,0) -> 0 | S27: =ROUND(HLOOKUP(S$5,'Исходные данные'!$H$55:$S$76,2+$A27,FALSE)*S$10,0) -> 0 | T27: =ROUND(HLOOKUP(T$5,'Исходные данные'!$H$55:$S$76,2+$A27,FALSE)*T$10,0) -> 0 | U27: =ROUND(HLOOKUP(U$5,'Исходные данные'!$H$55:$S$76,2+$A27,FALSE)*U$10,0) -> 0 | V27: =ROUND(HLOOKUP(V$5,'Исходные данные'!$H$55:$S$76,2+$A27,FALSE)*V$10,0) -> 0 | W27: =ROUND(HLOOKUP(W$5,'Исходные данные'!$H$55:$S$76,2+$A27,FALSE)*W$10,0) -> 0 | X27: =ROUND(HLOOKUP(X$5,'Исходные данные'!$H$55:$S$76,2+$A27,FALSE)*X$10,0) -> 0 | Y27: =ROUND(HLOOKUP(Y$5,'Исходные данные'!$H$55:$S$76,2+$A27,FALSE)*Y$10,0) -> 0 | Z27: =ROUND(HLOOKUP(Z$5,'Исходные данные'!$H$55:$S$76,2+$A27,FALSE)*Z$10,0) -> 0 | AA27: =ROUND(HLOOKUP(AA$5,'Исходные данные'!$H$55:$S$76,2+$A27,FALSE)*AA$10,0) -> 0 | AB27: =ROUND(HLOOKUP(AB$5,'Исходные данные'!$H$55:$S$76,2+$A27,FALSE)*AB$10,0) -> 0 | AC27: =ROUND(HLOOKUP(AC$5,'Исходные данные'!$H$55:$S$76,2+$A27,FALSE)*AC$10,0) -> 0 | AD27: =ROUND(HLOOKUP(AD$5,'Исходные данные'!$H$55:$S$76,2+$A27,FALSE)*AD$10,0) -> 0 | AE27: =ROUND(HLOOKUP(AE$5,'Исходные данные'!$H$55:$S$76,2+$A27,FALSE)*AE$10,0) -> 0 | AF27: =ROUND(HLOOKUP(AF$5,'Исходные данные'!$H$55:$S$76,2+$A27,FALSE)*AF$10,0) -> 0 | AG27: =ROUND(HLOOKUP(AG$5,'Исходные данные'!$H$55:$S$76,2+$A27,FALSE)*AG$10,0) -> 0 | AH27: =ROUND(HLOOKUP(AH$5,'Исходные данные'!$H$55:$S$76,2+$A27,FALSE)*AH$10,0) -> 0 | AI27: =ROUND(HLOOKUP(AI$5,'Исходные данные'!$H$55:$S$76,2+$A27,FALSE)*AI$10,0) -> 0 | AJ27: =ROUND(HLOOKUP(AJ$5,'Исходные данные'!$H$55:$S$76,2+$A27,FALSE)*AJ$10,0) -> 0 | AK27: =ROUND(HLOOKUP(AK$5,'Исходные данные'!$H$55:$S$76,2+$A27,FALSE)*AK$10,0) -> 0 | AL27: =ROUND(HLOOKUP(AL$5,'Исходные данные'!$H$55:$S$76,2+$A27,FALSE)*AL$10,0) -> 0 | AM27: =ROUND(HLOOKUP(AM$5,'Исходные данные'!$H$55:$S$76,2+$A27,FALSE)*AM$10,0) -> 0 | AN27: =ROUND(HLOOKUP(AN$5,'Исходные данные'!$H$55:$S$76,2+$A27,FALSE)*AN$10,0) -> 0 | AO27: =ROUND(HLOOKUP(AO$5,'Исходные данные'!$H$55:$S$76,2+$A27,FALSE)*AO$10,0) -> 0 | AP27: =ROUND(HLOOKUP(AP$5,'Исходные данные'!$H$55:$S$76,2+$A27,FALSE)*AP$10,0) -> 0 | AQ27: =ROUND(HLOOKUP(AQ$5,'Исходные данные'!$H$55:$S$76,2+$A27,FALSE)*AQ$10,0) -> 0 | AR27: =ROUND(HLOOKUP(AR$5,'Исходные данные'!$H$55:$S$76,2+$A27,FALSE)*AR$10,0) -> 0 | AS27: =ROUND(HLOOKUP(AS$5,'Исходные данные'!$H$55:$S$76,2+$A27,FALSE)*AS$10,0) -> 0 | AT27: =ROUND(HLOOKUP(AT$5,'Исходные данные'!$H$55:$S$76,2+$A27,FALSE)*AT$10,0) -> 0 | AU27: =ROUND(HLOOKUP(AU$5,'Исходные данные'!$H$55:$S$76,2+$A27,FALSE)*AU$10,0) -> 0 | AV27: =ROUND(HLOOKUP(AV$5,'Исходные данные'!$H$55:$S$76,2+$A27,FALSE)*AV$10,0) -> 0 | AW27: =ROUND(HLOOKUP(AW$5,'Исходные данные'!$H$55:$S$76,2+$A27,FALSE)*AW$10,0) -> 0 | AX27: =ROUND(HLOOKUP(AX$5,'Исходные данные'!$H$55:$S$76,2+$A27,FALSE)*AX$10,0) -> 0 | AY27: =ROUND(HLOOKUP(AY$5,'Исходные данные'!$H$55:$S$76,2+$A27,FALSE)*AY$10,0) -> 0 | AZ27: =ROUND(HLOOKUP(AZ$5,'Исходные данные'!$H$55:$S$76,2+$A27,FALSE)*AZ$10,0) -> 0 | BA27: =ROUND(HLOOKUP(BA$5,'Исходные данные'!$H$55:$S$76,2+$A27,FALSE)*BA$10,0) -> 0 | BB27: =ROUND(HLOOKUP(BB$5,'Исходные данные'!$H$55:$S$76,2+$A27,FALSE)*BB$10,0) -> 0 | BC27: =ROUND(HLOOKUP(BC$5,'Исходные данные'!$H$55:$S$76,2+$A27,FALSE)*BC$10,0) -> 0 | BD27: =ROUND(HLOOKUP(BD$5,'Исходные данные'!$H$55:$S$76,2+$A27,FALSE)*BD$10,0) -> 0 | BE27: =ROUND(HLOOKUP(BE$5,'Исходные данные'!$H$55:$S$76,2+$A27,FALSE)*BE$10,0) -> 0 | BF27: =ROUND(HLOOKUP(BF$5,'Исходные данные'!$H$55:$S$76,2+$A27,FALSE)*BF$10,0) -> 0 | BG27: =ROUND(HLOOKUP(BG$5,'Исходные данные'!$H$55:$S$76,2+$A27,FALSE)*BG$10,0) -> 0 | BH27: =ROUND(HLOOKUP(BH$5,'Исходные данные'!$H$55:$S$76,2+$A27,FALSE)*BH$10,0) -> 0 | BI27: =ROUND(HLOOKUP(BI$5,'Исходные данные'!$H$55:$S$76,2+$A27,FALSE)*BI$10,0) -> 0 | BJ27: =ROUND(HLOOKUP(BJ$5,'Исходные данные'!$H$55:$S$76,2+$A27,FALSE)*BJ$10,0) -> 0 | BK27: =ROUND(HLOOKUP(BK$5,'Исходные данные'!$H$55:$S$76,2+$A27,FALSE)*BK$10,0) -> 0
A28: 17 | B28: =IF(OR('Исходные данные'!B31=0,'Исходные данные'!B31=""),"",'Исходные данные'!B31) ->  | C28: 0 | D28: =ROUND(HLOOKUP(D$5,'Исходные данные'!$H$55:$S$76,2+$A28,FALSE)*D$10,0) -> 0 | E28: =ROUND(HLOOKUP(E$5,'Исходные данные'!$H$55:$S$76,2+$A28,FALSE)*E$10,0) -> 0 | F28: =ROUND(HLOOKUP(F$5,'Исходные данные'!$H$55:$S$76,2+$A28,FALSE)*F$10,0) -> 0 | G28: =ROUND(HLOOKUP(G$5,'Исходные данные'!$H$55:$S$76,2+$A28,FALSE)*G$10,0) -> 0 | H28: =ROUND(HLOOKUP(H$5,'Исходные данные'!$H$55:$S$76,2+$A28,FALSE)*H$10,0) -> 0 | I28: =ROUND(HLOOKUP(I$5,'Исходные данные'!$H$55:$S$76,2+$A28,FALSE)*I$10,0) -> 0 | J28: =ROUND(HLOOKUP(J$5,'Исходные данные'!$H$55:$S$76,2+$A28,FALSE)*J$10,0) -> 0 | K28: =ROUND(HLOOKUP(K$5,'Исходные данные'!$H$55:$S$76,2+$A28,FALSE)*K$10,0) -> 0 | L28: =ROUND(HLOOKUP(L$5,'Исходные данные'!$H$55:$S$76,2+$A28,FALSE)*L$10,0) -> 0 | M28: =ROUND(HLOOKUP(M$5,'Исходные данные'!$H$55:$S$76,2+$A28,FALSE)*M$10,0) -> 0 | N28: =ROUND(HLOOKUP(N$5,'Исходные данные'!$H$55:$S$76,2+$A28,FALSE)*N$10,0) -> 0 | O28: =ROUND(HLOOKUP(O$5,'Исходные данные'!$H$55:$S$76,2+$A28,FALSE)*O$10,0) -> 0 | P28: =ROUND(HLOOKUP(P$5,'Исходные данные'!$H$55:$S$76,2+$A28,FALSE)*P$10,0) -> 0 | Q28: =ROUND(HLOOKUP(Q$5,'Исходные данные'!$H$55:$S$76,2+$A28,FALSE)*Q$10,0) -> 0 | R28: =ROUND(HLOOKUP(R$5,'Исходные данные'!$H$55:$S$76,2+$A28,FALSE)*R$10,0) -> 0 | S28: =ROUND(HLOOKUP(S$5,'Исходные данные'!$H$55:$S$76,2+$A28,FALSE)*S$10,0) -> 0 | T28: =ROUND(HLOOKUP(T$5,'Исходные данные'!$H$55:$S$76,2+$A28,FALSE)*T$10,0) -> 0 | U28: =ROUND(HLOOKUP(U$5,'Исходные данные'!$H$55:$S$76,2+$A28,FALSE)*U$10,0) -> 0 | V28: =ROUND(HLOOKUP(V$5,'Исходные данные'!$H$55:$S$76,2+$A28,FALSE)*V$10,0) -> 0 | W28: =ROUND(HLOOKUP(W$5,'Исходные данные'!$H$55:$S$76,2+$A28,FALSE)*W$10,0) -> 0 | X28: =ROUND(HLOOKUP(X$5,'Исходные данные'!$H$55:$S$76,2+$A28,FALSE)*X$10,0) -> 0 | Y28: =ROUND(HLOOKUP(Y$5,'Исходные данные'!$H$55:$S$76,2+$A28,FALSE)*Y$10,0) -> 0 | Z28: =ROUND(HLOOKUP(Z$5,'Исходные данные'!$H$55:$S$76,2+$A28,FALSE)*Z$10,0) -> 0 | AA28: =ROUND(HLOOKUP(AA$5,'Исходные данные'!$H$55:$S$76,2+$A28,FALSE)*AA$10,0) -> 0 | AB28: =ROUND(HLOOKUP(AB$5,'Исходные данные'!$H$55:$S$76,2+$A28,FALSE)*AB$10,0) -> 0 | AC28: =ROUND(HLOOKUP(AC$5,'Исходные данные'!$H$55:$S$76,2+$A28,FALSE)*AC$10,0) -> 0 | AD28: =ROUND(HLOOKUP(AD$5,'Исходные данные'!$H$55:$S$76,2+$A28,FALSE)*AD$10,0) -> 0 | AE28: =ROUND(HLOOKUP(AE$5,'Исходные данные'!$H$55:$S$76,2+$A28,FALSE)*AE$10,0) -> 0 | AF28: =ROUND(HLOOKUP(AF$5,'Исходные данные'!$H$55:$S$76,2+$A28,FALSE)*AF$10,0) -> 0 | AG28: =ROUND(HLOOKUP(AG$5,'Исходные данные'!$H$55:$S$76,2+$A28,FALSE)*AG$10,0) -> 0 | AH28: =ROUND(HLOOKUP(AH$5,'Исходные данные'!$H$55:$S$76,2+$A28,FALSE)*AH$10,0) -> 0 | AI28: =ROUND(HLOOKUP(AI$5,'Исходные данные'!$H$55:$S$76,2+$A28,FALSE)*AI$10,0) -> 0 | AJ28: =ROUND(HLOOKUP(AJ$5,'Исходные данные'!$H$55:$S$76,2+$A28,FALSE)*AJ$10,0) -> 0 | AK28: =ROUND(HLOOKUP(AK$5,'Исходные данные'!$H$55:$S$76,2+$A28,FALSE)*AK$10,0) -> 0 | AL28: =ROUND(HLOOKUP(AL$5,'Исходные данные'!$H$55:$S$76,2+$A28,FALSE)*AL$10,0) -> 0 | AM28: =ROUND(HLOOKUP(AM$5,'Исходные данные'!$H$55:$S$76,2+$A28,FALSE)*AM$10,0) -> 0 | AN28: =ROUND(HLOOKUP(AN$5,'Исходные данные'!$H$55:$S$76,2+$A28,FALSE)*AN$10,0) -> 0 | AO28: =ROUND(HLOOKUP(AO$5,'Исходные данные'!$H$55:$S$76,2+$A28,FALSE)*AO$10,0) -> 0 | AP28: =ROUND(HLOOKUP(AP$5,'Исходные данные'!$H$55:$S$76,2+$A28,FALSE)*AP$10,0) -> 0 | AQ28: =ROUND(HLOOKUP(AQ$5,'Исходные данные'!$H$55:$S$76,2+$A28,FALSE)*AQ$10,0) -> 0 | AR28: =ROUND(HLOOKUP(AR$5,'Исходные данные'!$H$55:$S$76,2+$A28,FALSE)*AR$10,0) -> 0 | AS28: =ROUND(HLOOKUP(AS$5,'Исходные данные'!$H$55:$S$76,2+$A28,FALSE)*AS$10,0) -> 0 | AT28: =ROUND(HLOOKUP(AT$5,'Исходные данные'!$H$55:$S$76,2+$A28,FALSE)*AT$10,0) -> 0 | AU28: =ROUND(HLOOKUP(AU$5,'Исходные данные'!$H$55:$S$76,2+$A28,FALSE)*AU$10,0) -> 0 | AV28: =ROUND(HLOOKUP(AV$5,'Исходные данные'!$H$55:$S$76,2+$A28,FALSE)*AV$10,0) -> 0 | AW28: =ROUND(HLOOKUP(AW$5,'Исходные данные'!$H$55:$S$76,2+$A28,FALSE)*AW$10,0) -> 0 | AX28: =ROUND(HLOOKUP(AX$5,'Исходные данные'!$H$55:$S$76,2+$A28,FALSE)*AX$10,0) -> 0 | AY28: =ROUND(HLOOKUP(AY$5,'Исходные данные'!$H$55:$S$76,2+$A28,FALSE)*AY$10,0) -> 0 | AZ28: =ROUND(HLOOKUP(AZ$5,'Исходные данные'!$H$55:$S$76,2+$A28,FALSE)*AZ$10,0) -> 0 | BA28: =ROUND(HLOOKUP(BA$5,'Исходные данные'!$H$55:$S$76,2+$A28,FALSE)*BA$10,0) -> 0 | BB28: =ROUND(HLOOKUP(BB$5,'Исходные данные'!$H$55:$S$76,2+$A28,FALSE)*BB$10,0) -> 0 | BC28: =ROUND(HLOOKUP(BC$5,'Исходные данные'!$H$55:$S$76,2+$A28,FALSE)*BC$10,0) -> 0 | BD28: =ROUND(HLOOKUP(BD$5,'Исходные данные'!$H$55:$S$76,2+$A28,FALSE)*BD$10,0) -> 0 | BE28: =ROUND(HLOOKUP(BE$5,'Исходные данные'!$H$55:$S$76,2+$A28,FALSE)*BE$10,0) -> 0 | BF28: =ROUND(HLOOKUP(BF$5,'Исходные данные'!$H$55:$S$76,2+$A28,FALSE)*BF$10,0) -> 0 | BG28: =ROUND(HLOOKUP(BG$5,'Исходные данные'!$H$55:$S$76,2+$A28,FALSE)*BG$10,0) -> 0 | BH28: =ROUND(HLOOKUP(BH$5,'Исходные данные'!$H$55:$S$76,2+$A28,FALSE)*BH$10,0) -> 0 | BI28: =ROUND(HLOOKUP(BI$5,'Исходные данные'!$H$55:$S$76,2+$A28,FALSE)*BI$10,0) -> 0 | BJ28: =ROUND(HLOOKUP(BJ$5,'Исходные данные'!$H$55:$S$76,2+$A28,FALSE)*BJ$10,0) -> 0 | BK28: =ROUND(HLOOKUP(BK$5,'Исходные данные'!$H$55:$S$76,2+$A28,FALSE)*BK$10,0) -> 0
A29: =A28+1 -> 18 | B29: =IF(OR('Исходные данные'!B32=0,'Исходные данные'!B32=""),"",'Исходные данные'!B32) ->  | C29: 0 | D29: =ROUND(HLOOKUP(D$5,'Исходные данные'!$H$55:$S$76,2+$A29,FALSE)*D$10,0) -> 0 | E29: =ROUND(HLOOKUP(E$5,'Исходные данные'!$H$55:$S$76,2+$A29,FALSE)*E$10,0) -> 0 | F29: =ROUND(HLOOKUP(F$5,'Исходные данные'!$H$55:$S$76,2+$A29,FALSE)*F$10,0) -> 0 | G29: =ROUND(HLOOKUP(G$5,'Исходные данные'!$H$55:$S$76,2+$A29,FALSE)*G$10,0) -> 0 | H29: =ROUND(HLOOKUP(H$5,'Исходные данные'!$H$55:$S$76,2+$A29,FALSE)*H$10,0) -> 0 | I29: =ROUND(HLOOKUP(I$5,'Исходные данные'!$H$55:$S$76,2+$A29,FALSE)*I$10,0) -> 0 | J29: =ROUND(HLOOKUP(J$5,'Исходные данные'!$H$55:$S$76,2+$A29,FALSE)*J$10,0) -> 0 | K29: =ROUND(HLOOKUP(K$5,'Исходные данные'!$H$55:$S$76,2+$A29,FALSE)*K$10,0) -> 0 | L29: =ROUND(HLOOKUP(L$5,'Исходные данные'!$H$55:$S$76,2+$A29,FALSE)*L$10,0) -> 0 | M29: =ROUND(HLOOKUP(M$5,'Исходные данные'!$H$55:$S$76,2+$A29,FALSE)*M$10,0) -> 0 | N29: =ROUND(HLOOKUP(N$5,'Исходные данные'!$H$55:$S$76,2+$A29,FALSE)*N$10,0) -> 0 | O29: =ROUND(HLOOKUP(O$5,'Исходные данные'!$H$55:$S$76,2+$A29,FALSE)*O$10,0) -> 0 | P29: =ROUND(HLOOKUP(P$5,'Исходные данные'!$H$55:$S$76,2+$A29,FALSE)*P$10,0) -> 0 | Q29: =ROUND(HLOOKUP(Q$5,'Исходные данные'!$H$55:$S$76,2+$A29,FALSE)*Q$10,0) -> 0 | R29: =ROUND(HLOOKUP(R$5,'Исходные данные'!$H$55:$S$76,2+$A29,FALSE)*R$10,0) -> 0 | S29: =ROUND(HLOOKUP(S$5,'Исходные данные'!$H$55:$S$76,2+$A29,FALSE)*S$10,0) -> 0 | T29: =ROUND(HLOOKUP(T$5,'Исходные данные'!$H$55:$S$76,2+$A29,FALSE)*T$10,0) -> 0 | U29: =ROUND(HLOOKUP(U$5,'Исходные данные'!$H$55:$S$76,2+$A29,FALSE)*U$10,0) -> 0 | V29: =ROUND(HLOOKUP(V$5,'Исходные данные'!$H$55:$S$76,2+$A29,FALSE)*V$10,0) -> 0 | W29: =ROUND(HLOOKUP(W$5,'Исходные данные'!$H$55:$S$76,2+$A29,FALSE)*W$10,0) -> 0 | X29: =ROUND(HLOOKUP(X$5,'Исходные данные'!$H$55:$S$76,2+$A29,FALSE)*X$10,0) -> 0 | Y29: =ROUND(HLOOKUP(Y$5,'Исходные данные'!$H$55:$S$76,2+$A29,FALSE)*Y$10,0) -> 0 | Z29: =ROUND(HLOOKUP(Z$5,'Исходные данные'!$H$55:$S$76,2+$A29,FALSE)*Z$10,0) -> 0 | AA29: =ROUND(HLOOKUP(AA$5,'Исходные данные'!$H$55:$S$76,2+$A29,FALSE)*AA$10,0) -> 0 | AB29: =ROUND(HLOOKUP(AB$5,'Исходные данные'!$H$55:$S$76,2+$A29,FALSE)*AB$10,0) -> 0 | AC29: =ROUND(HLOOKUP(AC$5,'Исходные данные'!$H$55:$S$76,2+$A29,FALSE)*AC$10,0) -> 0 | AD29: =ROUND(HLOOKUP(AD$5,'Исходные данные'!$H$55:$S$76,2+$A29,FALSE)*AD$10,0) -> 0 | AE29: =ROUND(HLOOKUP(AE$5,'Исходные данные'!$H$55:$S$76,2+$A29,FALSE)*AE$10,0) -> 0 | AF29: =ROUND(HLOOKUP(AF$5,'Исходные данные'!$H$55:$S$76,2+$A29,FALSE)*AF$10,0) -> 0 | AG29: =ROUND(HLOOKUP(AG$5,'Исходные данные'!$H$55:$S$76,2+$A29,FALSE)*AG$10,0) -> 0 | AH29: =ROUND(HLOOKUP(AH$5,'Исходные данные'!$H$55:$S$76,2+$A29,FALSE)*AH$10,0) -> 0 | AI29: =ROUND(HLOOKUP(AI$5,'Исходные данные'!$H$55:$S$76,2+$A29,FALSE)*AI$10,0) -> 0 | AJ29: =ROUND(HLOOKUP(AJ$5,'Исходные данные'!$H$55:$S$76,2+$A29,FALSE)*AJ$10,0) -> 0 | AK29: =ROUND(HLOOKUP(AK$5,'Исходные данные'!$H$55:$S$76,2+$A29,FALSE)*AK$10,0) -> 0 | AL29: =ROUND(HLOOKUP(AL$5,'Исходные данные'!$H$55:$S$76,2+$A29,FALSE)*AL$10,0) -> 0 | AM29: =ROUND(HLOOKUP(AM$5,'Исходные данные'!$H$55:$S$76,2+$A29,FALSE)*AM$10,0) -> 0 | AN29: =ROUND(HLOOKUP(AN$5,'Исходные данные'!$H$55:$S$76,2+$A29,FALSE)*AN$10,0) -> 0 | AO29: =ROUND(HLOOKUP(AO$5,'Исходные данные'!$H$55:$S$76,2+$A29,FALSE)*AO$10,0) -> 0 | AP29: =ROUND(HLOOKUP(AP$5,'Исходные данные'!$H$55:$S$76,2+$A29,FALSE)*AP$10,0) -> 0 | AQ29: =ROUND(HLOOKUP(AQ$5,'Исходные данные'!$H$55:$S$76,2+$A29,FALSE)*AQ$10,0) -> 0 | AR29: =ROUND(HLOOKUP(AR$5,'Исходные данные'!$H$55:$S$76,2+$A29,FALSE)*AR$10,0) -> 0 | AS29: =ROUND(HLOOKUP(AS$5,'Исходные данные'!$H$55:$S$76,2+$A29,FALSE)*AS$10,0) -> 0 | AT29: =ROUND(HLOOKUP(AT$5,'Исходные данные'!$H$55:$S$76,2+$A29,FALSE)*AT$10,0) -> 0 | AU29: =ROUND(HLOOKUP(AU$5,'Исходные данные'!$H$55:$S$76,2+$A29,FALSE)*AU$10,0) -> 0 | AV29: =ROUND(HLOOKUP(AV$5,'Исходные данные'!$H$55:$S$76,2+$A29,FALSE)*AV$10,0) -> 0 | AW29: =ROUND(HLOOKUP(AW$5,'Исходные данные'!$H$55:$S$76,2+$A29,FALSE)*AW$10,0) -> 0 | AX29: =ROUND(HLOOKUP(AX$5,'Исходные данные'!$H$55:$S$76,2+$A29,FALSE)*AX$10,0) -> 0 | AY29: =ROUND(HLOOKUP(AY$5,'Исходные данные'!$H$55:$S$76,2+$A29,FALSE)*AY$10,0) -> 0 | AZ29: =ROUND(HLOOKUP(AZ$5,'Исходные данные'!$H$55:$S$76,2+$A29,FALSE)*AZ$10,0) -> 0 | BA29: =ROUND(HLOOKUP(BA$5,'Исходные данные'!$H$55:$S$76,2+$A29,FALSE)*BA$10,0) -> 0 | BB29: =ROUND(HLOOKUP(BB$5,'Исходные данные'!$H$55:$S$76,2+$A29,FALSE)*BB$10,0) -> 0 | BC29: =ROUND(HLOOKUP(BC$5,'Исходные данные'!$H$55:$S$76,2+$A29,FALSE)*BC$10,0) -> 0 | BD29: =ROUND(HLOOKUP(BD$5,'Исходные данные'!$H$55:$S$76,2+$A29,FALSE)*BD$10,0) -> 0 | BE29: =ROUND(HLOOKUP(BE$5,'Исходные данные'!$H$55:$S$76,2+$A29,FALSE)*BE$10,0) -> 0 | BF29: =ROUND(HLOOKUP(BF$5,'Исходные данные'!$H$55:$S$76,2+$A29,FALSE)*BF$10,0) -> 0 | BG29: =ROUND(HLOOKUP(BG$5,'Исходные данные'!$H$55:$S$76,2+$A29,FALSE)*BG$10,0) -> 0 | BH29: =ROUND(HLOOKUP(BH$5,'Исходные данные'!$H$55:$S$76,2+$A29,FALSE)*BH$10,0) -> 0 | BI29: =ROUND(HLOOKUP(BI$5,'Исходные данные'!$H$55:$S$76,2+$A29,FALSE)*BI$10,0) -> 0 | BJ29: =ROUND(HLOOKUP(BJ$5,'Исходные данные'!$H$55:$S$76,2+$A29,FALSE)*BJ$10,0) -> 0 | BK29: =ROUND(HLOOKUP(BK$5,'Исходные данные'!$H$55:$S$76,2+$A29,FALSE)*BK$10,0) -> 0
A30: 19 | B30: =IF(OR('Исходные данные'!B33=0,'Исходные данные'!B33=""),"",'Исходные данные'!B33) ->  | C30: 0 | D30: =ROUND(HLOOKUP(D$5,'Исходные данные'!$H$55:$S$76,2+$A30,FALSE)*D$10,0) -> 0 | E30: =ROUND(HLOOKUP(E$5,'Исходные данные'!$H$55:$S$76,2+$A30,FALSE)*E$10,0) -> 0 | F30: =ROUND(HLOOKUP(F$5,'Исходные данные'!$H$55:$S$76,2+$A30,FALSE)*F$10,0) -> 0 | G30: =ROUND(HLOOKUP(G$5,'Исходные данные'!$H$55:$S$76,2+$A30,FALSE)*G$10,0) -> 0 | H30: =ROUND(HLOOKUP(H$5,'Исходные данные'!$H$55:$S$76,2+$A30,FALSE)*H$10,0) -> 0 | I30: =ROUND(HLOOKUP(I$5,'Исходные данные'!$H$55:$S$76,2+$A30,FALSE)*I$10,0) -> 0 | J30: =ROUND(HLOOKUP(J$5,'Исходные данные'!$H$55:$S$76,2+$A30,FALSE)*J$10,0) -> 0 | K30: =ROUND(HLOOKUP(K$5,'Исходные данные'!$H$55:$S$76,2+$A30,FALSE)*K$10,0) -> 0 | L30: =ROUND(HLOOKUP(L$5,'Исходные данные'!$H$55:$S$76,2+$A30,FALSE)*L$10,0) -> 0 | M30: =ROUND(HLOOKUP(M$5,'Исходные данные'!$H$55:$S$76,2+$A30,FALSE)*M$10,0) -> 0 | N30: =ROUND(HLOOKUP(N$5,'Исходные данные'!$H$55:$S$76,2+$A30,FALSE)*N$10,0) -> 0 | O30: =ROUND(HLOOKUP(O$5,'Исходные данные'!$H$55:$S$76,2+$A30,FALSE)*O$10,0) -> 0 | P30: =ROUND(HLOOKUP(P$5,'Исходные данные'!$H$55:$S$76,2+$A30,FALSE)*P$10,0) -> 0 | Q30: =ROUND(HLOOKUP(Q$5,'Исходные данные'!$H$55:$S$76,2+$A30,FALSE)*Q$10,0) -> 0 | R30: =ROUND(HLOOKUP(R$5,'Исходные данные'!$H$55:$S$76,2+$A30,FALSE)*R$10,0) -> 0 | S30: =ROUND(HLOOKUP(S$5,'Исходные данные'!$H$55:$S$76,2+$A30,FALSE)*S$10,0) -> 0 | T30: =ROUND(HLOOKUP(T$5,'Исходные данные'!$H$55:$S$76,2+$A30,FALSE)*T$10,0) -> 0 | U30: =ROUND(HLOOKUP(U$5,'Исходные данные'!$H$55:$S$76,2+$A30,FALSE)*U$10,0) -> 0 | V30: =ROUND(HLOOKUP(V$5,'Исходные данные'!$H$55:$S$76,2+$A30,FALSE)*V$10,0) -> 0 | W30: =ROUND(HLOOKUP(W$5,'Исходные данные'!$H$55:$S$76,2+$A30,FALSE)*W$10,0) -> 0 | X30: =ROUND(HLOOKUP(X$5,'Исходные данные'!$H$55:$S$76,2+$A30,FALSE)*X$10,0) -> 0 | Y30: =ROUND(HLOOKUP(Y$5,'Исходные данные'!$H$55:$S$76,2+$A30,FALSE)*Y$10,0) -> 0 | Z30: =ROUND(HLOOKUP(Z$5,'Исходные данные'!$H$55:$S$76,2+$A30,FALSE)*Z$10,0) -> 0 | AA30: =ROUND(HLOOKUP(AA$5,'Исходные данные'!$H$55:$S$76,2+$A30,FALSE)*AA$10,0) -> 0 | AB30: =ROUND(HLOOKUP(AB$5,'Исходные данные'!$H$55:$S$76,2+$A30,FALSE)*AB$10,0) -> 0 | AC30: =ROUND(HLOOKUP(AC$5,'Исходные данные'!$H$55:$S$76,2+$A30,FALSE)*AC$10,0) -> 0 | AD30: =ROUND(HLOOKUP(AD$5,'Исходные данные'!$H$55:$S$76,2+$A30,FALSE)*AD$10,0) -> 0 | AE30: =ROUND(HLOOKUP(AE$5,'Исходные данные'!$H$55:$S$76,2+$A30,FALSE)*AE$10,0) -> 0 | AF30: =ROUND(HLOOKUP(AF$5,'Исходные данные'!$H$55:$S$76,2+$A30,FALSE)*AF$10,0) -> 0 | AG30: =ROUND(HLOOKUP(AG$5,'Исходные данные'!$H$55:$S$76,2+$A30,FALSE)*AG$10,0) -> 0 | AH30: =ROUND(HLOOKUP(AH$5,'Исходные данные'!$H$55:$S$76,2+$A30,FALSE)*AH$10,0) -> 0 | AI30: =ROUND(HLOOKUP(AI$5,'Исходные данные'!$H$55:$S$76,2+$A30,FALSE)*AI$10,0) -> 0 | AJ30: =ROUND(HLOOKUP(AJ$5,'Исходные данные'!$H$55:$S$76,2+$A30,FALSE)*AJ$10,0) -> 0 | AK30: =ROUND(HLOOKUP(AK$5,'Исходные данные'!$H$55:$S$76,2+$A30,FALSE)*AK$10,0) -> 0 | AL30: =ROUND(HLOOKUP(AL$5,'Исходные данные'!$H$55:$S$76,2+$A30,FALSE)*AL$10,0) -> 0 | AM30: =ROUND(HLOOKUP(AM$5,'Исходные данные'!$H$55:$S$76,2+$A30,FALSE)*AM$10,0) -> 0 | AN30: =ROUND(HLOOKUP(AN$5,'Исходные данные'!$H$55:$S$76,2+$A30,FALSE)*AN$10,0) -> 0 | AO30: =ROUND(HLOOKUP(AO$5,'Исходные данные'!$H$55:$S$76,2+$A30,FALSE)*AO$10,0) -> 0 | AP30: =ROUND(HLOOKUP(AP$5,'Исходные данные'!$H$55:$S$76,2+$A30,FALSE)*AP$10,0) -> 0 | AQ30: =ROUND(HLOOKUP(AQ$5,'Исходные данные'!$H$55:$S$76,2+$A30,FALSE)*AQ$10,0) -> 0 | AR30: =ROUND(HLOOKUP(AR$5,'Исходные данные'!$H$55:$S$76,2+$A30,FALSE)*AR$10,0) -> 0 | AS30: =ROUND(HLOOKUP(AS$5,'Исходные данные'!$H$55:$S$76,2+$A30,FALSE)*AS$10,0) -> 0 | AT30: =ROUND(HLOOKUP(AT$5,'Исходные данные'!$H$55:$S$76,2+$A30,FALSE)*AT$10,0) -> 0 | AU30: =ROUND(HLOOKUP(AU$5,'Исходные данные'!$H$55:$S$76,2+$A30,FALSE)*AU$10,0) -> 0 | AV30: =ROUND(HLOOKUP(AV$5,'Исходные данные'!$H$55:$S$76,2+$A30,FALSE)*AV$10,0) -> 0 | AW30: =ROUND(HLOOKUP(AW$5,'Исходные данные'!$H$55:$S$76,2+$A30,FALSE)*AW$10,0) -> 0 | AX30: =ROUND(HLOOKUP(AX$5,'Исходные данные'!$H$55:$S$76,2+$A30,FALSE)*AX$10,0) -> 0 | AY30: =ROUND(HLOOKUP(AY$5,'Исходные данные'!$H$55:$S$76,2+$A30,FALSE)*AY$10,0) -> 0 | AZ30: =ROUND(HLOOKUP(AZ$5,'Исходные данные'!$H$55:$S$76,2+$A30,FALSE)*AZ$10,0) -> 0 | BA30: =ROUND(HLOOKUP(BA$5,'Исходные данные'!$H$55:$S$76,2+$A30,FALSE)*BA$10,0) -> 0 | BB30: =ROUND(HLOOKUP(BB$5,'Исходные данные'!$H$55:$S$76,2+$A30,FALSE)*BB$10,0) -> 0 | BC30: =ROUND(HLOOKUP(BC$5,'Исходные данные'!$H$55:$S$76,2+$A30,FALSE)*BC$10,0) -> 0 | BD30: =ROUND(HLOOKUP(BD$5,'Исходные данные'!$H$55:$S$76,2+$A30,FALSE)*BD$10,0) -> 0 | BE30: =ROUND(HLOOKUP(BE$5,'Исходные данные'!$H$55:$S$76,2+$A30,FALSE)*BE$10,0) -> 0 | BF30: =ROUND(HLOOKUP(BF$5,'Исходные данные'!$H$55:$S$76,2+$A30,FALSE)*BF$10,0) -> 0 | BG30: =ROUND(HLOOKUP(BG$5,'Исходные данные'!$H$55:$S$76,2+$A30,FALSE)*BG$10,0) -> 0 | BH30: =ROUND(HLOOKUP(BH$5,'Исходные данные'!$H$55:$S$76,2+$A30,FALSE)*BH$10,0) -> 0 | BI30: =ROUND(HLOOKUP(BI$5,'Исходные данные'!$H$55:$S$76,2+$A30,FALSE)*BI$10,0) -> 0 | BJ30: =ROUND(HLOOKUP(BJ$5,'Исходные данные'!$H$55:$S$76,2+$A30,FALSE)*BJ$10,0) -> 0 | BK30: =ROUND(HLOOKUP(BK$5,'Исходные данные'!$H$55:$S$76,2+$A30,FALSE)*BK$10,0) -> 0
A31: 20 | B31: =IF(OR('Исходные данные'!B34=0,'Исходные данные'!B34=""),"",'Исходные данные'!B34) ->  | C31: 0 | D31: =ROUND(HLOOKUP(D$5,'Исходные данные'!$H$55:$S$76,2+$A31,FALSE)*D$10,0) -> 0 | E31: =ROUND(HLOOKUP(E$5,'Исходные данные'!$H$55:$S$76,2+$A31,FALSE)*E$10,0) -> 0 | F31: =ROUND(HLOOKUP(F$5,'Исходные данные'!$H$55:$S$76,2+$A31,FALSE)*F$10,0) -> 0 | G31: =ROUND(HLOOKUP(G$5,'Исходные данные'!$H$55:$S$76,2+$A31,FALSE)*G$10,0) -> 0 | H31: =ROUND(HLOOKUP(H$5,'Исходные данные'!$H$55:$S$76,2+$A31,FALSE)*H$10,0) -> 0 | I31: =ROUND(HLOOKUP(I$5,'Исходные данные'!$H$55:$S$76,2+$A31,FALSE)*I$10,0) -> 0 | J31: =ROUND(HLOOKUP(J$5,'Исходные данные'!$H$55:$S$76,2+$A31,FALSE)*J$10,0) -> 0 | K31: =ROUND(HLOOKUP(K$5,'Исходные данные'!$H$55:$S$76,2+$A31,FALSE)*K$10,0) -> 0 | L31: =ROUND(HLOOKUP(L$5,'Исходные данные'!$H$55:$S$76,2+$A31,FALSE)*L$10,0) -> 0 | M31: =ROUND(HLOOKUP(M$5,'Исходные данные'!$H$55:$S$76,2+$A31,FALSE)*M$10,0) -> 0 | N31: =ROUND(HLOOKUP(N$5,'Исходные данные'!$H$55:$S$76,2+$A31,FALSE)*N$10,0) -> 0 | O31: =ROUND(HLOOKUP(O$5,'Исходные данные'!$H$55:$S$76,2+$A31,FALSE)*O$10,0) -> 0 | P31: =ROUND(HLOOKUP(P$5,'Исходные данные'!$H$55:$S$76,2+$A31,FALSE)*P$10,0) -> 0 | Q31: =ROUND(HLOOKUP(Q$5,'Исходные данные'!$H$55:$S$76,2+$A31,FALSE)*Q$10,0) -> 0 | R31: =ROUND(HLOOKUP(R$5,'Исходные данные'!$H$55:$S$76,2+$A31,FALSE)*R$10,0) -> 0 | S31: =ROUND(HLOOKUP(S$5,'Исходные данные'!$H$55:$S$76,2+$A31,FALSE)*S$10,0) -> 0 | T31: =ROUND(HLOOKUP(T$5,'Исходные данные'!$H$55:$S$76,2+$A31,FALSE)*T$10,0) -> 0 | U31: =ROUND(HLOOKUP(U$5,'Исходные данные'!$H$55:$S$76,2+$A31,FALSE)*U$10,0) -> 0 | V31: =ROUND(HLOOKUP(V$5,'Исходные данные'!$H$55:$S$76,2+$A31,FALSE)*V$10,0) -> 0 | W31: =ROUND(HLOOKUP(W$5,'Исходные данные'!$H$55:$S$76,2+$A31,FALSE)*W$10,0) -> 0 | X31: =ROUND(HLOOKUP(X$5,'Исходные данные'!$H$55:$S$76,2+$A31,FALSE)*X$10,0) -> 0 | Y31: =ROUND(HLOOKUP(Y$5,'Исходные данные'!$H$55:$S$76,2+$A31,FALSE)*Y$10,0) -> 0 | Z31: =ROUND(HLOOKUP(Z$5,'Исходные данные'!$H$55:$S$76,2+$A31,FALSE)*Z$10,0) -> 0 | AA31: =ROUND(HLOOKUP(AA$5,'Исходные данные'!$H$55:$S$76,2+$A31,FALSE)*AA$10,0) -> 0 | AB31: =ROUND(HLOOKUP(AB$5,'Исходные данные'!$H$55:$S$76,2+$A31,FALSE)*AB$10,0) -> 0 | AC31: =ROUND(HLOOKUP(AC$5,'Исходные данные'!$H$55:$S$76,2+$A31,FALSE)*AC$10,0) -> 0 | AD31: =ROUND(HLOOKUP(AD$5,'Исходные данные'!$H$55:$S$76,2+$A31,FALSE)*AD$10,0) -> 0 | AE31: =ROUND(HLOOKUP(AE$5,'Исходные данные'!$H$55:$S$76,2+$A31,FALSE)*AE$10,0) -> 0 | AF31: =ROUND(HLOOKUP(AF$5,'Исходные данные'!$H$55:$S$76,2+$A31,FALSE)*AF$10,0) -> 0 | AG31: =ROUND(HLOOKUP(AG$5,'Исходные данные'!$H$55:$S$76,2+$A31,FALSE)*AG$10,0) -> 0 | AH31: =ROUND(HLOOKUP(AH$5,'Исходные данные'!$H$55:$S$76,2+$A31,FALSE)*AH$10,0) -> 0 | AI31: =ROUND(HLOOKUP(AI$5,'Исходные данные'!$H$55:$S$76,2+$A31,FALSE)*AI$10,0) -> 0 | AJ31: =ROUND(HLOOKUP(AJ$5,'Исходные данные'!$H$55:$S$76,2+$A31,FALSE)*AJ$10,0) -> 0 | AK31: =ROUND(HLOOKUP(AK$5,'Исходные данные'!$H$55:$S$76,2+$A31,FALSE)*AK$10,0) -> 0 | AL31: =ROUND(HLOOKUP(AL$5,'Исходные данные'!$H$55:$S$76,2+$A31,FALSE)*AL$10,0) -> 0 | AM31: =ROUND(HLOOKUP(AM$5,'Исходные данные'!$H$55:$S$76,2+$A31,FALSE)*AM$10,0) -> 0 | AN31: =ROUND(HLOOKUP(AN$5,'Исходные данные'!$H$55:$S$76,2+$A31,FALSE)*AN$10,0) -> 0 | AO31: =ROUND(HLOOKUP(AO$5,'Исходные данные'!$H$55:$S$76,2+$A31,FALSE)*AO$10,0) -> 0 | AP31: =ROUND(HLOOKUP(AP$5,'Исходные данные'!$H$55:$S$76,2+$A31,FALSE)*AP$10,0) -> 0 | AQ31: =ROUND(HLOOKUP(AQ$5,'Исходные данные'!$H$55:$S$76,2+$A31,FALSE)*AQ$10,0) -> 0 | AR31: =ROUND(HLOOKUP(AR$5,'Исходные данные'!$H$55:$S$76,2+$A31,FALSE)*AR$10,0) -> 0 | AS31: =ROUND(HLOOKUP(AS$5,'Исходные данные'!$H$55:$S$76,2+$A31,FALSE)*AS$10,0) -> 0 | AT31: =ROUND(HLOOKUP(AT$5,'Исходные данные'!$H$55:$S$76,2+$A31,FALSE)*AT$10,0) -> 0 | AU31: =ROUND(HLOOKUP(AU$5,'Исходные данные'!$H$55:$S$76,2+$A31,FALSE)*AU$10,0) -> 0 | AV31: =ROUND(HLOOKUP(AV$5,'Исходные данные'!$H$55:$S$76,2+$A31,FALSE)*AV$10,0) -> 0 | AW31: =ROUND(HLOOKUP(AW$5,'Исходные данные'!$H$55:$S$76,2+$A31,FALSE)*AW$10,0) -> 0 | AX31: =ROUND(HLOOKUP(AX$5,'Исходные данные'!$H$55:$S$76,2+$A31,FALSE)*AX$10,0) -> 0 | AY31: =ROUND(HLOOKUP(AY$5,'Исходные данные'!$H$55:$S$76,2+$A31,FALSE)*AY$10,0) -> 0 | AZ31: =ROUND(HLOOKUP(AZ$5,'Исходные данные'!$H$55:$S$76,2+$A31,FALSE)*AZ$10,0) -> 0 | BA31: =ROUND(HLOOKUP(BA$5,'Исходные данные'!$H$55:$S$76,2+$A31,FALSE)*BA$10,0) -> 0 | BB31: =ROUND(HLOOKUP(BB$5,'Исходные данные'!$H$55:$S$76,2+$A31,FALSE)*BB$10,0) -> 0 | BC31: =ROUND(HLOOKUP(BC$5,'Исходные данные'!$H$55:$S$76,2+$A31,FALSE)*BC$10,0) -> 0 | BD31: =ROUND(HLOOKUP(BD$5,'Исходные данные'!$H$55:$S$76,2+$A31,FALSE)*BD$10,0) -> 0 | BE31: =ROUND(HLOOKUP(BE$5,'Исходные данные'!$H$55:$S$76,2+$A31,FALSE)*BE$10,0) -> 0 | BF31: =ROUND(HLOOKUP(BF$5,'Исходные данные'!$H$55:$S$76,2+$A31,FALSE)*BF$10,0) -> 0 | BG31: =ROUND(HLOOKUP(BG$5,'Исходные данные'!$H$55:$S$76,2+$A31,FALSE)*BG$10,0) -> 0 | BH31: =ROUND(HLOOKUP(BH$5,'Исходные данные'!$H$55:$S$76,2+$A31,FALSE)*BH$10,0) -> 0 | BI31: =ROUND(HLOOKUP(BI$5,'Исходные данные'!$H$55:$S$76,2+$A31,FALSE)*BI$10,0) -> 0 | BJ31: =ROUND(HLOOKUP(BJ$5,'Исходные данные'!$H$55:$S$76,2+$A31,FALSE)*BJ$10,0) -> 0 | BK31: =ROUND(HLOOKUP(BK$5,'Исходные данные'!$H$55:$S$76,2+$A31,FALSE)*BK$10,0) -> 0
A32: СУММА ВЫРУЧКИ | C32: =SUM(C33:C52) -> 53487860 | D32: 506120 | E32: 592760 | F32: 666980 | G32: 666980 | H32: 723020 | I32: 750020 | J32: 1114140 | K32: 2014260 | L32: 979240 | M32: 784220 | N32: 739220 | O32: 750020 | P32: 723020 | Q32: 741020 | R32: 741020 | S32: 741020 | T32: 723020 | U32: 750020 | V32: 1114140 | W32: 2014260 | X32: 979240 | Y32: 784220 | Z32: 739220 | AA32: 750020 | AB32: 723020 | AC32: 741020 | AD32: 741020 | AE32: 741020 | AF32: 723020 | AG32: 750020 | AH32: 1114140 | AI32: =SUM(AI33:AI52) -> 2014260 | AJ32: 979240 | AK32: 784220 | AL32: 739220 | AM32: 750020 | AN32: 723020 | AO32: 741020 | AP32: 741020 | AQ32: 741020 | AR32: 723020 | AS32: 750020 | AT32: 1114140 | AU32: 2014260 | AV32: 979240 | AW32: 784220 | AX32: 739220 | AY32: 750020 | AZ32: 723020 | BA32: 741020 | BB32: 741020 | BC32: 741020 | BD32: 723020 | BE32: 750020 | BF32: 1114140 | BG32: 2014260 | BH32: 979240 | BI32: 784220 | BJ32: 739220 | BK32: 750020
A33: 1 | B33: =B12 -> Шаурма | C33: =SUM(D33:BK33) -> 26791100 | D33: =D12*'Исходные данные'!$D15 -> 210000 | E33: =E12*'Исходные данные'!$D15 -> 239960 | F33: =F12*'Исходные данные'!$D15 -> 270060 | G33: =G12*'Исходные данные'!$D15 -> 270060 | H33: =H12*'Исходные данные'!$D15 -> 300020 | I33: =I12*'Исходные данные'!$D15 -> 300020 | J33: =J12*'Исходные данные'!$D15 -> 674940 | K33: =K12*'Исходные данные'!$D15 -> 1530060 | L33: =L12*'Исходные данные'!$D15 -> 495040 | M33: =M12*'Исходные данные'!$D15 -> 300020 | N33: =N12*'Исходные данные'!$D15 -> 300020 | O33: =O12*'Исходные данные'!$D15 -> 300020 | P33: =P12*'Исходные данные'!$D15 -> 300020 | Q33: =Q12*'Исходные данные'!$D15 -> 300020 | R33: =R12*'Исходные данные'!$D15 -> 300020 | S33: =S12*'Исходные данные'!$D15 -> 300020 | T33: =T12*'Исходные данные'!$D15 -> 300020 | U33: =U12*'Исходные данные'!$D15 -> 300020 | V33: =V12*'Исходные данные'!$D15 -> 674940 | W33: =W12*'Исходные данные'!$D15 -> 1530060 | X33: =X12*'Исходные данные'!$D15 -> 495040 | Y33: =Y12*'Исходные данные'!$D15 -> 300020 | Z33: =Z12*'Исходные данные'!$D15 -> 300020 | AA33: =AA12*'Исходные данные'!$D15 -> 300020 | AB33: =AB12*'Исходные данные'!$D15 -> 300020 | AC33: =AC12*'Исходные данные'!$D15 -> 300020 | AD33: =AD12*'Исходные данные'!$D15 -> 300020 | AE33: =AE12*'Исходные данные'!$D15 -> 300020 | AF33: =AF12*'Исходные данные'!$D15 -> 300020 | AG33: =AG12*'Исходные данные'!$D15 -> 300020 | AH33: =AH12*'Исходные данные'!$D15 -> 674940 | AI33: =AI12*'Исходные данные'!$D15 -> 1530060 | AJ33: =AJ12*'Исходные данные'!$D15 -> 495040 | AK33: =AK12*'Исходные данные'!$D15 -> 300020 | AL33: =AL12*'Исходные данные'!$D15 -> 300020 | AM33: =AM12*'Исходные данные'!$D15 -> 300020 | AN33: =AN12*'Исходные данные'!$D15 -> 300020 | AO33: =AO12*'Исходные данные'!$D15 -> 300020 | AP33: =AP12*'Исходные данные'!$D15 -> 300020 | AQ33: =AQ12*'Исходные данные'!$D15 -> 300020 | AR33: =AR12*'Исходные данные'!$D15 -> 300020 | AS33: =AS12*'Исходные данные'!$D15 -> 300020 | AT33: =AT12*'Исходные данные'!$D15 -> 674940 | AU33: =AU12*'Исходные данные'!$D15 -> 1530060 | AV33: =AV12*'Исходные данные'!$D15 -> 495040 | AW33: =AW12*'Исходные данные'!$D15 -> 300020 | AX33: =AX12*'Исходные данные'!$D15 -> 300020 | AY33: =AY12*'Исходные данные'!$D15 -> 300020 | AZ33: =AZ12*'Исходные данные'!$D15 -> 300020 | BA33: =BA12*'Исходные данные'!$D15 -> 300020 | BB33: =BB12*'Исходные данные'!$D15 -> 300020 | BC33: =BC12*'Исходные данные'!$D15 -> 300020 | BD33: =BD12*'Исходные данные'!$D15 -> 300020 | BE33: =BE12*'Исходные данные'!$D15 -> 300020 | BF33: =BF12*'Исходные данные'!$D15 -> 674940 | BG33: =BG12*'Исходные данные'!$D15 -> 1530060 | BH33: =BH12*'Исходные данные'!$D15 -> 495040 | BI33: =BI12*'Исходные данные'!$D15 -> 300020 | BJ33: =BJ12*'Исходные данные'!$D15 -> 300020 | BK33: =BK12*'Исходные данные'!$D15 -> 300020
A34: =A33+1 -> 2 | B34: Кофе | C34: =SUM(D34:BK34) -> 13361400 | D34: =D13*'Исходные данные'!$D16 -> 138600 | E34: =E13*'Исходные данные'!$D16 -> 158400 | F34: =F13*'Исходные данные'!$D16 -> 178200 | G34: =G13*'Исходные данные'!$D16 -> 178200 | H34: =H13*'Исходные данные'!$D16 -> 198000 | I34: =I13*'Исходные данные'!$D16 -> 225000 | J34: =J13*'Исходные данные'!$D16 -> 225000 | K34: =K13*'Исходные данные'!$D16 -> 270000 | L34: =L13*'Исходные данные'!$D16 -> 270000 | M34: =M13*'Исходные данные'!$D16 -> 270000 | N34: =N13*'Исходные данные'!$D16 -> 225000 | O34: =O13*'Исходные данные'!$D16 -> 225000 | P34: =P13*'Исходные данные'!$D16 -> 198000 | Q34: =Q13*'Исходные данные'!$D16 -> 198000 | R34: =R13*'Исходные данные'!$D16 -> 198000 | S34: =S13*'Исходные данные'!$D16 -> 198000 | T34: =T13*'Исходные данные'!$D16 -> 198000 | U34: =U13*'Исходные данные'!$D16 -> 225000 | V34: =V13*'Исходные данные'!$D16 -> 225000 | W34: =W13*'Исходные данные'!$D16 -> 270000 | X34: =X13*'Исходные данные'!$D16 -> 270000 | Y34: =Y13*'Исходные данные'!$D16 -> 270000 | Z34: =Z13*'Исходные данные'!$D16 -> 225000 | AA34: =AA13*'Исходные данные'!$D16 -> 225000 | AB34: =AB13*'Исходные данные'!$D16 -> 198000 | AC34: =AC13*'Исходные данные'!$D16 -> 198000 | AD34: =AD13*'Исходные данные'!$D16 -> 198000 | AE34: =AE13*'Исходные данные'!$D16 -> 198000 | AF34: =AF13*'Исходные данные'!$D16 -> 198000 | AG34: =AG13*'Исходные данные'!$D16 -> 225000 | AH34: =AH13*'Исходные данные'!$D16 -> 225000 | AI34: =AI13*'Исходные данные'!$D16 -> 270000 | AJ34: =AJ13*'Исходные данные'!$D16 -> 270000 | AK34: =AK13*'Исходные данные'!$D16 -> 270000 | AL34: =AL13*'Исходные данные'!$D16 -> 225000 | AM34: =AM13*'Исходные данные'!$D16 -> 225000 | AN34: =AN13*'Исходные данные'!$D16 -> 198000 | AO34: =AO13*'Исходные данные'!$D16 -> 198000 | AP34: =AP13*'Исходные данные'!$D16 -> 198000 | AQ34: =AQ13*'Исходные данные'!$D16 -> 198000 | AR34: =AR13*'Исходные данные'!$D16 -> 198000 | AS34: =AS13*'Исходные данные'!$D16 -> 225000 | AT34: =AT13*'Исходные данные'!$D16 -> 225000 | AU34: =AU13*'Исходные данные'!$D16 -> 270000 | AV34: =AV13*'Исходные данные'!$D16 -> 270000 | AW34: =AW13*'Исходные данные'!$D16 -> 270000 | AX34: =AX13*'Исходные данные'!$D16 -> 225000 | AY34: =AY13*'Исходные данные'!$D16 -> 225000 | AZ34: =AZ13*'Исходные данные'!$D16 -> 198000 | BA34: =BA13*'Исходные данные'!$D16 -> 198000 | BB34: =BB13*'Исходные данные'!$D16 -> 198000 | BC34: =BC13*'Исходные данные'!$D16 -> 198000 | BD34: =BD13*'Исходные данные'!$D16 -> 198000 | BE34: =BE13*'Исходные данные'!$D16 -> 225000 | BF34: =BF13*'Исходные данные'!$D16 -> 225000 | BG34: =BG13*'Исходные данные'!$D16 -> 270000 | BH34: =BH13*'Исходные данные'!$D16 -> 270000 | BI34: =BI13*'Исходные данные'!$D16 -> 270000 | BJ34: =BJ13*'Исходные данные'!$D16 -> 225000 | BK34: =BK13*'Исходные данные'!$D16 -> 225000
A35: =A34+1 -> 3 | B35: Хот-дог | C35: 5337000 | D35: =D14*'Исходные данные'!$D17 -> 63000 | E35: =E14*'Исходные данные'!$D17 -> 72000 | F35: =F14*'Исходные данные'!$D17 -> 81000 | G35: =G14*'Исходные данные'!$D17 -> 81000 | H35: =H14*'Исходные данные'!$D17 -> 90000 | I35: =I14*'Исходные данные'!$D17 -> 90000 | J35: =J14*'Исходные данные'!$D17 -> 90000 | K35: =K14*'Исходные данные'!$D17 -> 90000 | L35: =L14*'Исходные данные'!$D17 -> 90000 | M35: =M14*'Исходные данные'!$D17 -> 90000 | N35: =N14*'Исходные данные'!$D17 -> 90000 | O35: =O14*'Исходные данные'!$D17 -> 90000 | P35: =P14*'Исходные данные'!$D17 -> 90000 | Q35: =Q14*'Исходные данные'!$D17 -> 90000 | R35: =R14*'Исходные данные'!$D17 -> 90000 | S35: =S14*'Исходные данные'!$D17 -> 90000 | T35: =T14*'Исходные данные'!$D17 -> 90000 | U35: =U14*'Исходные данные'!$D17 -> 90000 | V35: =V14*'Исходные данные'!$D17 -> 90000 | W35: =W14*'Исходные данные'!$D17 -> 90000 | X35: =X14*'Исходные данные'!$D17 -> 90000 | Y35: =Y14*'Исходные данные'!$D17 -> 90000 | Z35: =Z14*'Исходные данные'!$D17 -> 90000 | AA35: =AA14*'Исходные данные'!$D17 -> 90000 | AB35: =AB14*'Исходные данные'!$D17 -> 90000 | AC35: =AC14*'Исходные данные'!$D17 -> 90000 | AD35: =AD14*'Исходные данные'!$D17 -> 90000 | AE35: =AE14*'Исходные данные'!$D17 -> 90000 | AF35: =AF14*'Исходные данные'!$D17 -> 90000 | AG35: =AG14*'Исходные данные'!$D17 -> 90000 | AH35: =AH14*'Исходные данные'!$D17 -> 90000 | AI35: =AI14*'Исходные данные'!$D17 -> 90000 | AJ35: =AJ14*'Исходные данные'!$D17 -> 90000 | AK35: =AK14*'Исходные данные'!$D17 -> 90000 | AL35: =AL14*'Исходные данные'!$D17 -> 90000 | AM35: =AM14*'Исходные данные'!$D17 -> 90000 | AN35: =AN14*'Исходные данные'!$D17 -> 90000 | AO35: =AO14*'Исходные данные'!$D17 -> 90000 | AP35: =AP14*'Исходные данные'!$D17 -> 90000 | AQ35: =AQ14*'Исходные данные'!$D17 -> 90000 | AR35: =AR14*'Исходные данные'!$D17 -> 90000 | AS35: =AS14*'Исходные данные'!$D17 -> 90000 | AT35: =AT14*'Исходные данные'!$D17 -> 90000 | AU35: =AU14*'Исходные данные'!$D17 -> 90000 | AV35: =AV14*'Исходные данные'!$D17 -> 90000 | AW35: =AW14*'Исходные данные'!$D17 -> 90000 | AX35: =AX14*'Исходные данные'!$D17 -> 90000 | AY35: =AY14*'Исходные данные'!$D17 -> 90000 | AZ35: =AZ14*'Исходные данные'!$D17 -> 90000 | BA35: =BA14*'Исходные данные'!$D17 -> 90000 | BB35: =BB14*'Исходные данные'!$D17 -> 90000 | BC35: =BC14*'Исходные данные'!$D17 -> 90000 | BD35: =BD14*'Исходные данные'!$D17 -> 90000 | BE35: =BE14*'Исходные данные'!$D17 -> 90000 | BF35: =BF14*'Исходные данные'!$D17 -> 90000 | BG35: =BG14*'Исходные данные'!$D17 -> 90000 | BH35: =BH14*'Исходные данные'!$D17 -> 90000 | BI35: =BI14*'Исходные данные'!$D17 -> 90000 | BJ35: =BJ14*'Исходные данные'!$D17 -> 90000 | BK35: =BK14*'Исходные данные'!$D17 -> 90000
A36: 4 | B36: Газированный напиток | C36: 5329800 | D36: =D15*'Исходные данные'!$D18 -> 63000 | E36: =E15*'Исходные данные'!$D18 -> 86400 | F36: =F15*'Исходные данные'!$D18 -> 97200 | G36: =G15*'Исходные данные'!$D18 -> 97200 | H36: =H15*'Исходные данные'!$D18 -> 90000 | I36: =I15*'Исходные данные'!$D18 -> 90000 | J36: =J15*'Исходные данные'!$D18 -> 79200 | K36: =K15*'Исходные данные'!$D18 -> 79200 | L36: =L15*'Исходные данные'!$D18 -> 79200 | M36: =M15*'Исходные данные'!$D18 -> 79200 | N36: =N15*'Исходные данные'!$D18 -> 79200 | O36: =O15*'Исходные данные'!$D18 -> 90000 | P36: =P15*'Исходные данные'!$D18 -> 90000 | Q36: =Q15*'Исходные данные'!$D18 -> 108000 | R36: =R15*'Исходные данные'!$D18 -> 108000 | S36: =S15*'Исходные данные'!$D18 -> 108000 | T36: =T15*'Исходные данные'!$D18 -> 90000 | U36: =U15*'Исходные данные'!$D18 -> 90000 | V36: =V15*'Исходные данные'!$D18 -> 79200 | W36: =W15*'Исходные данные'!$D18 -> 79200 | X36: =X15*'Исходные данные'!$D18 -> 79200 | Y36: =Y15*'Исходные данные'!$D18 -> 79200 | Z36: =Z15*'Исходные данные'!$D18 -> 79200 | AA36: =AA15*'Исходные данные'!$D18 -> 90000 | AB36: =AB15*'Исходные данные'!$D18 -> 90000 | AC36: =AC15*'Исходные данные'!$D18 -> 108000 | AD36: =AD15*'Исходные данные'!$D18 -> 108000 | AE36: =AE15*'Исходные данные'!$D18 -> 108000 | AF36: =AF15*'Исходные данные'!$D18 -> 90000 | AG36: =AG15*'Исходные данные'!$D18 -> 90000 | AH36: =AH15*'Исходные данные'!$D18 -> 79200 | AI36: =AI15*'Исходные данные'!$D18 -> 79200 | AJ36: =AJ15*'Исходные данные'!$D18 -> 79200 | AK36: =AK15*'Исходные данные'!$D18 -> 79200 | AL36: =AL15*'Исходные данные'!$D18 -> 79200 | AM36: =AM15*'Исходные данные'!$D18 -> 90000 | AN36: =AN15*'Исходные данные'!$D18 -> 90000 | AO36: =AO15*'Исходные данные'!$D18 -> 108000 | AP36: =AP15*'Исходные данные'!$D18 -> 108000 | AQ36: =AQ15*'Исходные данные'!$D18 -> 108000 | AR36: =AR15*'Исходные данные'!$D18 -> 90000 | AS36: =AS15*'Исходные данные'!$D18 -> 90000 | AT36: =AT15*'Исходные данные'!$D18 -> 79200 | AU36: =AU15*'Исходные данные'!$D18 -> 79200 | AV36: =AV15*'Исходные данные'!$D18 -> 79200 | AW36: =AW15*'Исходные данные'!$D18 -> 79200 | AX36: =AX15*'Исходные данные'!$D18 -> 79200 | AY36: =AY15*'Исходные данные'!$D18 -> 90000 | AZ36: =AZ15*'Исходные данные'!$D18 -> 90000 | BA36: =BA15*'Исходные данные'!$D18 -> 108000 | BB36: =BB15*'Исходные данные'!$D18 -> 108000 | BC36: =BC15*'Исходные данные'!$D18 -> 108000 | BD36: =BD15*'Исходные данные'!$D18 -> 90000 | BE36: =BE15*'Исходные данные'!$D18 -> 90000 | BF36: =BF15*'Исходные данные'!$D18 -> 79200 | BG36: =BG15*'Исходные данные'!$D18 -> 79200 | BH36: =BH15*'Исходные данные'!$D18 -> 79200 | BI36: =BI15*'Исходные данные'!$D18 -> 79200 | BJ36: =BJ15*'Исходные данные'!$D18 -> 79200 | BK36: =BK15*'Исходные данные'!$D18 -> 90000
A37: 5 | B37: Чай | C37: 2668560 | D37: =D16*'Исходные данные'!$D19 -> 31520 | E37: =E16*'Исходные данные'!$D19 -> 36000 | F37: =F16*'Исходные данные'!$D19 -> 40520 | G37: =G16*'Исходные данные'!$D19 -> 40520 | H37: =H16*'Исходные данные'!$D19 -> 45000 | I37: =I16*'Исходные данные'!$D19 -> 45000 | J37: =J16*'Исходные данные'!$D19 -> 45000 | K37: =K16*'Исходные данные'!$D19 -> 45000 | L37: =L16*'Исходные данные'!$D19 -> 45000 | M37: =M16*'Исходные данные'!$D19 -> 45000 | N37: =N16*'Исходные данные'!$D19 -> 45000 | O37: =O16*'Исходные данные'!$D19 -> 45000 | P37: =P16*'Исходные данные'!$D19 -> 45000 | Q37: =Q16*'Исходные данные'!$D19 -> 45000 | R37: =R16*'Исходные данные'!$D19 -> 45000 | S37: =S16*'Исходные данные'!$D19 -> 45000 | T37: =T16*'Исходные данные'!$D19 -> 45000 | U37: =U16*'Исходные данные'!$D19 -> 45000 | V37: =V16*'Исходные данные'!$D19 -> 45000 | W37: =W16*'Исходные данные'!$D19 -> 45000 | X37: =X16*'Исходные данные'!$D19 -> 45000 | Y37: =Y16*'Исходные данные'!$D19 -> 45000 | Z37: =Z16*'Исходные данные'!$D19 -> 45000 | AA37: =AA16*'Исходные данные'!$D19 -> 45000 | AB37: =AB16*'Исходные данные'!$D19 -> 45000 | AC37: =AC16*'Исходные данные'!$D19 -> 45000 | AD37: =AD16*'Исходные данные'!$D19 -> 45000 | AE37: =AE16*'Исходные данные'!$D19 -> 45000 | AF37: =AF16*'Исходные данные'!$D19 -> 45000 | AG37: =AG16*'Исходные данные'!$D19 -> 45000 | AH37: =AH16*'Исходные данные'!$D19 -> 45000 | AI37: =AI16*'Исходные данные'!$D19 -> 45000 | AJ37: =AJ16*'Исходные данные'!$D19 -> 45000 | AK37: =AK16*'Исходные данные'!$D19 -> 45000 | AL37: =AL16*'Исходные данные'!$D19 -> 45000 | AM37: =AM16*'Исходные данные'!$D19 -> 45000 | AN37: =AN16*'Исходные данные'!$D19 -> 45000 | AO37: =AO16*'Исходные данные'!$D19 -> 45000 | AP37: =AP16*'Исходные данные'!$D19 -> 45000 | AQ37: =AQ16*'Исходные данные'!$D19 -> 45000 | AR37: =AR16*'Исходные данные'!$D19 -> 45000 | AS37: =AS16*'Исходные данные'!$D19 -> 45000 | AT37: =AT16*'Исходные данные'!$D19 -> 45000 | AU37: =AU16*'Исходные данные'!$D19 -> 45000 | AV37: =AV16*'Исходные данные'!$D19 -> 45000 | AW37: =AW16*'Исходные данные'!$D19 -> 45000 | AX37: =AX16*'Исходные данные'!$D19 -> 45000 | AY37: =AY16*'Исходные данные'!$D19 -> 45000 | AZ37: =AZ16*'Исходные данные'!$D19 -> 45000 | BA37: =BA16*'Исходные данные'!$D19 -> 45000 | BB37: =BB16*'Исходные данные'!$D19 -> 45000 | BC37: =BC16*'Исходные данные'!$D19 -> 45000 | BD37: =BD16*'Исходные данные'!$D19 -> 45000 | BE37: =BE16*'Исходные данные'!$D19 -> 45000 | BF37: =BF16*'Исходные данные'!$D19 -> 45000 | BG37: =BG16*'Исходные данные'!$D19 -> 45000 | BH37: =BH16*'Исходные данные'!$D19 -> 45000 | BI37: =BI16*'Исходные данные'!$D19 -> 45000 | BJ37: =BJ16*'Исходные данные'!$D19 -> 45000 | BK37: =BK16*'Исходные данные'!$D19 -> 45000
A38: 6 | C38: 0 | D38: =D17*'Исходные данные'!$D20 -> 0 | E38: =E17*'Исходные данные'!$D20 -> 0 | F38: =F17*'Исходные данные'!$D20 -> 0 | G38: =G17*'Исходные данные'!$D20 -> 0 | H38: =H17*'Исходные данные'!$D20 -> 0 | I38: =I17*'Исходные данные'!$D20 -> 0 | J38: =J17*'Исходные данные'!$D20 -> 0 | K38: =K17*'Исходные данные'!$D20 -> 0 | L38: =L17*'Исходные данные'!$D20 -> 0 | M38: =M17*'Исходные данные'!$D20 -> 0 | N38: =N17*'Исходные данные'!$D20 -> 0 | O38: =O17*'Исходные данные'!$D20 -> 0 | P38: =P17*'Исходные данные'!$D20 -> 0 | Q38: =Q17*'Исходные данные'!$D20 -> 0 | R38: =R17*'Исходные данные'!$D20 -> 0 | S38: =S17*'Исходные данные'!$D20 -> 0 | T38: =T17*'Исходные данные'!$D20 -> 0 | U38: =U17*'Исходные данные'!$D20 -> 0 | V38: =V17*'Исходные данные'!$D20 -> 0 | W38: =W17*'Исходные данные'!$D20 -> 0 | X38: =X17*'Исходные данные'!$D20 -> 0 | Y38: =Y17*'Исходные данные'!$D20 -> 0 | Z38: =Z17*'Исходные данные'!$D20 -> 0 | AA38: =AA17*'Исходные данные'!$D20 -> 0 | AB38: =AB17*'Исходные данные'!$D20 -> 0 | AC38: =AC17*'Исходные данные'!$D20 -> 0 | AD38: =AD17*'Исходные данные'!$D20 -> 0 | AE38: =AE17*'Исходные данные'!$D20 -> 0 | AF38: =AF17*'Исходные данные'!$D20 -> 0 | AG38: =AG17*'Исходные данные'!$D20 -> 0 | AH38: =AH17*'Исходные данные'!$D20 -> 0 | AI38: =AI17*'Исходные данные'!$D20 -> 0 | AJ38: =AJ17*'Исходные данные'!$D20 -> 0 | AK38: =AK17*'Исходные данные'!$D20 -> 0 | AL38: =AL17*'Исходные данные'!$D20 -> 0 | AM38: =AM17*'Исходные данные'!$D20 -> 0 | AN38: =AN17*'Исходные данные'!$D20 -> 0 | AO38: =AO17*'Исходные данные'!$D20 -> 0 | AP38: =AP17*'Исходные данные'!$D20 -> 0 | AQ38: =AQ17*'Исходные данные'!$D20 -> 0 | AR38: =AR17*'Исходные данные'!$D20 -> 0 | AS38: =AS17*'Исходные данные'!$D20 -> 0 | AT38: =AT17*'Исходные данные'!$D20 -> 0 | AU38: =AU17*'Исходные данные'!$D20 -> 0 | AV38: =AV17*'Исходные данные'!$D20 -> 0 | AW38: =AW17*'Исходные данные'!$D20 -> 0 | AX38: =AX17*'Исходные данные'!$D20 -> 0 | AY38: =AY17*'Исходные данные'!$D20 -> 0 | AZ38: =AZ17*'Исходные данные'!$D20 -> 0 | BA38: =BA17*'Исходные данные'!$D20 -> 0 | BB38: =BB17*'Исходные данные'!$D20 -> 0 | BC38: =BC17*'Исходные данные'!$D20 -> 0 | BD38: =BD17*'Исходные данные'!$D20 -> 0 | BE38: =BE17*'Исходные данные'!$D20 -> 0 | BF38: =BF17*'Исходные данные'!$D20 -> 0 | BG38: =BG17*'Исходные данные'!$D20 -> 0 | BH38: =BH17*'Исходные данные'!$D20 -> 0 | BI38: =BI17*'Исходные данные'!$D20 -> 0 | BJ38: =BJ17*'Исходные данные'!$D20 -> 0 | BK38: =BK17*'Исходные данные'!$D20 -> 0
A39: 7 | C39: 0 | D39: =D18*'Исходные данные'!$D21 -> 0 | E39: =E18*'Исходные данные'!$D21 -> 0 | F39: =F18*'Исходные данные'!$D21 -> 0 | G39: =G18*'Исходные данные'!$D21 -> 0 | H39: =H18*'Исходные данные'!$D21 -> 0 | I39: =I18*'Исходные данные'!$D21 -> 0 | J39: =J18*'Исходные данные'!$D21 -> 0 | K39: =K18*'Исходные данные'!$D21 -> 0 | L39: =L18*'Исходные данные'!$D21 -> 0 | M39: =M18*'Исходные данные'!$D21 -> 0 | N39: =N18*'Исходные данные'!$D21 -> 0 | O39: =O18*'Исходные данные'!$D21 -> 0 | P39: =P18*'Исходные данные'!$D21 -> 0 | Q39: =Q18*'Исходные данные'!$D21 -> 0 | R39: =R18*'Исходные данные'!$D21 -> 0 | S39: =S18*'Исходные данные'!$D21 -> 0 | T39: =T18*'Исходные данные'!$D21 -> 0 | U39: =U18*'Исходные данные'!$D21 -> 0 | V39: =V18*'Исходные данные'!$D21 -> 0 | W39: =W18*'Исходные данные'!$D21 -> 0 | X39: =X18*'Исходные данные'!$D21 -> 0 | Y39: =Y18*'Исходные данные'!$D21 -> 0 | Z39: =Z18*'Исходные данные'!$D21 -> 0 | AA39: =AA18*'Исходные данные'!$D21 -> 0 | AB39: =AB18*'Исходные данные'!$D21 -> 0 | AC39: =AC18*'Исходные данные'!$D21 -> 0 | AD39: =AD18*'Исходные данные'!$D21 -> 0 | AE39: =AE18*'Исходные данные'!$D21 -> 0 | AF39: =AF18*'Исходные данные'!$D21 -> 0 | AG39: =AG18*'Исходные данные'!$D21 -> 0 | AH39: =AH18*'Исходные данные'!$D21 -> 0 | AI39: =AI18*'Исходные данные'!$D21 -> 0 | AJ39: =AJ18*'Исходные данные'!$D21 -> 0 | AK39: =AK18*'Исходные данные'!$D21 -> 0 | AL39: =AL18*'Исходные данные'!$D21 -> 0 | AM39: =AM18*'Исходные данные'!$D21 -> 0 | AN39: =AN18*'Исходные данные'!$D21 -> 0 | AO39: =AO18*'Исходные данные'!$D21 -> 0 | AP39: =AP18*'Исходные данные'!$D21 -> 0 | AQ39: =AQ18*'Исходные данные'!$D21 -> 0 | AR39: =AR18*'Исходные данные'!$D21 -> 0 | AS39: =AS18*'Исходные данные'!$D21 -> 0 | AT39: =AT18*'Исходные данные'!$D21 -> 0 | AU39: =AU18*'Исходные данные'!$D21 -> 0 | AV39: =AV18*'Исходные данные'!$D21 -> 0 | AW39: =AW18*'Исходные данные'!$D21 -> 0 | AX39: =AX18*'Исходные данные'!$D21 -> 0 | AY39: =AY18*'Исходные данные'!$D21 -> 0 | AZ39: =AZ18*'Исходные данные'!$D21 -> 0 | BA39: =BA18*'Исходные данные'!$D21 -> 0 | BB39: =BB18*'Исходные данные'!$D21 -> 0 | BC39: =BC18*'Исходные данные'!$D21 -> 0 | BD39: =BD18*'Исходные данные'!$D21 -> 0 | BE39: =BE18*'Исходные данные'!$D21 -> 0 | BF39: =BF18*'Исходные данные'!$D21 -> 0 | BG39: =BG18*'Исходные данные'!$D21 -> 0 | BH39: =BH18*'Исходные данные'!$D21 -> 0 | BI39: =BI18*'Исходные данные'!$D21 -> 0 | BJ39: =BJ18*'Исходные данные'!$D21 -> 0 | BK39: =BK18*'Исходные данные'!$D21 -> 0
A40: 8 | C40: 0 | D40: =D19*'Исходные данные'!$D22 -> 0 | E40: =E19*'Исходные данные'!$D22 -> 0 | F40: =F19*'Исходные данные'!$D22 -> 0 | G40: =G19*'Исходные данные'!$D22 -> 0 | H40: =H19*'Исходные данные'!$D22 -> 0 | I40: =I19*'Исходные данные'!$D22 -> 0 | J40: =J19*'Исходные данные'!$D22 -> 0 | K40: =K19*'Исходные данные'!$D22 -> 0 | L40: =L19*'Исходные данные'!$D22 -> 0 | M40: =M19*'Исходные данные'!$D22 -> 0 | N40: =N19*'Исходные данные'!$D22 -> 0 | O40: =O19*'Исходные данные'!$D22 -> 0 | P40: =P19*'Исходные данные'!$D22 -> 0 | Q40: =Q19*'Исходные данные'!$D22 -> 0 | R40: =R19*'Исходные данные'!$D22 -> 0 | S40: =S19*'Исходные данные'!$D22 -> 0 | T40: =T19*'Исходные данные'!$D22 -> 0 | U40: =U19*'Исходные данные'!$D22 -> 0 | V40: =V19*'Исходные данные'!$D22 -> 0 | W40: =W19*'Исходные данные'!$D22 -> 0 | X40: =X19*'Исходные данные'!$D22 -> 0 | Y40: =Y19*'Исходные данные'!$D22 -> 0 | Z40: =Z19*'Исходные данные'!$D22 -> 0 | AA40: =AA19*'Исходные данные'!$D22 -> 0 | AB40: =AB19*'Исходные данные'!$D22 -> 0 | AC40: =AC19*'Исходные данные'!$D22 -> 0 | AD40: =AD19*'Исходные данные'!$D22 -> 0 | AE40: =AE19*'Исходные данные'!$D22 -> 0 | AF40: =AF19*'Исходные данные'!$D22 -> 0 | AG40: =AG19*'Исходные данные'!$D22 -> 0 | AH40: =AH19*'Исходные данные'!$D22 -> 0 | AI40: =AI19*'Исходные данные'!$D22 -> 0 | AJ40: =AJ19*'Исходные данные'!$D22 -> 0 | AK40: =AK19*'Исходные данные'!$D22 -> 0 | AL40: =AL19*'Исходные данные'!$D22 -> 0 | AM40: =AM19*'Исходные данные'!$D22 -> 0 | AN40: =AN19*'Исходные данные'!$D22 -> 0 | AO40: =AO19*'Исходные данные'!$D22 -> 0 | AP40: =AP19*'Исходные данные'!$D22 -> 0 | AQ40: =AQ19*'Исходные данные'!$D22 -> 0 | AR40: =AR19*'Исходные данные'!$D22 -> 0 | AS40: =AS19*'Исходные данные'!$D22 -> 0 | AT40: =AT19*'Исходные данные'!$D22 -> 0 | AU40: =AU19*'Исходные данные'!$D22 -> 0 | AV40: =AV19*'Исходные данные'!$D22 -> 0 | AW40: =AW19*'Исходные данные'!$D22 -> 0 | AX40: =AX19*'Исходные данные'!$D22 -> 0 | AY40: =AY19*'Исходные данные'!$D22 -> 0 | AZ40: =AZ19*'Исходные данные'!$D22 -> 0 | BA40: =BA19*'Исходные данные'!$D22 -> 0 | BB40: =BB19*'Исходные данные'!$D22 -> 0 | BC40: =BC19*'Исходные данные'!$D22 -> 0 | BD40: =BD19*'Исходные данные'!$D22 -> 0 | BE40: =BE19*'Исходные данные'!$D22 -> 0 | BF40: =BF19*'Исходные данные'!$D22 -> 0 | BG40: =BG19*'Исходные данные'!$D22 -> 0 | BH40: =BH19*'Исходные данные'!$D22 -> 0 | BI40: =BI19*'Исходные данные'!$D22 -> 0 | BJ40: =BJ19*'Исходные данные'!$D22 -> 0 | BK40: =BK19*'Исходные данные'!$D22 -> 0
A41: 9 | C41: 0 | D41: =D20*'Исходные данные'!$D23 -> 0 | E41: =E20*'Исходные данные'!$D23 -> 0 | F41: =F20*'Исходные данные'!$D23 -> 0 | G41: =G20*'Исходные данные'!$D23 -> 0 | H41: =H20*'Исходные данные'!$D23 -> 0 | I41: =I20*'Исходные данные'!$D23 -> 0 | J41: =J20*'Исходные данные'!$D23 -> 0 | K41: =K20*'Исходные данные'!$D23 -> 0 | L41: =L20*'Исходные данные'!$D23 -> 0 | M41: =M20*'Исходные данные'!$D23 -> 0 | N41: =N20*'Исходные данные'!$D23 -> 0 | O41: =O20*'Исходные данные'!$D23 -> 0 | P41: =P20*'Исходные данные'!$D23 -> 0 | Q41: =Q20*'Исходные данные'!$D23 -> 0 | R41: =R20*'Исходные данные'!$D23 -> 0 | S41: =S20*'Исходные данные'!$D23 -> 0 | T41: =T20*'Исходные данные'!$D23 -> 0 | U41: =U20*'Исходные данные'!$D23 -> 0 | V41: =V20*'Исходные данные'!$D23 -> 0 | W41: =W20*'Исходные данные'!$D23 -> 0 | X41: =X20*'Исходные данные'!$D23 -> 0 | Y41: =Y20*'Исходные данные'!$D23 -> 0 | Z41: =Z20*'Исходные данные'!$D23 -> 0 | AA41: =AA20*'Исходные данные'!$D23 -> 0 | AB41: =AB20*'Исходные данные'!$D23 -> 0 | AC41: =AC20*'Исходные данные'!$D23 -> 0 | AD41: =AD20*'Исходные данные'!$D23 -> 0 | AE41: =AE20*'Исходные данные'!$D23 -> 0 | AF41: =AF20*'Исходные данные'!$D23 -> 0 | AG41: =AG20*'Исходные данные'!$D23 -> 0 | AH41: =AH20*'Исходные данные'!$D23 -> 0 | AI41: =AI20*'Исходные данные'!$D23 -> 0 | AJ41: =AJ20*'Исходные данные'!$D23 -> 0 | AK41: =AK20*'Исходные данные'!$D23 -> 0 | AL41: =AL20*'Исходные данные'!$D23 -> 0 | AM41: =AM20*'Исходные данные'!$D23 -> 0 | AN41: =AN20*'Исходные данные'!$D23 -> 0 | AO41: =AO20*'Исходные данные'!$D23 -> 0 | AP41: =AP20*'Исходные данные'!$D23 -> 0 | AQ41: =AQ20*'Исходные данные'!$D23 -> 0 | AR41: =AR20*'Исходные данные'!$D23 -> 0 | AS41: =AS20*'Исходные данные'!$D23 -> 0 | AT41: =AT20*'Исходные данные'!$D23 -> 0 | AU41: =AU20*'Исходные данные'!$D23 -> 0 | AV41: =AV20*'Исходные данные'!$D23 -> 0 | AW41: =AW20*'Исходные данные'!$D23 -> 0 | AX41: =AX20*'Исходные данные'!$D23 -> 0 | AY41: =AY20*'Исходные данные'!$D23 -> 0 | AZ41: =AZ20*'Исходные данные'!$D23 -> 0 | BA41: =BA20*'Исходные данные'!$D23 -> 0 | BB41: =BB20*'Исходные данные'!$D23 -> 0 | BC41: =BC20*'Исходные данные'!$D23 -> 0 | BD41: =BD20*'Исходные данные'!$D23 -> 0 | BE41: =BE20*'Исходные данные'!$D23 -> 0 | BF41: =BF20*'Исходные данные'!$D23 -> 0 | BG41: =BG20*'Исходные данные'!$D23 -> 0 | BH41: =BH20*'Исходные данные'!$D23 -> 0 | BI41: =BI20*'Исходные данные'!$D23 -> 0 | BJ41: =BJ20*'Исходные данные'!$D23 -> 0 | BK41: =BK20*'Исходные данные'!$D23 -> 0
A42: 10 | C42: 0 | D42: =D21*'Исходные данные'!$D24 -> 0 | E42: =E21*'Исходные данные'!$D24 -> 0 | F42: =F21*'Исходные данные'!$D24 -> 0 | G42: =G21*'Исходные данные'!$D24 -> 0 | H42: =H21*'Исходные данные'!$D24 -> 0 | I42: =I21*'Исходные данные'!$D24 -> 0 | J42: =J21*'Исходные данные'!$D24 -> 0 | K42: =K21*'Исходные данные'!$D24 -> 0 | L42: =L21*'Исходные данные'!$D24 -> 0 | M42: =M21*'Исходные данные'!$D24 -> 0 | N42: =N21*'Исходные данные'!$D24 -> 0 | O42: =O21*'Исходные данные'!$D24 -> 0 | P42: =P21*'Исходные данные'!$D24 -> 0 | Q42: =Q21*'Исходные данные'!$D24 -> 0 | R42: =R21*'Исходные данные'!$D24 -> 0 | S42: =S21*'Исходные данные'!$D24 -> 0 | T42: =T21*'Исходные данные'!$D24 -> 0 | U42: =U21*'Исходные данные'!$D24 -> 0 | V42: =V21*'Исходные данные'!$D24 -> 0 | W42: =W21*'Исходные данные'!$D24 -> 0 | X42: =X21*'Исходные данные'!$D24 -> 0 | Y42: =Y21*'Исходные данные'!$D24 -> 0 | Z42: =Z21*'Исходные данные'!$D24 -> 0 | AA42: =AA21*'Исходные данные'!$D24 -> 0 | AB42: =AB21*'Исходные данные'!$D24 -> 0 | AC42: =AC21*'Исходные данные'!$D24 -> 0 | AD42: =AD21*'Исходные данные'!$D24 -> 0 | AE42: =AE21*'Исходные данные'!$D24 -> 0 | AF42: =AF21*'Исходные данные'!$D24 -> 0 | AG42: =AG21*'Исходные данные'!$D24 -> 0 | AH42: =AH21*'Исходные данные'!$D24 -> 0 | AI42: =AI21*'Исходные данные'!$D24 -> 0 | AJ42: =AJ21*'Исходные данные'!$D24 -> 0 | AK42: =AK21*'Исходные данные'!$D24 -> 0 | AL42: =AL21*'Исходные данные'!$D24 -> 0 | AM42: =AM21*'Исходные данные'!$D24 -> 0 | AN42: =AN21*'Исходные данные'!$D24 -> 0 | AO42: =AO21*'Исходные данные'!$D24 -> 0 | AP42: =AP21*'Исходные данные'!$D24 -> 0 | AQ42: =AQ21*'Исходные данные'!$D24 -> 0 | AR42: =AR21*'Исходные данные'!$D24 -> 0 | AS42: =AS21*'Исходные данные'!$D24 -> 0 | AT42: =AT21*'Исходные данные'!$D24 -> 0 | AU42: =AU21*'Исходные данные'!$D24 -> 0 | AV42: =AV21*'Исходные данные'!$D24 -> 0 | AW42: =AW21*'Исходные данные'!$D24 -> 0 | AX42: =AX21*'Исходные данные'!$D24 -> 0 | AY42: =AY21*'Исходные данные'!$D24 -> 0 | AZ42: =AZ21*'Исходные данные'!$D24 -> 0 | BA42: =BA21*'Исходные данные'!$D24 -> 0 | BB42: =BB21*'Исходные данные'!$D24 -> 0 | BC42: =BC21*'Исходные данные'!$D24 -> 0 | BD42: =BD21*'Исходные данные'!$D24 -> 0 | BE42: =BE21*'Исходные данные'!$D24 -> 0 | BF42: =BF21*'Исходные данные'!$D24 -> 0 | BG42: =BG21*'Исходные данные'!$D24 -> 0 | BH42: =BH21*'Исходные данные'!$D24 -> 0 | BI42: =BI21*'Исходные данные'!$D24 -> 0 | BJ42: =BJ21*'Исходные данные'!$D24 -> 0 | BK42: =BK21*'Исходные данные'!$D24 -> 0
A43: 11 | C43: 0 | D43: =D22*'Исходные данные'!$D25 -> 0 | E43: =E22*'Исходные данные'!$D25 -> 0 | F43: =F22*'Исходные данные'!$D25 -> 0 | G43: =G22*'Исходные данные'!$D25 -> 0 | H43: =H22*'Исходные данные'!$D25 -> 0 | I43: =I22*'Исходные данные'!$D25 -> 0 | J43: =J22*'Исходные данные'!$D25 -> 0 | K43: =K22*'Исходные данные'!$D25 -> 0 | L43: =L22*'Исходные данные'!$D25 -> 0 | M43: =M22*'Исходные данные'!$D25 -> 0 | N43: =N22*'Исходные данные'!$D25 -> 0 | O43: =O22*'Исходные данные'!$D25 -> 0 | P43: =P22*'Исходные данные'!$D25 -> 0 | Q43: =Q22*'Исходные данные'!$D25 -> 0 | R43: =R22*'Исходные данные'!$D25 -> 0 | S43: =S22*'Исходные данные'!$D25 -> 0 | T43: =T22*'Исходные данные'!$D25 -> 0 | U43: =U22*'Исходные данные'!$D25 -> 0 | V43: =V22*'Исходные данные'!$D25 -> 0 | W43: =W22*'Исходные данные'!$D25 -> 0 | X43: =X22*'Исходные данные'!$D25 -> 0 | Y43: =Y22*'Исходные данные'!$D25 -> 0 | Z43: =Z22*'Исходные данные'!$D25 -> 0 | AA43: =AA22*'Исходные данные'!$D25 -> 0 | AB43: =AB22*'Исходные данные'!$D25 -> 0 | AC43: =AC22*'Исходные данные'!$D25 -> 0 | AD43: =AD22*'Исходные данные'!$D25 -> 0 | AE43: =AE22*'Исходные данные'!$D25 -> 0 | AF43: =AF22*'Исходные данные'!$D25 -> 0 | AG43: =AG22*'Исходные данные'!$D25 -> 0 | AH43: =AH22*'Исходные данные'!$D25 -> 0 | AI43: =AI22*'Исходные данные'!$D25 -> 0 | AJ43: =AJ22*'Исходные данные'!$D25 -> 0 | AK43: =AK22*'Исходные данные'!$D25 -> 0 | AL43: =AL22*'Исходные данные'!$D25 -> 0 | AM43: =AM22*'Исходные данные'!$D25 -> 0 | AN43: =AN22*'Исходные данные'!$D25 -> 0 | AO43: =AO22*'Исходные данные'!$D25 -> 0 | AP43: =AP22*'Исходные данные'!$D25 -> 0 | AQ43: =AQ22*'Исходные данные'!$D25 -> 0 | AR43: =AR22*'Исходные данные'!$D25 -> 0 | AS43: =AS22*'Исходные данные'!$D25 -> 0 | AT43: =AT22*'Исходные данные'!$D25 -> 0 | AU43: =AU22*'Исходные данные'!$D25 -> 0 | AV43: =AV22*'Исходные данные'!$D25 -> 0 | AW43: =AW22*'Исходные данные'!$D25 -> 0 | AX43: =AX22*'Исходные данные'!$D25 -> 0 | AY43: =AY22*'Исходные данные'!$D25 -> 0 | AZ43: =AZ22*'Исходные данные'!$D25 -> 0 | BA43: =BA22*'Исходные данные'!$D25 -> 0 | BB43: =BB22*'Исходные данные'!$D25 -> 0 | BC43: =BC22*'Исходные данные'!$D25 -> 0 | BD43: =BD22*'Исходные данные'!$D25 -> 0 | BE43: =BE22*'Исходные данные'!$D25 -> 0 | BF43: =BF22*'Исходные данные'!$D25 -> 0 | BG43: =BG22*'Исходные данные'!$D25 -> 0 | BH43: =BH22*'Исходные данные'!$D25 -> 0 | BI43: =BI22*'Исходные данные'!$D25 -> 0 | BJ43: =BJ22*'Исходные данные'!$D25 -> 0 | BK43: =BK22*'Исходные данные'!$D25 -> 0
A44: 12 | C44: 0 | D44: =D23*'Исходные данные'!$D26 -> 0 | E44: =E23*'Исходные данные'!$D26 -> 0 | F44: =F23*'Исходные данные'!$D26 -> 0 | G44: =G23*'Исходные данные'!$D26 -> 0 | H44: =H23*'Исходные данные'!$D26 -> 0 | I44: =I23*'Исходные данные'!$D26 -> 0 | J44: =J23*'Исходные данные'!$D26 -> 0 | K44: =K23*'Исходные данные'!$D26 -> 0 | L44: =L23*'Исходные данные'!$D26 -> 0 | M44: =M23*'Исходные данные'!$D26 -> 0 | N44: =N23*'Исходные данные'!$D26 -> 0 | O44: =O23*'Исходные данные'!$D26 -> 0 | P44: =P23*'Исходные данные'!$D26 -> 0 | Q44: =Q23*'Исходные данные'!$D26 -> 0 | R44: =R23*'Исходные данные'!$D26 -> 0 | S44: =S23*'Исходные данные'!$D26 -> 0 | T44: =T23*'Исходные данные'!$D26 -> 0 | U44: =U23*'Исходные данные'!$D26 -> 0 | V44: =V23*'Исходные данные'!$D26 -> 0 | W44: =W23*'Исходные данные'!$D26 -> 0 | X44: =X23*'Исходные данные'!$D26 -> 0 | Y44: =Y23*'Исходные данные'!$D26 -> 0 | Z44: =Z23*'Исходные данные'!$D26 -> 0 | AA44: =AA23*'Исходные данные'!$D26 -> 0 | AB44: =AB23*'Исходные данные'!$D26 -> 0 | AC44: =AC23*'Исходные данные'!$D26 -> 0 | AD44: =AD23*'Исходные данные'!$D26 -> 0 | AE44: =AE23*'Исходные данные'!$D26 -> 0 | AF44: =AF23*'Исходные данные'!$D26 -> 0 | AG44: =AG23*'Исходные данные'!$D26 -> 0 | AH44: =AH23*'Исходные данные'!$D26 -> 0 | AI44: =AI23*'Исходные данные'!$D26 -> 0 | AJ44: =AJ23*'Исходные данные'!$D26 -> 0 | AK44: =AK23*'Исходные данные'!$D26 -> 0 | AL44: =AL23*'Исходные данные'!$D26 -> 0 | AM44: =AM23*'Исходные данные'!$D26 -> 0 | AN44: =AN23*'Исходные данные'!$D26 -> 0 | AO44: =AO23*'Исходные данные'!$D26 -> 0 | AP44: =AP23*'Исходные данные'!$D26 -> 0 | AQ44: =AQ23*'Исходные данные'!$D26 -> 0 | AR44: =AR23*'Исходные данные'!$D26 -> 0 | AS44: =AS23*'Исходные данные'!$D26 -> 0 | AT44: =AT23*'Исходные данные'!$D26 -> 0 | AU44: =AU23*'Исходные данные'!$D26 -> 0 | AV44: =AV23*'Исходные данные'!$D26 -> 0 | AW44: =AW23*'Исходные данные'!$D26 -> 0 | AX44: =AX23*'Исходные данные'!$D26 -> 0 | AY44: =AY23*'Исходные данные'!$D26 -> 0 | AZ44: =AZ23*'Исходные данные'!$D26 -> 0 | BA44: =BA23*'Исходные данные'!$D26 -> 0 | BB44: =BB23*'Исходные данные'!$D26 -> 0 | BC44: =BC23*'Исходные данные'!$D26 -> 0 | BD44: =BD23*'Исходные данные'!$D26 -> 0 | BE44: =BE23*'Исходные данные'!$D26 -> 0 | BF44: =BF23*'Исходные данные'!$D26 -> 0 | BG44: =BG23*'Исходные данные'!$D26 -> 0 | BH44: =BH23*'Исходные данные'!$D26 -> 0 | BI44: =BI23*'Исходные данные'!$D26 -> 0 | BJ44: =BJ23*'Исходные данные'!$D26 -> 0 | BK44: =BK23*'Исходные данные'!$D26 -> 0
A45: 13 | C45: 0 | D45: =D24*'Исходные данные'!$D27 -> 0 | E45: =E24*'Исходные данные'!$D27 -> 0 | F45: =F24*'Исходные данные'!$D27 -> 0 | G45: =G24*'Исходные данные'!$D27 -> 0 | H45: =H24*'Исходные данные'!$D27 -> 0 | I45: =I24*'Исходные данные'!$D27 -> 0 | J45: =J24*'Исходные данные'!$D27 -> 0 | K45: =K24*'Исходные данные'!$D27 -> 0 | L45: =L24*'Исходные данные'!$D27 -> 0 | M45: =M24*'Исходные данные'!$D27 -> 0 | N45: =N24*'Исходные данные'!$D27 -> 0 | O45: =O24*'Исходные данные'!$D27 -> 0 | P45: =P24*'Исходные данные'!$D27 -> 0 | Q45: =Q24*'Исходные данные'!$D27 -> 0 | R45: =R24*'Исходные данные'!$D27 -> 0 | S45: =S24*'Исходные данные'!$D27 -> 0 | T45: =T24*'Исходные данные'!$D27 -> 0 | U45: =U24*'Исходные данные'!$D27 -> 0 | V45: =V24*'Исходные данные'!$D27 -> 0 | W45: =W24*'Исходные данные'!$D27 -> 0 | X45: =X24*'Исходные данные'!$D27 -> 0 | Y45: =Y24*'Исходные данные'!$D27 -> 0 | Z45: =Z24*'Исходные данные'!$D27 -> 0 | AA45: =AA24*'Исходные данные'!$D27 -> 0 | AB45: =AB24*'Исходные данные'!$D27 -> 0 | AC45: =AC24*'Исходные данные'!$D27 -> 0 | AD45: =AD24*'Исходные данные'!$D27 -> 0 | AE45: =AE24*'Исходные данные'!$D27 -> 0 | AF45: =AF24*'Исходные данные'!$D27 -> 0 | AG45: =AG24*'Исходные данные'!$D27 -> 0 | AH45: =AH24*'Исходные данные'!$D27 -> 0 | AI45: =AI24*'Исходные данные'!$D27 -> 0 | AJ45: =AJ24*'Исходные данные'!$D27 -> 0 | AK45: =AK24*'Исходные данные'!$D27 -> 0 | AL45: =AL24*'Исходные данные'!$D27 -> 0 | AM45: =AM24*'Исходные данные'!$D27 -> 0 | AN45: =AN24*'Исходные данные'!$D27 -> 0 | AO45: =AO24*'Исходные данные'!$D27 -> 0 | AP45: =AP24*'Исходные данные'!$D27 -> 0 | AQ45: =AQ24*'Исходные данные'!$D27 -> 0 | AR45: =AR24*'Исходные данные'!$D27 -> 0 | AS45: =AS24*'Исходные данные'!$D27 -> 0 | AT45: =AT24*'Исходные данные'!$D27 -> 0 | AU45: =AU24*'Исходные данные'!$D27 -> 0 | AV45: =AV24*'Исходные данные'!$D27 -> 0 | AW45: =AW24*'Исходные данные'!$D27 -> 0 | AX45: =AX24*'Исходные данные'!$D27 -> 0 | AY45: =AY24*'Исходные данные'!$D27 -> 0 | AZ45: =AZ24*'Исходные данные'!$D27 -> 0 | BA45: =BA24*'Исходные данные'!$D27 -> 0 | BB45: =BB24*'Исходные данные'!$D27 -> 0 | BC45: =BC24*'Исходные данные'!$D27 -> 0 | BD45: =BD24*'Исходные данные'!$D27 -> 0 | BE45: =BE24*'Исходные данные'!$D27 -> 0 | BF45: =BF24*'Исходные данные'!$D27 -> 0 | BG45: =BG24*'Исходные данные'!$D27 -> 0 | BH45: =BH24*'Исходные данные'!$D27 -> 0 | BI45: =BI24*'Исходные данные'!$D27 -> 0 | BJ45: =BJ24*'Исходные данные'!$D27 -> 0 | BK45: =BK24*'Исходные данные'!$D27 -> 0
A46: 14 | C46: 0 | D46: =D25*'Исходные данные'!$D28 -> 0 | E46: =E25*'Исходные данные'!$D28 -> 0 | F46: =F25*'Исходные данные'!$D28 -> 0 | G46: =G25*'Исходные данные'!$D28 -> 0 | H46: =H25*'Исходные данные'!$D28 -> 0 | I46: =I25*'Исходные данные'!$D28 -> 0 | J46: =J25*'Исходные данные'!$D28 -> 0 | K46: =K25*'Исходные данные'!$D28 -> 0 | L46: =L25*'Исходные данные'!$D28 -> 0 | M46: =M25*'Исходные данные'!$D28 -> 0 | N46: =N25*'Исходные данные'!$D28 -> 0 | O46: =O25*'Исходные данные'!$D28 -> 0 | P46: =P25*'Исходные данные'!$D28 -> 0 | Q46: =Q25*'Исходные данные'!$D28 -> 0 | R46: =R25*'Исходные данные'!$D28 -> 0 | S46: =S25*'Исходные данные'!$D28 -> 0 | T46: =T25*'Исходные данные'!$D28 -> 0 | U46: =U25*'Исходные данные'!$D28 -> 0 | V46: =V25*'Исходные данные'!$D28 -> 0 | W46: =W25*'Исходные данные'!$D28 -> 0 | X46: =X25*'Исходные данные'!$D28 -> 0 | Y46: =Y25*'Исходные данные'!$D28 -> 0 | Z46: =Z25*'Исходные данные'!$D28 -> 0 | AA46: =AA25*'Исходные данные'!$D28 -> 0 | AB46: =AB25*'Исходные данные'!$D28 -> 0 | AC46: =AC25*'Исходные данные'!$D28 -> 0 | AD46: =AD25*'Исходные данные'!$D28 -> 0 | AE46: =AE25*'Исходные данные'!$D28 -> 0 | AF46: =AF25*'Исходные данные'!$D28 -> 0 | AG46: =AG25*'Исходные данные'!$D28 -> 0 | AH46: =AH25*'Исходные данные'!$D28 -> 0 | AI46: =AI25*'Исходные данные'!$D28 -> 0 | AJ46: =AJ25*'Исходные данные'!$D28 -> 0 | AK46: =AK25*'Исходные данные'!$D28 -> 0 | AL46: =AL25*'Исходные данные'!$D28 -> 0 | AM46: =AM25*'Исходные данные'!$D28 -> 0 | AN46: =AN25*'Исходные данные'!$D28 -> 0 | AO46: =AO25*'Исходные данные'!$D28 -> 0 | AP46: =AP25*'Исходные данные'!$D28 -> 0 | AQ46: =AQ25*'Исходные данные'!$D28 -> 0 | AR46: =AR25*'Исходные данные'!$D28 -> 0 | AS46: =AS25*'Исходные данные'!$D28 -> 0 | AT46: =AT25*'Исходные данные'!$D28 -> 0 | AU46: =AU25*'Исходные данные'!$D28 -> 0 | AV46: =AV25*'Исходные данные'!$D28 -> 0 | AW46: =AW25*'Исходные данные'!$D28 -> 0 | AX46: =AX25*'Исходные данные'!$D28 -> 0 | AY46: =AY25*'Исходные данные'!$D28 -> 0 | AZ46: =AZ25*'Исходные данные'!$D28 -> 0 | BA46: =BA25*'Исходные данные'!$D28 -> 0 | BB46: =BB25*'Исходные данные'!$D28 -> 0 | BC46: =BC25*'Исходные данные'!$D28 -> 0 | BD46: =BD25*'Исходные данные'!$D28 -> 0 | BE46: =BE25*'Исходные данные'!$D28 -> 0 | BF46: =BF25*'Исходные данные'!$D28 -> 0 | BG46: =BG25*'Исходные данные'!$D28 -> 0 | BH46: =BH25*'Исходные данные'!$D28 -> 0 | BI46: =BI25*'Исходные данные'!$D28 -> 0 | BJ46: =BJ25*'Исходные данные'!$D28 -> 0 | BK46: =BK25*'Исходные данные'!$D28 -> 0
A47: 15 | C47: 0 | D47: =D26*'Исходные данные'!$D29 -> 0 | E47: =E26*'Исходные данные'!$D29 -> 0 | F47: =F26*'Исходные данные'!$D29 -> 0 | G47: =G26*'Исходные данные'!$D29 -> 0 | H47: =H26*'Исходные данные'!$D29 -> 0 | I47: =I26*'Исходные данные'!$D29 -> 0 | J47: =J26*'Исходные данные'!$D29 -> 0 | K47: =K26*'Исходные данные'!$D29 -> 0 | L47: =L26*'Исходные данные'!$D29 -> 0 | M47: =M26*'Исходные данные'!$D29 -> 0 | N47: =N26*'Исходные данные'!$D29 -> 0 | O47: =O26*'Исходные данные'!$D29 -> 0 | P47: =P26*'Исходные данные'!$D29 -> 0 | Q47: =Q26*'Исходные данные'!$D29 -> 0 | R47: =R26*'Исходные данные'!$D29 -> 0 | S47: =S26*'Исходные данные'!$D29 -> 0 | T47: =T26*'Исходные данные'!$D29 -> 0 | U47: =U26*'Исходные данные'!$D29 -> 0 | V47: =V26*'Исходные данные'!$D29 -> 0 | W47: =W26*'Исходные данные'!$D29 -> 0 | X47: =X26*'Исходные данные'!$D29 -> 0 | Y47: =Y26*'Исходные данные'!$D29 -> 0 | Z47: =Z26*'Исходные данные'!$D29 -> 0 | AA47: =AA26*'Исходные данные'!$D29 -> 0 | AB47: =AB26*'Исходные данные'!$D29 -> 0 | AC47: =AC26*'Исходные данные'!$D29 -> 0 | AD47: =AD26*'Исходные данные'!$D29 -> 0 | AE47: =AE26*'Исходные данные'!$D29 -> 0 | AF47: =AF26*'Исходные данные'!$D29 -> 0 | AG47: =AG26*'Исходные данные'!$D29 -> 0 | AH47: =AH26*'Исходные данные'!$D29 -> 0 | AI47: =AI26*'Исходные данные'!$D29 -> 0 | AJ47: =AJ26*'Исходные данные'!$D29 -> 0 | AK47: =AK26*'Исходные данные'!$D29 -> 0 | AL47: =AL26*'Исходные данные'!$D29 -> 0 | AM47: =AM26*'Исходные данные'!$D29 -> 0 | AN47: =AN26*'Исходные данные'!$D29 -> 0 | AO47: =AO26*'Исходные данные'!$D29 -> 0 | AP47: =AP26*'Исходные данные'!$D29 -> 0 | AQ47: =AQ26*'Исходные данные'!$D29 -> 0 | AR47: =AR26*'Исходные данные'!$D29 -> 0 | AS47: =AS26*'Исходные данные'!$D29 -> 0 | AT47: =AT26*'Исходные данные'!$D29 -> 0 | AU47: =AU26*'Исходные данные'!$D29 -> 0 | AV47: =AV26*'Исходные данные'!$D29 -> 0 | AW47: =AW26*'Исходные данные'!$D29 -> 0 | AX47: =AX26*'Исходные данные'!$D29 -> 0 | AY47: =AY26*'Исходные данные'!$D29 -> 0 | AZ47: =AZ26*'Исходные данные'!$D29 -> 0 | BA47: =BA26*'Исходные данные'!$D29 -> 0 | BB47: =BB26*'Исходные данные'!$D29 -> 0 | BC47: =BC26*'Исходные данные'!$D29 -> 0 | BD47: =BD26*'Исходные данные'!$D29 -> 0 | BE47: =BE26*'Исходные данные'!$D29 -> 0 | BF47: =BF26*'Исходные данные'!$D29 -> 0 | BG47: =BG26*'Исходные данные'!$D29 -> 0 | BH47: =BH26*'Исходные данные'!$D29 -> 0 | BI47: =BI26*'Исходные данные'!$D29 -> 0 | BJ47: =BJ26*'Исходные данные'!$D29 -> 0 | BK47: =BK26*'Исходные данные'!$D29 -> 0
A48: 16 | C48: 0 | D48: =D27*'Исходные данные'!$D30 -> 0 | E48: =E27*'Исходные данные'!$D30 -> 0 | F48: =F27*'Исходные данные'!$D30 -> 0 | G48: =G27*'Исходные данные'!$D30 -> 0 | H48: =H27*'Исходные данные'!$D30 -> 0 | I48: =I27*'Исходные данные'!$D30 -> 0 | J48: =J27*'Исходные данные'!$D30 -> 0 | K48: =K27*'Исходные данные'!$D30 -> 0 | L48: =L27*'Исходные данные'!$D30 -> 0 | M48: =M27*'Исходные данные'!$D30 -> 0 | N48: =N27*'Исходные данные'!$D30 -> 0 | O48: =O27*'Исходные данные'!$D30 -> 0 | P48: =P27*'Исходные данные'!$D30 -> 0 | Q48: =Q27*'Исходные данные'!$D30 -> 0 | R48: =R27*'Исходные данные'!$D30 -> 0 | S48: =S27*'Исходные данные'!$D30 -> 0 | T48: =T27*'Исходные данные'!$D30 -> 0 | U48: =U27*'Исходные данные'!$D30 -> 0 | V48: =V27*'Исходные данные'!$D30 -> 0 | W48: =W27*'Исходные данные'!$D30 -> 0 | X48: =X27*'Исходные данные'!$D30 -> 0 | Y48: =Y27*'Исходные данные'!$D30 -> 0 | Z48: =Z27*'Исходные данные'!$D30 -> 0 | AA48: =AA27*'Исходные данные'!$D30 -> 0 | AB48: =AB27*'Исходные данные'!$D30 -> 0 | AC48: =AC27*'Исходные данные'!$D30 -> 0 | AD48: =AD27*'Исходные данные'!$D30 -> 0 | AE48: =AE27*'Исходные данные'!$D30 -> 0 | AF48: =AF27*'Исходные данные'!$D30 -> 0 | AG48: =AG27*'Исходные данные'!$D30 -> 0 | AH48: =AH27*'Исходные данные'!$D30 -> 0 | AI48: =AI27*'Исходные данные'!$D30 -> 0 | AJ48: =AJ27*'Исходные данные'!$D30 -> 0 | AK48: =AK27*'Исходные данные'!$D30 -> 0 | AL48: =AL27*'Исходные данные'!$D30 -> 0 | AM48: =AM27*'Исходные данные'!$D30 -> 0 | AN48: =AN27*'Исходные данные'!$D30 -> 0 | AO48: =AO27*'Исходные данные'!$D30 -> 0 | AP48: =AP27*'Исходные данные'!$D30 -> 0 | AQ48: =AQ27*'Исходные данные'!$D30 -> 0 | AR48: =AR27*'Исходные данные'!$D30 -> 0 | AS48: =AS27*'Исходные данные'!$D30 -> 0 | AT48: =AT27*'Исходные данные'!$D30 -> 0 | AU48: =AU27*'Исходные данные'!$D30 -> 0 | AV48: =AV27*'Исходные данные'!$D30 -> 0 | AW48: =AW27*'Исходные данные'!$D30 -> 0 | AX48: =AX27*'Исходные данные'!$D30 -> 0 | AY48: =AY27*'Исходные данные'!$D30 -> 0 | AZ48: =AZ27*'Исходные данные'!$D30 -> 0 | BA48: =BA27*'Исходные данные'!$D30 -> 0 | BB48: =BB27*'Исходные данные'!$D30 -> 0 | BC48: =BC27*'Исходные данные'!$D30 -> 0 | BD48: =BD27*'Исходные данные'!$D30 -> 0 | BE48: =BE27*'Исходные данные'!$D30 -> 0 | BF48: =BF27*'Исходные данные'!$D30 -> 0 | BG48: =BG27*'Исходные данные'!$D30 -> 0 | BH48: =BH27*'Исходные данные'!$D30 -> 0 | BI48: =BI27*'Исходные данные'!$D30 -> 0 | BJ48: =BJ27*'Исходные данные'!$D30 -> 0 | BK48: =BK27*'Исходные данные'!$D30 -> 0
A49: 17 | C49: 0 | D49: =D28*'Исходные данные'!$D31 -> 0 | E49: =E28*'Исходные данные'!$D31 -> 0 | F49: =F28*'Исходные данные'!$D31 -> 0 | G49: =G28*'Исходные данные'!$D31 -> 0 | H49: =H28*'Исходные данные'!$D31 -> 0 | I49: =I28*'Исходные данные'!$D31 -> 0 | J49: =J28*'Исходные данные'!$D31 -> 0 | K49: =K28*'Исходные данные'!$D31 -> 0 | L49: =L28*'Исходные данные'!$D31 -> 0 | M49: =M28*'Исходные данные'!$D31 -> 0 | N49: =N28*'Исходные данные'!$D31 -> 0 | O49: =O28*'Исходные данные'!$D31 -> 0 | P49: =P28*'Исходные данные'!$D31 -> 0 | Q49: =Q28*'Исходные данные'!$D31 -> 0 | R49: =R28*'Исходные данные'!$D31 -> 0 | S49: =S28*'Исходные данные'!$D31 -> 0 | T49: =T28*'Исходные данные'!$D31 -> 0 | U49: =U28*'Исходные данные'!$D31 -> 0 | V49: =V28*'Исходные данные'!$D31 -> 0 | W49: =W28*'Исходные данные'!$D31 -> 0 | X49: =X28*'Исходные данные'!$D31 -> 0 | Y49: =Y28*'Исходные данные'!$D31 -> 0 | Z49: =Z28*'Исходные данные'!$D31 -> 0 | AA49: =AA28*'Исходные данные'!$D31 -> 0 | AB49: =AB28*'Исходные данные'!$D31 -> 0 | AC49: =AC28*'Исходные данные'!$D31 -> 0 | AD49: =AD28*'Исходные данные'!$D31 -> 0 | AE49: =AE28*'Исходные данные'!$D31 -> 0 | AF49: =AF28*'Исходные данные'!$D31 -> 0 | AG49: =AG28*'Исходные данные'!$D31 -> 0 | AH49: =AH28*'Исходные данные'!$D31 -> 0 | AI49: =AI28*'Исходные данные'!$D31 -> 0 | AJ49: =AJ28*'Исходные данные'!$D31 -> 0 | AK49: =AK28*'Исходные данные'!$D31 -> 0 | AL49: =AL28*'Исходные данные'!$D31 -> 0 | AM49: =AM28*'Исходные данные'!$D31 -> 0 | AN49: =AN28*'Исходные данные'!$D31 -> 0 | AO49: =AO28*'Исходные данные'!$D31 -> 0 | AP49: =AP28*'Исходные данные'!$D31 -> 0 | AQ49: =AQ28*'Исходные данные'!$D31 -> 0 | AR49: =AR28*'Исходные данные'!$D31 -> 0 | AS49: =AS28*'Исходные данные'!$D31 -> 0 | AT49: =AT28*'Исходные данные'!$D31 -> 0 | AU49: =AU28*'Исходные данные'!$D31 -> 0 | AV49: =AV28*'Исходные данные'!$D31 -> 0 | AW49: =AW28*'Исходные данные'!$D31 -> 0 | AX49: =AX28*'Исходные данные'!$D31 -> 0 | AY49: =AY28*'Исходные данные'!$D31 -> 0 | AZ49: =AZ28*'Исходные данные'!$D31 -> 0 | BA49: =BA28*'Исходные данные'!$D31 -> 0 | BB49: =BB28*'Исходные данные'!$D31 -> 0 | BC49: =BC28*'Исходные данные'!$D31 -> 0 | BD49: =BD28*'Исходные данные'!$D31 -> 0 | BE49: =BE28*'Исходные данные'!$D31 -> 0 | BF49: =BF28*'Исходные данные'!$D31 -> 0 | BG49: =BG28*'Исходные данные'!$D31 -> 0 | BH49: =BH28*'Исходные данные'!$D31 -> 0 | BI49: =BI28*'Исходные данные'!$D31 -> 0 | BJ49: =BJ28*'Исходные данные'!$D31 -> 0 | BK49: =BK28*'Исходные данные'!$D31 -> 0
A50: 18 | C50: 0 | D50: =D29*'Исходные данные'!$D32 -> 0 | E50: =E29*'Исходные данные'!$D32 -> 0 | F50: =F29*'Исходные данные'!$D32 -> 0 | G50: =G29*'Исходные данные'!$D32 -> 0 | H50: =H29*'Исходные данные'!$D32 -> 0 | I50: =I29*'Исходные данные'!$D32 -> 0 | J50: =J29*'Исходные данные'!$D32 -> 0 | K50: =K29*'Исходные данные'!$D32 -> 0 | L50: =L29*'Исходные данные'!$D32 -> 0 | M50: =M29*'Исходные данные'!$D32 -> 0 | N50: =N29*'Исходные данные'!$D32 -> 0 | O50: =O29*'Исходные данные'!$D32 -> 0 | P50: =P29*'Исходные данные'!$D32 -> 0 | Q50: =Q29*'Исходные данные'!$D32 -> 0 | R50: =R29*'Исходные данные'!$D32 -> 0 | S50: =S29*'Исходные данные'!$D32 -> 0 | T50: =T29*'Исходные данные'!$D32 -> 0 | U50: =U29*'Исходные данные'!$D32 -> 0 | V50: =V29*'Исходные данные'!$D32 -> 0 | W50: =W29*'Исходные данные'!$D32 -> 0 | X50: =X29*'Исходные данные'!$D32 -> 0 | Y50: =Y29*'Исходные данные'!$D32 -> 0 | Z50: =Z29*'Исходные данные'!$D32 -> 0 | AA50: =AA29*'Исходные данные'!$D32 -> 0 | AB50: =AB29*'Исходные данные'!$D32 -> 0 | AC50: =AC29*'Исходные данные'!$D32 -> 0 | AD50: =AD29*'Исходные данные'!$D32 -> 0 | AE50: =AE29*'Исходные данные'!$D32 -> 0 | AF50: =AF29*'Исходные данные'!$D32 -> 0 | AG50: =AG29*'Исходные данные'!$D32 -> 0 | AH50: =AH29*'Исходные данные'!$D32 -> 0 | AI50: =AI29*'Исходные данные'!$D32 -> 0 | AJ50: =AJ29*'Исходные данные'!$D32 -> 0 | AK50: =AK29*'Исходные данные'!$D32 -> 0 | AL50: =AL29*'Исходные данные'!$D32 -> 0 | AM50: =AM29*'Исходные данные'!$D32 -> 0 | AN50: =AN29*'Исходные данные'!$D32 -> 0 | AO50: =AO29*'Исходные данные'!$D32 -> 0 | AP50: =AP29*'Исходные данные'!$D32 -> 0 | AQ50: =AQ29*'Исходные данные'!$D32 -> 0 | AR50: =AR29*'Исходные данные'!$D32 -> 0 | AS50: =AS29*'Исходные данные'!$D32 -> 0 | AT50: =AT29*'Исходные данные'!$D32 -> 0 | AU50: =AU29*'Исходные данные'!$D32 -> 0 | AV50: =AV29*'Исходные данные'!$D32 -> 0 | AW50: =AW29*'Исходные данные'!$D32 -> 0 | AX50: =AX29*'Исходные данные'!$D32 -> 0 | AY50: =AY29*'Исходные данные'!$D32 -> 0 | AZ50: =AZ29*'Исходные данные'!$D32 -> 0 | BA50: =BA29*'Исходные данные'!$D32 -> 0 | BB50: =BB29*'Исходные данные'!$D32 -> 0 | BC50: =BC29*'Исходные данные'!$D32 -> 0 | BD50: =BD29*'Исходные данные'!$D32 -> 0 | BE50: =BE29*'Исходные данные'!$D32 -> 0 | BF50: =BF29*'Исходные данные'!$D32 -> 0 | BG50: =BG29*'Исходные данные'!$D32 -> 0 | BH50: =BH29*'Исходные данные'!$D32 -> 0 | BI50: =BI29*'Исходные данные'!$D32 -> 0 | BJ50: =BJ29*'Исходные данные'!$D32 -> 0 | BK50: =BK29*'Исходные данные'!$D32 -> 0
A51: 19 | C51: 0 | D51: =D30*'Исходные данные'!$D33 -> 0 | E51: =E30*'Исходные данные'!$D33 -> 0 | F51: =F30*'Исходные данные'!$D33 -> 0 | G51: =G30*'Исходные данные'!$D33 -> 0 | H51: =H30*'Исходные данные'!$D33 -> 0 | I51: =I30*'Исходные данные'!$D33 -> 0 | J51: =J30*'Исходные данные'!$D33 -> 0 | K51: =K30*'Исходные данные'!$D33 -> 0 | L51: =L30*'Исходные данные'!$D33 -> 0 | M51: =M30*'Исходные данные'!$D33 -> 0 | N51: =N30*'Исходные данные'!$D33 -> 0 | O51: =O30*'Исходные данные'!$D33 -> 0 | P51: =P30*'Исходные данные'!$D33 -> 0 | Q51: =Q30*'Исходные данные'!$D33 -> 0 | R51: =R30*'Исходные данные'!$D33 -> 0 | S51: =S30*'Исходные данные'!$D33 -> 0 | T51: =T30*'Исходные данные'!$D33 -> 0 | U51: =U30*'Исходные данные'!$D33 -> 0 | V51: =V30*'Исходные данные'!$D33 -> 0 | W51: =W30*'Исходные данные'!$D33 -> 0 | X51: =X30*'Исходные данные'!$D33 -> 0 | Y51: =Y30*'Исходные данные'!$D33 -> 0 | Z51: =Z30*'Исходные данные'!$D33 -> 0 | AA51: =AA30*'Исходные данные'!$D33 -> 0 | AB51: =AB30*'Исходные данные'!$D33 -> 0 | AC51: =AC30*'Исходные данные'!$D33 -> 0 | AD51: =AD30*'Исходные данные'!$D33 -> 0 | AE51: =AE30*'Исходные данные'!$D33 -> 0 | AF51: =AF30*'Исходные данные'!$D33 -> 0 | AG51: =AG30*'Исходные данные'!$D33 -> 0 | AH51: =AH30*'Исходные данные'!$D33 -> 0 | AI51: =AI30*'Исходные данные'!$D33 -> 0 | AJ51: =AJ30*'Исходные данные'!$D33 -> 0 | AK51: =AK30*'Исходные данные'!$D33 -> 0 | AL51: =AL30*'Исходные данные'!$D33 -> 0 | AM51: =AM30*'Исходные данные'!$D33 -> 0 | AN51: =AN30*'Исходные данные'!$D33 -> 0 | AO51: =AO30*'Исходные данные'!$D33 -> 0 | AP51: =AP30*'Исходные данные'!$D33 -> 0 | AQ51: =AQ30*'Исходные данные'!$D33 -> 0 | AR51: =AR30*'Исходные данные'!$D33 -> 0 | AS51: =AS30*'Исходные данные'!$D33 -> 0 | AT51: =AT30*'Исходные данные'!$D33 -> 0 | AU51: =AU30*'Исходные данные'!$D33 -> 0 | AV51: =AV30*'Исходные данные'!$D33 -> 0 | AW51: =AW30*'Исходные данные'!$D33 -> 0 | AX51: =AX30*'Исходные данные'!$D33 -> 0 | AY51: =AY30*'Исходные данные'!$D33 -> 0 | AZ51: =AZ30*'Исходные данные'!$D33 -> 0 | BA51: =BA30*'Исходные данные'!$D33 -> 0 | BB51: =BB30*'Исходные данные'!$D33 -> 0 | BC51: =BC30*'Исходные данные'!$D33 -> 0 | BD51: =BD30*'Исходные данные'!$D33 -> 0 | BE51: =BE30*'Исходные данные'!$D33 -> 0 | BF51: =BF30*'Исходные данные'!$D33 -> 0 | BG51: =BG30*'Исходные данные'!$D33 -> 0 | BH51: =BH30*'Исходные данные'!$D33 -> 0 | BI51: =BI30*'Исходные данные'!$D33 -> 0 | BJ51: =BJ30*'Исходные данные'!$D33 -> 0 | BK51: =BK30*'Исходные данные'!$D33 -> 0
A52: 20 | C52: 0 | D52: =D31*'Исходные данные'!$D34 -> 0 | E52: =E31*'Исходные данные'!$D34 -> 0 | F52: =F31*'Исходные данные'!$D34 -> 0 | G52: =G31*'Исходные данные'!$D34 -> 0 | H52: =H31*'Исходные данные'!$D34 -> 0 | I52: =I31*'Исходные данные'!$D34 -> 0 | J52: =J31*'Исходные данные'!$D34 -> 0 | K52: =K31*'Исходные данные'!$D34 -> 0 | L52: =L31*'Исходные данные'!$D34 -> 0 | M52: =M31*'Исходные данные'!$D34 -> 0 | N52: =N31*'Исходные данные'!$D34 -> 0 | O52: =O31*'Исходные данные'!$D34 -> 0 | P52: =P31*'Исходные данные'!$D34 -> 0 | Q52: =Q31*'Исходные данные'!$D34 -> 0 | R52: =R31*'Исходные данные'!$D34 -> 0 | S52: =S31*'Исходные данные'!$D34 -> 0 | T52: =T31*'Исходные данные'!$D34 -> 0 | U52: =U31*'Исходные данные'!$D34 -> 0 | V52: =V31*'Исходные данные'!$D34 -> 0 | W52: =W31*'Исходные данные'!$D34 -> 0 | X52: =X31*'Исходные данные'!$D34 -> 0 | Y52: =Y31*'Исходные данные'!$D34 -> 0 | Z52: =Z31*'Исходные данные'!$D34 -> 0 | AA52: =AA31*'Исходные данные'!$D34 -> 0 | AB52: =AB31*'Исходные данные'!$D34 -> 0 | AC52: =AC31*'Исходные данные'!$D34 -> 0 | AD52: =AD31*'Исходные данные'!$D34 -> 0 | AE52: =AE31*'Исходные данные'!$D34 -> 0 | AF52: =AF31*'Исходные данные'!$D34 -> 0 | AG52: =AG31*'Исходные данные'!$D34 -> 0 | AH52: =AH31*'Исходные данные'!$D34 -> 0 | AI52: =AI31*'Исходные данные'!$D34 -> 0 | AJ52: =AJ31*'Исходные данные'!$D34 -> 0 | AK52: =AK31*'Исходные данные'!$D34 -> 0 | AL52: =AL31*'Исходные данные'!$D34 -> 0 | AM52: =AM31*'Исходные данные'!$D34 -> 0 | AN52: =AN31*'Исходные данные'!$D34 -> 0 | AO52: =AO31*'Исходные данные'!$D34 -> 0 | AP52: =AP31*'Исходные данные'!$D34 -> 0 | AQ52: =AQ31*'Исходные данные'!$D34 -> 0 | AR52: =AR31*'Исходные данные'!$D34 -> 0 | AS52: =AS31*'Исходные данные'!$D34 -> 0 | AT52: =AT31*'Исходные данные'!$D34 -> 0 | AU52: =AU31*'Исходные данные'!$D34 -> 0 | AV52: =AV31*'Исходные данные'!$D34 -> 0 | AW52: =AW31*'Исходные данные'!$D34 -> 0 | AX52: =AX31*'Исходные данные'!$D34 -> 0 | AY52: =AY31*'Исходные данные'!$D34 -> 0 | AZ52: =AZ31*'Исходные данные'!$D34 -> 0 | BA52: =BA31*'Исходные данные'!$D34 -> 0 | BB52: =BB31*'Исходные данные'!$D34 -> 0 | BC52: =BC31*'Исходные данные'!$D34 -> 0 | BD52: =BD31*'Исходные данные'!$D34 -> 0 | BE52: =BE31*'Исходные данные'!$D34 -> 0 | BF52: =BF31*'Исходные данные'!$D34 -> 0 | BG52: =BG31*'Исходные данные'!$D34 -> 0 | BH52: =BH31*'Исходные данные'!$D34 -> 0 | BI52: =BI31*'Исходные данные'!$D34 -> 0 | BJ52: =BJ31*'Исходные данные'!$D34 -> 0 | BK52: =BK31*'Исходные данные'!$D34 -> 0
B54: ВЫРУЧКА ПО КВАРТАЛАМ ЗА 6 ЛЕТ
A55: № п/п | B55: Наименование | C55: Сумма | D55: =D6 -> 2021 | H55: =D55+1 -> 2022 | L55: =H55+1 -> 2023 | P55: =L55+1 -> 2024 | T55: =P55+1 -> 2025 | X55: =T55+1 -> 2026
D56: 1кв | E56: 2кв | F56: 3кв | G56: 4кв | H56: 1кв | I56: 2кв | J56: 3кв | K56: 4кв | L56: 1кв | M56: 2кв | N56: 3кв | O56: 4кв | P56: 1кв | Q56: 2кв | R56: 3кв | S56: 4кв | T56: 1кв | U56: 2кв | V56: 3кв | W56: 4кв | X56: 1кв | Y56: 2кв | Z56: 3кв | AA56: 4кв
B57: квартал | D57: =D56&$D$55 -> 1кв2021 | E57: =E56&$D$55 -> 2кв2021 | F57: 3кв2021 | G57: 4кв2021 | H57: =H56&$H$55 -> 1кв2022 | I57: =I56&$H$55 -> 2кв2022 | J57: 3кв2022 | K57: 4кв2022 | L57: =L56&$L$55 -> 1кв2023 | M57: =M56&$L$55 -> 2кв2023 | N57: 3кв2023 | O57: 4кв2023 | P57: =P56&$P$55 -> 1кв2024 | Q57: =Q56&$P$55 -> 2кв2024 | R57: 3кв2024 | S57: 4кв2024 | T57: =T56&$T$55 -> 1кв2025 | U57: =U56&$T$55 -> 2кв2025 | V57: 3кв2025 | W57: 4кв2025 | X57: =X56&$X$55 -> 1кв2026 | Y57: =Y56&$X$55 -> 2кв2026 | Z57: 3кв2026 | AA57: 4кв2026
A58: ОБЪЕМ ПРОДАЖ В КОЛИЧЕСТВЕ | C58: =SUM(C59:C78) -> 608341 | D58: 0 | E58: 11712 | F58: 21956 | G58: 35308 | H58: 25507 | I58: 23514 | J58: =SUM(J59:J78) -> 23544 | K58: 35308 | L58: 25507 | M58: 23514 | N58: 23544 | O58: 35308 | P58: =SUM(P59:P78) -> 25507 | Q58: 23514 | R58: 23544 | S58: 35308 | T58: 25507 | U58: 23514 | V58: =SUM(V59:V78) -> 23544 | W58: 35308 | X58: 25507 | Y58: 23514 | Z58: 23544 | AA58: 35308
A59: 1 | B59: =B12 -> Шаурма | C59: =SUM(D59:AA59) -> 219973 | D59: =SUMIF($D$9:$BK$9,D$57,$D12:$BK12) -> 0 | E59: =SUMIF($D$9:$BK$9,E$57,$D12:$BK12) -> 3214 | F59: 6001 | G59: 17893 | H59: 7822 | I59: 6429 | J59: 6429 | K59: 17893 | L59: 7822 | M59: 6429 | N59: 6429 | O59: 17893 | P59: 7822 | Q59: 6429 | R59: 6429 | S59: 17893 | T59: 7822 | U59: 6429 | V59: 6429 | W59: 17893 | X59: =T59 -> 7822 | Y59: =U59 -> 6429 | Z59: 6429 | AA59: 17893
A60: =A59+1 -> 2 | B60: =B13 -> Кофе | C60: =SUM(D60:AA60) -> 150714 | D60: =SUMIF($D$9:$BK$9,D$57,$D13:$BK13) -> 0 | E60: 2970 | F60: 5544 | G60: 7200 | H60: 7650 | I60: 6210 | J60: 5940 | K60: 7200 | L60: 7650 | M60: 6210 | N60: 5940 | O60: 7200 | P60: 7650 | Q60: 6210 | R60: 5940 | S60: 7200 | T60: 7650 | U60: 6210 | V60: 5940 | W60: 7200 | X60: =T60 -> 7650 | Y60: =U60 -> 6210 | Z60: =V60 -> 5940 | AA60: =W60 -> 7200
A61: =A60+1 -> 3 | B61: Хот-дог | C61: 60570 | D61: =SUMIF($D$9:$BK$9,D$57,$D14:$BK14) -> 0 | E61: 1350 | F61: 2520 | G61: 2700 | H61: 2700 | I61: 2700 | J61: 2700 | K61: 2700 | L61: 2700 | M61: 2700 | N61: 2700 | O61: 2700 | P61: 2700 | Q61: 2700 | R61: 2700 | S61: 2700 | T61: 2700 | U61: 2700 | V61: 2700 | W61: 2700 | X61: 2700 | Y61: 2700 | Z61: 2700 | AA61: 2700
A62: 4 | B62: Газированный напиток | C62: 101370 | D62: =SUMIF($D$9:$BK$9,D$57,$D15:$BK15) -> 0 | E62: 2490 | F62: 4740 | G62: 4140 | H62: 3960 | I62: 4800 | J62: 5100 | K62: 4140 | L62: 3960 | M62: 4800 | N62: 5100 | O62: 4140 | P62: 3960 | Q62: 4800 | R62: 5100 | S62: 4140 | T62: 3960 | U62: 4800 | V62: 5100 | W62: 4140 | X62: 3960 | Y62: 4800 | Z62: 5100 | AA62: 4140
A63: 5 | B63: Чай | C63: 75714 | D63: =SUMIF($D$9:$BK$9,D$57,$D16:$BK16) -> 0 | E63: 1688 | F63: 3151 | G63: 3375 | H63: 3375 | I63: 3375 | J63: 3375 | K63: 3375 | L63: 3375 | M63: 3375 | N63: 3375 | O63: 3375 | P63: 3375 | Q63: 3375 | R63: 3375 | S63: 3375 | T63: 3375 | U63: 3375 | V63: 3375 | W63: 3375 | X63: 3375 | Y63: 3375 | Z63: 3375 | AA63: 3375
A64: 6 | C64: 0 | D64: =SUMIF($D$9:$BK$9,D$57,$D17:$BK17) -> 0 | E64: 0 | F64: 0 | G64: 0 | H64: 0 | I64: 0 | J64: 0 | K64: 0 | L64: 0 | M64: 0 | N64: 0 | O64: 0 | P64: 0 | Q64: 0 | R64: 0 | S64: 0 | T64: 0 | U64: 0 | V64: 0 | W64: 0 | X64: 0 | Y64: 0 | Z64: 0 | AA64: 0
A65: 7 | C65: 0 | D65: =SUMIF($D$9:$BK$9,D$57,$D18:$BK18) -> 0 | E65: 0 | F65: 0 | G65: 0 | H65: 0 | I65: 0 | J65: 0 | K65: 0 | L65: 0 | M65: 0 | N65: 0 | O65: 0 | P65: 0 | Q65: 0 | R65: 0 | S65: 0 | T65: 0 | U65: 0 | V65: 0 | W65: 0 | X65: 0 | Y65: 0 | Z65: 0 | AA65: 0
A66: 8 | C66: 0 | D66: =SUMIF($D$9:$BK$9,D$57,$D19:$BK19) -> 0 | E66: 0 | F66: 0 | G66: 0 | H66: 0 | I66: 0 | J66: 0 | K66: 0 | L66: 0 | M66: 0 | N66: 0 | O66: 0 | P66: 0 | Q66: 0 | R66: 0 | S66: 0 | T66: 0 | U66: 0 | V66: 0 | W66: 0 | X66: 0 | Y66: 0 | Z66: 0 | AA66: 0
A67: 9 | C67: 0 | D67: =SUMIF($D$9:$BK$9,D$57,$D20:$BK20) -> 0 | E67: 0 | F67: 0 | G67: 0 | H67: 0 | I67: 0 | J67: 0 | K67: 0 | L67: 0 | M67: 0 | N67: 0 | O67: 0 | P67: 0 | Q67: 0 | R67: 0 | S67: 0 | T67: 0 | U67: 0 | V67: 0 | W67: 0 | X67: 0 | Y67: 0 | Z67: 0 | AA67: 0
A68: 10 | C68: 0 | D68: =SUMIF($D$9:$BK$9,D$57,$D21:$BK21) -> 0 | E68: 0 | F68: 0 | G68: 0 | H68: 0 | I68: 0 | J68: 0 | K68: 0 | L68: 0 | M68: 0 | N68: 0 | O68: 0 | P68: 0 | Q68: 0 | R68: 0 | S68: 0 | T68: 0 | U68: 0 | V68: 0 | W68: 0 | X68: 0 | Y68: 0 | Z68: 0 | AA68: 0
A69: 11 | C69: 0 | D69: =SUMIF($D$9:$BK$9,D$57,$D22:$BK22) -> 0 | E69: 0 | F69: 0 | G69: 0 | H69: 0 | I69: 0 | J69: 0 | K69: 0 | L69: 0 | M69: 0 | N69: 0 | O69: 0 | P69: 0 | Q69: 0 | R69: 0 | S69: 0 | T69: 0 | U69: 0 | V69: 0 | W69: 0 | X69: 0 | Y69: 0 | Z69: 0 | AA69: 0
A70: 12 | C70: 0 | D70: =SUMIF($D$9:$BK$9,D$57,$D23:$BK23) -> 0 | E70: 0 | F70: 0 | G70: 0 | H70: 0 | I70: 0 | J70: 0 | K70: 0 | L70: 0 | M70: 0 | N70: 0 | O70: 0 | P70: 0 | Q70: 0 | R70: 0 | S70: 0 | T70: 0 | U70: 0 | V70: 0 | W70: 0 | X70: 0 | Y70: 0 | Z70: 0 | AA70: 0
A71: 13 | C71: 0 | D71: =SUMIF($D$9:$BK$9,D$57,$D24:$BK24) -> 0 | E71: 0 | F71: 0 | G71: 0 | H71: 0 | I71: 0 | J71: 0 | K71: 0 | L71: 0 | M71: 0 | N71: 0 | O71: 0 | P71: 0 | Q71: 0 | R71: 0 | S71: 0 | T71: 0 | U71: 0 | V71: 0 | W71: 0 | X71: 0 | Y71: 0 | Z71: 0 | AA71: 0
A72: 14 | C72: 0 | D72: =SUMIF($D$9:$BK$9,D$57,$D25:$BK25) -> 0 | E72: 0 | F72: 0 | G72: 0 | H72: 0 | I72: 0 | J72: 0 | K72: 0 | L72: 0 | M72: 0 | N72: 0 | O72: 0 | P72: 0 | Q72: 0 | R72: 0 | S72: 0 | T72: 0 | U72: 0 | V72: 0 | W72: 0 | X72: 0 | Y72: 0 | Z72: 0 | AA72: 0
A73: 15 | C73: 0 | D73: =SUMIF($D$9:$BK$9,D$57,$D26:$BK26) -> 0 | E73: 0 | F73: 0 | G73: 0 | H73: 0 | I73: 0 | J73: 0 | K73: 0 | L73: 0 | M73: 0 | N73: 0 | O73: 0 | P73: 0 | Q73: 0 | R73: 0 | S73: 0 | T73: 0 | U73: 0 | V73: 0 | W73: 0 | X73: 0 | Y73: 0 | Z73: 0 | AA73: 0
A74: 16 | C74: 0 | D74: =SUMIF($D$9:$BK$9,D$57,$D27:$BK27) -> 0 | E74: 0 | F74: 0 | G74: 0 | H74: 0 | I74: 0 | J74: 0 | K74: 0 | L74: 0 | M74: 0 | N74: 0 | O74: 0 | P74: 0 | Q74: 0 | R74: 0 | S74: 0 | T74: 0 | U74: 0 | V74: 0 | W74: 0 | X74: 0 | Y74: 0 | Z74: 0 | AA74: 0
A75: 17 | C75: 0 | D75: =SUMIF($D$9:$BK$9,D$57,$D28:$BK28) -> 0 | E75: 0 | F75: 0 | G75: 0 | H75: 0 | I75: 0 | J75: 0 | K75: 0 | L75: 0 | M75: 0 | N75: 0 | O75: 0 | P75: 0 | Q75: 0 | R75: 0 | S75: 0 | T75: 0 | U75: 0 | V75: 0 | W75: 0 | X75: 0 | Y75: 0 | Z75: 0 | AA75: 0
A76: 18 | C76: 0 | D76: =SUMIF($D$9:$BK$9,D$57,$D29:$BK29) -> 0 | E76: 0 | F76: 0 | G76: 0 | H76: 0 | I76: 0 | J76: 0 | K76: 0 | L76: 0 | M76: 0 | N76: 0 | O76: 0 | P76: 0 | Q76: 0 | R76: 0 | S76: 0 | T76: 0 | U76: 0 | V76: 0 | W76: 0 | X76: 0 | Y76: 0 | Z76: 0 | AA76: 0
A77: 19 | C77: 0 | D77: =SUMIF($D$9:$BK$9,D$57,$D30:$BK30) -> 0 | E77: 0 | F77: 0 | G77: 0 | H77: 0 | I77: 0 | J77: 0 | K77: 0 | L77: 0 | M77: 0 | N77: 0 | O77: 0 | P77: 0 | Q77: 0 | R77: 0 | S77: 0 | T77: 0 | U77: 0 | V77: 0 | W77: 0 | X77: 0 | Y77: 0 | Z77: 0 | AA77: 0
A78: 20 | C78: 0 | D78: =SUMIF($D$9:$BK$9,D$57,$D31:$BK31) -> 0 | E78: 0 | F78: 0 | G78: 0 | H78: 0 | I78: 0 | J78: 0 | K78: 0 | L78: 0 | M78: 0 | N78: 0 | O78: 0 | P78: 0 | Q78: 0 | R78: 0 | S78: 0 | T78: 0 | U78: 0 | V78: 0 | W78: 0 | X78: 0 | Y78: 0 | Z78: 0 | AA78: 0
A79: СУММА ВЫРУЧКИ | C79: =SUM(C80:C99) -> 61035380 | D79: =SUM(D80:D99) -> 0 | E79: 1098880 | F79: 2056980 | G79: 3878420 | H79: 2502680 | I79: 2214060 | J79: =SUM(J80:J99) -> 2205060 | K79: 3878420 | L79: 2502680 | M79: 2214060 | N79: 2205060 | O79: 3878420 | P79: =SUM(P80:P99) -> 2502680 | Q79: 2214060 | R79: 2205060 | S79: 3878420 | T79: 2502680 | U79: 2214060 | V79: =SUM(V80:V99) -> 2205060 | W79: 3878420 | X79: 2502680 | Y79: 2214060 | Z79: 2205060 | AA79: 3878420
A80: 1 | B80: =B33 -> Шаурма | C80: =SUM(D80:AA80) -> 30796220 | D80: =SUMIF($D$9:$BK$9,D$57,$D33:$BK33) -> 0 | E80: 449960 | F80: 840140 | G80: 2505020 | H80: 1095080 | I80: 900060 | J80: 900060 | K80: 2505020 | L80: 1095080 | M80: 900060 | N80: 900060 | O80: 2505020 | P80: 1095080 | Q80: 900060 | R80: 900060 | S80: 2505020 | T80: 1095080 | U80: 900060 | V80: 900060 | W80: 2505020 | X80: =T80 -> 1095080 | Y80: =U80 -> 900060 | Z80: =V80 -> 900060 | AA80: =W80 -> 2505020
A81: =A80+1 -> 2 | B81: =B34 -> Кофе | C81: =SUM(D81:AA81) -> 15071400 | D81: =SUMIF($D$9:$BK$9,D$57,$D34:$BK34) -> 0 | E81: 297000 | F81: 554400 | G81: 720000 | H81: 765000 | I81: 621000 | J81: 594000 | K81: 720000 | L81: 765000 | M81: 621000 | N81: 594000 | O81: 720000 | P81: 765000 | Q81: 621000 | R81: 594000 | S81: 720000 | T81: 765000 | U81: 621000 | V81: 594000 | W81: 720000 | X81: 765000 | Y81: 621000 | Z81: 594000 | AA81: 720000
A82: =A81+1 -> 3 | B82: Хот-дог | C82: 6057000 | D82: =SUMIF($D$9:$BK$9,D$57,$D35:$BK35) -> 0 | E82: 135000 | F82: 252000 | G82: 270000 | H82: 270000 | I82: 270000 | J82: 270000 | K82: 270000 | L82: 270000 | M82: 270000 | N82: 270000 | O82: 270000 | P82: 270000 | Q82: 270000 | R82: 270000 | S82: 270000 | T82: 270000 | U82: 270000 | V82: 270000 | W82: 270000 | X82: 270000 | Y82: 270000 | Z82: 270000 | AA82: 270000
A83: 4 | B83: Газированный напиток | C83: 6082200 | D83: =SUMIF($D$9:$BK$9,D$57,$D36:$BK36) -> 0 | E83: 149400 | F83: 284400 | G83: 248400 | H83: 237600 | I83: 288000 | J83: 306000 | K83: 248400 | L83: 237600 | M83: 288000 | N83: 306000 | O83: 248400 | P83: 237600 | Q83: 288000 | R83: 306000 | S83: 248400 | T83: 237600 | U83: 288000 | V83: 306000 | W83: 248400 | X83: 237600 | Y83: 288000 | Z83: 306000 | AA83: 248400
A84: 5 | B84: Чай | C84: 3028560 | D84: =SUMIF($D$9:$BK$9,D$57,$D37:$BK37) -> 0 | E84: 67520 | F84: 126040 | G84: 135000 | H84: 135000 | I84: 135000 | J84: 135000 | K84: 135000 | L84: 135000 | M84: 135000 | N84: 135000 | O84: 135000 | P84: 135000 | Q84: 135000 | R84: 135000 | S84: 135000 | T84: 135000 | U84: 135000 | V84: 135000 | W84: 135000 | X84: 135000 | Y84: 135000 | Z84: 135000 | AA84: 135000
A85: 6 | C85: 0 | D85: =SUMIF($D$9:$BK$9,D$57,$D38:$BK38) -> 0 | E85: 0 | F85: 0 | G85: 0 | H85: 0 | I85: 0 | J85: 0 | K85: 0 | L85: 0 | M85: 0 | N85: 0 | O85: 0 | P85: 0 | Q85: 0 | R85: 0 | S85: 0 | T85: 0 | U85: 0 | V85: 0 | W85: 0 | X85: 0 | Y85: 0 | Z85: 0 | AA85: 0
A86: 7 | C86: 0 | D86: =SUMIF($D$9:$BK$9,D$57,$D39:$BK39) -> 0 | E86: 0 | F86: 0 | G86: 0 | H86: 0 | I86: 0 | J86: 0 | K86: 0 | L86: 0 | M86: 0 | N86: 0 | O86: 0 | P86: 0 | Q86: 0 | R86: 0 | S86: 0 | T86: 0 | U86: 0 | V86: 0 | W86: 0 | X86: 0 | Y86: 0 | Z86: 0 | AA86: 0
A87: 8 | C87: 0 | D87: =SUMIF($D$9:$BK$9,D$57,$D40:$BK40) -> 0 | E87: 0 | F87: 0 | G87: 0 | H87: 0 | I87: 0 | J87: 0 | K87: 0 | L87: 0 | M87: 0 | N87: 0 | O87: 0 | P87: 0 | Q87: 0 | R87: 0 | S87: 0 | T87: 0 | U87: 0 | V87: 0 | W87: 0 | X87: 0 | Y87: 0 | Z87: 0 | AA87: 0
A88: 9 | C88: 0 | D88: =SUMIF($D$9:$BK$9,D$57,$D41:$BK41) -> 0 | E88: 0 | F88: 0 | G88: 0 | H88: 0 | I88: 0 | J88: 0 | K88: 0 | L88: 0 | M88: 0 | N88: 0 | O88: 0 | P88: 0 | Q88: 0 | R88: 0 | S88: 0 | T88: 0 | U88: 0 | V88: 0 | W88: 0 | X88: 0 | Y88: 0 | Z88: 0 | AA88: 0
A89: 10 | C89: 0 | D89: =SUMIF($D$9:$BK$9,D$57,$D42:$BK42) -> 0 | E89: 0 | F89: 0 | G89: 0 | H89: 0 | I89: 0 | J89: 0 | K89: 0 | L89: 0 | M89: 0 | N89: 0 | O89: 0 | P89: 0 | Q89: 0 | R89: 0 | S89: 0 | T89: 0 | U89: 0 | V89: 0 | W89: 0 | X89: 0 | Y89: 0 | Z89: 0 | AA89: 0
A90: 11 | C90: 0 | D90: =SUMIF($D$9:$BK$9,D$57,$D43:$BK43) -> 0 | E90: 0 | F90: 0 | G90: 0 | H90: 0 | I90: 0 | J90: 0 | K90: 0 | L90: 0 | M90: 0 | N90: 0 | O90: 0 | P90: 0 | Q90: 0 | R90: 0 | S90: 0 | T90: 0 | U90: 0 | V90: 0 | W90: 0 | X90: 0 | Y90: 0 | Z90: 0 | AA90: 0
A91: 12 | C91: 0 | D91: =SUMIF($D$9:$BK$9,D$57,$D44:$BK44) -> 0 | E91: 0 | F91: 0 | G91: 0 | H91: 0 | I91: 0 | J91: 0 | K91: 0 | L91: 0 | M91: 0 | N91: 0 | O91: 0 | P91: 0 | Q91: 0 | R91: 0 | S91: 0 | T91: 0 | U91: 0 | V91: 0 | W91: 0 | X91: 0 | Y91: 0 | Z91: 0 | AA91: 0
A92: 13 | C92: 0 | D92: =SUMIF($D$9:$BK$9,D$57,$D45:$BK45) -> 0 | E92: 0 | F92: 0 | G92: 0 | H92: 0 | I92: 0 | J92: 0 | K92: 0 | L92: 0 | M92: 0 | N92: 0 | O92: 0 | P92: 0 | Q92: 0 | R92: 0 | S92: 0 | T92: 0 | U92: 0 | V92: 0 | W92: 0 | X92: 0 | Y92: 0 | Z92: 0 | AA92: 0
A93: 14 | C93: 0 | D93: =SUMIF($D$9:$BK$9,D$57,$D46:$BK46) -> 0 | E93: 0 | F93: 0 | G93: 0 | H93: 0 | I93: 0 | J93: 0 | K93: 0 | L93: 0 | M93: 0 | N93: 0 | O93: 0 | P93: 0 | Q93: 0 | R93: 0 | S93: 0 | T93: 0 | U93: 0 | V93: 0 | W93: 0 | X93: 0 | Y93: 0 | Z93: 0 | AA93: 0
A94: 15 | C94: 0 | D94: =SUMIF($D$9:$BK$9,D$57,$D47:$BK47) -> 0 | E94: 0 | F94: 0 | G94: 0 | H94: 0 | I94: 0 | J94: 0 | K94: 0 | L94: 0 | M94: 0 | N94: 0 | O94: 0 | P94: 0 | Q94: 0 | R94: 0 | S94: 0 | T94: 0 | U94: 0 | V94: 0 | W94: 0 | X94: 0 | Y94: 0 | Z94: 0 | AA94: 0
A95: 16 | C95: 0 | D95: =SUMIF($D$9:$BK$9,D$57,$D48:$BK48) -> 0 | E95: 0 | F95: 0 | G95: 0 | H95: 0 | I95: 0 | J95: 0 | K95: 0 | L95: 0 | M95: 0 | N95: 0 | O95: 0 | P95: 0 | Q95: 0 | R95: 0 | S95: 0 | T95: 0 | U95: 0 | V95: 0 | W95: 0 | X95: 0 | Y95: 0 | Z95: 0 | AA95: 0
A96: 17 | C96: 0 | D96: =SUMIF($D$9:$BK$9,D$57,$D49:$BK49) -> 0 | E96: 0 | F96: 0 | G96: 0 | H96: 0 | I96: 0 | J96: 0 | K96: 0 | L96: 0 | M96: 0 | N96: 0 | O96: 0 | P96: 0 | Q96: 0 | R96: 0 | S96: 0 | T96: 0 | U96: 0 | V96: 0 | W96: 0 | X96: 0 | Y96: 0 | Z96: 0 | AA96: 0
A97: 18 | C97: 0 | D97: =SUMIF($D$9:$BK$9,D$57,$D50:$BK50) -> 0 | E97: 0 | F97: 0 | G97: 0 | H97: 0 | I97: 0 | J97: 0 | K97: 0 | L97: 0 | M97: 0 | N97: 0 | O97: 0 | P97: 0 | Q97: 0 | R97: 0 | S97: 0 | T97: 0 | U97: 0 | V97: 0 | W97: 0 | X97: 0 | Y97: 0 | Z97: 0 | AA97: 0
A98: 19 | C98: 0 | D98: =SUMIF($D$9:$BK$9,D$57,$D51:$BK51) -> 0 | E98: 0 | F98: 0 | G98: 0 | H98: 0 | I98: 0 | J98: 0 | K98: 0 | L98: 0 | M98: 0 | N98: 0 | O98: 0 | P98: 0 | Q98: 0 | R98: 0 | S98: 0 | T98: 0 | U98: 0 | V98: 0 | W98: 0 | X98: 0 | Y98: 0 | Z98: 0 | AA98: 0
A99: 20 | C99: 0 | D99: =SUMIF($D$9:$BK$9,D$57,$D52:$BK52) -> 0 | E99: 0 | F99: 0 | G99: 0 | H99: 0 | I99: 0 | J99: 0 | K99: 0 | L99: 0 | M99: 0 | N99: 0 | O99: 0 | P99: 0 | Q99: 0 | R99: 0 | S99: 0 | T99: 0 | U99: 0 | V99: 0 | W99: 0 | X99: 0 | Y99: 0 | Z99: 0 | AA99: 0
A101: Выручка, тыс.руб. | C101: =C79/1000 -> 61035.38 | D101: =D79/1000 -> 0 | E101: 1098.88 | F101: 2056.98 | G101: 3878.42 | H101: 2502.68 | I101: 2214.06 | J101: =J79/1000 -> 2205.06 | K101: 3878.42 | L101: 2502.68 | M101: 2214.06 | N101: 2205.06 | O101: 3878.42 | P101: =P79/1000 -> 2502.68 | Q101: 2214.06 | R101: 2205.06 | S101: 3878.42 | T101: 2502.68 | U101: 2214.06 | V101: =V79/1000 -> 2205.06 | W101: 3878.42 | X101: 2502.68 | Y101: 2214.06 | Z101: 2205.06 | AA101: 3878.42
A102: Выручка, млн.руб. | C102: =C101/1000 -> 61.03538 | D102: =D101/1000 -> 0 | E102: 1.09888 | F102: 2.05698 | G102: 3.87842 | H102: 2.50268 | I102: 2.21406 | J102: =J101/1000 -> 2.20506 | K102: 3.87842 | L102: 2.50268 | M102: 2.21406 | N102: 2.20506 | O102: 3.87842 | P102: =P101/1000 -> 2.50268 | Q102: 2.21406 | R102: 2.20506 | S102: 3.87842 | T102: 2.50268 | U102: 2.21406 | V102: =V101/1000 -> 2.20506 | W102: 3.87842 | X102: 2.50268 | Y102: 2.21406 | Z102: 2.20506 | AA102: 3.87842
B104: ВЫРУЧКА ПО ГОДАМ ЗА 6 ЛЕТ
A105: № п/п | B105: Наименование | C105: Сумма | D105: =D6 -> 2021 | E105: =D105+1 -> 2022 | F105: =E105+1 -> 2023 | G105: 2024 | H105: 2025 | I105: 2026
A106: ОБЪЕМ ПРОДАЖ В КОЛИЧЕСТВЕ | C106: =SUM(C107:C126) -> 608341 | D106: 68976 | E106: 107873 | F106: 107873 | G106: 107873 | H106: 107873 | I106: =SUM(I107:I126) -> 107873
A107: 1 | B107: =B12 -> Шаурма | C107: =SUM(D107:I107) -> 219973 | D107: =SUMIF($D$6:$BK$6,D$105,$D12:$BK12) -> 27108 | E107: 38573 | F107: 38573 | G107: 38573 | H107: 38573 | I107: =H107 -> 38573
A108: =A107+1 -> 2 | B108: Кофе | C108: =SUM(D108:I108) -> 150714 | D108: 15714 | E108: 27000 | F108: 27000 | G108: 27000 | H108: 27000 | I108: =H108 -> 27000
A109: =A108+1 -> 3 | B109: Хот-дог | C109: 60570 | D109: 6570 | E109: 10800 | F109: 10800 | G109: 10800 | H109: 10800 | I109: 10800
A110: 4 | B110: Газированный напиток | C110: 101370 | D110: 11370 | E110: 18000 | F110: 18000 | G110: 18000 | H110: 18000 | I110: 18000
A111: 5 | B111: Чай | C111: 75714 | D111: 8214 | E111: 13500 | F111: 13500 | G111: 13500 | H111: 13500 | I111: 13500
A112: 6 | C112: 0 | D112: 0 | E112: 0 | F112: 0 | G112: 0 | H112: 0 | I112: 0
A113: 7 | C113: 0 | D113: 0 | E113: 0 | F113: 0 | G113: 0 | H113: 0 | I113: 0
A114: 8 | C114: 0 | D114: 0 | E114: 0 | F114: 0 | G114: 0 | H114: 0 | I114: 0
A115: 9 | C115: 0 | D115: 0 | E115: 0 | F115: 0 | G115: 0 | H115: 0 | I115: 0
A116: 10 | C116: 0 | D116: 0 | E116: 0 | F116: 0 | G116: 0 | H116: 0 | I116: 0
A117: 11 | C117: 0 | D117: =SUMIF($D$6:$BK$6,D$105,$D22:$BK22) -> 0 | E117: 0 | F117: 0 | G117: 0 | H117: 0 | I117: 0
A118: 12 | C118: 0 | D118: 0 | E118: 0 | F118: 0 | G118: 0 | H118: 0 | I118: 0
A119: 13 | C119: 0 | D119: 0 | E119: 0 | F119: 0 | G119: 0 | H119: 0 | I119: 0
A120: 14 | C120: 0 | D120: 0 | E120: 0 | F120: 0 | G120: 0 | H120: 0 | I120: 0
A121: 15 | C121: 0 | D121: 0 | E121: 0 | F121: 0 | G121: 0 | H121: 0 | I121: 0
A122: 16 | C122: 0 | D122: 0 | E122: 0 | F122: 0 | G122: 0 | H122: 0 | I122: 0
A123: 17 | C123: 0 | D123: 0 | E123: 0 | F123: 0 | G123: 0 | H123: 0 | I123: 0
A124: 18 | C124: 0 | D124: 0 | E124: 0 | F124: 0 | G124: 0 | H124: 0 | I124: 0
A125: 19 | C125: 0 | D125: 0 | E125: 0 | F125: 0 | G125: 0 | H125: 0 | I125: 0
A126: 20 | C126: 0 | D126: 0 | E126: 0 | F126: 0 | G126: 0 | H126: 0 | I126: 0
A127: СУММА ВЫРУЧКИ | C127: =SUM(C128:C147) -> 61035380 | D127: =SUM(D128:D147) -> 7034280 | E127: 10800220 | F127: 10800220 | G127: 10800220 | H127: 10800220 | I127: =SUM(I128:I147) -> 10800220
A128: 1 | B128: =B33 -> Шаурма | C128: =SUM(D128:I128) -> 30796220 | D128: =SUMIF($D$6:$BK$6,D$105,$D33:$BK33) -> 3795120 | E128: 5400220 | F128: 5400220 | G128: 5400220 | H128: 5400220 | I128: =H128 -> 5400220
A129: =A128+1 -> 2 | B129: Кофе | C129: =SUM(D129:I129) -> 15071400 | D129: 1571400 | E129: 2700000 | F129: 2700000 | G129: 2700000 | H129: 2700000 | I129: =H129 -> 2700000
A130: =A129+1 -> 3 | B130: Хот-дог | C130: 6057000 | D130: 657000 | E130: 1080000 | F130: 1080000 | G130: 1080000 | H130: 1080000 | I130: 1080000
A131: 4 | B131: Газированный напиток | C131: 6082200 | D131: 682200 | E131: 1080000 | F131: 1080000 | G131: 1080000 | H131: 1080000 | I131: 1080000
A132: 5 | B132: Чай | C132: 3028560 | D132: 328560 | E132: 540000 | F132: 540000 | G132: 540000 | H132: 540000 | I132: 540000
A133: 6 | C133: 0 | D133: 0 | E133: 0 | F133: 0 | G133: 0 | H133: 0 | I133: 0
A134: 7 | C134: 0 | D134: 0 | E134: 0 | F134: 0 | G134: 0 | H134: 0 | I134: 0
A135: 8 | C135: 0 | D135: 0 | E135: 0 | F135: 0 | G135: 0 | H135: 0 | I135: 0
A136: 9 | C136: 0 | D136: 0 | E136: 0 | F136: 0 | G136: 0 | H136: 0 | I136: 0
A137: 10 | C137: 0 | D137: 0 | E137: 0 | F137: 0 | G137: 0 | H137: 0 | I137: 0
A138: 11 | C138: 0 | D138: =SUMIF($D$6:$BK$6,D$105,$D43:$BK43) -> 0 | E138: 0 | F138: 0 | G138: 0 | H138: 0 | I138: 0
A139: 12 | C139: 0 | D139: 0 | E139: 0 | F139: 0 | G139: 0 | H139: 0 | I139: 0
A140: 13 | C140: 0 | D140: 0 | E140: 0 | F140: 0 | G140: 0 | H140: 0 | I140: 0
A141: 14 | C141: 0 | D141: 0 | E141: 0 | F141: 0 | G141: 0 | H141: 0 | I141: 0
A142: 15 | C142: 0 | D142: 0 | E142: 0 | F142: 0 | G142: 0 | H142: 0 | I142: 0
A143: 16 | C143: 0 | D143: 0 | E143: 0 | F143: 0 | G143: 0 | H143: 0 | I143: 0
A144: 17 | C144: 0 | D144: 0 | E144: 0 | F144: 0 | G144: 0 | H144: 0 | I144: 0
A145: 18 | C145: 0 | D145: 0 | E145: 0 | F145: 0 | G145: 0 | H145: 0 | I145: 0
A146: 19 | C146: 0 | D146: 0 | E146: 0 | F146: 0 | G146: 0 | H146: 0 | I146: 0
A147: 20 | C147: 0 | D147: 0 | E147: 0 | F147: 0 | G147: 0 | H147: 0 | I147: 0
A149: Выручка, тыс.руб. | C149: =C127/1000 -> 61035.38 | D149: =D127/1000 -> 7034.28 | E149: 10800.22 | F149: 10800.22 | G149: 10800.22 | H149: 10800.22 | I149: =I127/1000 -> 10800.22
A150: Выручка, млн.руб. | C150: =C149/1000 -> 61.03538 | D150: =D149/1000 -> 7.03428 | E150: 10.80022 | F150: 10.80022 | G150: 10.80022 | H150: 10.80022 | I150: =I149/1000 -> 10.80022
B152: ПЛАН ПРОДАЖ В ГРАФИКАХ

Sheet БДДС
A1: БЮДЖЕТ ДВИЖЕНИЯ ДЕНЕЖНЫХ СРЕДСТВ (БДДС)
A2: в руб.
A3: БДДС ПО МЕСЯЦАМ
A4: Статья движения ДС | B4: =Налоги!B3 -> Сумма за 63 мес | C4: "0" | D4: 1-й месяц | E4: 2-й месяц | F4: 3-й месяц | G4: 4-й месяц | H4: 5-й месяц | I4: 6-й месяц | J4: 7-й месяц | K4: 8-й месяц | L4: 9-й месяц | M4: 10-й месяц | N4: 11-й месяц | O4: 12-й месяц | P4: 13-й месяц | Q4: 14-й месяц | R4: 15-й месяц | S4: 16-й месяц | T4: 17-й месяц | U4: 18-й месяц | V4: 19-й месяц | W4: 20-й месяц | X4: 21-й месяц | Y4: 22-й месяц | Z4: 23-й месяц | AA4: 24-й месяц | AB4: 25-й месяц | AC4: 26-й месяц | AD4: 27-й месяц | AE4: 28-й месяц | AF4: 29-й месяц | AG4: 30-й месяц | AH4: 31-й месяц | AI4: 32-й месяц | AJ4: 33-й месяц | AK4: 34-й месяц | AL4: 35-й месяц | AM4: 36-й месяц | AN4: 37-й месяц | AO4: 38-й месяц | AP4: 39-й месяц | AQ4: 40-й месяц | AR4: 41-й месяц | AS4: 42-й месяц | AT4: 43-й месяц | AU4: 44-й месяц | AV4: 45-й месяц | AW4: 46-й месяц | AX4: 47-й месяц | AY4: 48-й месяц | AZ4: 49-й месяц | BA4: 50-й месяц | BB4: 51-й месяц | BC4: 52-й месяц | BD4: 53-й месяц | BE4: 54-й месяц | BF4: 55-й месяц | BG4: 56-й месяц | BH4: 57-й месяц | BI4: 58-й месяц | BJ4: 59-й месяц | BK4: 60-й месяц
D5: ='План продаж'!D5 -> Май | E5: ='План продаж'!E5 -> Июнь | F5: ='План продаж'!F5 -> Июль | G5: ='План продаж'!G5 -> Август | H5: ='План продаж'!H5 -> Сентябрь | I5: ='План продаж'!I5 -> Октябрь | J5: ='План продаж'!J5 -> Ноябрь | K5: ='План продаж'!K5 -> Декабрь | L5: ='План продаж'!L5 -> Январь | M5: ='План продаж'!M5 -> Февраль | N5: ='План продаж'!N5 -> Март | O5: ='План продаж'!O5 -> Апрель | P5: ='План продаж'!P5 -> Май | Q5: ='План продаж'!Q5 -> Июнь | R5: ='План продаж'!R5 -> Июль | S5: ='План продаж'!S5 -> Август | T5: ='План продаж'!T5 -> Сентябрь | U5: ='План продаж'!U5 -> Октябрь | V5: ='План продаж'!V5 -> Ноябрь | W5: ='План продаж'!W5 -> Декабрь | X5: ='План продаж'!X5 -> Январь | Y5: ='План продаж'!Y5 -> Февраль | Z5: ='План продаж'!Z5 -> Март | AA5: ='План продаж'!AA5 -> Апрель | AB5: ='План продаж'!AB5 -> Май | AC5: ='План продаж'!AC5 -> Июнь | AD5: ='План продаж'!AD5 -> Июль | AE5: ='План продаж'!AE5 -> Август | AF5: ='План продаж'!AF5 -> Сентябрь | AG5: ='План продаж'!AG5 -> Октябрь | AH5: ='План продаж'!AH5 -> Ноябрь | AI5: ='План продаж'!AI5 -> Декабрь | AJ5: ='План продаж'!AJ5 -> Январь | AK5: ='План продаж'!AK5 -> Февраль | AL5: ='План продаж'!AL5 -> Март | AM5: ='План продаж'!AM5 -> Апрель | AN5: ='План продаж'!AN5 -> Май | AO5: ='План продаж'!AO5 -> Июнь | AP5: ='План продаж'!AP5 -> Июль | AQ5: ='План продаж'!AQ5 -> Август | AR5: ='План продаж'!AR5 -> Сентябрь | AS5: ='План продаж'!AS5 -> Октябрь | AT5: ='План продаж'!AT5 -> Ноябрь | AU5: ='План продаж'!AU5 -> Декабрь | AV5: ='План продаж'!AV5 -> Январь | AW5: ='План продаж'!AW5 -> Февраль | AX5: ='План продаж'!AX5 -> Март | AY5: ='План продаж'!AY5 -> Апрель | AZ5: ='План продаж'!AZ5 -> Май | BA5: ='План продаж'!BA5 -> Июнь | BB5: ='План продаж'!BB5 -> Июль | BC5: ='План продаж'!BC5 -> Август | BD5: ='План продаж'!BD5 -> Сентябрь | BE5: ='План продаж'!BE5 -> Октябрь | BF5: ='План продаж'!BF5 -> Ноябрь | BG5: ='План продаж'!BG5 -> Декабрь | BH5: ='План продаж'!BH5 -> Январь | BI5: ='План продаж'!BI5 -> Февраль | BJ5: ='План продаж'!BJ5 -> Март | BK5: ='План продаж'!BK5 -> Апрель
D6: ='План продаж'!D6 -> 2021 | E6: ='План продаж'!E6 -> 2021 | F6: ='План продаж'!F6 -> 2021 | G6: ='План продаж'!G6 -> 2021 | H6: ='План продаж'!H6 -> 2021 | I6: ='План продаж'!I6 -> 2021 | J6: ='План продаж'!J6 -> 2021 | K6: ='План продаж'!K6 -> 2021 | L6: ='План продаж'!L6 -> 2022 | M6: ='План продаж'!M6 -> 2022 | N6: ='План продаж'!N6 -> 2022 | O6: ='План продаж'!O6 -> 2022 | P6: ='План продаж'!P6 -> 2022 | Q6: ='План продаж'!Q6 -> 2022 | R6: ='План продаж'!R6 -> 2022 | S6: ='План продаж'!S6 -> 2022 | T6: ='План продаж'!T6 -> 2022 | U6: ='План продаж'!U6 -> 2022 | V6: ='План продаж'!V6 -> 2022 | W6: ='План продаж'!W6 -> 2022 | X6: ='План продаж'!X6 -> 2023 | Y6: ='План продаж'!Y6 -> 2023 | Z6: ='План продаж'!Z6 -> 2023 | AA6: ='План продаж'!AA6 -> 2023 | AB6: ='План продаж'!AB6 -> 2023 | AC6: ='План продаж'!AC6 -> 2023 | AD6: ='План продаж'!AD6 -> 2023 | AE6: ='План продаж'!AE6 -> 2023 | AF6: ='План продаж'!AF6 -> 2023 | AG6: ='План продаж'!AG6 -> 2023 | AH6: ='План продаж'!AH6 -> 2023 | AI6: ='План продаж'!AI6 -> 2023 | AJ6: ='План продаж'!AJ6 -> 2024 | AK6: ='План продаж'!AK6 -> 2024 | AL6: ='План продаж'!AL6 -> 2024 | AM6: ='План продаж'!AM6 -> 2024 | AN6: ='План продаж'!AN6 -> 2024 | AO6: ='План продаж'!AO6 -> 2024 | AP6: ='План продаж'!AP6 -> 2024 | AQ6: ='План продаж'!AQ6 -> 2024 | AR6: ='План продаж'!AR6 -> 2024 | AS6: ='План продаж'!AS6 -> 2024 | AT6: ='План продаж'!AT6 -> 2024 | AU6: ='План продаж'!AU6 -> 2024 | AV6: ='План продаж'!AV6 -> 2025 | AW6: ='План продаж'!AW6 -> 2025 | AX6: ='План продаж'!AX6 -> 2025 | AY6: ='План продаж'!AY6 -> 2025 | AZ6: ='План продаж'!AZ6 -> 2025 | BA6: ='План продаж'!BA6 -> 2025 | BB6: ='План продаж'!BB6 -> 2025 | BC6: ='План продаж'!BC6 -> 2025 | BD6: ='План продаж'!BD6 -> 2025 | BE6: ='План продаж'!BE6 -> 2025 | BF6: ='План продаж'!BF6 -> 2025 | BG6: ='План продаж'!BG6 -> 2025 | BH6: ='План продаж'!BH6 -> 2026 | BI6: ='План продаж'!BI6 -> 2026 | BJ6: ='План продаж'!BJ6 -> 2026 | BK6: ='План продаж'!BK6 -> 2026
A7: Конец квартала | D7: =IF(D5="Март","1кв",IF(D5="Июнь","2кв",IF(D5="Сентябрь","3кв",IF(D5="Декабрь","4кв","")))) ->  | E7: 2кв | H7: 3кв | K7: 4кв | N7: 1кв | Q7: 2кв | T7: 3кв | W7: 4кв | Z7: 1кв | AC7: 2кв | AF7: 3кв | AI7: 4кв | AJ7: =IF(AJ5="Март","1кв",IF(AJ5="Июнь","2кв",IF(AJ5="Сентябрь","3кв",IF(AJ5="Декабрь","4кв","")))) ->  | AL7: 1кв | AO7: 2кв | AR7: 3кв | AU7: 4кв | AX7: 1кв | BA7: 2кв | BD7: 3кв | BG7: 4кв | BJ7: 1кв
A8: Квартал | D8: =VLOOKUP(D5,Спровочник!$B$21:$C$32,2,FALSE)&D6 -> 2кв2021 | E8: =VLOOKUP(E5,Спровочник!$B$21:$C$32,2,FALSE)&E6 -> 2кв2021 | F8: =VLOOKUP(F5,Спровочник!$B$21:$C$32,2,FALSE)&F6 -> 3кв2021 | G8: =VLOOKUP(G5,Спровочник!$B$21:$C$32,2,FALSE)&G6 -> 3кв2021 | H8: =VLOOKUP(H5,Спровочник!$B$21:$C$32,2,FALSE)&H6 -> 3кв2021 | I8: =VLOOKUP(I5,Спровочник!$B$21:$C$32,2,FALSE)&I6 -> 4кв2021 | J8: =VLOOKUP(J5,Спровочник!$B$21:$C$32,2,FALSE)&J6 -> 4кв2021 | K8: =VLOOKUP(K5,Спровочник!$B$21:$C$32,2,FALSE)&K6 -> 4кв2021 | L8: =VLOOKUP(L5,Спровочник!$B$21:$C$32,2,FALSE)&L6 -> 1кв2022 | M8: =VLOOKUP(M5,Спровочник!$B$21:$C$32,2,FALSE)&M6 -> 1кв2022 | N8: =VLOOKUP(N5,Спровочник!$B$21:$C$32,2,FALSE)&N6 -> 1кв2022 | O8: =VLOOKUP(O5,Спровочник!$B$21:$C$32,2,FALSE)&O6 -> 2кв2022 | P8: =VLOOKUP(P5,Спровочник!$B$21:$C$32,2,FALSE)&P6 -> 2кв2022 | Q8: =VLOOKUP(Q5,Спровочник!$B$21:$C$32,2,FALSE)&Q6 -> 2кв2022 | R8: =VLOOKUP(R5,Спровочник!$B$21:$C$32,2,FALSE)&R6 -> 3кв2022 | S8: =VLOOKUP(S5,Спровочник!$B$21:$C$32,2,FALSE)&S6 -> 3кв2022 | T8: =VLOOKUP(T5,Спровочник!$B$21:$C$32,2,FALSE)&T6 -> 3кв2022 | U8: =VLOOKUP(U5,Спровочник!$B$21:$C$32,2,FALSE)&U6 -> 4кв2022 | V8: =VLOOKUP(V5,Спровочник!$B$21:$C$32,2,FALSE)&V6 -> 4кв2022 | W8: =VLOOKUP(W5,Спровочник!$B$21:$C$32,2,FALSE)&W6 -> 4кв2022 | X8: =VLOOKUP(X5,Спровочник!$B$21:$C$32,2,FALSE)&X6 -> 1кв2023 | Y8: =VLOOKUP(Y5,Спровочник!$B$21:$C$32,2,FALSE)&Y6 -> 1кв2023 | Z8: =VLOOKUP(Z5,Спровочник!$B$21:$C$32,2,FALSE)&Z6 -> 1кв2023 | AA8: =VLOOKUP(AA5,Спровочник!$B$21:$C$32,2,FALSE)&AA6 -> 2кв2023 | AB8: =VLOOKUP(AB5,Спровочник!$B$21:$C$32,2,FALSE)&AB6 -> 2кв2023 | AC8: =VLOOKUP(AC5,Спровочник!$B$21:$C$32,2,FALSE)&AC6 -> 2кв2023 | AD8: =VLOOKUP(AD5,Спровочник!$B$21:$C$32,2,FALSE)&AD6 -> 3кв2023 | AE8: =VLOOKUP(AE5,Спровочник!$B$21:$C$32,2,FALSE)&AE6 -> 3кв2023 | AF8: =VLOOKUP(AF5,Спровочник!$B$21:$C$32,2,FALSE)&AF6 -> 3кв2023 | AG8: =VLOOKUP(AG5,Спровочник!$B$21:$C$32,2,FALSE)&AG6 -> 4кв2023 | AH8: =VLOOKUP(AH5,Спровочник!$B$21:$C$32,2,FALSE)&AH6 -> 4кв2023 | AI8: =VLOOKUP(AI5,Спровочник!$B$21:$C$32,2,FALSE)&AI6 -> 4кв2023 | AJ8: =VLOOKUP(AJ5,Спровочник!$B$21:$C$32,2,FALSE)&AJ6 -> 1кв2024 | AK8: =VLOOKUP(AK5,Спровочник!$B$21:$C$32,2,FALSE)&AK6 -> 1кв2024 | AL8: =VLOOKUP(AL5,Спровочник!$B$21:$C$32,2,FALSE)&AL6 -> 1кв2024 | AM8: =VLOOKUP(AM5,Спровочник!$B$21:$C$32,2,FALSE)&AM6 -> 2кв2024 | AN8: =VLOOKUP(AN5,Спровочник!$B$21:$C$32,2,FALSE)&AN6 -> 2кв2024 | AO8: =VLOOKUP(AO5,Спровочник!$B$21:$C$32,2,FALSE)&AO6 -> 2кв2024 | AP8: =VLOOKUP(AP5,Спровочник!$B$21:$C$32,2,FALSE)&AP6 -> 3кв2024 | AQ8: =VLOOKUP(AQ5,Спровочник!$B$21:$C$32,2,FALSE)&AQ6 -> 3кв2024 | AR8: =VLOOKUP(AR5,Спровочник!$B$21:$C$32,2,FALSE)&AR6 -> 3кв2024 | AS8: =VLOOKUP(AS5,Спровочник!$B$21:$C$32,2,FALSE)&AS6 -> 4кв2024 | AT8: =VLOOKUP(AT5,Спровочник!$B$21:$C$32,2,FALSE)&AT6 -> 4кв2024 | AU8: =VLOOKUP(AU5,Спровочник!$B$21:$C$32,2,FALSE)&AU6 -> 4кв2024 | AV8: =VLOOKUP(AV5,Спровочник!$B$21:$C$32,2,FALSE)&AV6 -> 1кв2025 | AW8: =VLOOKUP(AW5,Спровочник!$B$21:$C$32,2,FALSE)&AW6 -> 1кв2025 | AX8: =VLOOKUP(AX5,Спровочник!$B$21:$C$32,2,FALSE)&AX6 -> 1кв2025 | AY8: =VLOOKUP(AY5,Спровочник!$B$21:$C$32,2,FALSE)&AY6 -> 2кв2025 | AZ8: =VLOOKUP(AZ5,Спровочник!$B$21:$C$32,2,FALSE)&AZ6 -> 2кв2025 | BA8: =VLOOKUP(BA5,Спровочник!$B$21:$C$32,2,FALSE)&BA6 -> 2кв2025 | BB8: =VLOOKUP(BB5,Спровочник!$B$21:$C$32,2,FALSE)&BB6 -> 3кв2025 | BC8: =VLOOKUP(BC5,Спровочник!$B$21:$C$32,2,FALSE)&BC6 -> 3кв2025 | BD8: =VLOOKUP(BD5,Спровочник!$B$21:$C$32,2,FALSE)&BD6 -> 3кв2025 | BE8: =VLOOKUP(BE5,Спровочник!$B$21:$C$32,2,FALSE)&BE6 -> 4кв2025 | BF8: =VLOOKUP(BF5,Спровочник!$B$21:$C$32,2,FALSE)&BF6 -> 4кв2025 | BG8: =VLOOKUP(BG5,Спровочник!$B$21:$C$32,2,FALSE)&BG6 -> 4кв2025 | BH8: =VLOOKUP(BH5,Спровочник!$B$21:$C$32,2,FALSE)&BH6 -> 1кв2026 | BI8: =VLOOKUP(BI5,Спровочник!$B$21:$C$32,2,FALSE)&BI6 -> 1кв2026 | BJ8: =VLOOKUP(BJ5,Спровочник!$B$21:$C$32,2,FALSE)&BJ6 -> 1кв2026 | BK8: =VLOOKUP(BK5,Спровочник!$B$21:$C$32,2,FALSE)&BK6 -> 2кв2026
A9: Месяц и год | C9: =CONCATENATE(C5,C6) ->  | D9: =CONCATENATE(D5,D6) -> Май2021 | E9: =CONCATENATE(E5,E6) -> Июнь2021 | F9: Июль2021 | G9: Август2021 | H9: Сентябрь2021 | I9: Октябрь2021 | J9: Ноябрь2021 | K9: Декабрь2021 | L9: Январь2022 | M9: Февраль2022 | N9: Март2022 | O9: Апрель2022 | P9: Май2022 | Q9: Июнь2022 | R9: Июль2022 | S9: Август2022 | T9: Сентябрь2022 | U9: Октябрь2022 | V9: Ноябрь2022 | W9: Декабрь2022 | X9: Январь2023 | Y9: Февраль2023 | Z9: Март2023 | AA9: Апрель2023 | AB9: Май2023 | AC9: Июнь2023 | AD9: Июль2023 | AE9: Август2023 | AF9: Сентябрь2023 | AG9: Октябрь2023 | AH9: Ноябрь2023 | AI9: Декабрь2023 | AJ9: Январь2024 | AK9: Февраль2024 | AL9: Март2024 | AM9: Апрель2024 | AN9: Май2024 | AO9: Июнь2024 | AP9: Июль2024 | AQ9: Август2024 | AR9: Сентябрь2024 | AS9: Октябрь2024 | AT9: Ноябрь2024 | AU9: Декабрь2024 | AV9: Январь2025 | AW9: Февраль2025 | AX9: Март2025 | AY9: Апрель2025 | AZ9: Май2025 | BA9: Июнь2025 | BB9: Июль2025 | BC9: Август2025 | BD9: Сентябрь2025 | BE9: Октябрь2025 | BF9: Ноябрь2025 | BG9: Декабрь2025 | BH9: Январь2026 | BI9: Февраль2026 | BJ9: Март2026 | BK9: Апрель2026
A10: Месяцев в квартале | C10: ='Исходные данные'!Y265 -> 3 | D10: =IF(D7<>"",1,0) -> 0 | E10: =IF(E7<>"",2,0) -> 2 | F10: =IF(F7<>"",3,0) -> 0 | G10: 0 | H10: 3 | I10: 0 | J10: 0 | K10: 3 | L10: 0 | M10: 0 | N10: 3 | O10: 0 | P10: 0 | Q10: 3 | R10: 0 | S10: 0 | T10: 3 | U10: 0 | V10: 0 | W10: 3 | X10: 0 | Y10: 0 | Z10: 3 | AA10: 0 | AB10: 0 | AC10: 3 | AD10: 0 | AE10: 0 | AF10: 3 | AG10: 0 | AH10: 0 | AI10: 3 | AJ10: 0 | AK10: 0 | AL10: =IF(AL7<>"",3,0) -> 3 | AM10: 0 | AN10: 0 | AO10: 3 | AP10: 0 | AQ10: 0 | AR10: 3 | AS10: 0 | AT10: 0 | AU10: 3 | AV10: 0 | AW10: 0 | AX10: 3 | AY10: 0 | AZ10: 0 | BA10: 3 | BB10: 0 | BC10: 0 | BD10: 3 | BE10: 0 | BF10: 0 | BG10: 3 | BH10: 0 | BI10: 0 | BJ10: 3 | BK10: 0
A12: Остаток ДС на начало периода | B12: 0 | C12: 0 | D12: =C71 -> 2941.514167 | E12: 65428.03852 | F12: 158517.9971 | G12: 244071.2608 | H12: 350208.6266 | I12: 460134.5412 | J12: 447512.2392 | K12: 504030.9418 | L12: 1316916.457 | M12: 1536065.135 | N12: 1703192.429 | O12: 464165.9613 | P12: 435127.3214 | Q12: 556240.8194 | R12: 425229.3147 | S12: 490488.2127 | T12: 628114.9107 | U12: 502173.1647 | V12: 548843.0627 | W12: 606195.0987 | X12: 1320665.541 | Y12: 1542053.511 | Z12: 1710014.139 | AA12: 554341.5447 | AB12: 530043.6972 | AC12: 651157.1952 | AD12: 465662.1647 | AE12: 530921.0627 | AF12: 668547.7607 | AG12: 573515.4147 | AH12: 620185.3127 | AI12: 677537.3487 | AJ12: =AI71 -> 1225257.791 | AK12: 1448395.07 | AL12: 1617955.698 | AM12: 454441.5447 | AN12: 351743.6972 | AO12: 495457.1952 | AP12: 286762.1647 | AQ12: 353621.0627 | AR12: 492847.7607 | AS12: 381115.4147 | AT12: 429385.3127 | AU12: 488337.3487 | AV12: 1179357.791 | AW12: 1405114.591 | AX12: 1574675.219 | AY12: 393441.5447 | AZ12: 370743.6972 | BA12: 493457.1952 | BB12: 286762.1647 | BC12: 353621.0627 | BD12: 492847.7607 | BE12: 381115.4147 | BF12: 429385.3127 | BG12: 488337.3487 | BH12: 1179357.791 | BI12: 1402636.005 | BJ12: 1572196.633 | BK12: 393441.5447
A14: Поступление от операционной деятельности | B14: =SUM(C14:BK14) -> 52551822.45 | C14: 0 | D14: ='План продаж'!D32*(1-'Исходные данные'!$C$161) -> 497262.9 | E14: ='План продаж'!E32*(1-'Исходные данные'!$C$161) -> 582386.7 | F14: ='План продаж'!F32*(1-'Исходные данные'!$C$161) -> 655307.85 | G14: ='План продаж'!G32*(1-'Исходные данные'!$C$161) -> 655307.85 | H14: ='План продаж'!H32*(1-'Исходные данные'!$C$161) -> 710367.15 | I14: ='План продаж'!I32*(1-'Исходные данные'!$C$161) -> 736894.65 | J14: ='План продаж'!J32*(1-'Исходные данные'!$C$161) -> 1094642.55 | K14: ='План продаж'!K32*(1-'Исходные данные'!$C$161) -> 1979010.45 | L14: ='План продаж'!L32*(1-'Исходные данные'!$C$161) -> 962103.3 | M14: ='План продаж'!M32*(1-'Исходные данные'!$C$161) -> 770496.15 | N14: ='План продаж'!N32*(1-'Исходные данные'!$C$161) -> 726283.65 | O14: ='План продаж'!O32*(1-'Исходные данные'!$C$161) -> 736894.65 | P14: ='План продаж'!P32*(1-'Исходные данные'!$C$161) -> 710367.15 | Q14: ='План продаж'!Q32*(1-'Исходные данные'!$C$161) -> 728052.15 | R14: ='План продаж'!R32*(1-'Исходные данные'!$C$161) -> 728052.15 | S14: ='План продаж'!S32*(1-'Исходные данные'!$C$161) -> 728052.15 | T14: ='План продаж'!T32*(1-'Исходные данные'!$C$161) -> 710367.15 | U14: ='План продаж'!U32*(1-'Исходные данные'!$C$161) -> 736894.65 | V14: ='План продаж'!V32*(1-'Исходные данные'!$C$161) -> 1094642.55 | W14: ='План продаж'!W32*(1-'Исходные данные'!$C$161) -> 1979010.45 | X14: ='План продаж'!X32*(1-'Исходные данные'!$C$161) -> 962103.3 | Y14: ='План продаж'!Y32*(1-'Исходные данные'!$C$161) -> 770496.15 | Z14: ='План продаж'!Z32*(1-'Исходные данные'!$C$161) -> 726283.65 | AA14: ='План продаж'!AA32*(1-'Исходные данные'!$C$161) -> 736894.65 | AB14: ='План продаж'!AB32*(1-'Исходные данные'!$C$161) -> 710367.15 | AC14: ='План продаж'!AC32*(1-'Исходные данные'!$C$161) -> 728052.15 | AD14: ='План продаж'!AD32*(1-'Исходные данные'!$C$161) -> 728052.15 | AE14: ='План продаж'!AE32*(1-'Исходные данные'!$C$161) -> 728052.15 | AF14: ='План продаж'!AF32*(1-'Исходные данные'!$C$161) -> 710367.15 | AG14: ='План продаж'!AG32*(1-'Исходные данные'!$C$161) -> 736894.65 | AH14: ='План продаж'!AH32*(1-'Исходные данные'!$C$161) -> 1094642.55 | AI14: ='План продаж'!AI32*(1-'Исходные данные'!$C$161) -> 1979010.45 | AJ14: ='План продаж'!AJ32*(1-'Исходные данные'!$C$161) -> 962103.3 | AK14: ='План продаж'!AK32*(1-'Исходные данные'!$C$161) -> 770496.15 | AL14: ='План продаж'!AL32*(1-'Исходные данные'!$C$161) -> 726283.65 | AM14: ='План продаж'!AM32*(1-'Исходные данные'!$C$161) -> 736894.65 | AN14: ='План продаж'!AN32*(1-'Исходные данные'!$C$161) -> 710367.15 | AO14: ='План продаж'!AO32*(1-'Исходные данные'!$C$161) -> 728052.15 | AP14: ='План продаж'!AP32*(1-'Исходные данные'!$C$161) -> 728052.15 | AQ14: ='План продаж'!AQ32*(1-'Исходные данные'!$C$161) -> 728052.15 | AR14: ='План продаж'!AR32*(1-'Исходные данные'!$C$161) -> 710367.15 | AS14: ='План продаж'!AS32*(1-'Исходные данные'!$C$161) -> 736894.65 | AT14: ='План продаж'!AT32*(1-'Исходные данные'!$C$161) -> 1094642.55 | AU14: ='План продаж'!AU32*(1-'Исходные данные'!$C$161) -> 1979010.45 | AV14: ='План продаж'!AV32*(1-'Исходные данные'!$C$161) -> 962103.3 | AW14: ='План продаж'!AW32*(1-'Исходные данные'!$C$161) -> 770496.15 | AX14: ='План продаж'!AX32*(1-'Исходные данные'!$C$161) -> 726283.65 | AY14: ='План продаж'!AY32*(1-'Исходные данные'!$C$161) -> 736894.65 | AZ14: ='План продаж'!AZ32*(1-'Исходные данные'!$C$161) -> 710367.15 | BA14: ='План продаж'!BA32*(1-'Исходные данные'!$C$161) -> 728052.15 | BB14: ='План продаж'!BB32*(1-'Исходные данные'!$C$161) -> 728052.15 | BC14: ='План продаж'!BC32*(1-'Исходные данные'!$C$161) -> 728052.15 | BD14: ='План продаж'!BD32*(1-'Исходные данные'!$C$161) -> 710367.15 | BE14: ='План продаж'!BE32*(1-'Исходные данные'!$C$161) -> 736894.65 | BF14: ='План продаж'!BF32*(1-'Исходные данные'!$C$161) -> 1094642.55 | BG14: ='План продаж'!BG32*(1-'Исходные данные'!$C$161) -> 1979010.45 | BH14: ='План продаж'!BH32*(1-'Исходные данные'!$C$161) -> 962103.3 | BI14: ='План продаж'!BI32*(1-'Исходные данные'!$C$161) -> 770496.15 | BJ14: ='План продаж'!BJ32*(1-'Исходные данные'!$C$161) -> 726283.65 | BK14: ='План продаж'!BK32*(1-'Исходные данные'!$C$161) -> 736894.65
A15: Операционные расходы | B15: =SUM(B16,B22) -> 42895069.62 | C15: =SUM(C16,C22) -> 101058.4858 | D15: 432343.0423 | E15: =SUM(E16,E22) -> 486863.4081 | F15: 567321.2529 | G15: 546737.1509 | H15: 598007.902 | I15: 747083.6188 | J15: 1035690.514 | K15: 1068408.826 | L15: 740521.2895 | M15: 600935.522 | N15: 602182.522 | O15: 763916.6232 | P15: 587653.652 | Q15: 672971.002 | R15: 661193.252 | S15: 588825.452 | T15: 598592.152 | U15: 688624.752 | V15: 1035690.514 | W15: 1068993.076 | X15: 739115.3297 | Y15: 600935.522 | Z15: 602840.272 | AA15: 759592.4975 | AB15: 587653.652 | AC15: 711288.152 | AD15: 661193.252 | AE15: 588825.452 | AF15: 599249.902 | AG15: 688624.752 | AH15: 1035690.514 | AI15: =SUM(AI16,AI22) -> 1069650.826 | AJ15: 738166.0203 | AK15: 600935.522 | AL15: 602840.272 | AM15: 769592.4975 | AN15: 587653.652 | AO15: 711288.152 | AP15: 661193.252 | AQ15: 588825.452 | AR15: 599249.902 | AS15: 688624.752 | AT15: 1035690.514 | AU15: 1069650.826 | AV15: 736346.4996 | AW15: 600935.522 | AX15: 602840.272 | AY15: 759592.4975 | AZ15: 587653.652 | BA15: 711288.152 | BB15: 661193.252 | BC15: 588825.452 | BD15: 599249.902 | BE15: 688624.752 | BF15: 1035690.514 | BG15: 1069650.826 | BH15: 738825.0852 | BI15: 600935.522 | BJ15: 602840.272 | BK15: 818592.4975
A16: Прямые расходы | B16: =SUM(B17:B21) -> 30700982.01 | C16: =SUM(C17:C21) -> 90839.98583 | D16: 294048.0423 | E16: 341756.0748 | F16: 384547.6529 | G16: 379147.1509 | H16: 420199.402 | I16: 521034.752 | J16: 868100.514 | K16: 890600.326 | L16: 506485.224 | M16: 433345.522 | N16: 423789.772 | O16: 421957.102 | P16: 420063.652 | Q16: 427235.452 | R16: 427235.452 | S16: 421235.452 | T16: 420199.402 | U16: 521034.752 | V16: 868100.514 | W16: 890600.326 | X16: 506485.224 | Y16: 433345.522 | Z16: 423789.772 | AA16: 421957.102 | AB16: 420063.652 | AC16: 427235.452 | AD16: 427235.452 | AE16: 421235.452 | AF16: 420199.402 | AG16: 521034.752 | AH16: 868100.514 | AI16: =SUM(AI17:AI21) -> 890600.326 | AJ16: 506485.224 | AK16: 433345.522 | AL16: 423789.772 | AM16: 421957.102 | AN16: 420063.652 | AO16: 427235.452 | AP16: 427235.452 | AQ16: 421235.452 | AR16: 420199.402 | AS16: 521034.752 | AT16: 868100.514 | AU16: 890600.326 | AV16: 506485.224 | AW16: 433345.522 | AX16: 423789.772 | AY16: 421957.102 | AZ16: 420063.652 | BA16: 427235.452 | BB16: 427235.452 | BC16: 421235.452 | BD16: 420199.402 | BE16: 521034.752 | BF16: 868100.514 | BG16: 890600.326 | BH16: 506485.224 | BI16: 433345.522 | BJ16: 423789.772 | BK16: 421957.102
A17: Покупка товаров | B17: =SUM(C17:BK17) -> 26719399.1 | C17: ='Исходные данные'!C194 -> 90001.83333 | D17: ='План продаж'!D32*HLOOKUP(D$5,'расчет прямых ТЗР'!$C$4:$N$70,'расчет прямых ТЗР'!$U$48,FALSE) -> 256892.5454 | E17: ='План продаж'!E32*HLOOKUP(E$5,'расчет прямых ТЗР'!$C$4:$N$70,'расчет прямых ТЗР'!$U$48,FALSE) -> 298359.813 | F17: ='План продаж'!F32*HLOOKUP(F$5,'расчет прямых ТЗР'!$C$4:$N$70,'расчет прямых ТЗР'!$U$48,FALSE) -> 335717.7071 | G17: ='План продаж'!G32*HLOOKUP(G$5,'расчет прямых ТЗР'!$C$4:$N$70,'расчет прямых ТЗР'!$U$48,FALSE) -> 330317.2051 | H17: ='План продаж'!H32*HLOOKUP(H$5,'расчет прямых ТЗР'!$C$4:$N$70,'расчет прямых ТЗР'!$U$48,FALSE) -> 367060 | I17: ='План продаж'!I32*HLOOKUP(I$5,'расчет прямых ТЗР'!$C$4:$N$70,'расчет прямых ТЗР'!$U$48,FALSE) -> 463265 | J17: ='План продаж'!J32*HLOOKUP(J$5,'расчет прямых ТЗР'!$C$4:$N$70,'расчет прямых ТЗР'!$U$48,FALSE) -> 777300 | K17: ='План продаж'!K32*HLOOKUP(K$5,'расчет прямых ТЗР'!$C$4:$N$70,'расчет прямых ТЗР'!$U$48,FALSE) -> 742450 | L17: ='План продаж'!L32*HLOOKUP(L$5,'расчет прямых ТЗР'!$C$4:$N$70,'расчет прямых ТЗР'!$U$48,FALSE) -> 434940 | M17: ='План продаж'!M32*HLOOKUP(M$5,'расчет прямых ТЗР'!$C$4:$N$70,'расчет прямых ТЗР'!$U$48,FALSE) -> 376060 | N17: ='План продаж'!N32*HLOOKUP(N$5,'расчет прямых ТЗР'!$C$4:$N$70,'расчет прямых ТЗР'!$U$48,FALSE) -> 369535 | O17: ='План продаж'!O32*HLOOKUP(O$5,'расчет прямых ТЗР'!$C$4:$N$70,'расчет прямых ТЗР'!$U$48,FALSE) -> 367060 | P17: ='План продаж'!P32*HLOOKUP(P$5,'расчет прямых ТЗР'!$C$4:$N$70,'расчет прямых ТЗР'!$U$48,FALSE) -> 366985 | Q17: ='План продаж'!Q32*HLOOKUP(Q$5,'расчет прямых ТЗР'!$C$4:$N$70,'расчет прямых ТЗР'!$U$48,FALSE) -> 372985 | R17: ='План продаж'!R32*HLOOKUP(R$5,'расчет прямых ТЗР'!$C$4:$N$70,'расчет прямых ТЗР'!$U$48,FALSE) -> 372985 | S17: ='План продаж'!S32*HLOOKUP(S$5,'расчет прямых ТЗР'!$C$4:$N$70,'расчет прямых ТЗР'!$U$48,FALSE) -> 366985 | T17: ='План продаж'!T32*HLOOKUP(T$5,'расчет прямых ТЗР'!$C$4:$N$70,'расчет прямых ТЗР'!$U$48,FALSE) -> 367060 | U17: ='План продаж'!U32*HLOOKUP(U$5,'расчет прямых ТЗР'!$C$4:$N$70,'расчет прямых ТЗР'!$U$48,FALSE) -> 463265 | V17: ='План продаж'!V32*HLOOKUP(V$5,'расчет прямых ТЗР'!$C$4:$N$70,'расчет прямых ТЗР'!$U$48,FALSE) -> 777300 | W17: ='План продаж'!W32*HLOOKUP(W$5,'расчет прямых ТЗР'!$C$4:$N$70,'расчет прямых ТЗР'!$U$48,FALSE) -> 742450 | X17: ='План продаж'!X32*HLOOKUP(X$5,'расчет прямых ТЗР'!$C$4:$N$70,'расчет прямых ТЗР'!$U$48,FALSE) -> 434940 | Y17: ='План продаж'!Y32*HLOOKUP(Y$5,'расчет прямых ТЗР'!$C$4:$N$70,'расчет прямых ТЗР'!$U$48,FALSE) -> 376060 | Z17: ='План продаж'!Z32*HLOOKUP(Z$5,'расчет прямых ТЗР'!$C$4:$N$70,'расчет прямых ТЗР'!$U$48,FALSE) -> 369535 | AA17: ='План продаж'!AA32*HLOOKUP(AA$5,'расчет прямых ТЗР'!$C$4:$N$70,'расчет прямых ТЗР'!$U$48,FALSE) -> 367060 | AB17: ='План продаж'!AB32*HLOOKUP(AB$5,'расчет прямых ТЗР'!$C$4:$N$70,'расчет прямых ТЗР'!$U$48,FALSE) -> 366985 | AC17: ='План продаж'!AC32*HLOOKUP(AC$5,'расчет прямых ТЗР'!$C$4:$N$70,'расчет прямых ТЗР'!$U$48,FALSE) -> 372985 | AD17: ='План продаж'!AD32*HLOOKUP(AD$5,'расчет прямых ТЗР'!$C$4:$N$70,'расчет прямых ТЗР'!$U$48,FALSE) -> 372985 | AE17: ='План продаж'!AE32*HLOOKUP(AE$5,'расчет прямых ТЗР'!$C$4:$N$70,'расчет прямых ТЗР'!$U$48,FALSE) -> 366985 | AF17: ='План продаж'!AF32*HLOOKUP(AF$5,'расчет прямых ТЗР'!$C$4:$N$70,'расчет прямых ТЗР'!$U$48,FALSE) -> 367060 | AG17: ='План продаж'!AG32*HLOOKUP(AG$5,'расчет прямых ТЗР'!$C$4:$N$70,'расчет прямых ТЗР'!$U$48,FALSE) -> 463265 | AH17: ='План продаж'!AH32*HLOOKUP(AH$5,'расчет прямых ТЗР'!$C$4:$N$70,'расчет прямых ТЗР'!$U$48,FALSE) -> 777300 | AI17: ='План продаж'!AI32*HLOOKUP(AI$5,'расчет прямых ТЗР'!$C$4:$N$70,'расчет прямых ТЗР'!$U$48,FALSE) -> 742450 | AJ17: ='План продаж'!AJ32*HLOOKUP(AJ$5,'расчет прямых ТЗР'!$C$4:$N$70,'расчет прямых ТЗР'!$U$48,FALSE) -> 434940 | AK17: ='План продаж'!AK32*HLOOKUP(AK$5,'расчет прямых ТЗР'!$C$4:$N$70,'расчет прямых ТЗР'!$U$48,FALSE) -> 376060 | AL17: ='План продаж'!AL32*HLOOKUP(AL$5,'расчет прямых ТЗР'!$C$4:$N$70,'расчет прямых ТЗР'!$U$48,FALSE) -> 369535 | AM17: ='План продаж'!AM32*HLOOKUP(AM$5,'расчет прямых ТЗР'!$C$4:$N$70,'расчет прямых ТЗР'!$U$48,FALSE) -> 367060 | AN17: ='План продаж'!AN32*HLOOKUP(AN$5,'расчет прямых ТЗР'!$C$4:$N$70,'расчет прямых ТЗР'!$U$48,FALSE) -> 366985 | AO17: ='План продаж'!AO32*HLOOKUP(AO$5,'расчет прямых ТЗР'!$C$4:$N$70,'расчет прямых ТЗР'!$U$48,FALSE) -> 372985 | AP17: ='План продаж'!AP32*HLOOKUP(AP$5,'расчет прямых ТЗР'!$C$4:$N$70,'расчет прямых ТЗР'!$U$48,FALSE) -> 372985 | AQ17: ='План продаж'!AQ32*HLOOKUP(AQ$5,'расчет прямых ТЗР'!$C$4:$N$70,'расчет прямых ТЗР'!$U$48,FALSE) -> 366985 | AR17: ='План продаж'!AR32*HLOOKUP(AR$5,'расчет прямых ТЗР'!$C$4:$N$70,'расчет прямых ТЗР'!$U$48,FALSE) -> 367060 | AS17: ='План продаж'!AS32*HLOOKUP(AS$5,'расчет прямых ТЗР'!$C$4:$N$70,'расчет прямых ТЗР'!$U$48,FALSE) -> 463265 | AT17: ='План продаж'!AT32*HLOOKUP(AT$5,'расчет прямых ТЗР'!$C$4:$N$70,'расчет прямых ТЗР'!$U$48,FALSE) -> 777300 | AU17: ='План продаж'!AU32*HLOOKUP(AU$5,'расчет прямых ТЗР'!$C$4:$N$70,'расчет прямых ТЗР'!$U$48,FALSE) -> 742450 | AV17: ='План продаж'!AV32*HLOOKUP(AV$5,'расчет прямых ТЗР'!$C$4:$N$70,'расчет прямых ТЗР'!$U$48,FALSE) -> 434940 | AW17: ='План продаж'!AW32*HLOOKUP(AW$5,'расчет прямых ТЗР'!$C$4:$N$70,'расчет прямых ТЗР'!$U$48,FALSE) -> 376060 | AX17: ='План продаж'!AX32*HLOOKUP(AX$5,'расчет прямых ТЗР'!$C$4:$N$70,'расчет прямых ТЗР'!$U$48,FALSE) -> 369535 | AY17: ='План продаж'!AY32*HLOOKUP(AY$5,'расчет прямых ТЗР'!$C$4:$N$70,'расчет прямых ТЗР'!$U$48,FALSE) -> 367060 | AZ17: ='План продаж'!AZ32*HLOOKUP(AZ$5,'расчет прямых ТЗР'!$C$4:$N$70,'расчет прямых ТЗР'!$U$48,FALSE) -> 366985 | BA17: ='План продаж'!BA32*HLOOKUP(BA$5,'расчет прямых ТЗР'!$C$4:$N$70,'расчет прямых ТЗР'!$U$48,FALSE) -> 372985 | BB17: ='План продаж'!BB32*HLOOKUP(BB$5,'расчет прямых ТЗР'!$C$4:$N$70,'расчет прямых ТЗР'!$U$48,FALSE) -> 372985 | BC17: ='План продаж'!BC32*HLOOKUP(BC$5,'расчет прямых ТЗР'!$C$4:$N$70,'расчет прямых ТЗР'!$U$48,FALSE) -> 366985 | BD17: ='План продаж'!BD32*HLOOKUP(BD$5,'расчет прямых ТЗР'!$C$4:$N$70,'расчет прямых ТЗР'!$U$48,FALSE) -> 367060 | BE17: ='План продаж'!BE32*HLOOKUP(BE$5,'расчет прямых ТЗР'!$C$4:$N$70,'расчет прямых ТЗР'!$U$48,FALSE) -> 463265 | BF17: ='План продаж'!BF32*HLOOKUP(BF$5,'расчет прямых ТЗР'!$C$4:$N$70,'расчет прямых ТЗР'!$U$48,FALSE) -> 777300 | BG17: ='План продаж'!BG32*HLOOKUP(BG$5,'расчет прямых ТЗР'!$C$4:$N$70,'расчет прямых ТЗР'!$U$48,FALSE) -> 742450 | BH17: ='План продаж'!BH32*HLOOKUP(BH$5,'расчет прямых ТЗР'!$C$4:$N$70,'расчет прямых ТЗР'!$U$48,FALSE) -> 434940 | BI17: ='План продаж'!BI32*HLOOKUP(BI$5,'расчет прямых ТЗР'!$C$4:$N$70,'расчет прямых ТЗР'!$U$48,FALSE) -> 376060 | BJ17: ='План продаж'!BJ32*HLOOKUP(BJ$5,'расчет прямых ТЗР'!$C$4:$N$70,'расчет прямых ТЗР'!$U$48,FALSE) -> 369535 | BK17: ='План продаж'!BK32*HLOOKUP(BK$5,'расчет прямых ТЗР'!$C$4:$N$70,'расчет прямых ТЗР'!$U$48,FALSE) -> 367060
A18: Транспортные расходы | B18: =SUM(C18:BK18) -> 499523.2189 | C18: ='Исходные данные'!C262 -> 838.1525 | D18: ='План продаж'!D32*HLOOKUP(D$5,'расчет прямых ТЗР'!$C$4:$N$70,'расчет прямых ТЗР'!$U$70,FALSE) -> 4207.084875 | E18: ='План продаж'!E32*HLOOKUP(E$5,'расчет прямых ТЗР'!$C$4:$N$70,'расчет прямых ТЗР'!$U$70,FALSE) -> 4807.585811 | F18: ='План продаж'!F32*HLOOKUP(F$5,'расчет прямых ТЗР'!$C$4:$N$70,'расчет прямых ТЗР'!$U$70,FALSE) -> 5409.547852 | G18: ='План продаж'!G32*HLOOKUP(G$5,'расчет прямых ТЗР'!$C$4:$N$70,'расчет прямых ТЗР'!$U$70,FALSE) -> 5409.547852 | H18: ='План продаж'!H32*HLOOKUP(H$5,'расчет прямых ТЗР'!$C$4:$N$70,'расчет прямых ТЗР'!$U$70,FALSE) -> 6070.8 | I18: ='План продаж'!I32*HLOOKUP(I$5,'расчет прямых ТЗР'!$C$4:$N$70,'расчет прямых ТЗР'!$U$70,FALSE) -> 8943.45 | J18: ='План продаж'!J32*HLOOKUP(J$5,'расчет прямых ТЗР'!$C$4:$N$70,'расчет прямых ТЗР'!$U$70,FALSE) -> 18270 | K18: ='План продаж'!K32*HLOOKUP(K$5,'расчет прямых ТЗР'!$C$4:$N$70,'расчет прямых ТЗР'!$U$70,FALSE) -> 17022 | L18: ='План продаж'!L32*HLOOKUP(L$5,'расчет прямых ТЗР'!$C$4:$N$70,'расчет прямых ТЗР'!$U$70,FALSE) -> 7796.7 | M18: ='План продаж'!M32*HLOOKUP(M$5,'расчет прямых ТЗР'!$C$4:$N$70,'расчет прямых ТЗР'!$U$70,FALSE) -> 6232.8 | N18: ='План продаж'!N32*HLOOKUP(N$5,'расчет прямых ТЗР'!$C$4:$N$70,'расчет прямых ТЗР'!$U$70,FALSE) -> 6131.55 | O18: ='План продаж'!O32*HLOOKUP(O$5,'расчет прямых ТЗР'!$C$4:$N$70,'расчет прямых ТЗР'!$U$70,FALSE) -> 6070.8 | P18: ='План продаж'!P32*HLOOKUP(P$5,'расчет прямых ТЗР'!$C$4:$N$70,'расчет прямых ТЗР'!$U$70,FALSE) -> 6010.05 | Q18: ='План продаж'!Q32*HLOOKUP(Q$5,'расчет прямых ТЗР'!$C$4:$N$70,'расчет прямых ТЗР'!$U$70,FALSE) -> 6010.05 | R18: ='План продаж'!R32*HLOOKUP(R$5,'расчет прямых ТЗР'!$C$4:$N$70,'расчет прямых ТЗР'!$U$70,FALSE) -> 6010.05 | S18: ='План продаж'!S32*HLOOKUP(S$5,'расчет прямых ТЗР'!$C$4:$N$70,'расчет прямых ТЗР'!$U$70,FALSE) -> 6010.05 | T18: ='План продаж'!T32*HLOOKUP(T$5,'расчет прямых ТЗР'!$C$4:$N$70,'расчет прямых ТЗР'!$U$70,FALSE) -> 6070.8 | U18: ='План продаж'!U32*HLOOKUP(U$5,'расчет прямых ТЗР'!$C$4:$N$70,'расчет прямых ТЗР'!$U$70,FALSE) -> 8943.45 | V18: ='План продаж'!V32*HLOOKUP(V$5,'расчет прямых ТЗР'!$C$4:$N$70,'расчет прямых ТЗР'!$U$70,FALSE) -> 18270 | W18: ='План продаж'!W32*HLOOKUP(W$5,'расчет прямых ТЗР'!$C$4:$N$70,'расчет прямых ТЗР'!$U$70,FALSE) -> 17022 | X18: ='План продаж'!X32*HLOOKUP(X$5,'расчет прямых ТЗР'!$C$4:$N$70,'расчет прямых ТЗР'!$U$70,FALSE) -> 7796.7 | Y18: ='План продаж'!Y32*HLOOKUP(Y$5,'расчет прямых ТЗР'!$C$4:$N$70,'расчет прямых ТЗР'!$U$70,FALSE) -> 6232.8 | Z18: ='План продаж'!Z32*HLOOKUP(Z$5,'расчет прямых ТЗР'!$C$4:$N$70,'расчет прямых ТЗР'!$U$70,FALSE) -> 6131.55 | AA18: ='План продаж'!AA32*HLOOKUP(AA$5,'расчет прямых ТЗР'!$C$4:$N$70,'расчет прямых ТЗР'!$U$70,FALSE) -> 6070.8 | AB18: ='План продаж'!AB32*HLOOKUP(AB$5,'расчет прямых ТЗР'!$C$4:$N$70,'расчет прямых ТЗР'!$U$70,FALSE) -> 6010.05 | AC18: ='План продаж'!AC32*HLOOKUP(AC$5,'расчет прямых ТЗР'!$C$4:$N$70,'расчет прямых ТЗР'!$U$70,FALSE) -> 6010.05 | AD18: ='План продаж'!AD32*HLOOKUP(AD$5,'расчет прямых ТЗР'!$C$4:$N$70,'расчет прямых ТЗР'!$U$70,FALSE) -> 6010.05 | AE18: ='План продаж'!AE32*HLOOKUP(AE$5,'расчет прямых ТЗР'!$C$4:$N$70,'расчет прямых ТЗР'!$U$70,FALSE) -> 6010.05 | AF18: ='План продаж'!AF32*HLOOKUP(AF$5,'расчет прямых ТЗР'!$C$4:$N$70,'расчет прямых ТЗР'!$U$70,FALSE) -> 6070.8 | AG18: ='План продаж'!AG32*HLOOKUP(AG$5,'расчет прямых ТЗР'!$C$4:$N$70,'расчет прямых ТЗР'!$U$70,FALSE) -> 8943.45 | AH18: ='План продаж'!AH32*HLOOKUP(AH$5,'расчет прямых ТЗР'!$C$4:$N$70,'расчет прямых ТЗР'!$U$70,FALSE) -> 18270 | AI18: ='План продаж'!AI32*HLOOKUP(AI$5,'расчет прямых ТЗР'!$C$4:$N$70,'расчет прямых ТЗР'!$U$70,FALSE) -> 17022 | AJ18: ='План продаж'!AJ32*HLOOKUP(AJ$5,'расчет прямых ТЗР'!$C$4:$N$70,'расчет прямых ТЗР'!$U$70,FALSE) -> 7796.7 | AK18: ='План продаж'!AK32*HLOOKUP(AK$5,'расчет прямых ТЗР'!$C$4:$N$70,'расчет прямых ТЗР'!$U$70,FALSE) -> 6232.8 | AL18: ='План продаж'!AL32*HLOOKUP(AL$5,'расчет прямых ТЗР'!$C$4:$N$70,'расчет прямых ТЗР'!$U$70,FALSE) -> 6131.55 | AM18: ='План продаж'!AM32*HLOOKUP(AM$5,'расчет прямых ТЗР'!$C$4:$N$70,'расчет прямых ТЗР'!$U$70,FALSE) -> 6070.8 | AN18: ='План продаж'!AN32*HLOOKUP(AN$5,'расчет прямых ТЗР'!$C$4:$N$70,'расчет прямых ТЗР'!$U$70,FALSE) -> 6010.05 | AO18: ='План продаж'!AO32*HLOOKUP(AO$5,'расчет прямых ТЗР'!$C$4:$N$70,'расчет прямых ТЗР'!$U$70,FALSE) -> 6010.05 | AP18: ='План продаж'!AP32*HLOOKUP(AP$5,'расчет прямых ТЗР'!$C$4:$N$70,'расчет прямых ТЗР'!$U$70,FALSE) -> 6010.05 | AQ18: ='План продаж'!AQ32*HLOOKUP(AQ$5,'расчет прямых ТЗР'!$C$4:$N$70,'расчет прямых ТЗР'!$U$70,FALSE) -> 6010.05 | AR18: ='План продаж'!AR32*HLOOKUP(AR$5,'расчет прямых ТЗР'!$C$4:$N$70,'расчет прямых ТЗР'!$U$70,FALSE) -> 6070.8 | AS18: ='План продаж'!AS32*HLOOKUP(AS$5,'расчет прямых ТЗР'!$C$4:$N$70,'расчет прямых ТЗР'!$U$70,FALSE) -> 8943.45 | AT18: ='План продаж'!AT32*HLOOKUP(AT$5,'расчет прямых ТЗР'!$C$4:$N$70,'расчет прямых ТЗР'!$U$70,FALSE) -> 18270 | AU18: ='План продаж'!AU32*HLOOKUP(AU$5,'расчет прямых ТЗР'!$C$4:$N$70,'расчет прямых ТЗР'!$U$70,FALSE) -> 17022 | AV18: ='План продаж'!AV32*HLOOKUP(AV$5,'расчет прямых ТЗР'!$C$4:$N$70,'расчет прямых ТЗР'!$U$70,FALSE) -> 7796.7 | AW18: ='План продаж'!AW32*HLOOKUP(AW$5,'расчет прямых ТЗР'!$C$4:$N$70,'расчет прямых ТЗР'!$U$70,FALSE) -> 6232.8 | AX18: ='План продаж'!AX32*HLOOKUP(AX$5,'расчет прямых ТЗР'!$C$4:$N$70,'расчет прямых ТЗР'!$U$70,FALSE) -> 6131.55 | AY18: ='План продаж'!AY32*HLOOKUP(AY$5,'расчет прямых ТЗР'!$C$4:$N$70,'расчет прямых ТЗР'!$U$70,FALSE) -> 6070.8 | AZ18: ='План продаж'!AZ32*HLOOKUP(AZ$5,'расчет прямых ТЗР'!$C$4:$N$70,'расчет прямых ТЗР'!$U$70,FALSE) -> 6010.05 | BA18: ='План продаж'!BA32*HLOOKUP(BA$5,'расчет прямых ТЗР'!$C$4:$N$70,'расчет прямых ТЗР'!$U$70,FALSE) -> 6010.05 | BB18: ='План продаж'!BB32*HLOOKUP(BB$5,'расчет прямых ТЗР'!$C$4:$N$70,'расчет прямых ТЗР'!$U$70,FALSE) -> 6010.05 | BC18: ='План продаж'!BC32*HLOOKUP(BC$5,'расчет прямых ТЗР'!$C$4:$N$70,'расчет прямых ТЗР'!$U$70,FALSE) -> 6010.05 | BD18: ='План продаж'!BD32*HLOOKUP(BD$5,'расчет прямых ТЗР'!$C$4:$N$70,'расчет прямых ТЗР'!$U$70,FALSE) -> 6070.8 | BE18: ='План продаж'!BE32*HLOOKUP(BE$5,'расчет прямых ТЗР'!$C$4:$N$70,'расчет прямых ТЗР'!$U$70,FALSE) -> 8943.45 | BF18: ='План продаж'!BF32*HLOOKUP(BF$5,'расчет прямых ТЗР'!$C$4:$N$70,'расчет прямых ТЗР'!$U$70,FALSE) -> 18270 | BG18: ='План продаж'!BG32*HLOOKUP(BG$5,'расчет прямых ТЗР'!$C$4:$N$70,'расчет прямых ТЗР'!$U$70,FALSE) -> 17022 | BH18: ='План продаж'!BH32*HLOOKUP(BH$5,'расчет прямых ТЗР'!$C$4:$N$70,'расчет прямых ТЗР'!$U$70,FALSE) -> 7796.7 | BI18: ='План продаж'!BI32*HLOOKUP(BI$5,'расчет прямых ТЗР'!$C$4:$N$70,'расчет прямых ТЗР'!$U$70,FALSE) -> 6232.8 | BJ18: ='План продаж'!BJ32*HLOOKUP(BJ$5,'расчет прямых ТЗР'!$C$4:$N$70,'расчет прямых ТЗР'!$U$70,FALSE) -> 6131.55 | BK18: ='План продаж'!BK32*HLOOKUP(BK$5,'расчет прямых ТЗР'!$C$4:$N$70,'расчет прямых ТЗР'!$U$70,FALSE) -> 6070.8
A19: Выплаты персоналу (сдельная часть) | B19: 2326721.91 | D19: ='Исходные данные'!$G$108*'План продаж'!D32*(1-'Исходные данные'!$C$287) -> 22016.22 | E19: ='Исходные данные'!$G$108*'План продаж'!E32*(1-'Исходные данные'!$C$287) -> 25785.06 | F19: ='Исходные данные'!$G$108*'План продаж'!F32*(1-'Исходные данные'!$C$287) -> 29013.63 | G19: ='Исходные данные'!$G$108*'План продаж'!G32*(1-'Исходные данные'!$C$287) -> 29013.63 | H19: ='Исходные данные'!$G$108*'План продаж'!H32*(1-'Исходные данные'!$C$287) -> 31451.37 | I19: ='Исходные данные'!$G$108*'План продаж'!I32*(1-'Исходные данные'!$C$287) -> 32625.87 | J19: ='Исходные данные'!$G$108*'План продаж'!J32*(1-'Исходные данные'!$C$287) -> 48465.09 | K19: ='Исходные данные'!$G$108*'План продаж'!K32*(1-'Исходные данные'!$C$287) -> 87620.31 | L19: ='Исходные данные'!$G$108*'План продаж'!L32*(1-'Исходные данные'!$C$287) -> 42596.94 | M19: ='Исходные данные'!$G$108*'План продаж'!M32*(1-'Исходные данные'!$C$287) -> 34113.57 | N19: ='Исходные данные'!$G$108*'План продаж'!N32*(1-'Исходные данные'!$C$287) -> 32156.07 | O19: ='Исходные данные'!$G$108*'План продаж'!O32*(1-'Исходные данные'!$C$287) -> 32625.87 | P19: ='Исходные данные'!$G$108*'План продаж'!P32*(1-'Исходные данные'!$C$287) -> 31451.37 | Q19: ='Исходные данные'!$G$108*'План продаж'!Q32*(1-'Исходные данные'!$C$287) -> 32234.37 | R19: ='Исходные данные'!$G$108*'План продаж'!R32*(1-'Исходные данные'!$C$287) -> 32234.37 | S19: ='Исходные данные'!$G$108*'План продаж'!S32*(1-'Исходные данные'!$C$287) -> 32234.37 | T19: ='Исходные данные'!$G$108*'План продаж'!T32*(1-'Исходные данные'!$C$287) -> 31451.37 | U19: ='Исходные данные'!$G$108*'План продаж'!U32*(1-'Исходные данные'!$C$287) -> 32625.87 | V19: ='Исходные данные'!$G$108*'План продаж'!V32*(1-'Исходные данные'!$C$287) -> 48465.09 | W19: ='Исходные данные'!$G$108*'План продаж'!W32*(1-'Исходные данные'!$C$287) -> 87620.31 | X19: ='Исходные данные'!$G$108*'План продаж'!X32*(1-'Исходные данные'!$C$287) -> 42596.94 | Y19: ='Исходные данные'!$G$108*'План продаж'!Y32*(1-'Исходные данные'!$C$287) -> 34113.57 | Z19: ='Исходные данные'!$G$108*'План продаж'!Z32*(1-'Исходные данные'!$C$287) -> 32156.07 | AA19: ='Исходные данные'!$G$108*'План продаж'!AA32*(1-'Исходные данные'!$C$287) -> 32625.87 | AB19: ='Исходные данные'!$G$108*'План продаж'!AB32*(1-'Исходные данные'!$C$287) -> 31451.37 | AC19: ='Исходные данные'!$G$108*'План продаж'!AC32*(1-'Исходные данные'!$C$287) -> 32234.37 | AD19: ='Исходные данные'!$G$108*'План продаж'!AD32*(1-'Исходные данные'!$C$287) -> 32234.37 | AE19: ='Исходные данные'!$G$108*'План продаж'!AE32*(1-'Исходные данные'!$C$287) -> 32234.37 | AF19: ='Исходные данные'!$G$108*'План продаж'!AF32*(1-'Исходные данные'!$C$287) -> 31451.37 | AG19: ='Исходные данные'!$G$108*'План продаж'!AG32*(1-'Исходные данные'!$C$287) -> 32625.87 | AH19: ='Исходные данные'!$G$108*'План продаж'!AH32*(1-'Исходные данные'!$C$287) -> 48465.09 | AI19: ='Исходные данные'!$G$108*'План продаж'!AI32*(1-'Исходные данные'!$C$287) -> 87620.31 | AJ19: ='Исходные данные'!$G$108*'План продаж'!AJ32*(1-'Исходные данные'!$C$287) -> 42596.94 | AK19: ='Исходные данные'!$G$108*'План продаж'!AK32*(1-'Исходные данные'!$C$287) -> 34113.57 | AL19: ='Исходные данные'!$G$108*'План продаж'!AL32*(1-'Исходные данные'!$C$287) -> 32156.07 | AM19: ='Исходные данные'!$G$108*'План продаж'!AM32*(1-'Исходные данные'!$C$287) -> 32625.87 | AN19: ='Исходные данные'!$G$108*'План продаж'!AN32*(1-'Исходные данные'!$C$287) -> 31451.37 | AO19: ='Исходные данные'!$G$108*'План продаж'!AO32*(1-'Исходные данные'!$C$287) -> 32234.37 | AP19: ='Исходные данные'!$G$108*'План продаж'!AP32*(1-'Исходные данные'!$C$287) -> 32234.37 | AQ19: ='Исходные данные'!$G$108*'План продаж'!AQ32*(1-'Исходные данные'!$C$287) -> 32234.37 | AR19: ='Исходные данные'!$G$108*'План продаж'!AR32*(1-'Исходные данные'!$C$287) -> 31451.37 | AS19: ='Исходные данные'!$G$108*'План продаж'!AS32*(1-'Исходные данные'!$C$287) -> 32625.87 | AT19: ='Исходные данные'!$G$108*'План продаж'!AT32*(1-'Исходные данные'!$C$287) -> 48465.09 | AU19: ='Исходные данные'!$G$108*'План продаж'!AU32*(1-'Исходные данные'!$C$287) -> 87620.31 | AV19: ='Исходные данные'!$G$108*'План продаж'!AV32*(1-'Исходные данные'!$C$287) -> 42596.94 | AW19: ='Исходные данные'!$G$108*'План продаж'!AW32*(1-'Исходные данные'!$C$287) -> 34113.57 | AX19: ='Исходные данные'!$G$108*'План продаж'!AX32*(1-'Исходные данные'!$C$287) -> 32156.07 | AY19: ='Исходные данные'!$G$108*'План продаж'!AY32*(1-'Исходные данные'!$C$287) -> 32625.87 | AZ19: ='Исходные данные'!$G$108*'План продаж'!AZ32*(1-'Исходные данные'!$C$287) -> 31451.37 | BA19: ='Исходные данные'!$G$108*'План продаж'!BA32*(1-'Исходные данные'!$C$287) -> 32234.37 | BB19: ='Исходные данные'!$G$108*'План продаж'!BB32*(1-'Исходные данные'!$C$287) -> 32234.37 | BC19: ='Исходные данные'!$G$108*'План продаж'!BC32*(1-'Исходные данные'!$C$287) -> 32234.37 | BD19: ='Исходные данные'!$G$108*'План продаж'!BD32*(1-'Исходные данные'!$C$287) -> 31451.37 | BE19: ='Исходные данные'!$G$108*'План продаж'!BE32*(1-'Исходные данные'!$C$287) -> 32625.87 | BF19: ='Исходные данные'!$G$108*'План продаж'!BF32*(1-'Исходные данные'!$C$287) -> 48465.09 | BG19: ='Исходные данные'!$G$108*'План продаж'!BG32*(1-'Исходные данные'!$C$287) -> 87620.31 | BH19: ='Исходные данные'!$G$108*'План продаж'!BH32*(1-'Исходные данные'!$C$287) -> 42596.94 | BI19: ='Исходные данные'!$G$108*'План продаж'!BI32*(1-'Исходные данные'!$C$287) -> 34113.57 | BJ19: ='Исходные данные'!$G$108*'План продаж'!BJ32*(1-'Исходные данные'!$C$287) -> 32156.07 | BK19: ='Исходные данные'!$G$108*'План продаж'!BK32*(1-'Исходные данные'!$C$287) -> 32625.87
